{"text_format":"1","workbook":"xlsx","n_sheets":4,"sheets":["Índice","Equilibrio Oferta-Utilización","Catálogo","Datos"],"not_rendered":{"charts":0,"images":1,"macros":1,"external_links":1,"defined_names":7,"comments":0,"pivot_tables":0},"unopened":[],"bounds":{"document_bytes":16777216,"sheet_cells":100000,"rows_first":2000,"rows_last":500,"rows_between":2000,"halvings":0,"cell_chars":16384,"cell_head_chars":4096},"cells_cut":0,"cells_raw":0,"read":"whole","date_system":"1900"}

{"sheet":"Índice","index":0,"n_rows":26,"n_cols":3,"rows_kept":26,"cut":false,"hidden":false,"merged":[[12,1,12,2],[13,1,13,2],[14,1,14,2]]}
[]
[]
[]
[]
[]
[]
[]
[]
[]
[]
[]
[]
[null,"CUENTAS NACIONALES ANUALES"]
[null,"Equilibrios de oferta y utilización"]
[null,"Año de referencia 2013"]
[]
[null,"3","EQUILIBRIOS DE OFERTA Y UTILIZACIÓN. AÑOS 2013 - 2024"]
[null," "]
[null,null,"Equilibrios de oferta y utilización por producto. Millones de quetzales "]
[]
[null,null,"Catálogo"]
[]
[null,null,"Generar todos los equilibrios"]
[]
[]
[null,"Nota:","Para generar un equilibrio de oferta y utilización debe habilitar macros (en las opciones de Excel) y posteriormente seleccionar el código NPG correspondiente en la hoja catálogo."]

{"sheet":"Equilibrio Oferta-Utilización","index":1,"n_rows":55,"n_cols":15,"rows_kept":55,"cut":false,"hidden":false,"merged":[[6,2,6,7]]}
[]
[null,{"$f":"+CONCATENATE(\"Cuadro \",IFERROR(INDEX(Catálogo!$B$7:$D$158,MATCH($C$8,Catálogo!$C$7:$C$158,0),1),3))","v":"Cuadro 3.1"}]
[null,"Equilibrio de oferta y utilización"]
[null,"Años 2013 - 2024"]
[null,"Millones de quetzales"]
[]
[null,"Producto:",{"$f":"IFERROR(+VLOOKUP($C$8,Catálogo!$C:$D,2,0),\"\")","v":"Maíz"}]
[null,"Código NPG:","P001",null,null,null,null,null,null,null,null,null,null,null,"Catálogo"]
[]
[null,"Concepto",null,2013,2014,2015,2016,2017,2018,2019,2020,2021,2022,"2023 p/","2024 p/"]
[null,"Producción (PB)",null,{"$f":"+SUMIFS(Datos!$C:$C,Datos!$A:$A,$C$8,Datos!$B:$B,$C$7,Datos!$D:$D,$B11,Datos!$E:$E,D$10)","v":4738.5275949999996},{"$f":"+SUMIFS(Datos!$C:$C,Datos!$A:$A,$C$8,Datos!$B:$B,$C$7,Datos!$D:$D,$B11,Datos!$E:$E,E$10)","v":5080.6027539999995},{"$f":"+SUMIFS(Datos!$C:$C,Datos!$A:$A,$C$8,Datos!$B:$B,$C$7,Datos!$D:$D,$B11,Datos!$E:$E,F$10)","v":5175.017296},{"$f":"+SUMIFS(Datos!$C:$C,Datos!$A:$A,$C$8,Datos!$B:$B,$C$7,Datos!$D:$D,$B11,Datos!$E:$E,G$10)","v":5476.1529330000003},{"$f":"+SUMIFS(Datos!$C:$C,Datos!$A:$A,$C$8,Datos!$B:$B,$C$7,Datos!$D:$D,$B11,Datos!$E:$E,H$10)","v":4756.5473279999997},{"$f":"+SUMIFS(Datos!$C:$C,Datos!$A:$A,$C$8,Datos!$B:$B,$C$7,Datos!$D:$D,$B11,Datos!$E:$E,I$10)","v":5390.4606519999998},{"$f":"+SUMIFS(Datos!$C:$C,Datos!$A:$A,$C$8,Datos!$B:$B,$C$7,Datos!$D:$D,$B11,Datos!$E:$E,J$10)","v":5873.9922310000002},{"$f":"+SUMIFS(Datos!$C:$C,Datos!$A:$A,$C$8,Datos!$B:$B,$C$7,Datos!$D:$D,$B11,Datos!$E:$E,K$10)","v":5947.6382899999999},{"$f":"+SUMIFS(Datos!$C:$C,Datos!$A:$A,$C$8,Datos!$B:$B,$C$7,Datos!$D:$D,$B11,Datos!$E:$E,L$10)","v":6685.43984},{"$f":"+SUMIFS(Datos!$C:$C,Datos!$A:$A,$C$8,Datos!$B:$B,$C$7,Datos!$D:$D,$B11,Datos!$E:$E,M$10)","v":8902.3375799999994},{"$f":"+SUMIFS(Datos!$C:$C,Datos!$A:$A,$C$8,Datos!$B:$B,$C$7,Datos!$D:$D,$B11,Datos!$E:$E,N$10)","v":9871.8922060000004},{"$f":"+SUMIFS(Datos!$C:$C,Datos!$A:$A,$C$8,Datos!$B:$B,$C$7,Datos!$D:$D,$B11,Datos!$E:$E,O$10)","v":9132.1771210000006}]
[null,"Impuestos sobre los productos, excepto IVA e impuestos sobre las importaciones",null,{"$f":"+SUMIFS(Datos!$C:$C,Datos!$A:$A,$C$8,Datos!$B:$B,$C$7,Datos!$D:$D,$B12,Datos!$E:$E,D$10)","v":0},{"$f":"+SUMIFS(Datos!$C:$C,Datos!$A:$A,$C$8,Datos!$B:$B,$C$7,Datos!$D:$D,$B12,Datos!$E:$E,E$10)","v":0},{"$f":"+SUMIFS(Datos!$C:$C,Datos!$A:$A,$C$8,Datos!$B:$B,$C$7,Datos!$D:$D,$B12,Datos!$E:$E,F$10)","v":0},{"$f":"+SUMIFS(Datos!$C:$C,Datos!$A:$A,$C$8,Datos!$B:$B,$C$7,Datos!$D:$D,$B12,Datos!$E:$E,G$10)","v":0},{"$f":"+SUMIFS(Datos!$C:$C,Datos!$A:$A,$C$8,Datos!$B:$B,$C$7,Datos!$D:$D,$B12,Datos!$E:$E,H$10)","v":0},{"$f":"+SUMIFS(Datos!$C:$C,Datos!$A:$A,$C$8,Datos!$B:$B,$C$7,Datos!$D:$D,$B12,Datos!$E:$E,I$10)","v":0},{"$f":"+SUMIFS(Datos!$C:$C,Datos!$A:$A,$C$8,Datos!$B:$B,$C$7,Datos!$D:$D,$B12,Datos!$E:$E,J$10)","v":0},{"$f":"+SUMIFS(Datos!$C:$C,Datos!$A:$A,$C$8,Datos!$B:$B,$C$7,Datos!$D:$D,$B12,Datos!$E:$E,K$10)","v":0},{"$f":"+SUMIFS(Datos!$C:$C,Datos!$A:$A,$C$8,Datos!$B:$B,$C$7,Datos!$D:$D,$B12,Datos!$E:$E,L$10)","v":0},{"$f":"+SUMIFS(Datos!$C:$C,Datos!$A:$A,$C$8,Datos!$B:$B,$C$7,Datos!$D:$D,$B12,Datos!$E:$E,M$10)","v":0},{"$f":"+SUMIFS(Datos!$C:$C,Datos!$A:$A,$C$8,Datos!$B:$B,$C$7,Datos!$D:$D,$B12,Datos!$E:$E,N$10)","v":0},{"$f":"+SUMIFS(Datos!$C:$C,Datos!$A:$A,$C$8,Datos!$B:$B,$C$7,Datos!$D:$D,$B12,Datos!$E:$E,O$10)","v":0}]
[null,"Subvenciones a los productos",null,{"$f":"+SUMIFS(Datos!$C:$C,Datos!$A:$A,$C$8,Datos!$B:$B,$C$7,Datos!$D:$D,$B13,Datos!$E:$E,D$10)","v":0},{"$f":"+SUMIFS(Datos!$C:$C,Datos!$A:$A,$C$8,Datos!$B:$B,$C$7,Datos!$D:$D,$B13,Datos!$E:$E,E$10)","v":0},{"$f":"+SUMIFS(Datos!$C:$C,Datos!$A:$A,$C$8,Datos!$B:$B,$C$7,Datos!$D:$D,$B13,Datos!$E:$E,F$10)","v":0},{"$f":"+SUMIFS(Datos!$C:$C,Datos!$A:$A,$C$8,Datos!$B:$B,$C$7,Datos!$D:$D,$B13,Datos!$E:$E,G$10)","v":0},{"$f":"+SUMIFS(Datos!$C:$C,Datos!$A:$A,$C$8,Datos!$B:$B,$C$7,Datos!$D:$D,$B13,Datos!$E:$E,H$10)","v":0},{"$f":"+SUMIFS(Datos!$C:$C,Datos!$A:$A,$C$8,Datos!$B:$B,$C$7,Datos!$D:$D,$B13,Datos!$E:$E,I$10)","v":0},{"$f":"+SUMIFS(Datos!$C:$C,Datos!$A:$A,$C$8,Datos!$B:$B,$C$7,Datos!$D:$D,$B13,Datos!$E:$E,J$10)","v":0},{"$f":"+SUMIFS(Datos!$C:$C,Datos!$A:$A,$C$8,Datos!$B:$B,$C$7,Datos!$D:$D,$B13,Datos!$E:$E,K$10)","v":0},{"$f":"+SUMIFS(Datos!$C:$C,Datos!$A:$A,$C$8,Datos!$B:$B,$C$7,Datos!$D:$D,$B13,Datos!$E:$E,L$10)","v":0},{"$f":"+SUMIFS(Datos!$C:$C,Datos!$A:$A,$C$8,Datos!$B:$B,$C$7,Datos!$D:$D,$B13,Datos!$E:$E,M$10)","v":0},{"$f":"+SUMIFS(Datos!$C:$C,Datos!$A:$A,$C$8,Datos!$B:$B,$C$7,Datos!$D:$D,$B13,Datos!$E:$E,N$10)","v":0},{"$f":"+SUMIFS(Datos!$C:$C,Datos!$A:$A,$C$8,Datos!$B:$B,$C$7,Datos!$D:$D,$B13,Datos!$E:$E,O$10)","v":0}]
[null,"Importaciones (CIF)",null,{"$f":"+SUMIFS(Datos!$C:$C,Datos!$A:$A,$C$8,Datos!$B:$B,$C$7,Datos!$D:$D,$B14,Datos!$E:$E,D$10)","v":1926.576568},{"$f":"+SUMIFS(Datos!$C:$C,Datos!$A:$A,$C$8,Datos!$B:$B,$C$7,Datos!$D:$D,$B14,Datos!$E:$E,E$10)","v":1956.010428},{"$f":"+SUMIFS(Datos!$C:$C,Datos!$A:$A,$C$8,Datos!$B:$B,$C$7,Datos!$D:$D,$B14,Datos!$E:$E,F$10)","v":1937.5284630000001},{"$f":"+SUMIFS(Datos!$C:$C,Datos!$A:$A,$C$8,Datos!$B:$B,$C$7,Datos!$D:$D,$B14,Datos!$E:$E,G$10)","v":1962.7691789999999},{"$f":"+SUMIFS(Datos!$C:$C,Datos!$A:$A,$C$8,Datos!$B:$B,$C$7,Datos!$D:$D,$B14,Datos!$E:$E,H$10)","v":1866.521152},{"$f":"+SUMIFS(Datos!$C:$C,Datos!$A:$A,$C$8,Datos!$B:$B,$C$7,Datos!$D:$D,$B14,Datos!$E:$E,I$10)","v":2096.1708669999998},{"$f":"+SUMIFS(Datos!$C:$C,Datos!$A:$A,$C$8,Datos!$B:$B,$C$7,Datos!$D:$D,$B14,Datos!$E:$E,J$10)","v":2504.7953699999998},{"$f":"+SUMIFS(Datos!$C:$C,Datos!$A:$A,$C$8,Datos!$B:$B,$C$7,Datos!$D:$D,$B14,Datos!$E:$E,K$10)","v":2725.1497610000001},{"$f":"+SUMIFS(Datos!$C:$C,Datos!$A:$A,$C$8,Datos!$B:$B,$C$7,Datos!$D:$D,$B14,Datos!$E:$E,L$10)","v":3673.0260309999999},{"$f":"+SUMIFS(Datos!$C:$C,Datos!$A:$A,$C$8,Datos!$B:$B,$C$7,Datos!$D:$D,$B14,Datos!$E:$E,M$10)","v":4859.7301390000002},{"$f":"+SUMIFS(Datos!$C:$C,Datos!$A:$A,$C$8,Datos!$B:$B,$C$7,Datos!$D:$D,$B14,Datos!$E:$E,N$10)","v":4494.0957600000002},{"$f":"+SUMIFS(Datos!$C:$C,Datos!$A:$A,$C$8,Datos!$B:$B,$C$7,Datos!$D:$D,$B14,Datos!$E:$E,O$10)","v":4430.9217090000002}]
[null,"Ajuste CIF/FOB",null,{"$f":"+SUMIFS(Datos!$C:$C,Datos!$A:$A,$C$8,Datos!$B:$B,$C$7,Datos!$D:$D,$B15,Datos!$E:$E,D$10)","v":0},{"$f":"+SUMIFS(Datos!$C:$C,Datos!$A:$A,$C$8,Datos!$B:$B,$C$7,Datos!$D:$D,$B15,Datos!$E:$E,E$10)","v":0},{"$f":"+SUMIFS(Datos!$C:$C,Datos!$A:$A,$C$8,Datos!$B:$B,$C$7,Datos!$D:$D,$B15,Datos!$E:$E,F$10)","v":0},{"$f":"+SUMIFS(Datos!$C:$C,Datos!$A:$A,$C$8,Datos!$B:$B,$C$7,Datos!$D:$D,$B15,Datos!$E:$E,G$10)","v":0},{"$f":"+SUMIFS(Datos!$C:$C,Datos!$A:$A,$C$8,Datos!$B:$B,$C$7,Datos!$D:$D,$B15,Datos!$E:$E,H$10)","v":0},{"$f":"+SUMIFS(Datos!$C:$C,Datos!$A:$A,$C$8,Datos!$B:$B,$C$7,Datos!$D:$D,$B15,Datos!$E:$E,I$10)","v":0},{"$f":"+SUMIFS(Datos!$C:$C,Datos!$A:$A,$C$8,Datos!$B:$B,$C$7,Datos!$D:$D,$B15,Datos!$E:$E,J$10)","v":0},{"$f":"+SUMIFS(Datos!$C:$C,Datos!$A:$A,$C$8,Datos!$B:$B,$C$7,Datos!$D:$D,$B15,Datos!$E:$E,K$10)","v":0},{"$f":"+SUMIFS(Datos!$C:$C,Datos!$A:$A,$C$8,Datos!$B:$B,$C$7,Datos!$D:$D,$B15,Datos!$E:$E,L$10)","v":0},{"$f":"+SUMIFS(Datos!$C:$C,Datos!$A:$A,$C$8,Datos!$B:$B,$C$7,Datos!$D:$D,$B15,Datos!$E:$E,M$10)","v":0},{"$f":"+SUMIFS(Datos!$C:$C,Datos!$A:$A,$C$8,Datos!$B:$B,$C$7,Datos!$D:$D,$B15,Datos!$E:$E,N$10)","v":0},{"$f":"+SUMIFS(Datos!$C:$C,Datos!$A:$A,$C$8,Datos!$B:$B,$C$7,Datos!$D:$D,$B15,Datos!$E:$E,O$10)","v":0}]
[null,"Impuestos y derechos sobre las importaciones excepto IVA",null,{"$f":"+SUMIFS(Datos!$C:$C,Datos!$A:$A,$C$8,Datos!$B:$B,$C$7,Datos!$D:$D,$B16,Datos!$E:$E,D$10)","v":1.3095000000000001E-2},{"$f":"+SUMIFS(Datos!$C:$C,Datos!$A:$A,$C$8,Datos!$B:$B,$C$7,Datos!$D:$D,$B16,Datos!$E:$E,E$10)","v":1.2174000000000001E-2},{"$f":"+SUMIFS(Datos!$C:$C,Datos!$A:$A,$C$8,Datos!$B:$B,$C$7,Datos!$D:$D,$B16,Datos!$E:$E,F$10)","v":1.2119E-2},{"$f":"+SUMIFS(Datos!$C:$C,Datos!$A:$A,$C$8,Datos!$B:$B,$C$7,Datos!$D:$D,$B16,Datos!$E:$E,G$10)","v":1.207867},{"$f":"+SUMIFS(Datos!$C:$C,Datos!$A:$A,$C$8,Datos!$B:$B,$C$7,Datos!$D:$D,$B16,Datos!$E:$E,H$10)","v":0.11444600000000001},{"$f":"+SUMIFS(Datos!$C:$C,Datos!$A:$A,$C$8,Datos!$B:$B,$C$7,Datos!$D:$D,$B16,Datos!$E:$E,I$10)","v":0.12887000000000001},{"$f":"+SUMIFS(Datos!$C:$C,Datos!$A:$A,$C$8,Datos!$B:$B,$C$7,Datos!$D:$D,$B16,Datos!$E:$E,J$10)","v":0.15424299999999999},{"$f":"+SUMIFS(Datos!$C:$C,Datos!$A:$A,$C$8,Datos!$B:$B,$C$7,Datos!$D:$D,$B16,Datos!$E:$E,K$10)","v":0.16805700000000001},{"$f":"+SUMIFS(Datos!$C:$C,Datos!$A:$A,$C$8,Datos!$B:$B,$C$7,Datos!$D:$D,$B16,Datos!$E:$E,L$10)","v":0.22651199999999999},{"$f":"+SUMIFS(Datos!$C:$C,Datos!$A:$A,$C$8,Datos!$B:$B,$C$7,Datos!$D:$D,$B16,Datos!$E:$E,M$10)","v":0.343692},{"$f":"+SUMIFS(Datos!$C:$C,Datos!$A:$A,$C$8,Datos!$B:$B,$C$7,Datos!$D:$D,$B16,Datos!$E:$E,N$10)","v":0.31783400000000001},{"$f":"+SUMIFS(Datos!$C:$C,Datos!$A:$A,$C$8,Datos!$B:$B,$C$7,Datos!$D:$D,$B16,Datos!$E:$E,O$10)","v":0.31336599999999998}]
[null,"Impuesto tipo valor agregado (IVA)",null,{"$f":"+SUMIFS(Datos!$C:$C,Datos!$A:$A,$C$8,Datos!$B:$B,$C$7,Datos!$D:$D,$B17,Datos!$E:$E,D$10)","v":56.302073999999998},{"$f":"+SUMIFS(Datos!$C:$C,Datos!$A:$A,$C$8,Datos!$B:$B,$C$7,Datos!$D:$D,$B17,Datos!$E:$E,E$10)","v":64.448783000000006},{"$f":"+SUMIFS(Datos!$C:$C,Datos!$A:$A,$C$8,Datos!$B:$B,$C$7,Datos!$D:$D,$B17,Datos!$E:$E,F$10)","v":63.156509},{"$f":"+SUMIFS(Datos!$C:$C,Datos!$A:$A,$C$8,Datos!$B:$B,$C$7,Datos!$D:$D,$B17,Datos!$E:$E,G$10)","v":66.6374},{"$f":"+SUMIFS(Datos!$C:$C,Datos!$A:$A,$C$8,Datos!$B:$B,$C$7,Datos!$D:$D,$B17,Datos!$E:$E,H$10)","v":74.990100999999996},{"$f":"+SUMIFS(Datos!$C:$C,Datos!$A:$A,$C$8,Datos!$B:$B,$C$7,Datos!$D:$D,$B17,Datos!$E:$E,I$10)","v":75.529437000000001},{"$f":"+SUMIFS(Datos!$C:$C,Datos!$A:$A,$C$8,Datos!$B:$B,$C$7,Datos!$D:$D,$B17,Datos!$E:$E,J$10)","v":83.781882999999993},{"$f":"+SUMIFS(Datos!$C:$C,Datos!$A:$A,$C$8,Datos!$B:$B,$C$7,Datos!$D:$D,$B17,Datos!$E:$E,K$10)","v":106.756379},{"$f":"+SUMIFS(Datos!$C:$C,Datos!$A:$A,$C$8,Datos!$B:$B,$C$7,Datos!$D:$D,$B17,Datos!$E:$E,L$10)","v":119.76886},{"$f":"+SUMIFS(Datos!$C:$C,Datos!$A:$A,$C$8,Datos!$B:$B,$C$7,Datos!$D:$D,$B17,Datos!$E:$E,M$10)","v":157.70788400000001},{"$f":"+SUMIFS(Datos!$C:$C,Datos!$A:$A,$C$8,Datos!$B:$B,$C$7,Datos!$D:$D,$B17,Datos!$E:$E,N$10)","v":184.87210999999999},{"$f":"+SUMIFS(Datos!$C:$C,Datos!$A:$A,$C$8,Datos!$B:$B,$C$7,Datos!$D:$D,$B17,Datos!$E:$E,O$10)","v":184.445156}]
[null,"Márgenes de comercio, transporte y distribución de energía",null,{"$f":"+SUMIFS(Datos!$C:$C,Datos!$A:$A,$C$8,Datos!$B:$B,$C$7,Datos!$D:$D,$B18,Datos!$E:$E,D$10)","v":1236.1941449999999},{"$f":"+SUMIFS(Datos!$C:$C,Datos!$A:$A,$C$8,Datos!$B:$B,$C$7,Datos!$D:$D,$B18,Datos!$E:$E,E$10)","v":1105.7036350000001},{"$f":"+SUMIFS(Datos!$C:$C,Datos!$A:$A,$C$8,Datos!$B:$B,$C$7,Datos!$D:$D,$B18,Datos!$E:$E,F$10)","v":1264.3501940000001},{"$f":"+SUMIFS(Datos!$C:$C,Datos!$A:$A,$C$8,Datos!$B:$B,$C$7,Datos!$D:$D,$B18,Datos!$E:$E,G$10)","v":1207.606935},{"$f":"+SUMIFS(Datos!$C:$C,Datos!$A:$A,$C$8,Datos!$B:$B,$C$7,Datos!$D:$D,$B18,Datos!$E:$E,H$10)","v":1775.4645109999999},{"$f":"+SUMIFS(Datos!$C:$C,Datos!$A:$A,$C$8,Datos!$B:$B,$C$7,Datos!$D:$D,$B18,Datos!$E:$E,I$10)","v":1862.0701730000001},{"$f":"+SUMIFS(Datos!$C:$C,Datos!$A:$A,$C$8,Datos!$B:$B,$C$7,Datos!$D:$D,$B18,Datos!$E:$E,J$10)","v":2076.7218400000002},{"$f":"+SUMIFS(Datos!$C:$C,Datos!$A:$A,$C$8,Datos!$B:$B,$C$7,Datos!$D:$D,$B18,Datos!$E:$E,K$10)","v":2337.9927269999998},{"$f":"+SUMIFS(Datos!$C:$C,Datos!$A:$A,$C$8,Datos!$B:$B,$C$7,Datos!$D:$D,$B18,Datos!$E:$E,L$10)","v":2567.6841599999998},{"$f":"+SUMIFS(Datos!$C:$C,Datos!$A:$A,$C$8,Datos!$B:$B,$C$7,Datos!$D:$D,$B18,Datos!$E:$E,M$10)","v":3442.8244719999998},{"$f":"+SUMIFS(Datos!$C:$C,Datos!$A:$A,$C$8,Datos!$B:$B,$C$7,Datos!$D:$D,$B18,Datos!$E:$E,N$10)","v":4139.0664109999998},{"$f":"+SUMIFS(Datos!$C:$C,Datos!$A:$A,$C$8,Datos!$B:$B,$C$7,Datos!$D:$D,$B18,Datos!$E:$E,O$10)","v":4330.5781230000002}]
[null,"Oferta total",null,{"$f":"+SUM(D11:D18)","v":7957.6134770000008},8206.7777740000001,8440.0645810000005,8714.3743140000006,8473.637537999999,9424.3599990000002,{"$f":"+SUM(J11:J18)","v":10539.445567000001},11117.705214000001,13046.145402999999,{"$f":"+SUM(M11:M18)","v":17362.943766999997},18690.244320999998,{"$f":"+SUM(O11:O18)","v":18078.435475000002}]
[null,"Consumo intermedio (PC)",null,{"$f":"+SUMIFS(Datos!$C:$C,Datos!$A:$A,$C$8,Datos!$B:$B,$C$7,Datos!$D:$D,$B20,Datos!$E:$E,D$10)","v":3302.630165},{"$f":"+SUMIFS(Datos!$C:$C,Datos!$A:$A,$C$8,Datos!$B:$B,$C$7,Datos!$D:$D,$B20,Datos!$E:$E,E$10)","v":3412.4971310000001},{"$f":"+SUMIFS(Datos!$C:$C,Datos!$A:$A,$C$8,Datos!$B:$B,$C$7,Datos!$D:$D,$B20,Datos!$E:$E,F$10)","v":3476.5390120000002},{"$f":"+SUMIFS(Datos!$C:$C,Datos!$A:$A,$C$8,Datos!$B:$B,$C$7,Datos!$D:$D,$B20,Datos!$E:$E,G$10)","v":3597.5077160000001},{"$f":"+SUMIFS(Datos!$C:$C,Datos!$A:$A,$C$8,Datos!$B:$B,$C$7,Datos!$D:$D,$B20,Datos!$E:$E,H$10)","v":3274.1293620000001},{"$f":"+SUMIFS(Datos!$C:$C,Datos!$A:$A,$C$8,Datos!$B:$B,$C$7,Datos!$D:$D,$B20,Datos!$E:$E,I$10)","v":3704.2621789999998},{"$f":"+SUMIFS(Datos!$C:$C,Datos!$A:$A,$C$8,Datos!$B:$B,$C$7,Datos!$D:$D,$B20,Datos!$E:$E,J$10)","v":4065.477832},{"$f":"+SUMIFS(Datos!$C:$C,Datos!$A:$A,$C$8,Datos!$B:$B,$C$7,Datos!$D:$D,$B20,Datos!$E:$E,K$10)","v":4188.7452910000002},{"$f":"+SUMIFS(Datos!$C:$C,Datos!$A:$A,$C$8,Datos!$B:$B,$C$7,Datos!$D:$D,$B20,Datos!$E:$E,L$10)","v":5290.644644},{"$f":"+SUMIFS(Datos!$C:$C,Datos!$A:$A,$C$8,Datos!$B:$B,$C$7,Datos!$D:$D,$B20,Datos!$E:$E,M$10)","v":6888.3985210000001},{"$f":"+SUMIFS(Datos!$C:$C,Datos!$A:$A,$C$8,Datos!$B:$B,$C$7,Datos!$D:$D,$B20,Datos!$E:$E,N$10)","v":6837.7384220000004},{"$f":"+SUMIFS(Datos!$C:$C,Datos!$A:$A,$C$8,Datos!$B:$B,$C$7,Datos!$D:$D,$B20,Datos!$E:$E,O$10)","v":6048.981049}]
[null,"Consumo final privado (PC)",null,{"$f":"+SUMIFS(Datos!$C:$C,Datos!$A:$A,$C$8,Datos!$B:$B,$C$7,Datos!$D:$D,$B21,Datos!$E:$E,D$10)","v":4580.0363850000003},{"$f":"+SUMIFS(Datos!$C:$C,Datos!$A:$A,$C$8,Datos!$B:$B,$C$7,Datos!$D:$D,$B21,Datos!$E:$E,E$10)","v":4664.5760769999997},{"$f":"+SUMIFS(Datos!$C:$C,Datos!$A:$A,$C$8,Datos!$B:$B,$C$7,Datos!$D:$D,$B21,Datos!$E:$E,F$10)","v":4908.7973549999997},{"$f":"+SUMIFS(Datos!$C:$C,Datos!$A:$A,$C$8,Datos!$B:$B,$C$7,Datos!$D:$D,$B21,Datos!$E:$E,G$10)","v":5030.7944020000004},{"$f":"+SUMIFS(Datos!$C:$C,Datos!$A:$A,$C$8,Datos!$B:$B,$C$7,Datos!$D:$D,$B21,Datos!$E:$E,H$10)","v":5138.9054400000005},{"$f":"+SUMIFS(Datos!$C:$C,Datos!$A:$A,$C$8,Datos!$B:$B,$C$7,Datos!$D:$D,$B21,Datos!$E:$E,I$10)","v":5726.608776},{"$f":"+SUMIFS(Datos!$C:$C,Datos!$A:$A,$C$8,Datos!$B:$B,$C$7,Datos!$D:$D,$B21,Datos!$E:$E,J$10)","v":6291.0989529999997},{"$f":"+SUMIFS(Datos!$C:$C,Datos!$A:$A,$C$8,Datos!$B:$B,$C$7,Datos!$D:$D,$B21,Datos!$E:$E,K$10)","v":6762.6794760000002},{"$f":"+SUMIFS(Datos!$C:$C,Datos!$A:$A,$C$8,Datos!$B:$B,$C$7,Datos!$D:$D,$B21,Datos!$E:$E,L$10)","v":7480.7803089999998},{"$f":"+SUMIFS(Datos!$C:$C,Datos!$A:$A,$C$8,Datos!$B:$B,$C$7,Datos!$D:$D,$B21,Datos!$E:$E,M$10)","v":10028.960501},{"$f":"+SUMIFS(Datos!$C:$C,Datos!$A:$A,$C$8,Datos!$B:$B,$C$7,Datos!$D:$D,$B21,Datos!$E:$E,N$10)","v":11455.272121},{"$f":"+SUMIFS(Datos!$C:$C,Datos!$A:$A,$C$8,Datos!$B:$B,$C$7,Datos!$D:$D,$B21,Datos!$E:$E,O$10)","v":11520.416866}]
[null,"Consumo final del gobierno (PC)",null,{"$f":"+SUMIFS(Datos!$C:$C,Datos!$A:$A,$C$8,Datos!$B:$B,$C$7,Datos!$D:$D,$B22,Datos!$E:$E,D$10)","v":0},{"$f":"+SUMIFS(Datos!$C:$C,Datos!$A:$A,$C$8,Datos!$B:$B,$C$7,Datos!$D:$D,$B22,Datos!$E:$E,E$10)","v":121.93507},{"$f":"+SUMIFS(Datos!$C:$C,Datos!$A:$A,$C$8,Datos!$B:$B,$C$7,Datos!$D:$D,$B22,Datos!$E:$E,F$10)","v":34.290210000000002},{"$f":"+SUMIFS(Datos!$C:$C,Datos!$A:$A,$C$8,Datos!$B:$B,$C$7,Datos!$D:$D,$B22,Datos!$E:$E,G$10)","v":60.153328000000002},{"$f":"+SUMIFS(Datos!$C:$C,Datos!$A:$A,$C$8,Datos!$B:$B,$C$7,Datos!$D:$D,$B22,Datos!$E:$E,H$10)","v":70.978345000000004},{"$f":"+SUMIFS(Datos!$C:$C,Datos!$A:$A,$C$8,Datos!$B:$B,$C$7,Datos!$D:$D,$B22,Datos!$E:$E,I$10)","v":5.1579550000000003},{"$f":"+SUMIFS(Datos!$C:$C,Datos!$A:$A,$C$8,Datos!$B:$B,$C$7,Datos!$D:$D,$B22,Datos!$E:$E,J$10)","v":11.485080999999999},{"$f":"+SUMIFS(Datos!$C:$C,Datos!$A:$A,$C$8,Datos!$B:$B,$C$7,Datos!$D:$D,$B22,Datos!$E:$E,K$10)","v":169.92567199999999},{"$f":"+SUMIFS(Datos!$C:$C,Datos!$A:$A,$C$8,Datos!$B:$B,$C$7,Datos!$D:$D,$B22,Datos!$E:$E,L$10)","v":207.84014500000001},{"$f":"+SUMIFS(Datos!$C:$C,Datos!$A:$A,$C$8,Datos!$B:$B,$C$7,Datos!$D:$D,$B22,Datos!$E:$E,M$10)","v":250.561893},{"$f":"+SUMIFS(Datos!$C:$C,Datos!$A:$A,$C$8,Datos!$B:$B,$C$7,Datos!$D:$D,$B22,Datos!$E:$E,N$10)","v":352.77388400000001},{"$f":"+SUMIFS(Datos!$C:$C,Datos!$A:$A,$C$8,Datos!$B:$B,$C$7,Datos!$D:$D,$B22,Datos!$E:$E,O$10)","v":310.91179}]
[null,"Formación bruta de capital fijo (PC)",null,{"$f":"+SUMIFS(Datos!$C:$C,Datos!$A:$A,$C$8,Datos!$B:$B,$C$7,Datos!$D:$D,$B23,Datos!$E:$E,D$10)","v":0},{"$f":"+SUMIFS(Datos!$C:$C,Datos!$A:$A,$C$8,Datos!$B:$B,$C$7,Datos!$D:$D,$B23,Datos!$E:$E,E$10)","v":0},{"$f":"+SUMIFS(Datos!$C:$C,Datos!$A:$A,$C$8,Datos!$B:$B,$C$7,Datos!$D:$D,$B23,Datos!$E:$E,F$10)","v":0},{"$f":"+SUMIFS(Datos!$C:$C,Datos!$A:$A,$C$8,Datos!$B:$B,$C$7,Datos!$D:$D,$B23,Datos!$E:$E,G$10)","v":0},{"$f":"+SUMIFS(Datos!$C:$C,Datos!$A:$A,$C$8,Datos!$B:$B,$C$7,Datos!$D:$D,$B23,Datos!$E:$E,H$10)","v":0},{"$f":"+SUMIFS(Datos!$C:$C,Datos!$A:$A,$C$8,Datos!$B:$B,$C$7,Datos!$D:$D,$B23,Datos!$E:$E,I$10)","v":0},{"$f":"+SUMIFS(Datos!$C:$C,Datos!$A:$A,$C$8,Datos!$B:$B,$C$7,Datos!$D:$D,$B23,Datos!$E:$E,J$10)","v":0},{"$f":"+SUMIFS(Datos!$C:$C,Datos!$A:$A,$C$8,Datos!$B:$B,$C$7,Datos!$D:$D,$B23,Datos!$E:$E,K$10)","v":0},{"$f":"+SUMIFS(Datos!$C:$C,Datos!$A:$A,$C$8,Datos!$B:$B,$C$7,Datos!$D:$D,$B23,Datos!$E:$E,L$10)","v":0},{"$f":"+SUMIFS(Datos!$C:$C,Datos!$A:$A,$C$8,Datos!$B:$B,$C$7,Datos!$D:$D,$B23,Datos!$E:$E,M$10)","v":0},{"$f":"+SUMIFS(Datos!$C:$C,Datos!$A:$A,$C$8,Datos!$B:$B,$C$7,Datos!$D:$D,$B23,Datos!$E:$E,N$10)","v":0},{"$f":"+SUMIFS(Datos!$C:$C,Datos!$A:$A,$C$8,Datos!$B:$B,$C$7,Datos!$D:$D,$B23,Datos!$E:$E,O$10)","v":0}]
[null,"Variación de existencias (PC)",null,{"$f":"+SUMIFS(Datos!$C:$C,Datos!$A:$A,$C$8,Datos!$B:$B,$C$7,Datos!$D:$D,$B24,Datos!$E:$E,D$10)","v":38.522311999999999},{"$f":"+SUMIFS(Datos!$C:$C,Datos!$A:$A,$C$8,Datos!$B:$B,$C$7,Datos!$D:$D,$B24,Datos!$E:$E,E$10)","v":-7.9680280000000003},{"$f":"+SUMIFS(Datos!$C:$C,Datos!$A:$A,$C$8,Datos!$B:$B,$C$7,Datos!$D:$D,$B24,Datos!$E:$E,F$10)","v":-3.6261860000000001},{"$f":"+SUMIFS(Datos!$C:$C,Datos!$A:$A,$C$8,Datos!$B:$B,$C$7,Datos!$D:$D,$B24,Datos!$E:$E,G$10)","v":4.3459149999999998},{"$f":"+SUMIFS(Datos!$C:$C,Datos!$A:$A,$C$8,Datos!$B:$B,$C$7,Datos!$D:$D,$B24,Datos!$E:$E,H$10)","v":-19.729437000000001},{"$f":"+SUMIFS(Datos!$C:$C,Datos!$A:$A,$C$8,Datos!$B:$B,$C$7,Datos!$D:$D,$B24,Datos!$E:$E,I$10)","v":-20.213403},{"$f":"+SUMIFS(Datos!$C:$C,Datos!$A:$A,$C$8,Datos!$B:$B,$C$7,Datos!$D:$D,$B24,Datos!$E:$E,J$10)","v":162.05027200000001},{"$f":"+SUMIFS(Datos!$C:$C,Datos!$A:$A,$C$8,Datos!$B:$B,$C$7,Datos!$D:$D,$B24,Datos!$E:$E,K$10)","v":-13.196681999999999},{"$f":"+SUMIFS(Datos!$C:$C,Datos!$A:$A,$C$8,Datos!$B:$B,$C$7,Datos!$D:$D,$B24,Datos!$E:$E,L$10)","v":39.685733999999997},{"$f":"+SUMIFS(Datos!$C:$C,Datos!$A:$A,$C$8,Datos!$B:$B,$C$7,Datos!$D:$D,$B24,Datos!$E:$E,M$10)","v":103.18969199999999},{"$f":"+SUMIFS(Datos!$C:$C,Datos!$A:$A,$C$8,Datos!$B:$B,$C$7,Datos!$D:$D,$B24,Datos!$E:$E,N$10)","v":-38.679377000000002},{"$f":"+SUMIFS(Datos!$C:$C,Datos!$A:$A,$C$8,Datos!$B:$B,$C$7,Datos!$D:$D,$B24,Datos!$E:$E,O$10)","v":156.22847200000001}]
[null,"Exportaciones (FOB)",null,{"$f":"+SUMIFS(Datos!$C:$C,Datos!$A:$A,$C$8,Datos!$B:$B,$C$7,Datos!$D:$D,$B25,Datos!$E:$E,D$10)","v":36.424615000000003},{"$f":"+SUMIFS(Datos!$C:$C,Datos!$A:$A,$C$8,Datos!$B:$B,$C$7,Datos!$D:$D,$B25,Datos!$E:$E,E$10)","v":15.737524000000001},{"$f":"+SUMIFS(Datos!$C:$C,Datos!$A:$A,$C$8,Datos!$B:$B,$C$7,Datos!$D:$D,$B25,Datos!$E:$E,F$10)","v":24.06419},{"$f":"+SUMIFS(Datos!$C:$C,Datos!$A:$A,$C$8,Datos!$B:$B,$C$7,Datos!$D:$D,$B25,Datos!$E:$E,G$10)","v":21.572953999999999},{"$f":"+SUMIFS(Datos!$C:$C,Datos!$A:$A,$C$8,Datos!$B:$B,$C$7,Datos!$D:$D,$B25,Datos!$E:$E,H$10)","v":9.3538289999999993},{"$f":"+SUMIFS(Datos!$C:$C,Datos!$A:$A,$C$8,Datos!$B:$B,$C$7,Datos!$D:$D,$B25,Datos!$E:$E,I$10)","v":8.544492},{"$f":"+SUMIFS(Datos!$C:$C,Datos!$A:$A,$C$8,Datos!$B:$B,$C$7,Datos!$D:$D,$B25,Datos!$E:$E,J$10)","v":9.3334299999999999},{"$f":"+SUMIFS(Datos!$C:$C,Datos!$A:$A,$C$8,Datos!$B:$B,$C$7,Datos!$D:$D,$B25,Datos!$E:$E,K$10)","v":9.5514569999999992},{"$f":"+SUMIFS(Datos!$C:$C,Datos!$A:$A,$C$8,Datos!$B:$B,$C$7,Datos!$D:$D,$B25,Datos!$E:$E,L$10)","v":27.194572000000001},{"$f":"+SUMIFS(Datos!$C:$C,Datos!$A:$A,$C$8,Datos!$B:$B,$C$7,Datos!$D:$D,$B25,Datos!$E:$E,M$10)","v":91.833158999999995},{"$f":"+SUMIFS(Datos!$C:$C,Datos!$A:$A,$C$8,Datos!$B:$B,$C$7,Datos!$D:$D,$B25,Datos!$E:$E,N$10)","v":83.139270999999994},{"$f":"+SUMIFS(Datos!$C:$C,Datos!$A:$A,$C$8,Datos!$B:$B,$C$7,Datos!$D:$D,$B25,Datos!$E:$E,O$10)","v":41.897297999999999}]
[null,"Utilización total",null,{"$f":"+SUM(D20:D25)","v":7957.6134769999999},8206.7777739999983,8440.0645809999987,{"$f":"+SUM(G20:G25)","v":8714.3743149999991},8473.6375389999994,{"$f":"+SUM(I20:I25)","v":9424.3599990000021},10539.445568000001,11117.705214,13046.145404000001,17362.943766,18690.244320999998,{"$f":"+SUM(O20:O25)","v":18078.435474999998}]
[]
[null,"Estructura porcentual"]
[]
[null,"Concepto",null,2013,2014,2015,2016,2017,2018,2019,2020,2021,2022,"2023 p/","2024 p/"]
[null,"Producción (PB)",null,{"$f":"+IFERROR(D11/D$19*100,0)","v":59.547094222354872},61.907400125977865,61.314901637717689,62.84046032085557,{"$f":"+IFERROR(H11/H$19*100,0)","v":56.133476404546215},{"$f":"+IFERROR(I11/I$19*100,0)","v":57.19710041394822},55.73340830557563,53.49699578749776,51.244560239706239,51.272052132771272,{"$f":"+IFERROR(N11/N$19*100,0)","v":52.818422469245796},50.51420037772931]
[null,"Impuestos sobre los productos, excepto IVA e impuestos sobre las importaciones ",null,0,0,0,0,0,0,0,0,0,0,{"$f":"+IFERROR(N12/N$19*100,0)","v":0},0]
[null,"Subvenciones a los productos",null,0,0,0,0,0,0,0,0,0,0,{"$f":"+IFERROR(N13/N$19*100,0)","v":0},0]
[null,"Importaciones (CIF)",null,24.210481868319071,23.834085457959667,22.956322720109291,22.523351743644181,22.027389578909791,22.242050040771151,23.7659121068261,24.51180084868906,28.154109260160297,27.989091044782398,{"$f":"+IFERROR(N14/N$19*100,0)","v":24.045141854836647},24.509431223334328]
[null,"Ajuste CIF/FOB",null,0,0,0,0,0,0,0,0,0,0,{"$f":"+IFERROR(N15/N$19*100,0)","v":0},0]
[null,"Impuestos y derechos sobre las importaciones excepto IVA",null,1.6455938753306702E-4,1.4834080238615218E-4,1.4358894868271384E-4,1.3860627928955404E-2,1.3506124080333542E-3,1.3674138086159076E-3,1.4634830553416339E-3,1.5116159024289812E-3,1.7362369727069952E-3,1.9794569665843235E-3,{"$f":"+IFERROR(N16/N$19*100,0)","v":1.7005342174306831E-3},1.7333690209716554E-3]
[null,"Impuesto tipo valor agregado (IVA)",null,0.7075246135380997,0.78531166280852682,0.74829414388813908,0.76468370073275693,0.88498122162657,0.80142775751365891,0.79493634145546499,0.96023753953798607,0.91804020498237582,0.90830153064101682,{"$f":"+IFERROR(N17/N$19*100,0)","v":0.98913693595905139},1.0202495467877315]
[null,"Márgenes de comercio, transporte y distribución de energía",null,15.534734736400416,13.47305441245155,14.980337909336194,13.857643606838529,20.952802182509402,19.758054373958345,19.704279763087467,21.029454208372751,19.681554058178392,19.828575834838734,{"$f":"+IFERROR(N18/N$19*100,0)","v":22.145598205741081},23.954385483127652]
[null,"Oferta total",null,100,100,100,100,100,100,100,100,100,100,{"$f":"+IFERROR(N19/N$19*100,0)","v":100},100]
[null,"Consumo intermedio (PC)",null,41.502771836627119,41.581449199357841,41.190905337694595,41.28245570333668,38.639006534291539,39.305185491567087,38.573925033868903,37.676347864713222,40.553316558800582,39.67298756154522,{"$f":"+IFERROR(N20/N$19*100,0)","v":36.584532040157711},33.459648968877374]
[null,"Consumo final privado (PC)",null,57.555401481081518,56.838094139430751,58.16066106947244,57.729840614234604,60.645801958776225,60.763900960995109,59.690985763976279,60.82801572651951,57.340923912129426,57.760715208103349,{"$f":"+IFERROR(N21/N$19*100,0)","v":61.290114373352935},63.72463414730305]
[null,"Consumo final del gobierno (PC)",null,0,1.4857849616240868,0.40627900024832758,0.6902770736317948,0.83763725651112475,5.473002941894517E-2,0.10897234514840963,1.5284239753543798,1.593115350011403,1.443084170301915,{"$f":"+IFERROR(N22/N$19*100,0)","v":1.8874760433368443},1.7197936758960606]
[null,"Formación bruta de capital fijo (PC)",null,0,0,0,0,0,0,0,0,0,0,{"$f":"+IFERROR(N23/N$19*100,0)","v":0},0]
[null,"Variación de existencias (PC)",null,0.48409378152559895,-9.7090821994030518E-2,-4.2963960348871649E-2,4.9870648693826576E-2,-0.23283314764790691,-0.21448037853121915,1.5375597413529485,-0.11869969338080705,0.30419509191484367,0.59430988998606482,{"$f":"+IFERROR(N24/N$19*100,0)","v":-0.20694955258846243},0.86417031062252359]
[null,"Exportaciones (FOB)",null,0.45773290076577056,0.19176252158134774,0.28511855293349919,0.24755597157838585,0.11038740987035126,9.0663896550074896E-2,8.8557125141609447E-2,8.5912126793686705E-2,0.20844909480885082,0.52890316430407414,{"$f":"+IFERROR(N25/N$19*100,0)","v":0.44482709574099205},0.23175289730097617]
[null,"Utilización total",null,99.999999999999986,99.999999999999972,99.999999999999972,100.00000001147527,100.00000001180132,100.00000000000003,100.00000000948816,99.999999999999986,100.00000000766511,99.999999994240625,{"$f":"+IFERROR(N26/N$19*100,0)","v":100},99.999999999999972]
[]
[null,"Fuente:   Banco de Guatemala"]
[null,"p/ Cifras preliminares"]
[]
[null,"Notas:    NPG","Nomenclatura de Productos para Guatemala"]
[null,"           CIF","Costo, seguro y flete"]
[null,"           FOB","Libre a bordo"]
[null,"           PB","Precio básico"]
[null,"           PC","Precio de comprador"]

{"sheet":"Catálogo","index":2,"n_rows":159,"n_cols":4,"rows_kept":159,"cut":false,"hidden":false,"merged":[[1,1,1,3]]}
[]
[null,"Productos"]
[]
[null,null,null,"Índice"]
[]
[null,"Cuadro","Código\nNPG 1/","Concepto"]
[null,"3.1","P001","Maíz"]
[null,"3.2","P002","Frijoles"]
[null,"3.3","P003","Leguminosas (legumbres secas) y semillas oleaginosas"]
[null,"3.4","P004","Arroz"]
[null,"3.5","P005","Otros cereales"]
[null,"3.6","P006","Hortalizas"]
[null,"3.7","P007","Sandías y melones"]
[null,"3.8","P008","Ejotes y arvejas"]
[null,"3.9","P009","Raíces y tubérculos"]
[null,"3.10","P010","Caña de azúcar y otras plantas azucareras"]
[null,"3.11","P011","Tabaco y otras plantas no perennes"]
[null,"3.12","P012","Bananos, plátanos y otros"]
[null,"3.13","P013","Frutas tropicales y subtropicales"]
[null,"3.14","P014","Berries, otras frutas y semillas de frutas"]
[null,"3.15","P015","Palma africana"]
[null,"3.16","P016","Café en grano"]
[null,"3.17","P017","Cardamomo"]
[null,"3.18","P018","Caucho natural"]
[null,"3.19","P019","Propagación de plantas"]
[null,"3.20","P020","Otros frutos oleaginosos, otras plantas bebestibles y especias aromáticas"]
[null,"3.21","P021","Ganado bovino"]
[null,"3.22","P022","Ganado porcino y otro tipo de animales vivos n.c.p."]
[null,"3.23","P023","Aves de corral"]
[null,"3.24","P024","Leche cruda"]
[null,"3.25","P025","Huevos"]
[null,"3.26","P026","Otros productos de animales vivos"]
[null,"3.27","P027","Troncos de madera y leña"]
[null,"3.28","P028","Productos forestales no madereros"]
[null,"3.29","P029","Peces vivos, frescos o refrigerados"]
[null,"3.30","P030","Crustáceos sin congelar y otros productos de la pesca"]
[null,"3.31","P031","Petróleo crudo y gas natural"]
[null,"3.32","P032","Minerales metálicos"]
[null,"3.33","P033","Minerales no metálicos"]
[null,"3.34","P034","Carne y despojos comestibles de ganado bovino; cueros y pieles de bovino y de otros animales"]
[null,"3.35","P035","Carne y despojos comestibles de ganado porcino"]
[null,"3.36","P036","Carne y despojos comestibles de aves"]
[null,"3.37","P037","Carne y despojos de otros animales y conservas y preparados de carne"]
[null,"3.38","P038","Pescado congelado, preparado o en conserva y sus productos"]
[null,"3.39","P039","Crustáceos, moluscos y demás invertebrados acuáticos congelados, preparados o en conserva y sus productos"]
[null,"3.40","P040","Vegetales preparados o en conserva, legumbres y papas"]
[null,"3.41","P041","Preparaciones y conservas de frutas y nueces"]
[null,"3.42","P042","Jugos de frutas"]
[null,"3.43","P043","Aceites de origen vegetal"]
[null,"3.44","P044","Margarina, grasas y otros aceites de origen animal y vegetal"]
[null,"3.45","P045","Leche líquida y crema procesada"]
[null,"3.46","P046","Otros productos lácteos n.c.p."]
[null,"3.47","P047","Harina de trigo"]
[null,"3.48","P048","Arroz sin cáscara"]
[null,"3.49","P049","Otros productos de molinería, almidones y productos de almidón"]
[null,"3.50","P050","Pan y otros productos de panadería y repostería n.c.p."]
[null,"3.51","P051","Tortillas de maíz, incluso tostadas, horneadas o fritas"]
[null,"3.52","P052","Azúcar de caña sin refinar y refinada, melaza y los demás azúcares n.c.p."]
[null,"3.53","P053","Productos alimenticios n.c.p."]
[null,"3.54","P054","Preparados para alimentación animal"]
[null,"3.55","P055","Aguardientes, licores, vinos, demás bebidas espirituosas y productos del tabaco"]
[null,"3.56","P056","Malta y cerveza de malta"]
[null,"3.57","P057","Bebidas no alcohólicas"]
[null,"3.58","P058","Aguas minerales y otras aguas embotelladas"]
[null,"3.59","P059","Hilados, tejidos, telas y otros productos textiles excepto prendas de vestir"]
[null,"3.60","P060","Prendas de vestir, adobo y teñido de pieles"]
[null,"3.61","P061","Cuero de piel curtida o adobada y cuero artificial o regenerado y artículos de cuero"]
[null,"3.62","P062","Calzado y sus partes, de cualquier material y de cualquier uso"]
[null,"3.63","P063","Madera aserrada y acepillada, productos de madera, corcho, paja y materiales trenzables"]
[null,"3.64","P064","Pasta de papel y papel"]
[null,"3.65","P065","Envases de papel y cartón"]
[null,"3.66","P066","Productos de la edición"]
[null,"3.67","P067","Productos de la impresión"]
[null,"3.68","P068","Gasolinas, diésel oil y fuel oils"]
[null,"3.69","P069","Aceites, grasas lubricantes y otros aceites preparados"]
[null,"3.70","P070","Gases de petróleo, otros productos de la refinación de petróleo n.c.p."]
[null,"3.71","P071","Abonos, fertilizantes y pesticidas"]
[null,"3.72","P072","Pinturas, barnices, tintas y productos relacionados"]
[null,"3.73","P073","Jabón, preparados de limpieza, perfumes y preparados de toilet"]
[null,"3.74","P074","Otros productos químicos"]
[null,"3.75","P075","Productos farmacéuticos"]
[null,"3.76","P076","Productos de caucho y plástico"]
[null,"3.77","P077","Vidrio y productos de vidrio"]
[null,"3.78","P078","Productos de cerámica y arcilla"]
[null,"3.79","P079","Cemento, cal y yeso"]
[null,"3.80","P080","Artículos de hormigón, cemento y yeso"]
[null,"3.81","P081","Piedras talladas para construcción y otros productos minerales no metálicos n.c.p."]
[null,"3.82","P082","Métales básicos de hierro y acero, productos primarios de metales preciosos y otros metales no ferrosos"]
[null,"3.83","P083","Productos metálicos estructurales y sus partes de hierro o de acero"]
[null,"3.84","P084","Otros productos elaborados de metal"]
[null,"3.85","P085","Maquinaria para usos generales y especiales, sus partes y piezas, excepto electrodomésticos"]
[null,"3.86","P086","Electrodomésticos y sus partes"]
[null,"3.87","P087","Maquinaria de oficina, contabilidad e informática, sus partes y piezas"]
[null,"3.88","P088","Maquinaria y aparatos eléctricos, sus partes y piezas"]
[null,"3.89","P089","Equipo y aparatos de radio, televisión y comunicaciones"]
[null,"3.90","P090","Aparatos médicos, instrumentos ópticos y de precisión, relojes"]
[null,"3.91","P091","Equipo de transporte"]
[null,"3.92","P092","Muebles"]
[null,"3.93","P093","Otros artículos n.c.p."]
[null,"3.94","P094","Residuos y desechos"]
[null,"3.95","P095","Generación y distribución de energía eléctrica, gas, vapor y aire acondicionado"]
[null,"3.96","P096","Agua natural y distribución de agua natural"]
[null,"3.97","P097","Evacuación de aguas residuales, recogida, tratamiento y eliminación de desechos"]
[null,"3.98","P098","Edificaciones residenciales"]
[null,"3.99","P099","Edificaciones no residenciales"]
[null,"3.100","P100","Obras de ingeniería civil"]
[null,"3.101","P101","Servicios generales y especializados de construcción"]
[null,"3.102","P102","Servicios de comercio"]
[null,"3.103","P103","Mantenimiento y reparación de vehículos automotores y motocicletas"]
[null,"3.104","P104","Servicio de transporte de pasajeros por vía terrestre"]
[null,"3.105","P105","Servicio de transporte de carga por vía terrestre"]
[null,"3.106","P106","Otros tipos de transporte"]
[null,"3.107","P107","Servicios de almacenamiento y depósito"]
[null,"3.108","P108","Otros servicios de apoyo al transporte"]
[null,"3.109","P109","Servicios postales y de mensajería"]
[null,"3.110","P110","Servicio de alojamiento"]
[null,"3.111","P111","Servicio de suministro de comidas y bebidas"]
[null,"3.112","P112","Servicios de información, telecomunicaciones y radiodifusión"]
[null,"3.113","P113","Servicios de banco central"]
[null,"3.114","P114","Otros servicios financieros y servicios de banca de inversión"]
[null,"3.115","P115","Servicios de Intermediación Financiera Medidos Indirectamente (SIFMI)"]
[null,"3.116","P116","Servicios de seguro, reaseguro y fondos de pensiones"]
[null,"3.117","P117","Servicios auxiliares de la intermediación financiera"]
[null,"3.118","P118","Servicios de alquiler de vivienda"]
[null,"3.119","P119","Otros servicios inmobiliarios, excepto alquiler de vivienda"]
[null,"3.120","P120","Servicios jurídicos, de contabilidad, auditoría, teneduría de libros y consultoría fiscal"]
[null,"3.121","P121","Servicios de tecnología de la información"]
[null,"3.122","P122","Servicios de arquitectura e ingeniería, ensayos y análisis técnicos"]
[null,"3.123","P123","Otros servicios profesionales, científicos y técnicos"]
[null,"3.124","P124","Servicios de publicidad y estudios de mercado"]
[null,"3.125","P125","Servicios de arrendamiento o alquiler sin operador"]
[null,"3.126","P126","Servicios  de agencias de empleo y de dotación de recursos humanos"]
[null,"3.127","P127","Servicios de agencias de viajes, operadores turísticos y actividades conexas"]
[null,"3.128","P128","Servicios de seguridad, sistemas de seguridad e investigación privada"]
[null,"3.129","P129","Servicios de limpieza"]
[null,"3.130","P130","Servicios telefónicos de centros de llamadas"]
[null,"3.131","P131","Servicios administrativos, de apoyo de oficina y otros servicios de apoyo a las empresas"]
[null,"3.132","P132","Servicios de mantenimiento, reparación e instalación de productos metálicos elaborados, maquinaria y equipo"]
[null,"3.133","P133","Servicios de reparación de otros bienes"]
[null,"3.134","P134","Servicios de apoyo a la agricultura, caza, silvicultura y pesca"]
[null,"3.135","P135","Servicios de apoyo a la explotación de minas y canteras y los relacionados con la distribución de electricidad, gas y agua"]
[null,"3.136","P136","Servicios de manufactura"]
[null,"3.137","P137","Servicios públicos del gobierno general"]
[null,"3.138","P138","Servicios públicos administrativos relacionados con la provisión de servicios educativos, de salud, servicios sociales, culturales y otros, sin contar los servicios de seguridad social"]
[null,"3.139","P139","Otros servicios administrativos"]
[null,"3.140","P140","Servicios públicos administrativos prestados a la comunidad en su conjunto"]
[null,"3.141","P141","Servicios administrativos relacionados con los sistemas de seguridad social de afiliación obligatoria"]
[null,"3.142","P142","Servicios de enseñanza"]
[null,"3.143","P143","Servicios de hospitalización"]
[null,"3.144","P144","Servicios médicos y dentales"]
[null,"3.145","P145","Otros servicios de atención de la salud humana"]
[null,"3.146","P146","Servicios audiovisuales, recreativos, culturales y deportivos"]
[null,"3.147","P147","Servicios de asociaciones que sirven a las empresas"]
[null,"3.148","P148","Servicios de asociaciones que sirven a los hogares"]
[null,"3.149","P149","Otros servicios"]
[null,"3.150","P150","Servicios domésticos"]
[null,"3.151","P151","Compras directas en el exterior por residentes"]
[null,"3.152","P152","Compras directas en el territorio nacional por no residentes"]
[null,"1/ Nomenclatura de Productos para Guatemala"]

{"sheet":"Datos","index":3,"n_rows":25537,"n_cols":5,"rows_kept":4500,"cut":true,"hidden":false,"merged":[],"bounds":{"rows_first":2000,"rows_last":500,"rows_between":2000,"halvings":0}}
["Código","Producto","Monto","Concepto","Año"]
["P001","Maíz",4738.5275949999996,"Producción (PB)",2013]
["P002","Frijoles",1539.4167849999999,"Producción (PB)",2013]
["P003","Leguminosas (legumbres secas) y semillas oleaginosas",664.93744100000004,"Producción (PB)",2013]
["P004","Arroz",116.239071,"Producción (PB)",2013]
["P005","Otros cereales",106.479292,"Producción (PB)",2013]
["P006","Hortalizas",5264.6820399999997,"Producción (PB)",2013]
["P007","Sandías y melones",1261.6824779999999,"Producción (PB)",2013]
["P008","Ejotes y arvejas",771.17068200000006,"Producción (PB)",2013]
["P009","Raíces y tubérculos",1747.910875,"Producción (PB)",2013]
["P010","Caña de azúcar y otras plantas azucareras",6154.0217499999999,"Producción (PB)",2013]
["P011","Tabaco y otras plantas no perennes",1283.655291,"Producción (PB)",2013]
["P012","Bananos, plátanos y otros",6040.0700450000004,"Producción (PB)",2013]
["P013","Frutas tropicales y subtropicales",1653.6531259999999,"Producción (PB)",2013]
["P014","Berries, otras frutas y semillas de frutas",1714.381488,"Producción (PB)",2013]
["P015","Palma africana",2414.8983130000001,"Producción (PB)",2013]
["P016","Café en grano",9653.351541,"Producción (PB)",2013]
["P017","Cardamomo",2322.3962069999998,"Producción (PB)",2013]
["P018","Caucho natural",2982.8295819999998,"Producción (PB)",2013]
["P019","Propagación de plantas",566.54510600000003,"Producción (PB)",2013]
["P020","Otros frutos oleaginosos, otras plantas bebestibles y especias aromáticas",232.12553700000001,"Producción (PB)",2013]
["P021","Ganado bovino",4026.8818670000001,"Producción (PB)",2013]
["P022","Ganado porcino y otro tipo de animales vivos n.c.p.",1370.8941910000001,"Producción (PB)",2013]
["P023","Aves de corral",6672.8339569999998,"Producción (PB)",2013]
["P024","Leche cruda",1747.589759,"Producción (PB)",2013]
["P025","Huevos",2841.0390729999999,"Producción (PB)",2013]
["P026","Otros productos de animales vivos",115.807453,"Producción (PB)",2013]
["P027","Troncos de madera y leña",4653.6519070000004,"Producción (PB)",2013]
["P028","Productos forestales no madereros",231.532974,"Producción (PB)",2013]
["P029","Peces vivos, frescos o refrigerados",885.904901,"Producción (PB)",2013]
["P030","Crustáceos sin congelar y otros productos de la pesca",888.22815400000002,"Producción (PB)",2013]
["P031","Petróleo crudo y gas natural",2522.5645690000001,"Producción (PB)",2013]
["P032","Minerales metálicos",4027.6882439999999,"Producción (PB)",2013]
["P033","Minerales no metálicos",1899.9799740000001,"Producción (PB)",2013]
["P034","Carne y despojos comestibles de ganado bovino; cueros y pieles de bovino y de otros animales",6361.3497280000001,"Producción (PB)",2013]
["P035","Carne y despojos comestibles de ganado porcino",1270.3845449999999,"Producción (PB)",2013]
["P036","Carne y despojos comestibles de aves",7706.970671,"Producción (PB)",2013]
["P037","Carne y despojos de otros animales y conservas y preparados de carne",2521.8593900000001,"Producción (PB)",2013]
["P038","Pescado congelado, preparado o en conserva y sus productos",607.66577800000005,"Producción (PB)",2013]
["P039","Crustáceos, moluscos y demás invertebrados acuáticos congelados, preparados o en conserva y sus productos",468.21812899999998,"Producción (PB)",2013]
["P040","Vegetales preparados o en conserva, legumbres y papas",1010.114732,"Producción (PB)",2013]
["P041","Preparaciones y conservas de frutas y nueces",987.50069399999995,"Producción (PB)",2013]
["P042","Jugos de frutas",1135.475539,"Producción (PB)",2013]
["P043","Aceites de origen vegetal",4548.2427049999997,"Producción (PB)",2013]
["P044","Margarina, grasas y otros aceites de origen animal y vegetal",1112.9268340000001,"Producción (PB)",2013]
["P045","Leche líquida y crema procesada",1036.4886570000001,"Producción (PB)",2013]
["P046","Otros productos lácteos n.c.p.",1933.4236619999999,"Producción (PB)",2013]
["P047","Harina de trigo",2168.863742,"Producción (PB)",2013]
["P048","Arroz sin cáscara",543.08131500000002,"Producción (PB)",2013]
["P049","Otros productos de molinería, almidones y productos de almidón",1139.6597420000001,"Producción (PB)",2013]
["P050","Pan y otros productos de panadería y repostería n.c.p.",7600.8120490000001,"Producción (PB)",2013]
["P051","Tortillas de maíz, incluso tostadas, horneadas o fritas",5718.2908930000003,"Producción (PB)",2013]
["P052","Azúcar de caña sin refinar y refinada, melaza y los demás azúcares n.c.p.",13042.761296000001,"Producción (PB)",2013]
["P053","Productos alimenticios n.c.p.",7151.6582179999996,"Producción (PB)",2013]
["P054","Preparados para alimentación animal",6030.8949659999998,"Producción (PB)",2013]
["P055","Aguardientes, licores, vinos, demás bebidas espirituosas y productos del tabaco",1493.5566349999999,"Producción (PB)",2013]
["P056","Malta y cerveza de malta",1419.583367,"Producción (PB)",2013]
["P057","Bebidas no alcohólicas",7152.1578300000001,"Producción (PB)",2013]
["P058","Aguas minerales y otras aguas embotelladas",1151.2906310000001,"Producción (PB)",2013]
["P059","Hilados, tejidos, telas y otros productos textiles excepto prendas de vestir",4618.5948209999997,"Producción (PB)",2013]
["P060","Prendas de vestir, adobo y teñido de pieles",6479.8290070000003,"Producción (PB)",2013]
["P061","Cuero de piel curtida o adobada y cuero artificial o regenerado y artículos de cuero",1141.1186170000001,"Producción (PB)",2013]
["P062","Calzado y sus partes, de cualquier material y de cualquier uso",1371.7039689999999,"Producción (PB)",2013]
["P063","Madera aserrada y acepillada, productos de madera, corcho, paja y materiales trenzables",3232.631261,"Producción (PB)",2013]
["P064","Pasta de papel y papel",1609.0735460000001,"Producción (PB)",2013]
["P065","Envases de papel y cartón",2720.9221280000002,"Producción (PB)",2013]
["P066","Productos de la edición",1307.726848,"Producción (PB)",2013]
["P067","Productos de la impresión",1683.715455,"Producción (PB)",2013]
["P068","Gasolinas, diésel oil y fuel oils",119.18752600000001,"Producción (PB)",2013]
["P069","Aceites, grasas lubricantes y otros aceites preparados",0,"Producción (PB)",2013]
["P070","Gases de petróleo, otros productos de la refinación de petróleo n.c.p.",187.927719,"Producción (PB)",2013]
["P071","Abonos, fertilizantes y pesticidas",4425.0100860000002,"Producción (PB)",2013]
["P072","Pinturas, barnices, tintas y productos relacionados",1030.8568339999999,"Producción (PB)",2013]
["P073","Jabón, preparados de limpieza, perfumes y preparados de toilet",4141.020837,"Producción (PB)",2013]
["P074","Otros productos químicos",3266.282201,"Producción (PB)",2013]
["P075","Productos farmacéuticos",2427.519299,"Producción (PB)",2013]
["P076","Productos de caucho y plástico",7898.7152669999996,"Producción (PB)",2013]
["P077","Vidrio y productos de vidrio",698.56314999999995,"Producción (PB)",2013]
["P078","Productos de cerámica y arcilla",1318.059207,"Producción (PB)",2013]
["P079","Cemento, cal y yeso",4270.9037950000002,"Producción (PB)",2013]
["P080","Artículos de hormigón, cemento y yeso",2121.4280570000001,"Producción (PB)",2013]
["P081","Piedras talladas para construcción y otros productos minerales no metálicos n.c.p.",587.78490299999999,"Producción (PB)",2013]
["P082","Métales básicos de hierro y acero, productos primarios de metales preciosos y otros metales no ferrosos",4879.7175820000002,"Producción (PB)",2013]
["P083","Productos metálicos estructurales y sus partes de hierro o de acero",1571.0939370000001,"Producción (PB)",2013]
["P084","Otros productos elaborados de metal",2538.605364,"Producción (PB)",2013]
["P085","Maquinaria para usos generales y especiales, sus partes y piezas, excepto electrodomésticos",1942.761139,"Producción (PB)",2013]
["P086","Electrodomésticos y sus partes",0,"Producción (PB)",2013]
["P087","Maquinaria de oficina, contabilidad e informática, sus partes y piezas",0,"Producción (PB)",2013]
["P088","Maquinaria y aparatos eléctricos, sus partes y piezas",1258.812713,"Producción (PB)",2013]
["P089","Equipo y aparatos de radio, televisión y comunicaciones",0,"Producción (PB)",2013]
["P090","Aparatos médicos, instrumentos ópticos y de precisión, relojes",48.189135,"Producción (PB)",2013]
["P091","Equipo de transporte",665.76440100000002,"Producción (PB)",2013]
["P092","Muebles",4894.3384390000001,"Producción (PB)",2013]
["P093","Otros artículos n.c.p.",1571.3472260000001,"Producción (PB)",2013]
["P094","Residuos y desechos",1356.7667309999999,"Producción (PB)",2013]
["P095","Generación y distribución de energía eléctrica, gas, vapor y aire acondicionado",14244.333328999999,"Producción (PB)",2013]
["P096","Agua natural y distribución de agua natural",3403.6119669999998,"Producción (PB)",2013]
["P097","Evacuación de aguas residuales, recogida, tratamiento y eliminación de desechos",729.17586700000004,"Producción (PB)",2013]
["P098","Edificaciones residenciales",15309.235231000001,"Producción (PB)",2013]
["P099","Edificaciones no residenciales",6341.6955500000004,"Producción (PB)",2013]
["P100","Obras de ingeniería civil",11112.924306999999,"Producción (PB)",2013]
["P101","Servicios generales y especializados de construcción",9928.6868979999999,"Producción (PB)",2013]
["P102","Servicios de comercio",102043.63823,"Producción (PB)",2013]
["P103","Mantenimiento y reparación de vehículos automotores y motocicletas",8257.9241849999999,"Producción (PB)",2013]
["P104","Servicio de transporte de pasajeros por vía terrestre",5949.8103160000001,"Producción (PB)",2013]
["P105","Servicio de transporte de carga por vía terrestre",11417.858404000001,"Producción (PB)",2013]
["P106","Otros tipos de transporte",484.035527,"Producción (PB)",2013]
["P107","Servicios de almacenamiento y depósito",259.31421699999999,"Producción (PB)",2013]
["P108","Otros servicios de apoyo al transporte",5874.5549209999999,"Producción (PB)",2013]
["P109","Servicios postales y de mensajería",1105.4016140000001,"Producción (PB)",2013]
["P110","Servicio de alojamiento",1875.4451790000001,"Producción (PB)",2013]
["P111","Servicio de suministro de comidas y bebidas",27427.269646000001,"Producción (PB)",2013]
["P112","Servicios de información, telecomunicaciones y radiodifusión",23512.792580000001,"Producción (PB)",2013]
["P113","Servicios de banco central",696.02774699999998,"Producción (PB)",2013]
["P114","Otros servicios financieros y servicios de banca de inversión",2169.2497629999998,"Producción (PB)",2013]
["P115","Servicios de Intermediación Financiera Medidos Indirectamente (SIFMI)",13885.113292,"Producción (PB)",2013]
["P116","Servicios de seguro, reaseguro y fondos de pensiones",3772.9036460000002,"Producción (PB)",2013]
["P117","Servicios auxiliares de la intermediación financiera",4359.1684080000005,"Producción (PB)",2013]
["P118","Servicios de alquiler de vivienda",30462.774868,"Producción (PB)",2013]
["P119","Otros servicios inmobiliarios, excepto alquiler de vivienda",10648.615365,"Producción (PB)",2013]
["P120","Servicios jurídicos, de contabilidad, auditoría, teneduría de libros y consultoría fiscal",3795.3278529999998,"Producción (PB)",2013]
["P121","Servicios de tecnología de la información",2234.7804230000002,"Producción (PB)",2013]
["P122","Servicios de arquitectura e ingeniería, ensayos y análisis técnicos",2625.1571429999999,"Producción (PB)",2013]
["P123","Otros servicios profesionales, científicos y técnicos",6769.1124239999999,"Producción (PB)",2013]
["P124","Servicios de publicidad y estudios de mercado",4401.4705780000004,"Producción (PB)",2013]
["P125","Servicios de arrendamiento o alquiler sin operador",4856.5502859999997,"Producción (PB)",2013]
["P126","Servicios  de agencias de empleo y de dotación de recursos humanos",5859.536838,"Producción (PB)",2013]
["P127","Servicios de agencias de viajes, operadores turísticos y actividades conexas",707.712401,"Producción (PB)",2013]
["P128","Servicios de seguridad, sistemas de seguridad e investigación privada",3393.231597,"Producción (PB)",2013]
["P129","Servicios de limpieza",1014.429111,"Producción (PB)",2013]
["P130","Servicios telefónicos de centros de llamadas",2128.5282550000002,"Producción (PB)",2013]
["P131","Servicios administrativos, de apoyo de oficina y otros servicios de apoyo a las empresas",2293.6383660000001,"Producción (PB)",2013]
["P132","Servicios de mantenimiento, reparación e instalación de productos metálicos elaborados, maquinaria y equipo",3791.2587530000001,"Producción (PB)",2013]
["P133","Servicios de reparación de otros bienes",1250.1931079999999,"Producción (PB)",2013]
["P134","Servicios de apoyo a la agricultura, caza, silvicultura y pesca",3070.5959769999999,"Producción (PB)",2013]
["P135","Servicios de apoyo a la explotación de minas y canteras y los relacionados con la distribución de electricidad, gas y agua",381.873379,"Producción (PB)",2013]
["P136","Servicios de manufactura",6817.2061469999999,"Producción (PB)",2013]
["P137","Servicios públicos del gobierno general",10283.765883,"Producción (PB)",2013]
["P138","Servicios públicos administrativos relacionados con la provisión de servicios educativos, de salud, servicios sociales, culturales y otros, sin contar los servicios de seguridad social",1832.1676010000001,"Producción (PB)",2013]
["P139","Otros servicios administrativos",4099.4894729999996,"Producción (PB)",2013]
["P140","Servicios públicos administrativos prestados a la comunidad en su conjunto",8682.3336519999993,"Producción (PB)",2013]
["P141","Servicios administrativos relacionados con los sistemas de seguridad social de afiliación obligatoria",738.22770300000002,"Producción (PB)",2013]
["P142","Servicios de enseñanza",19863.937951,"Producción (PB)",2013]
["P143","Servicios de hospitalización",6404.9938439999996,"Producción (PB)",2013]
["P144","Servicios médicos y dentales",4544.5508090000003,"Producción (PB)",2013]
["P145","Otros servicios de atención de la salud humana",2663.413607,"Producción (PB)",2013]
["P146","Servicios audiovisuales, recreativos, culturales y deportivos",2198.5149649999998,"Producción (PB)",2013]
["P147","Servicios de asociaciones que sirven a las empresas",265.54951899999998,"Producción (PB)",2013]
["P148","Servicios de asociaciones que sirven a los hogares",1925.973125,"Producción (PB)",2013]
["P149","Otros servicios",7674.6114950000001,"Producción (PB)",2013]
["P150","Servicios domésticos",7294.099819,"Producción (PB)",2013]
["P151","Compras directas en el exterior por residentes",0,"Producción (PB)",2013]
["P152","Compras directas en el territorio nacional por no residentes",0,"Producción (PB)",2013]
["P001","Maíz",0,"Impuestos sobre los productos, excepto IVA e impuestos sobre las importaciones",2013]
["P002","Frijoles",0,"Impuestos sobre los productos, excepto IVA e impuestos sobre las importaciones",2013]
["P003","Leguminosas (legumbres secas) y semillas oleaginosas",0,"Impuestos sobre los productos, excepto IVA e impuestos sobre las importaciones",2013]
["P004","Arroz",0,"Impuestos sobre los productos, excepto IVA e impuestos sobre las importaciones",2013]
["P005","Otros cereales",0,"Impuestos sobre los productos, excepto IVA e impuestos sobre las importaciones",2013]
["P006","Hortalizas",0,"Impuestos sobre los productos, excepto IVA e impuestos sobre las importaciones",2013]
["P007","Sandías y melones",0,"Impuestos sobre los productos, excepto IVA e impuestos sobre las importaciones",2013]
["P008","Ejotes y arvejas",0,"Impuestos sobre los productos, excepto IVA e impuestos sobre las importaciones",2013]
["P009","Raíces y tubérculos",0,"Impuestos sobre los productos, excepto IVA e impuestos sobre las importaciones",2013]
["P010","Caña de azúcar y otras plantas azucareras",0,"Impuestos sobre los productos, excepto IVA e impuestos sobre las importaciones",2013]
["P011","Tabaco y otras plantas no perennes",0,"Impuestos sobre los productos, excepto IVA e impuestos sobre las importaciones",2013]
["P012","Bananos, plátanos y otros",0,"Impuestos sobre los productos, excepto IVA e impuestos sobre las importaciones",2013]
["P013","Frutas tropicales y subtropicales",0,"Impuestos sobre los productos, excepto IVA e impuestos sobre las importaciones",2013]
["P014","Berries, otras frutas y semillas de frutas",0,"Impuestos sobre los productos, excepto IVA e impuestos sobre las importaciones",2013]
["P015","Palma africana",0,"Impuestos sobre los productos, excepto IVA e impuestos sobre las importaciones",2013]
["P016","Café en grano",56.389183000000003,"Impuestos sobre los productos, excepto IVA e impuestos sobre las importaciones",2013]
["P017","Cardamomo",0,"Impuestos sobre los productos, excepto IVA e impuestos sobre las importaciones",2013]
["P018","Caucho natural",0,"Impuestos sobre los productos, excepto IVA e impuestos sobre las importaciones",2013]
["P019","Propagación de plantas",0,"Impuestos sobre los productos, excepto IVA e impuestos sobre las importaciones",2013]
["P020","Otros frutos oleaginosos, otras plantas bebestibles y especias aromáticas",0,"Impuestos sobre los productos, excepto IVA e impuestos sobre las importaciones",2013]
["P021","Ganado bovino",0,"Impuestos sobre los productos, excepto IVA e impuestos sobre las importaciones",2013]
["P022","Ganado porcino y otro tipo de animales vivos n.c.p.",0,"Impuestos sobre los productos, excepto IVA e impuestos sobre las importaciones",2013]
["P023","Aves de corral",0,"Impuestos sobre los productos, excepto IVA e impuestos sobre las importaciones",2013]
["P024","Leche cruda",0,"Impuestos sobre los productos, excepto IVA e impuestos sobre las importaciones",2013]
["P025","Huevos",0,"Impuestos sobre los productos, excepto IVA e impuestos sobre las importaciones",2013]
["P026","Otros productos de animales vivos",0,"Impuestos sobre los productos, excepto IVA e impuestos sobre las importaciones",2013]
["P027","Troncos de madera y leña",0,"Impuestos sobre los productos, excepto IVA e impuestos sobre las importaciones",2013]
["P028","Productos forestales no madereros",0,"Impuestos sobre los productos, excepto IVA e impuestos sobre las importaciones",2013]
["P029","Peces vivos, frescos o refrigerados",0,"Impuestos sobre los productos, excepto IVA e impuestos sobre las importaciones",2013]
["P030","Crustáceos sin congelar y otros productos de la pesca",0,"Impuestos sobre los productos, excepto IVA e impuestos sobre las importaciones",2013]
["P031","Petróleo crudo y gas natural",0,"Impuestos sobre los productos, excepto IVA e impuestos sobre las importaciones",2013]
["P032","Minerales metálicos",0,"Impuestos sobre los productos, excepto IVA e impuestos sobre las importaciones",2013]
["P033","Minerales no metálicos",0,"Impuestos sobre los productos, excepto IVA e impuestos sobre las importaciones",2013]
["P034","Carne y despojos comestibles de ganado bovino; cueros y pieles de bovino y de otros animales",0,"Impuestos sobre los productos, excepto IVA e impuestos sobre las importaciones",2013]
["P035","Carne y despojos comestibles de ganado porcino",0,"Impuestos sobre los productos, excepto IVA e impuestos sobre las importaciones",2013]
["P036","Carne y despojos comestibles de aves",0,"Impuestos sobre los productos, excepto IVA e impuestos sobre las importaciones",2013]
["P037","Carne y despojos de otros animales y conservas y preparados de carne",0,"Impuestos sobre los productos, excepto IVA e impuestos sobre las importaciones",2013]
["P038","Pescado congelado, preparado o en conserva y sus productos",0,"Impuestos sobre los productos, excepto IVA e impuestos sobre las importaciones",2013]
["P039","Crustáceos, moluscos y demás invertebrados acuáticos congelados, preparados o en conserva y sus productos",0,"Impuestos sobre los productos, excepto IVA e impuestos sobre las importaciones",2013]
["P040","Vegetales preparados o en conserva, legumbres y papas",0,"Impuestos sobre los productos, excepto IVA e impuestos sobre las importaciones",2013]
["P041","Preparaciones y conservas de frutas y nueces",0,"Impuestos sobre los productos, excepto IVA e impuestos sobre las importaciones",2013]
["P042","Jugos de frutas",29.591398000000002,"Impuestos sobre los productos, excepto IVA e impuestos sobre las importaciones",2013]
["P043","Aceites de origen vegetal",0,"Impuestos sobre los productos, excepto IVA e impuestos sobre las importaciones",2013]
["P044","Margarina, grasas y otros aceites de origen animal y vegetal",0,"Impuestos sobre los productos, excepto IVA e impuestos sobre las importaciones",2013]
["P045","Leche líquida y crema procesada",0,"Impuestos sobre los productos, excepto IVA e impuestos sobre las importaciones",2013]
["P046","Otros productos lácteos n.c.p.",1.2915080000000001,"Impuestos sobre los productos, excepto IVA e impuestos sobre las importaciones",2013]
["P047","Harina de trigo",0,"Impuestos sobre los productos, excepto IVA e impuestos sobre las importaciones",2013]
["P048","Arroz sin cáscara",0,"Impuestos sobre los productos, excepto IVA e impuestos sobre las importaciones",2013]
["P049","Otros productos de molinería, almidones y productos de almidón",0,"Impuestos sobre los productos, excepto IVA e impuestos sobre las importaciones",2013]
["P050","Pan y otros productos de panadería y repostería n.c.p.",0,"Impuestos sobre los productos, excepto IVA e impuestos sobre las importaciones",2013]
["P051","Tortillas de maíz, incluso tostadas, horneadas o fritas",0,"Impuestos sobre los productos, excepto IVA e impuestos sobre las importaciones",2013]
["P052","Azúcar de caña sin refinar y refinada, melaza y los demás azúcares n.c.p.",0,"Impuestos sobre los productos, excepto IVA e impuestos sobre las importaciones",2013]
["P053","Productos alimenticios n.c.p.",0,"Impuestos sobre los productos, excepto IVA e impuestos sobre las importaciones",2013]
["P054","Preparados para alimentación animal",0,"Impuestos sobre los productos, excepto IVA e impuestos sobre las importaciones",2013]
["P055","Aguardientes, licores, vinos, demás bebidas espirituosas y productos del tabaco",475.01746000000003,"Impuestos sobre los productos, excepto IVA e impuestos sobre las importaciones",2013]
["P056","Malta y cerveza de malta",217.107327,"Impuestos sobre los productos, excepto IVA e impuestos sobre las importaciones",2013]
["P057","Bebidas no alcohólicas",242.29592400000001,"Impuestos sobre los productos, excepto IVA e impuestos sobre las importaciones",2013]
["P058","Aguas minerales y otras aguas embotelladas",8.6743410000000001,"Impuestos sobre los productos, excepto IVA e impuestos sobre las importaciones",2013]
["P059","Hilados, tejidos, telas y otros productos textiles excepto prendas de vestir",0,"Impuestos sobre los productos, excepto IVA e impuestos sobre las importaciones",2013]
["P060","Prendas de vestir, adobo y teñido de pieles",0,"Impuestos sobre los productos, excepto IVA e impuestos sobre las importaciones",2013]
["P061","Cuero de piel curtida o adobada y cuero artificial o regenerado y artículos de cuero",0,"Impuestos sobre los productos, excepto IVA e impuestos sobre las importaciones",2013]
["P062","Calzado y sus partes, de cualquier material y de cualquier uso",0,"Impuestos sobre los productos, excepto IVA e impuestos sobre las importaciones",2013]
["P063","Madera aserrada y acepillada, productos de madera, corcho, paja y materiales trenzables",0,"Impuestos sobre los productos, excepto IVA e impuestos sobre las importaciones",2013]
["P064","Pasta de papel y papel",0,"Impuestos sobre los productos, excepto IVA e impuestos sobre las importaciones",2013]
["P065","Envases de papel y cartón",0,"Impuestos sobre los productos, excepto IVA e impuestos sobre las importaciones",2013]
["P066","Productos de la edición",0,"Impuestos sobre los productos, excepto IVA e impuestos sobre las importaciones",2013]
["P067","Productos de la impresión",0,"Impuestos sobre los productos, excepto IVA e impuestos sobre las importaciones",2013]
["P068","Gasolinas, diésel oil y fuel oils",2281.6210299999998,"Impuestos sobre los productos, excepto IVA e impuestos sobre las importaciones",2013]
["P069","Aceites, grasas lubricantes y otros aceites preparados",0,"Impuestos sobre los productos, excepto IVA e impuestos sobre las importaciones",2013]
["P070","Gases de petróleo, otros productos de la refinación de petróleo n.c.p.",32.65381,"Impuestos sobre los productos, excepto IVA e impuestos sobre las importaciones",2013]
["P071","Abonos, fertilizantes y pesticidas",0,"Impuestos sobre los productos, excepto IVA e impuestos sobre las importaciones",2013]
["P072","Pinturas, barnices, tintas y productos relacionados",0,"Impuestos sobre los productos, excepto IVA e impuestos sobre las importaciones",2013]
["P073","Jabón, preparados de limpieza, perfumes y preparados de toilet",0,"Impuestos sobre los productos, excepto IVA e impuestos sobre las importaciones",2013]
["P074","Otros productos químicos",1.493E-3,"Impuestos sobre los productos, excepto IVA e impuestos sobre las importaciones",2013]
["P075","Productos farmacéuticos",0,"Impuestos sobre los productos, excepto IVA e impuestos sobre las importaciones",2013]
["P076","Productos de caucho y plástico",0,"Impuestos sobre los productos, excepto IVA e impuestos sobre las importaciones",2013]
["P077","Vidrio y productos de vidrio",0,"Impuestos sobre los productos, excepto IVA e impuestos sobre las importaciones",2013]
["P078","Productos de cerámica y arcilla",0,"Impuestos sobre los productos, excepto IVA e impuestos sobre las importaciones",2013]
["P079","Cemento, cal y yeso",99.887760999999998,"Impuestos sobre los productos, excepto IVA e impuestos sobre las importaciones",2013]
["P080","Artículos de hormigón, cemento y yeso",0,"Impuestos sobre los productos, excepto IVA e impuestos sobre las importaciones",2013]
["P081","Piedras talladas para construcción y otros productos minerales no metálicos n.c.p.",0,"Impuestos sobre los productos, excepto IVA e impuestos sobre las importaciones",2013]
["P082","Métales básicos de hierro y acero, productos primarios de metales preciosos y otros metales no ferrosos",0,"Impuestos sobre los productos, excepto IVA e impuestos sobre las importaciones",2013]
["P083","Productos metálicos estructurales y sus partes de hierro o de acero",0,"Impuestos sobre los productos, excepto IVA e impuestos sobre las importaciones",2013]
["P084","Otros productos elaborados de metal",0,"Impuestos sobre los productos, excepto IVA e impuestos sobre las importaciones",2013]
["P085","Maquinaria para usos generales y especiales, sus partes y piezas, excepto electrodomésticos",0,"Impuestos sobre los productos, excepto IVA e impuestos sobre las importaciones",2013]
["P086","Electrodomésticos y sus partes",0,"Impuestos sobre los productos, excepto IVA e impuestos sobre las importaciones",2013]
["P087","Maquinaria de oficina, contabilidad e informática, sus partes y piezas",0,"Impuestos sobre los productos, excepto IVA e impuestos sobre las importaciones",2013]
["P088","Maquinaria y aparatos eléctricos, sus partes y piezas",0,"Impuestos sobre los productos, excepto IVA e impuestos sobre las importaciones",2013]
["P089","Equipo y aparatos de radio, televisión y comunicaciones",0,"Impuestos sobre los productos, excepto IVA e impuestos sobre las importaciones",2013]
["P090","Aparatos médicos, instrumentos ópticos y de precisión, relojes",0,"Impuestos sobre los productos, excepto IVA e impuestos sobre las importaciones",2013]
["P091","Equipo de transporte",0,"Impuestos sobre los productos, excepto IVA e impuestos sobre las importaciones",2013]
["P092","Muebles",0,"Impuestos sobre los productos, excepto IVA e impuestos sobre las importaciones",2013]
["P093","Otros artículos n.c.p.",0,"Impuestos sobre los productos, excepto IVA e impuestos sobre las importaciones",2013]
["P094","Residuos y desechos",0,"Impuestos sobre los productos, excepto IVA e impuestos sobre las importaciones",2013]
["P095","Generación y distribución de energía eléctrica, gas, vapor y aire acondicionado",0,"Impuestos sobre los productos, excepto IVA e impuestos sobre las importaciones",2013]
["P096","Agua natural y distribución de agua natural",0,"Impuestos sobre los productos, excepto IVA e impuestos sobre las importaciones",2013]
["P097","Evacuación de aguas residuales, recogida, tratamiento y eliminación de desechos",0,"Impuestos sobre los productos, excepto IVA e impuestos sobre las importaciones",2013]
["P098","Edificaciones residenciales",0,"Impuestos sobre los productos, excepto IVA e impuestos sobre las importaciones",2013]
["P099","Edificaciones no residenciales",0,"Impuestos sobre los productos, excepto IVA e impuestos sobre las importaciones",2013]
["P100","Obras de ingeniería civil",0,"Impuestos sobre los productos, excepto IVA e impuestos sobre las importaciones",2013]
["P101","Servicios generales y especializados de construcción",0,"Impuestos sobre los productos, excepto IVA e impuestos sobre las importaciones",2013]
["P102","Servicios de comercio",0,"Impuestos sobre los productos, excepto IVA e impuestos sobre las importaciones",2013]
["P103","Mantenimiento y reparación de vehículos automotores y motocicletas",0,"Impuestos sobre los productos, excepto IVA e impuestos sobre las importaciones",2013]
["P104","Servicio de transporte de pasajeros por vía terrestre",0,"Impuestos sobre los productos, excepto IVA e impuestos sobre las importaciones",2013]
["P105","Servicio de transporte de carga por vía terrestre",0,"Impuestos sobre los productos, excepto IVA e impuestos sobre las importaciones",2013]
["P106","Otros tipos de transporte",0,"Impuestos sobre los productos, excepto IVA e impuestos sobre las importaciones",2013]
["P107","Servicios de almacenamiento y depósito",0,"Impuestos sobre los productos, excepto IVA e impuestos sobre las importaciones",2013]
["P108","Otros servicios de apoyo al transporte",0,"Impuestos sobre los productos, excepto IVA e impuestos sobre las importaciones",2013]
["P109","Servicios postales y de mensajería",0,"Impuestos sobre los productos, excepto IVA e impuestos sobre las importaciones",2013]
["P110","Servicio de alojamiento",86.690190000000001,"Impuestos sobre los productos, excepto IVA e impuestos sobre las importaciones",2013]
["P111","Servicio de suministro de comidas y bebidas",0,"Impuestos sobre los productos, excepto IVA e impuestos sobre las importaciones",2013]
["P112","Servicios de información, telecomunicaciones y radiodifusión",0,"Impuestos sobre los productos, excepto IVA e impuestos sobre las importaciones",2013]
["P113","Servicios de banco central",0,"Impuestos sobre los productos, excepto IVA e impuestos sobre las importaciones",2013]
["P114","Otros servicios financieros y servicios de banca de inversión",0,"Impuestos sobre los productos, excepto IVA e impuestos sobre las importaciones",2013]
["P115","Servicios de Intermediación Financiera Medidos Indirectamente (SIFMI)",0,"Impuestos sobre los productos, excepto IVA e impuestos sobre las importaciones",2013]
["P116","Servicios de seguro, reaseguro y fondos de pensiones",14.204537,"Impuestos sobre los productos, excepto IVA e impuestos sobre las importaciones",2013]
["P117","Servicios auxiliares de la intermediación financiera",0,"Impuestos sobre los productos, excepto IVA e impuestos sobre las importaciones",2013]
["P118","Servicios de alquiler de vivienda",0,"Impuestos sobre los productos, excepto IVA e impuestos sobre las importaciones",2013]
["P119","Otros servicios inmobiliarios, excepto alquiler de vivienda",4.006E-3,"Impuestos sobre los productos, excepto IVA e impuestos sobre las importaciones",2013]
["P120","Servicios jurídicos, de contabilidad, auditoría, teneduría de libros y consultoría fiscal",0,"Impuestos sobre los productos, excepto IVA e impuestos sobre las importaciones",2013]
["P121","Servicios de tecnología de la información",0,"Impuestos sobre los productos, excepto IVA e impuestos sobre las importaciones",2013]
["P122","Servicios de arquitectura e ingeniería, ensayos y análisis técnicos",0,"Impuestos sobre los productos, excepto IVA e impuestos sobre las importaciones",2013]
["P123","Otros servicios profesionales, científicos y técnicos",0,"Impuestos sobre los productos, excepto IVA e impuestos sobre las importaciones",2013]
["P124","Servicios de publicidad y estudios de mercado",0,"Impuestos sobre los productos, excepto IVA e impuestos sobre las importaciones",2013]
["P125","Servicios de arrendamiento o alquiler sin operador",0,"Impuestos sobre los productos, excepto IVA e impuestos sobre las importaciones",2013]
["P126","Servicios  de agencias de empleo y de dotación de recursos humanos",0,"Impuestos sobre los productos, excepto IVA e impuestos sobre las importaciones",2013]
["P127","Servicios de agencias de viajes, operadores turísticos y actividades conexas",0,"Impuestos sobre los productos, excepto IVA e impuestos sobre las importaciones",2013]
["P128","Servicios de seguridad, sistemas de seguridad e investigación privada",0,"Impuestos sobre los productos, excepto IVA e impuestos sobre las importaciones",2013]
["P129","Servicios de limpieza",0,"Impuestos sobre los productos, excepto IVA e impuestos sobre las importaciones",2013]
["P130","Servicios telefónicos de centros de llamadas",0,"Impuestos sobre los productos, excepto IVA e impuestos sobre las importaciones",2013]
["P131","Servicios administrativos, de apoyo de oficina y otros servicios de apoyo a las empresas",0,"Impuestos sobre los productos, excepto IVA e impuestos sobre las importaciones",2013]
["P132","Servicios de mantenimiento, reparación e instalación de productos metálicos elaborados, maquinaria y equipo",0,"Impuestos sobre los productos, excepto IVA e impuestos sobre las importaciones",2013]
["P133","Servicios de reparación de otros bienes",0,"Impuestos sobre los productos, excepto IVA e impuestos sobre las importaciones",2013]
["P134","Servicios de apoyo a la agricultura, caza, silvicultura y pesca",0,"Impuestos sobre los productos, excepto IVA e impuestos sobre las importaciones",2013]
["P135","Servicios de apoyo a la explotación de minas y canteras y los relacionados con la distribución de electricidad, gas y agua",0,"Impuestos sobre los productos, excepto IVA e impuestos sobre las importaciones",2013]
["P136","Servicios de manufactura",0,"Impuestos sobre los productos, excepto IVA e impuestos sobre las importaciones",2013]
["P137","Servicios públicos del gobierno general",0,"Impuestos sobre los productos, excepto IVA e impuestos sobre las importaciones",2013]
["P138","Servicios públicos administrativos relacionados con la provisión de servicios educativos, de salud, servicios sociales, culturales y otros, sin contar los servicios de seguridad social",0,"Impuestos sobre los productos, excepto IVA e impuestos sobre las importaciones",2013]
["P139","Otros servicios administrativos",0,"Impuestos sobre los productos, excepto IVA e impuestos sobre las importaciones",2013]
["P140","Servicios públicos administrativos prestados a la comunidad en su conjunto",0,"Impuestos sobre los productos, excepto IVA e impuestos sobre las importaciones",2013]
["P141","Servicios administrativos relacionados con los sistemas de seguridad social de afiliación obligatoria",0,"Impuestos sobre los productos, excepto IVA e impuestos sobre las importaciones",2013]
["P142","Servicios de enseñanza",0,"Impuestos sobre los productos, excepto IVA e impuestos sobre las importaciones",2013]
["P143","Servicios de hospitalización",0,"Impuestos sobre los productos, excepto IVA e impuestos sobre las importaciones",2013]
["P144","Servicios médicos y dentales",0,"Impuestos sobre los productos, excepto IVA e impuestos sobre las importaciones",2013]
["P145","Otros servicios de atención de la salud humana",0,"Impuestos sobre los productos, excepto IVA e impuestos sobre las importaciones",2013]
["P146","Servicios audiovisuales, recreativos, culturales y deportivos",0,"Impuestos sobre los productos, excepto IVA e impuestos sobre las importaciones",2013]
["P147","Servicios de asociaciones que sirven a las empresas",0,"Impuestos sobre los productos, excepto IVA e impuestos sobre las importaciones",2013]
["P148","Servicios de asociaciones que sirven a los hogares",0,"Impuestos sobre los productos, excepto IVA e impuestos sobre las importaciones",2013]
["P149","Otros servicios",0,"Impuestos sobre los productos, excepto IVA e impuestos sobre las importaciones",2013]
["P150","Servicios domésticos",0,"Impuestos sobre los productos, excepto IVA e impuestos sobre las importaciones",2013]
["P151","Compras directas en el exterior por residentes",0,"Impuestos sobre los productos, excepto IVA e impuestos sobre las importaciones",2013]
["P152","Compras directas en el territorio nacional por no residentes",0,"Impuestos sobre los productos, excepto IVA e impuestos sobre las importaciones",2013]
["P001","Maíz",0,"Subvenciones a los productos",2013]
["P002","Frijoles",0,"Subvenciones a los productos",2013]
["P003","Leguminosas (legumbres secas) y semillas oleaginosas",0,"Subvenciones a los productos",2013]
["P004","Arroz",0,"Subvenciones a los productos",2013]
["P005","Otros cereales",0,"Subvenciones a los productos",2013]
["P006","Hortalizas",0,"Subvenciones a los productos",2013]
["P007","Sandías y melones",0,"Subvenciones a los productos",2013]
["P008","Ejotes y arvejas",0,"Subvenciones a los productos",2013]
["P009","Raíces y tubérculos",0,"Subvenciones a los productos",2013]
["P010","Caña de azúcar y otras plantas azucareras",0,"Subvenciones a los productos",2013]
["P011","Tabaco y otras plantas no perennes",0,"Subvenciones a los productos",2013]
["P012","Bananos, plátanos y otros",0,"Subvenciones a los productos",2013]
["P013","Frutas tropicales y subtropicales",0,"Subvenciones a los productos",2013]
["P014","Berries, otras frutas y semillas de frutas",0,"Subvenciones a los productos",2013]
["P015","Palma africana",0,"Subvenciones a los productos",2013]
["P016","Café en grano",0,"Subvenciones a los productos",2013]
["P017","Cardamomo",0,"Subvenciones a los productos",2013]
["P018","Caucho natural",0,"Subvenciones a los productos",2013]
["P019","Propagación de plantas",0,"Subvenciones a los productos",2013]
["P020","Otros frutos oleaginosos, otras plantas bebestibles y especias aromáticas",0,"Subvenciones a los productos",2013]
["P021","Ganado bovino",0,"Subvenciones a los productos",2013]
["P022","Ganado porcino y otro tipo de animales vivos n.c.p.",0,"Subvenciones a los productos",2013]
["P023","Aves de corral",0,"Subvenciones a los productos",2013]
["P024","Leche cruda",0,"Subvenciones a los productos",2013]
["P025","Huevos",0,"Subvenciones a los productos",2013]
["P026","Otros productos de animales vivos",0,"Subvenciones a los productos",2013]
["P027","Troncos de madera y leña",0,"Subvenciones a los productos",2013]
["P028","Productos forestales no madereros",0,"Subvenciones a los productos",2013]
["P029","Peces vivos, frescos o refrigerados",0,"Subvenciones a los productos",2013]
["P030","Crustáceos sin congelar y otros productos de la pesca",0,"Subvenciones a los productos",2013]
["P031","Petróleo crudo y gas natural",0,"Subvenciones a los productos",2013]
["P032","Minerales metálicos",0,"Subvenciones a los productos",2013]
["P033","Minerales no metálicos",0,"Subvenciones a los productos",2013]
["P034","Carne y despojos comestibles de ganado bovino; cueros y pieles de bovino y de otros animales",0,"Subvenciones a los productos",2013]
["P035","Carne y despojos comestibles de ganado porcino",0,"Subvenciones a los productos",2013]
["P036","Carne y despojos comestibles de aves",0,"Subvenciones a los productos",2013]
["P037","Carne y despojos de otros animales y conservas y preparados de carne",0,"Subvenciones a los productos",2013]
["P038","Pescado congelado, preparado o en conserva y sus productos",0,"Subvenciones a los productos",2013]
["P039","Crustáceos, moluscos y demás invertebrados acuáticos congelados, preparados o en conserva y sus productos",0,"Subvenciones a los productos",2013]
["P040","Vegetales preparados o en conserva, legumbres y papas",0,"Subvenciones a los productos",2013]
["P041","Preparaciones y conservas de frutas y nueces",0,"Subvenciones a los productos",2013]
["P042","Jugos de frutas",0,"Subvenciones a los productos",2013]
["P043","Aceites de origen vegetal",0,"Subvenciones a los productos",2013]
["P044","Margarina, grasas y otros aceites de origen animal y vegetal",0,"Subvenciones a los productos",2013]
["P045","Leche líquida y crema procesada",0,"Subvenciones a los productos",2013]
["P046","Otros productos lácteos n.c.p.",0,"Subvenciones a los productos",2013]
["P047","Harina de trigo",0,"Subvenciones a los productos",2013]
["P048","Arroz sin cáscara",0,"Subvenciones a los productos",2013]
["P049","Otros productos de molinería, almidones y productos de almidón",0,"Subvenciones a los productos",2013]
["P050","Pan y otros productos de panadería y repostería n.c.p.",0,"Subvenciones a los productos",2013]
["P051","Tortillas de maíz, incluso tostadas, horneadas o fritas",0,"Subvenciones a los productos",2013]
["P052","Azúcar de caña sin refinar y refinada, melaza y los demás azúcares n.c.p.",0,"Subvenciones a los productos",2013]
["P053","Productos alimenticios n.c.p.",0,"Subvenciones a los productos",2013]
["P054","Preparados para alimentación animal",0,"Subvenciones a los productos",2013]
["P055","Aguardientes, licores, vinos, demás bebidas espirituosas y productos del tabaco",0,"Subvenciones a los productos",2013]
["P056","Malta y cerveza de malta",0,"Subvenciones a los productos",2013]
["P057","Bebidas no alcohólicas",0,"Subvenciones a los productos",2013]
["P058","Aguas minerales y otras aguas embotelladas",0,"Subvenciones a los productos",2013]
["P059","Hilados, tejidos, telas y otros productos textiles excepto prendas de vestir",0,"Subvenciones a los productos",2013]
["P060","Prendas de vestir, adobo y teñido de pieles",0,"Subvenciones a los productos",2013]
["P061","Cuero de piel curtida o adobada y cuero artificial o regenerado y artículos de cuero",0,"Subvenciones a los productos",2013]
["P062","Calzado y sus partes, de cualquier material y de cualquier uso",0,"Subvenciones a los productos",2013]
["P063","Madera aserrada y acepillada, productos de madera, corcho, paja y materiales trenzables",0,"Subvenciones a los productos",2013]
["P064","Pasta de papel y papel",0,"Subvenciones a los productos",2013]
["P065","Envases de papel y cartón",0,"Subvenciones a los productos",2013]
["P066","Productos de la edición",0,"Subvenciones a los productos",2013]
["P067","Productos de la impresión",0,"Subvenciones a los productos",2013]
["P068","Gasolinas, diésel oil y fuel oils",0,"Subvenciones a los productos",2013]
["P069","Aceites, grasas lubricantes y otros aceites preparados",0,"Subvenciones a los productos",2013]
["P070","Gases de petróleo, otros productos de la refinación de petróleo n.c.p.",0,"Subvenciones a los productos",2013]
["P071","Abonos, fertilizantes y pesticidas",-256.17562900000001,"Subvenciones a los productos",2013]
["P072","Pinturas, barnices, tintas y productos relacionados",0,"Subvenciones a los productos",2013]
["P073","Jabón, preparados de limpieza, perfumes y preparados de toilet",0,"Subvenciones a los productos",2013]
["P074","Otros productos químicos",0,"Subvenciones a los productos",2013]
["P075","Productos farmacéuticos",0,"Subvenciones a los productos",2013]
["P076","Productos de caucho y plástico",0,"Subvenciones a los productos",2013]
["P077","Vidrio y productos de vidrio",0,"Subvenciones a los productos",2013]
["P078","Productos de cerámica y arcilla",0,"Subvenciones a los productos",2013]
["P079","Cemento, cal y yeso",0,"Subvenciones a los productos",2013]
["P080","Artículos de hormigón, cemento y yeso",0,"Subvenciones a los productos",2013]
["P081","Piedras talladas para construcción y otros productos minerales no metálicos n.c.p.",0,"Subvenciones a los productos",2013]
["P082","Métales básicos de hierro y acero, productos primarios de metales preciosos y otros metales no ferrosos",0,"Subvenciones a los productos",2013]
["P083","Productos metálicos estructurales y sus partes de hierro o de acero",0,"Subvenciones a los productos",2013]
["P084","Otros productos elaborados de metal",0,"Subvenciones a los productos",2013]
["P085","Maquinaria para usos generales y especiales, sus partes y piezas, excepto electrodomésticos",0,"Subvenciones a los productos",2013]
["P086","Electrodomésticos y sus partes",0,"Subvenciones a los productos",2013]
["P087","Maquinaria de oficina, contabilidad e informática, sus partes y piezas",0,"Subvenciones a los productos",2013]
["P088","Maquinaria y aparatos eléctricos, sus partes y piezas",0,"Subvenciones a los productos",2013]
["P089","Equipo y aparatos de radio, televisión y comunicaciones",0,"Subvenciones a los productos",2013]
["P090","Aparatos médicos, instrumentos ópticos y de precisión, relojes",0,"Subvenciones a los productos",2013]
["P091","Equipo de transporte",0,"Subvenciones a los productos",2013]
["P092","Muebles",0,"Subvenciones a los productos",2013]
["P093","Otros artículos n.c.p.",0,"Subvenciones a los productos",2013]
["P094","Residuos y desechos",0,"Subvenciones a los productos",2013]
["P095","Generación y distribución de energía eléctrica, gas, vapor y aire acondicionado",-1493.554705,"Subvenciones a los productos",2013]
["P096","Agua natural y distribución de agua natural",0,"Subvenciones a los productos",2013]
["P097","Evacuación de aguas residuales, recogida, tratamiento y eliminación de desechos",0,"Subvenciones a los productos",2013]
["P098","Edificaciones residenciales",0,"Subvenciones a los productos",2013]
["P099","Edificaciones no residenciales",0,"Subvenciones a los productos",2013]
["P100","Obras de ingeniería civil",0,"Subvenciones a los productos",2013]
["P101","Servicios generales y especializados de construcción",0,"Subvenciones a los productos",2013]
["P102","Servicios de comercio",0,"Subvenciones a los productos",2013]
["P103","Mantenimiento y reparación de vehículos automotores y motocicletas",0,"Subvenciones a los productos",2013]
["P104","Servicio de transporte de pasajeros por vía terrestre",-476.23512399999998,"Subvenciones a los productos",2013]
["P105","Servicio de transporte de carga por vía terrestre",0,"Subvenciones a los productos",2013]
["P106","Otros tipos de transporte",0,"Subvenciones a los productos",2013]
["P107","Servicios de almacenamiento y depósito",0,"Subvenciones a los productos",2013]
["P108","Otros servicios de apoyo al transporte",0,"Subvenciones a los productos",2013]
["P109","Servicios postales y de mensajería",0,"Subvenciones a los productos",2013]
["P110","Servicio de alojamiento",0,"Subvenciones a los productos",2013]
["P111","Servicio de suministro de comidas y bebidas",0,"Subvenciones a los productos",2013]
["P112","Servicios de información, telecomunicaciones y radiodifusión",0,"Subvenciones a los productos",2013]
["P113","Servicios de banco central",0,"Subvenciones a los productos",2013]
["P114","Otros servicios financieros y servicios de banca de inversión",0,"Subvenciones a los productos",2013]
["P115","Servicios de Intermediación Financiera Medidos Indirectamente (SIFMI)",0,"Subvenciones a los productos",2013]
["P116","Servicios de seguro, reaseguro y fondos de pensiones",0,"Subvenciones a los productos",2013]
["P117","Servicios auxiliares de la intermediación financiera",0,"Subvenciones a los productos",2013]
["P118","Servicios de alquiler de vivienda",0,"Subvenciones a los productos",2013]
["P119","Otros servicios inmobiliarios, excepto alquiler de vivienda",0,"Subvenciones a los productos",2013]
["P120","Servicios jurídicos, de contabilidad, auditoría, teneduría de libros y consultoría fiscal",0,"Subvenciones a los productos",2013]
["P121","Servicios de tecnología de la información",0,"Subvenciones a los productos",2013]
["P122","Servicios de arquitectura e ingeniería, ensayos y análisis técnicos",0,"Subvenciones a los productos",2013]
["P123","Otros servicios profesionales, científicos y técnicos",0,"Subvenciones a los productos",2013]
["P124","Servicios de publicidad y estudios de mercado",0,"Subvenciones a los productos",2013]
["P125","Servicios de arrendamiento o alquiler sin operador",0,"Subvenciones a los productos",2013]
["P126","Servicios  de agencias de empleo y de dotación de recursos humanos",0,"Subvenciones a los productos",2013]
["P127","Servicios de agencias de viajes, operadores turísticos y actividades conexas",0,"Subvenciones a los productos",2013]
["P128","Servicios de seguridad, sistemas de seguridad e investigación privada",0,"Subvenciones a los productos",2013]
["P129","Servicios de limpieza",0,"Subvenciones a los productos",2013]
["P130","Servicios telefónicos de centros de llamadas",0,"Subvenciones a los productos",2013]
["P131","Servicios administrativos, de apoyo de oficina y otros servicios de apoyo a las empresas",0,"Subvenciones a los productos",2013]
["P132","Servicios de mantenimiento, reparación e instalación de productos metálicos elaborados, maquinaria y equipo",0,"Subvenciones a los productos",2013]
["P133","Servicios de reparación de otros bienes",0,"Subvenciones a los productos",2013]
["P134","Servicios de apoyo a la agricultura, caza, silvicultura y pesca",0,"Subvenciones a los productos",2013]
["P135","Servicios de apoyo a la explotación de minas y canteras y los relacionados con la distribución de electricidad, gas y agua",0,"Subvenciones a los productos",2013]
["P136","Servicios de manufactura",0,"Subvenciones a los productos",2013]
["P137","Servicios públicos del gobierno general",0,"Subvenciones a los productos",2013]
["P138","Servicios públicos administrativos relacionados con la provisión de servicios educativos, de salud, servicios sociales, culturales y otros, sin contar los servicios de seguridad social",0,"Subvenciones a los productos",2013]
["P139","Otros servicios administrativos",0,"Subvenciones a los productos",2013]
["P140","Servicios públicos administrativos prestados a la comunidad en su conjunto",0,"Subvenciones a los productos",2013]
["P141","Servicios administrativos relacionados con los sistemas de seguridad social de afiliación obligatoria",0,"Subvenciones a los productos",2013]
["P142","Servicios de enseñanza",0,"Subvenciones a los productos",2013]
["P143","Servicios de hospitalización",0,"Subvenciones a los productos",2013]
["P144","Servicios médicos y dentales",0,"Subvenciones a los productos",2013]
["P145","Otros servicios de atención de la salud humana",0,"Subvenciones a los productos",2013]
["P146","Servicios audiovisuales, recreativos, culturales y deportivos",0,"Subvenciones a los productos",2013]
["P147","Servicios de asociaciones que sirven a las empresas",0,"Subvenciones a los productos",2013]
["P148","Servicios de asociaciones que sirven a los hogares",0,"Subvenciones a los productos",2013]
["P149","Otros servicios",0,"Subvenciones a los productos",2013]
["P150","Servicios domésticos",0,"Subvenciones a los productos",2013]
["P151","Compras directas en el exterior por residentes",0,"Subvenciones a los productos",2013]
["P152","Compras directas en el territorio nacional por no residentes",0,"Subvenciones a los productos",2013]
["P001","Maíz",1926.576568,"Importaciones (CIF)",2013]
["P002","Frijoles",105.259585,"Importaciones (CIF)",2013]
["P003","Leguminosas (legumbres secas) y semillas oleaginosas",144.78020799999999,"Importaciones (CIF)",2013]
["P004","Arroz",273.30903799999999,"Importaciones (CIF)",2013]
["P005","Otros cereales",1285.4458520000001,"Importaciones (CIF)",2013]
["P006","Hortalizas",125.52135199999999,"Importaciones (CIF)",2013]
["P007","Sandías y melones",1.2125090000000001,"Importaciones (CIF)",2013]
["P008","Ejotes y arvejas",2.2336740000000002,"Importaciones (CIF)",2013]
["P009","Raíces y tubérculos",22.767258000000002,"Importaciones (CIF)",2013]
["P010","Caña de azúcar y otras plantas azucareras",0.15756899999999999,"Importaciones (CIF)",2013]
["P011","Tabaco y otras plantas no perennes",517.38221699999997,"Importaciones (CIF)",2013]
["P012","Bananos, plátanos y otros",11.340589,"Importaciones (CIF)",2013]
["P013","Frutas tropicales y subtropicales",14.572469999999999,"Importaciones (CIF)",2013]
["P014","Berries, otras frutas y semillas de frutas",468.98600599999997,"Importaciones (CIF)",2013]
["P015","Palma africana",22.324894,"Importaciones (CIF)",2013]
["P016","Café en grano",8.0754000000000006E-2,"Importaciones (CIF)",2013]
["P017","Cardamomo",0.642984,"Importaciones (CIF)",2013]
["P018","Caucho natural",38.532386000000002,"Importaciones (CIF)",2013]
["P019","Propagación de plantas",35.644416999999997,"Importaciones (CIF)",2013]
["P020","Otros frutos oleaginosos, otras plantas bebestibles y especias aromáticas",74.750713000000005,"Importaciones (CIF)",2013]
["P021","Ganado bovino",13.792669,"Importaciones (CIF)",2013]
["P022","Ganado porcino y otro tipo de animales vivos n.c.p.",8.4092880000000001,"Importaciones (CIF)",2013]
["P023","Aves de corral",112.66151000000001,"Importaciones (CIF)",2013]
["P024","Leche cruda",0,"Importaciones (CIF)",2013]
["P025","Huevos",587.79578100000003,"Importaciones (CIF)",2013]
["P026","Otros productos de animales vivos",1.670536,"Importaciones (CIF)",2013]
["P027","Troncos de madera y leña",0.36051899999999998,"Importaciones (CIF)",2013]
["P028","Productos forestales no madereros",18.524802999999999,"Importaciones (CIF)",2013]
["P029","Peces vivos, frescos o refrigerados",5.4491769999999997,"Importaciones (CIF)",2013]
["P030","Crustáceos sin congelar y otros productos de la pesca",17.35989,"Importaciones (CIF)",2013]
["P031","Petróleo crudo y gas natural",0,"Importaciones (CIF)",2013]
["P032","Minerales metálicos",17.102557999999998,"Importaciones (CIF)",2013]
["P033","Minerales no metálicos",1050.62384,"Importaciones (CIF)",2013]
["P034","Carne y despojos comestibles de ganado bovino; cueros y pieles de bovino y de otros animales",208.480558,"Importaciones (CIF)",2013]
["P035","Carne y despojos comestibles de ganado porcino",167.06711899999999,"Importaciones (CIF)",2013]
["P036","Carne y despojos comestibles de aves",575.03981899999997,"Importaciones (CIF)",2013]
["P037","Carne y despojos de otros animales y conservas y preparados de carne",382.81138299999998,"Importaciones (CIF)",2013]
["P038","Pescado congelado, preparado o en conserva y sus productos",526.88769200000002,"Importaciones (CIF)",2013]
["P039","Crustáceos, moluscos y demás invertebrados acuáticos congelados, preparados o en conserva y sus productos",225.50381999999999,"Importaciones (CIF)",2013]
["P040","Vegetales preparados o en conserva, legumbres y papas",477.81638900000002,"Importaciones (CIF)",2013]
["P041","Preparaciones y conservas de frutas y nueces",436.08295800000002,"Importaciones (CIF)",2013]
["P042","Jugos de frutas",143.183156,"Importaciones (CIF)",2013]
["P043","Aceites de origen vegetal",1029.076818,"Importaciones (CIF)",2013]
["P044","Margarina, grasas y otros aceites de origen animal y vegetal",1728.8952159999999,"Importaciones (CIF)",2013]
["P045","Leche líquida y crema procesada",267.39837,"Importaciones (CIF)",2013]
["P046","Otros productos lácteos n.c.p.",1062.7283870000001,"Importaciones (CIF)",2013]
["P047","Harina de trigo",225.287646,"Importaciones (CIF)",2013]
["P048","Arroz sin cáscara",81.039365000000004,"Importaciones (CIF)",2013]
["P049","Otros productos de molinería, almidones y productos de almidón",1139.5048549999999,"Importaciones (CIF)",2013]
["P050","Pan y otros productos de panadería y repostería n.c.p.",488.56776500000001,"Importaciones (CIF)",2013]
["P051","Tortillas de maíz, incluso tostadas, horneadas o fritas",0,"Importaciones (CIF)",2013]
["P052","Azúcar de caña sin refinar y refinada, melaza y los demás azúcares n.c.p.",7.8579990000000004,"Importaciones (CIF)",2013]
["P053","Productos alimenticios n.c.p.",3924.140155,"Importaciones (CIF)",2013]
["P054","Preparados para alimentación animal",400.95102900000001,"Importaciones (CIF)",2013]
["P055","Aguardientes, licores, vinos, demás bebidas espirituosas y productos del tabaco",386.11155400000001,"Importaciones (CIF)",2013]
["P056","Malta y cerveza de malta",303.14479899999998,"Importaciones (CIF)",2013]
["P057","Bebidas no alcohólicas",551.94500600000003,"Importaciones (CIF)",2013]
["P058","Aguas minerales y otras aguas embotelladas",7.1111089999999999,"Importaciones (CIF)",2013]
["P059","Hilados, tejidos, telas y otros productos textiles excepto prendas de vestir",2290.2708440000001,"Importaciones (CIF)",2013]
["P060","Prendas de vestir, adobo y teñido de pieles",2007.0804450000001,"Importaciones (CIF)",2013]
["P061","Cuero de piel curtida o adobada y cuero artificial o regenerado y artículos de cuero",368.14787799999999,"Importaciones (CIF)",2013]
["P062","Calzado y sus partes, de cualquier material y de cualquier uso",1194.7479390000001,"Importaciones (CIF)",2013]
["P063","Madera aserrada y acepillada, productos de madera, corcho, paja y materiales trenzables",476.86208199999999,"Importaciones (CIF)",2013]
["P064","Pasta de papel y papel",4462.4894260000001,"Importaciones (CIF)",2013]
["P065","Envases de papel y cartón",304.78474299999999,"Importaciones (CIF)",2013]
["P066","Productos de la edición",715.18694400000004,"Importaciones (CIF)",2013]
["P067","Productos de la impresión",120.06995999999999,"Importaciones (CIF)",2013]
["P068","Gasolinas, diésel oil y fuel oils",20442.383409999999,"Importaciones (CIF)",2013]
["P069","Aceites, grasas lubricantes y otros aceites preparados",907.32079399999998,"Importaciones (CIF)",2013]
["P070","Gases de petróleo, otros productos de la refinación de petróleo n.c.p.",3334.2309300000002,"Importaciones (CIF)",2013]
["P071","Abonos, fertilizantes y pesticidas",3610.7623239999998,"Importaciones (CIF)",2013]
["P072","Pinturas, barnices, tintas y productos relacionados",817.39177299999994,"Importaciones (CIF)",2013]
["P073","Jabón, preparados de limpieza, perfumes y preparados de toilet",2428.7098080000001,"Importaciones (CIF)",2013]
["P074","Otros productos químicos",9153.8717749999996,"Importaciones (CIF)",2013]
["P075","Productos farmacéuticos",4481.8031790000005,"Importaciones (CIF)",2013]
["P076","Productos de caucho y plástico",5033.150251,"Importaciones (CIF)",2013]
["P077","Vidrio y productos de vidrio",494.29595499999999,"Importaciones (CIF)",2013]
["P078","Productos de cerámica y arcilla",476.05192699999998,"Importaciones (CIF)",2013]
["P079","Cemento, cal y yeso",153.65882400000001,"Importaciones (CIF)",2013]
["P080","Artículos de hormigón, cemento y yeso",114.2388,"Importaciones (CIF)",2013]
["P081","Piedras talladas para construcción y otros productos minerales no metálicos n.c.p.",176.330839,"Importaciones (CIF)",2013]
["P082","Métales básicos de hierro y acero, productos primarios de metales preciosos y otros metales no ferrosos",5534.465878,"Importaciones (CIF)",2013]
["P083","Productos metálicos estructurales y sus partes de hierro o de acero",427.13250599999998,"Importaciones (CIF)",2013]
["P084","Otros productos elaborados de metal",3245.3681919999999,"Importaciones (CIF)",2013]
["P085","Maquinaria para usos generales y especiales, sus partes y piezas, excepto electrodomésticos",9458.7619240000004,"Importaciones (CIF)",2013]
["P086","Electrodomésticos y sus partes",980.01196300000004,"Importaciones (CIF)",2013]
["P087","Maquinaria de oficina, contabilidad e informática, sus partes y piezas",1900.919238,"Importaciones (CIF)",2013]
["P088","Maquinaria y aparatos eléctricos, sus partes y piezas",4217.9976980000001,"Importaciones (CIF)",2013]
["P089","Equipo y aparatos de radio, televisión y comunicaciones",6489.9872290000003,"Importaciones (CIF)",2013]
["P090","Aparatos médicos, instrumentos ópticos y de precisión, relojes",1677.4874600000001,"Importaciones (CIF)",2013]
["P091","Equipo de transporte",7772.9845599999999,"Importaciones (CIF)",2013]
["P092","Muebles",574.35697900000002,"Importaciones (CIF)",2013]
["P093","Otros artículos n.c.p.",1273.001004,"Importaciones (CIF)",2013]
["P094","Residuos y desechos",514.15271499999994,"Importaciones (CIF)",2013]
["P095","Generación y distribución de energía eléctrica, gas, vapor y aire acondicionado",136.555813,"Importaciones (CIF)",2013]
["P096","Agua natural y distribución de agua natural",0,"Importaciones (CIF)",2013]
["P097","Evacuación de aguas residuales, recogida, tratamiento y eliminación de desechos",0,"Importaciones (CIF)",2013]
["P098","Edificaciones residenciales",0,"Importaciones (CIF)",2013]
["P099","Edificaciones no residenciales",0,"Importaciones (CIF)",2013]
["P100","Obras de ingeniería civil",0,"Importaciones (CIF)",2013]
["P101","Servicios generales y especializados de construcción",88.139913000000007,"Importaciones (CIF)",2013]
["P102","Servicios de comercio",0,"Importaciones (CIF)",2013]
["P103","Mantenimiento y reparación de vehículos automotores y motocicletas",3.769577,"Importaciones (CIF)",2013]
["P104","Servicio de transporte de pasajeros por vía terrestre",43.400914999999998,"Importaciones (CIF)",2013]
["P105","Servicio de transporte de carga por vía terrestre",1508.316779,"Importaciones (CIF)",2013]
["P106","Otros tipos de transporte",7793.7042190000002,"Importaciones (CIF)",2013]
["P107","Servicios de almacenamiento y depósito",6.8560000000000001E-3,"Importaciones (CIF)",2013]
["P108","Otros servicios de apoyo al transporte",188.51360399999999,"Importaciones (CIF)",2013]
["P109","Servicios postales y de mensajería",92.914567000000005,"Importaciones (CIF)",2013]
["P110","Servicio de alojamiento",0,"Importaciones (CIF)",2013]
["P111","Servicio de suministro de comidas y bebidas",14.645206,"Importaciones (CIF)",2013]
["P112","Servicios de información, telecomunicaciones y radiodifusión",1809.286644,"Importaciones (CIF)",2013]
["P113","Servicios de banco central",0,"Importaciones (CIF)",2013]
["P114","Otros servicios financieros y servicios de banca de inversión",451.47432300000003,"Importaciones (CIF)",2013]
["P115","Servicios de Intermediación Financiera Medidos Indirectamente (SIFMI)",844.35284899999999,"Importaciones (CIF)",2013]
["P116","Servicios de seguro, reaseguro y fondos de pensiones",1928.742195,"Importaciones (CIF)",2013]
["P117","Servicios auxiliares de la intermediación financiera",0,"Importaciones (CIF)",2013]
["P118","Servicios de alquiler de vivienda",0,"Importaciones (CIF)",2013]
["P119","Otros servicios inmobiliarios, excepto alquiler de vivienda",0,"Importaciones (CIF)",2013]
["P120","Servicios jurídicos, de contabilidad, auditoría, teneduría de libros y consultoría fiscal",25.252783999999998,"Importaciones (CIF)",2013]
["P121","Servicios de tecnología de la información",259.12080700000001,"Importaciones (CIF)",2013]
["P122","Servicios de arquitectura e ingeniería, ensayos y análisis técnicos",27.156455999999999,"Importaciones (CIF)",2013]
["P123","Otros servicios profesionales, científicos y técnicos",420.00590999999997,"Importaciones (CIF)",2013]
["P124","Servicios de publicidad y estudios de mercado",164.671122,"Importaciones (CIF)",2013]
["P125","Servicios de arrendamiento o alquiler sin operador",820.21403699999996,"Importaciones (CIF)",2013]
["P126","Servicios  de agencias de empleo y de dotación de recursos humanos",0,"Importaciones (CIF)",2013]
["P127","Servicios de agencias de viajes, operadores turísticos y actividades conexas",0,"Importaciones (CIF)",2013]
["P128","Servicios de seguridad, sistemas de seguridad e investigación privada",0,"Importaciones (CIF)",2013]
["P129","Servicios de limpieza",0,"Importaciones (CIF)",2013]
["P130","Servicios telefónicos de centros de llamadas",78.153979000000007,"Importaciones (CIF)",2013]
["P131","Servicios administrativos, de apoyo de oficina y otros servicios de apoyo a las empresas",34.731901000000001,"Importaciones (CIF)",2013]
["P132","Servicios de mantenimiento, reparación e instalación de productos metálicos elaborados, maquinaria y equipo",0.589229,"Importaciones (CIF)",2013]
["P133","Servicios de reparación de otros bienes",0,"Importaciones (CIF)",2013]
["P134","Servicios de apoyo a la agricultura, caza, silvicultura y pesca",0,"Importaciones (CIF)",2013]
["P135","Servicios de apoyo a la explotación de minas y canteras y los relacionados con la distribución de electricidad, gas y agua",0,"Importaciones (CIF)",2013]
["P136","Servicios de manufactura",0,"Importaciones (CIF)",2013]
["P137","Servicios públicos del gobierno general",0,"Importaciones (CIF)",2013]
["P138","Servicios públicos administrativos relacionados con la provisión de servicios educativos, de salud, servicios sociales, culturales y otros, sin contar los servicios de seguridad social",0,"Importaciones (CIF)",2013]
["P139","Otros servicios administrativos",0,"Importaciones (CIF)",2013]
["P140","Servicios públicos administrativos prestados a la comunidad en su conjunto",252.573702,"Importaciones (CIF)",2013]
["P141","Servicios administrativos relacionados con los sistemas de seguridad social de afiliación obligatoria",0,"Importaciones (CIF)",2013]
["P142","Servicios de enseñanza",3.6162179999999999,"Importaciones (CIF)",2013]
["P143","Servicios de hospitalización",0,"Importaciones (CIF)",2013]
["P144","Servicios médicos y dentales",0,"Importaciones (CIF)",2013]
["P145","Otros servicios de atención de la salud humana",0,"Importaciones (CIF)",2013]
["P146","Servicios audiovisuales, recreativos, culturales y deportivos",172.76897,"Importaciones (CIF)",2013]
["P147","Servicios de asociaciones que sirven a las empresas",2.262931,"Importaciones (CIF)",2013]
["P148","Servicios de asociaciones que sirven a los hogares",0,"Importaciones (CIF)",2013]
["P149","Otros servicios",0,"Importaciones (CIF)",2013]
["P150","Servicios domésticos",0,"Importaciones (CIF)",2013]
["P151","Compras directas en el exterior por residentes",6304.4615839999997,"Importaciones (CIF)",2013]
["P152","Compras directas en el territorio nacional por no residentes",0,"Importaciones (CIF)",2013]
["P001","Maíz",1.3095000000000001E-2,"Impuestos y derechos sobre las importaciones excepto IVA",2013]
["P002","Frijoles",6.0101120000000003,"Impuestos y derechos sobre las importaciones excepto IVA",2013]
["P003","Leguminosas (legumbres secas) y semillas oleaginosas",0.21742500000000001,"Impuestos y derechos sobre las importaciones excepto IVA",2013]
["P004","Arroz",5.118303,"Impuestos y derechos sobre las importaciones excepto IVA",2013]
["P005","Otros cereales",0.28831499999999999,"Impuestos y derechos sobre las importaciones excepto IVA",2013]
["P006","Hortalizas",1.376401,"Impuestos y derechos sobre las importaciones excepto IVA",2013]
["P007","Sandías y melones",2.3491999999999999E-2,"Impuestos y derechos sobre las importaciones excepto IVA",2013]
["P008","Ejotes y arvejas",2.1937999999999999E-2,"Impuestos y derechos sobre las importaciones excepto IVA",2013]
["P009","Raíces y tubérculos",1.8364579999999999,"Impuestos y derechos sobre las importaciones excepto IVA",2013]
["P010","Caña de azúcar y otras plantas azucareras",0,"Impuestos y derechos sobre las importaciones excepto IVA",2013]
["P011","Tabaco y otras plantas no perennes",7.9450999999999994E-2,"Impuestos y derechos sobre las importaciones excepto IVA",2013]
["P012","Bananos, plátanos y otros",0.639208,"Impuestos y derechos sobre las importaciones excepto IVA",2013]
["P013","Frutas tropicales y subtropicales",1.706949,"Impuestos y derechos sobre las importaciones excepto IVA",2013]
["P014","Berries, otras frutas y semillas de frutas",2.1732840000000002,"Impuestos y derechos sobre las importaciones excepto IVA",2013]
["P015","Palma africana",0,"Impuestos y derechos sobre las importaciones excepto IVA",2013]
["P016","Café en grano",1.0486000000000001E-2,"Impuestos y derechos sobre las importaciones excepto IVA",2013]
["P017","Cardamomo",0,"Impuestos y derechos sobre las importaciones excepto IVA",2013]
["P018","Caucho natural",7.8100000000000001E-3,"Impuestos y derechos sobre las importaciones excepto IVA",2013]
["P019","Propagación de plantas",0.58506899999999995,"Impuestos y derechos sobre las importaciones excepto IVA",2013]
["P020","Otros frutos oleaginosos, otras plantas bebestibles y especias aromáticas",1.5469200000000001,"Impuestos y derechos sobre las importaciones excepto IVA",2013]
["P021","Ganado bovino",0,"Impuestos y derechos sobre las importaciones excepto IVA",2013]
["P022","Ganado porcino y otro tipo de animales vivos n.c.p.",7.2090000000000001E-2,"Impuestos y derechos sobre las importaciones excepto IVA",2013]
["P023","Aves de corral",1.9840000000000001E-3,"Impuestos y derechos sobre las importaciones excepto IVA",2013]
["P024","Leche cruda",0,"Impuestos y derechos sobre las importaciones excepto IVA",2013]
["P025","Huevos",4.339E-3,"Impuestos y derechos sobre las importaciones excepto IVA",2013]
["P026","Otros productos de animales vivos",2.5099999999999998E-4,"Impuestos y derechos sobre las importaciones excepto IVA",2013]
["P027","Troncos de madera y leña",0,"Impuestos y derechos sobre las importaciones excepto IVA",2013]
["P028","Productos forestales no madereros",1.0966E-2,"Impuestos y derechos sobre las importaciones excepto IVA",2013]
["P029","Peces vivos, frescos o refrigerados",7.8199000000000005E-2,"Impuestos y derechos sobre las importaciones excepto IVA",2013]
["P030","Crustáceos sin congelar y otros productos de la pesca",0.20960400000000001,"Impuestos y derechos sobre las importaciones excepto IVA",2013]
["P031","Petróleo crudo y gas natural",0,"Impuestos y derechos sobre las importaciones excepto IVA",2013]
["P032","Minerales metálicos",3.6120000000000002E-3,"Impuestos y derechos sobre las importaciones excepto IVA",2013]
["P033","Minerales no metálicos",28.324197999999999,"Impuestos y derechos sobre las importaciones excepto IVA",2013]
["P034","Carne y despojos comestibles de ganado bovino; cueros y pieles de bovino y de otros animales",0.11142000000000001,"Impuestos y derechos sobre las importaciones excepto IVA",2013]
["P035","Carne y despojos comestibles de ganado porcino",2.8252290000000002,"Impuestos y derechos sobre las importaciones excepto IVA",2013]
["P036","Carne y despojos comestibles de aves",5.4383160000000004,"Impuestos y derechos sobre las importaciones excepto IVA",2013]
["P037","Carne y despojos de otros animales y conservas y preparados de carne",6.2930000000000001,"Impuestos y derechos sobre las importaciones excepto IVA",2013]
["P038","Pescado congelado, preparado o en conserva y sus productos",9.0251110000000008,"Impuestos y derechos sobre las importaciones excepto IVA",2013]
["P039","Crustáceos, moluscos y demás invertebrados acuáticos congelados, preparados o en conserva y sus productos",0.71170999999999995,"Impuestos y derechos sobre las importaciones excepto IVA",2013]
["P040","Vegetales preparados o en conserva, legumbres y papas",7.9039219999999997,"Impuestos y derechos sobre las importaciones excepto IVA",2013]
["P041","Preparaciones y conservas de frutas y nueces",5.6945230000000002,"Impuestos y derechos sobre las importaciones excepto IVA",2013]
["P042","Jugos de frutas",0.70909999999999995,"Impuestos y derechos sobre las importaciones excepto IVA",2013]
["P043","Aceites de origen vegetal",6.3574650000000004,"Impuestos y derechos sobre las importaciones excepto IVA",2013]
["P044","Margarina, grasas y otros aceites de origen animal y vegetal",2.3273510000000002,"Impuestos y derechos sobre las importaciones excepto IVA",2013]
["P045","Leche líquida y crema procesada",4.9486090000000003,"Impuestos y derechos sobre las importaciones excepto IVA",2013]
["P046","Otros productos lácteos n.c.p.",69.035622000000004,"Impuestos y derechos sobre las importaciones excepto IVA",2013]
["P047","Harina de trigo",0,"Impuestos y derechos sobre las importaciones excepto IVA",2013]
["P048","Arroz sin cáscara",4.2802740000000004,"Impuestos y derechos sobre las importaciones excepto IVA",2013]
["P049","Otros productos de molinería, almidones y productos de almidón",9.5215969999999999,"Impuestos y derechos sobre las importaciones excepto IVA",2013]
["P050","Pan y otros productos de panadería y repostería n.c.p.",4.9894360000000004,"Impuestos y derechos sobre las importaciones excepto IVA",2013]
["P051","Tortillas de maíz, incluso tostadas, horneadas o fritas",0,"Impuestos y derechos sobre las importaciones excepto IVA",2013]
["P052","Azúcar de caña sin refinar y refinada, melaza y los demás azúcares n.c.p.",0.21085100000000001,"Impuestos y derechos sobre las importaciones excepto IVA",2013]
["P053","Productos alimenticios n.c.p.",62.758946000000002,"Impuestos y derechos sobre las importaciones excepto IVA",2013]
["P054","Preparados para alimentación animal",3.6737690000000001,"Impuestos y derechos sobre las importaciones excepto IVA",2013]
["P055","Aguardientes, licores, vinos, demás bebidas espirituosas y productos del tabaco",44.549036000000001,"Impuestos y derechos sobre las importaciones excepto IVA",2013]
["P056","Malta y cerveza de malta",10.362541999999999,"Impuestos y derechos sobre las importaciones excepto IVA",2013]
["P057","Bebidas no alcohólicas",5.5522559999999999,"Impuestos y derechos sobre las importaciones excepto IVA",2013]
["P058","Aguas minerales y otras aguas embotelladas",0.28362999999999999,"Impuestos y derechos sobre las importaciones excepto IVA",2013]
["P059","Hilados, tejidos, telas y otros productos textiles excepto prendas de vestir",48.191851999999997,"Impuestos y derechos sobre las importaciones excepto IVA",2013]
["P060","Prendas de vestir, adobo y teñido de pieles",143.549387,"Impuestos y derechos sobre las importaciones excepto IVA",2013]
["P061","Cuero de piel curtida o adobada y cuero artificial o regenerado y artículos de cuero",28.548895999999999,"Impuestos y derechos sobre las importaciones excepto IVA",2013]
["P062","Calzado y sus partes, de cualquier material y de cualquier uso",104.65356300000001,"Impuestos y derechos sobre las importaciones excepto IVA",2013]
["P063","Madera aserrada y acepillada, productos de madera, corcho, paja y materiales trenzables",16.454395000000002,"Impuestos y derechos sobre las importaciones excepto IVA",2013]
["P064","Pasta de papel y papel",27.288879000000001,"Impuestos y derechos sobre las importaciones excepto IVA",2013]
["P065","Envases de papel y cartón",2.380112,"Impuestos y derechos sobre las importaciones excepto IVA",2013]
["P066","Productos de la edición",24.246775,"Impuestos y derechos sobre las importaciones excepto IVA",2013]
["P067","Productos de la impresión",1.301472,"Impuestos y derechos sobre las importaciones excepto IVA",2013]
["P068","Gasolinas, diésel oil y fuel oils",4.4837000000000002E-2,"Impuestos y derechos sobre las importaciones excepto IVA",2013]
["P069","Aceites, grasas lubricantes y otros aceites preparados",10.983378,"Impuestos y derechos sobre las importaciones excepto IVA",2013]
["P070","Gases de petróleo, otros productos de la refinación de petróleo n.c.p.",8.6398000000000003E-2,"Impuestos y derechos sobre las importaciones excepto IVA",2013]
["P071","Abonos, fertilizantes y pesticidas",49.696069999999999,"Impuestos y derechos sobre las importaciones excepto IVA",2013]
["P072","Pinturas, barnices, tintas y productos relacionados",10.029738,"Impuestos y derechos sobre las importaciones excepto IVA",2013]
["P073","Jabón, preparados de limpieza, perfumes y preparados de toilet",163.30729600000001,"Impuestos y derechos sobre las importaciones excepto IVA",2013]
["P074","Otros productos químicos",34.166791000000003,"Impuestos y derechos sobre las importaciones excepto IVA",2013]
["P075","Productos farmacéuticos",88.799699000000004,"Impuestos y derechos sobre las importaciones excepto IVA",2013]
["P076","Productos de caucho y plástico",152.66666799999999,"Impuestos y derechos sobre las importaciones excepto IVA",2013]
["P077","Vidrio y productos de vidrio",14.346356999999999,"Impuestos y derechos sobre las importaciones excepto IVA",2013]
["P078","Productos de cerámica y arcilla",29.125387,"Impuestos y derechos sobre las importaciones excepto IVA",2013]
["P079","Cemento, cal y yeso",9.1461710000000007,"Impuestos y derechos sobre las importaciones excepto IVA",2013]
["P080","Artículos de hormigón, cemento y yeso",0.89545799999999998,"Impuestos y derechos sobre las importaciones excepto IVA",2013]
["P081","Piedras talladas para construcción y otros productos minerales no metálicos n.c.p.",4.0666079999999996,"Impuestos y derechos sobre las importaciones excepto IVA",2013]
["P082","Métales básicos de hierro y acero, productos primarios de metales preciosos y otros metales no ferrosos",33.974898000000003,"Impuestos y derechos sobre las importaciones excepto IVA",2013]
["P083","Productos metálicos estructurales y sus partes de hierro o de acero",14.141559000000001,"Impuestos y derechos sobre las importaciones excepto IVA",2013]
["P084","Otros productos elaborados de metal",63.647938000000003,"Impuestos y derechos sobre las importaciones excepto IVA",2013]
["P085","Maquinaria para usos generales y especiales, sus partes y piezas, excepto electrodomésticos",54.655141999999998,"Impuestos y derechos sobre las importaciones excepto IVA",2013]
["P086","Electrodomésticos y sus partes",63.480289999999997,"Impuestos y derechos sobre las importaciones excepto IVA",2013]
["P087","Maquinaria de oficina, contabilidad e informática, sus partes y piezas",0,"Impuestos y derechos sobre las importaciones excepto IVA",2013]
["P088","Maquinaria y aparatos eléctricos, sus partes y piezas",74.055276000000006,"Impuestos y derechos sobre las importaciones excepto IVA",2013]
["P089","Equipo y aparatos de radio, televisión y comunicaciones",75.941328999999996,"Impuestos y derechos sobre las importaciones excepto IVA",2013]
["P090","Aparatos médicos, instrumentos ópticos y de precisión, relojes",16.732696000000001,"Impuestos y derechos sobre las importaciones excepto IVA",2013]
["P091","Equipo de transporte",87.651760999999993,"Impuestos y derechos sobre las importaciones excepto IVA",2013]
["P092","Muebles",50.644219,"Impuestos y derechos sobre las importaciones excepto IVA",2013]
["P093","Otros artículos n.c.p.",120.814988,"Impuestos y derechos sobre las importaciones excepto IVA",2013]
["P094","Residuos y desechos",14.772373999999999,"Impuestos y derechos sobre las importaciones excepto IVA",2013]
["P095","Generación y distribución de energía eléctrica, gas, vapor y aire acondicionado",0,"Impuestos y derechos sobre las importaciones excepto IVA",2013]
["P096","Agua natural y distribución de agua natural",0,"Impuestos y derechos sobre las importaciones excepto IVA",2013]
["P097","Evacuación de aguas residuales, recogida, tratamiento y eliminación de desechos",0,"Impuestos y derechos sobre las importaciones excepto IVA",2013]
["P098","Edificaciones residenciales",0,"Impuestos y derechos sobre las importaciones excepto IVA",2013]
["P099","Edificaciones no residenciales",0,"Impuestos y derechos sobre las importaciones excepto IVA",2013]
["P100","Obras de ingeniería civil",0,"Impuestos y derechos sobre las importaciones excepto IVA",2013]
["P101","Servicios generales y especializados de construcción",0,"Impuestos y derechos sobre las importaciones excepto IVA",2013]
["P102","Servicios de comercio",0,"Impuestos y derechos sobre las importaciones excepto IVA",2013]
["P103","Mantenimiento y reparación de vehículos automotores y motocicletas",0,"Impuestos y derechos sobre las importaciones excepto IVA",2013]
["P104","Servicio de transporte de pasajeros por vía terrestre",0,"Impuestos y derechos sobre las importaciones excepto IVA",2013]
["P105","Servicio de transporte de carga por vía terrestre",0,"Impuestos y derechos sobre las importaciones excepto IVA",2013]
["P106","Otros tipos de transporte",0,"Impuestos y derechos sobre las importaciones excepto IVA",2013]
["P107","Servicios de almacenamiento y depósito",0,"Impuestos y derechos sobre las importaciones excepto IVA",2013]
["P108","Otros servicios de apoyo al transporte",0,"Impuestos y derechos sobre las importaciones excepto IVA",2013]
["P109","Servicios postales y de mensajería",0,"Impuestos y derechos sobre las importaciones excepto IVA",2013]
["P110","Servicio de alojamiento",0,"Impuestos y derechos sobre las importaciones excepto IVA",2013]
["P111","Servicio de suministro de comidas y bebidas",0,"Impuestos y derechos sobre las importaciones excepto IVA",2013]
["P112","Servicios de información, telecomunicaciones y radiodifusión",0,"Impuestos y derechos sobre las importaciones excepto IVA",2013]
["P113","Servicios de banco central",0,"Impuestos y derechos sobre las importaciones excepto IVA",2013]
["P114","Otros servicios financieros y servicios de banca de inversión",0,"Impuestos y derechos sobre las importaciones excepto IVA",2013]
["P115","Servicios de Intermediación Financiera Medidos Indirectamente (SIFMI)",0,"Impuestos y derechos sobre las importaciones excepto IVA",2013]
["P116","Servicios de seguro, reaseguro y fondos de pensiones",0,"Impuestos y derechos sobre las importaciones excepto IVA",2013]
["P117","Servicios auxiliares de la intermediación financiera",0,"Impuestos y derechos sobre las importaciones excepto IVA",2013]
["P118","Servicios de alquiler de vivienda",0,"Impuestos y derechos sobre las importaciones excepto IVA",2013]
["P119","Otros servicios inmobiliarios, excepto alquiler de vivienda",0,"Impuestos y derechos sobre las importaciones excepto IVA",2013]
["P120","Servicios jurídicos, de contabilidad, auditoría, teneduría de libros y consultoría fiscal",0,"Impuestos y derechos sobre las importaciones excepto IVA",2013]
["P121","Servicios de tecnología de la información",0,"Impuestos y derechos sobre las importaciones excepto IVA",2013]
["P122","Servicios de arquitectura e ingeniería, ensayos y análisis técnicos",0,"Impuestos y derechos sobre las importaciones excepto IVA",2013]
["P123","Otros servicios profesionales, científicos y técnicos",0,"Impuestos y derechos sobre las importaciones excepto IVA",2013]
["P124","Servicios de publicidad y estudios de mercado",0,"Impuestos y derechos sobre las importaciones excepto IVA",2013]
["P125","Servicios de arrendamiento o alquiler sin operador",0,"Impuestos y derechos sobre las importaciones excepto IVA",2013]
["P126","Servicios  de agencias de empleo y de dotación de recursos humanos",0,"Impuestos y derechos sobre las importaciones excepto IVA",2013]
["P127","Servicios de agencias de viajes, operadores turísticos y actividades conexas",0,"Impuestos y derechos sobre las importaciones excepto IVA",2013]
["P128","Servicios de seguridad, sistemas de seguridad e investigación privada",0,"Impuestos y derechos sobre las importaciones excepto IVA",2013]
["P129","Servicios de limpieza",0,"Impuestos y derechos sobre las importaciones excepto IVA",2013]
["P130","Servicios telefónicos de centros de llamadas",0,"Impuestos y derechos sobre las importaciones excepto IVA",2013]
["P131","Servicios administrativos, de apoyo de oficina y otros servicios de apoyo a las empresas",0,"Impuestos y derechos sobre las importaciones excepto IVA",2013]
["P132","Servicios de mantenimiento, reparación e instalación de productos metálicos elaborados, maquinaria y equipo",0,"Impuestos y derechos sobre las importaciones excepto IVA",2013]
["P133","Servicios de reparación de otros bienes",0,"Impuestos y derechos sobre las importaciones excepto IVA",2013]
["P134","Servicios de apoyo a la agricultura, caza, silvicultura y pesca",0,"Impuestos y derechos sobre las importaciones excepto IVA",2013]
["P135","Servicios de apoyo a la explotación de minas y canteras y los relacionados con la distribución de electricidad, gas y agua",0,"Impuestos y derechos sobre las importaciones excepto IVA",2013]
["P136","Servicios de manufactura",0,"Impuestos y derechos sobre las importaciones excepto IVA",2013]
["P137","Servicios públicos del gobierno general",0,"Impuestos y derechos sobre las importaciones excepto IVA",2013]
["P138","Servicios públicos administrativos relacionados con la provisión de servicios educativos, de salud, servicios sociales, culturales y otros, sin contar los servicios de seguridad social",0,"Impuestos y derechos sobre las importaciones excepto IVA",2013]
["P139","Otros servicios administrativos",0,"Impuestos y derechos sobre las importaciones excepto IVA",2013]
["P140","Servicios públicos administrativos prestados a la comunidad en su conjunto",0,"Impuestos y derechos sobre las importaciones excepto IVA",2013]
["P141","Servicios administrativos relacionados con los sistemas de seguridad social de afiliación obligatoria",0,"Impuestos y derechos sobre las importaciones excepto IVA",2013]
["P142","Servicios de enseñanza",0,"Impuestos y derechos sobre las importaciones excepto IVA",2013]
["P143","Servicios de hospitalización",0,"Impuestos y derechos sobre las importaciones excepto IVA",2013]
["P144","Servicios médicos y dentales",0,"Impuestos y derechos sobre las importaciones excepto IVA",2013]
["P145","Otros servicios de atención de la salud humana",0,"Impuestos y derechos sobre las importaciones excepto IVA",2013]
["P146","Servicios audiovisuales, recreativos, culturales y deportivos",0,"Impuestos y derechos sobre las importaciones excepto IVA",2013]
["P147","Servicios de asociaciones que sirven a las empresas",0,"Impuestos y derechos sobre las importaciones excepto IVA",2013]
["P148","Servicios de asociaciones que sirven a los hogares",0,"Impuestos y derechos sobre las importaciones excepto IVA",2013]
["P149","Otros servicios",0,"Impuestos y derechos sobre las importaciones excepto IVA",2013]
["P150","Servicios domésticos",0,"Impuestos y derechos sobre las importaciones excepto IVA",2013]
["P151","Compras directas en el exterior por residentes",0,"Impuestos y derechos sobre las importaciones excepto IVA",2013]
["P152","Compras directas en el territorio nacional por no residentes",0,"Impuestos y derechos sobre las importaciones excepto IVA",2013]
["P001","Maíz",56.302073999999998,"Impuesto tipo valor agregado (IVA)",2013]
["P002","Frijoles",81.876501000000005,"Impuesto tipo valor agregado (IVA)",2013]
["P003","Leguminosas (legumbres secas) y semillas oleaginosas",2.6714690000000001,"Impuesto tipo valor agregado (IVA)",2013]
["P004","Arroz",0.32741900000000002,"Impuesto tipo valor agregado (IVA)",2013]
["P005","Otros cereales",4.3267740000000003,"Impuesto tipo valor agregado (IVA)",2013]
["P006","Hortalizas",170.741668,"Impuesto tipo valor agregado (IVA)",2013]
["P007","Sandías y melones",7.8625220000000002,"Impuesto tipo valor agregado (IVA)",2013]
["P008","Ejotes y arvejas",3.4850500000000002,"Impuesto tipo valor agregado (IVA)",2013]
["P009","Raíces y tubérculos",54.887884,"Impuesto tipo valor agregado (IVA)",2013]
["P010","Caña de azúcar y otras plantas azucareras",0,"Impuesto tipo valor agregado (IVA)",2013]
["P011","Tabaco y otras plantas no perennes",10.712678,"Impuesto tipo valor agregado (IVA)",2013]
["P012","Bananos, plátanos y otros",29.668102999999999,"Impuesto tipo valor agregado (IVA)",2013]
["P013","Frutas tropicales y subtropicales",52.966315000000002,"Impuesto tipo valor agregado (IVA)",2013]
["P014","Berries, otras frutas y semillas de frutas",55.654024999999997,"Impuesto tipo valor agregado (IVA)",2013]
["P015","Palma africana",0,"Impuesto tipo valor agregado (IVA)",2013]
["P016","Café en grano",6.3759999999999997E-3,"Impuesto tipo valor agregado (IVA)",2013]
["P017","Cardamomo",0,"Impuesto tipo valor agregado (IVA)",2013]
["P018","Caucho natural",0,"Impuesto tipo valor agregado (IVA)",2013]
["P019","Propagación de plantas",0.92154000000000003,"Impuesto tipo valor agregado (IVA)",2013]
["P020","Otros frutos oleaginosos, otras plantas bebestibles y especias aromáticas",4.641686,"Impuesto tipo valor agregado (IVA)",2013]
["P021","Ganado bovino",2.032591,"Impuesto tipo valor agregado (IVA)",2013]
["P022","Ganado porcino y otro tipo de animales vivos n.c.p.",1.761617,"Impuesto tipo valor agregado (IVA)",2013]
["P023","Aves de corral",1.6081890000000001,"Impuesto tipo valor agregado (IVA)",2013]
["P024","Leche cruda",0.75222999999999995,"Impuesto tipo valor agregado (IVA)",2013]
["P025","Huevos",191.99264400000001,"Impuesto tipo valor agregado (IVA)",2013]
["P026","Otros productos de animales vivos",1.723149,"Impuesto tipo valor agregado (IVA)",2013]
["P027","Troncos de madera y leña",2.2492359999999998,"Impuesto tipo valor agregado (IVA)",2013]
["P028","Productos forestales no madereros",1.284073,"Impuesto tipo valor agregado (IVA)",2013]
["P029","Peces vivos, frescos o refrigerados",15.592727,"Impuesto tipo valor agregado (IVA)",2013]
["P030","Crustáceos sin congelar y otros productos de la pesca",6.4233479999999998,"Impuesto tipo valor agregado (IVA)",2013]
["P031","Petróleo crudo y gas natural",0,"Impuesto tipo valor agregado (IVA)",2013]
["P032","Minerales metálicos",5.6455999999999999E-2,"Impuesto tipo valor agregado (IVA)",2013]
["P033","Minerales no metálicos",21.742066000000001,"Impuesto tipo valor agregado (IVA)",2013]
["P034","Carne y despojos comestibles de ganado bovino; cueros y pieles de bovino y de otros animales",161.80892399999999,"Impuesto tipo valor agregado (IVA)",2013]
["P035","Carne y despojos comestibles de ganado porcino",9.2883460000000007,"Impuesto tipo valor agregado (IVA)",2013]
["P036","Carne y despojos comestibles de aves",428.36083200000002,"Impuesto tipo valor agregado (IVA)",2013]
["P037","Carne y despojos de otros animales y conservas y preparados de carne",153.88554300000001,"Impuesto tipo valor agregado (IVA)",2013]
["P038","Pescado congelado, preparado o en conserva y sus productos",8.4126829999999995,"Impuesto tipo valor agregado (IVA)",2013]
["P039","Crustáceos, moluscos y demás invertebrados acuáticos congelados, preparados o en conserva y sus productos",4.9980450000000003,"Impuesto tipo valor agregado (IVA)",2013]
["P040","Vegetales preparados o en conserva, legumbres y papas",60.096558999999999,"Impuesto tipo valor agregado (IVA)",2013]
["P041","Preparaciones y conservas de frutas y nueces",38.048825999999998,"Impuesto tipo valor agregado (IVA)",2013]
["P042","Jugos de frutas",96.891683999999998,"Impuesto tipo valor agregado (IVA)",2013]
["P043","Aceites de origen vegetal",197.61382800000001,"Impuesto tipo valor agregado (IVA)",2013]
["P044","Margarina, grasas y otros aceites de origen animal y vegetal",46.266848000000003,"Impuesto tipo valor agregado (IVA)",2013]
["P045","Leche líquida y crema procesada",38.723286999999999,"Impuesto tipo valor agregado (IVA)",2013]
["P046","Otros productos lácteos n.c.p.",228.02466799999999,"Impuesto tipo valor agregado (IVA)",2013]
["P047","Harina de trigo",16.260650999999999,"Impuesto tipo valor agregado (IVA)",2013]
["P048","Arroz sin cáscara",59.583160999999997,"Impuesto tipo valor agregado (IVA)",2013]
["P049","Otros productos de molinería, almidones y productos de almidón",148.771027,"Impuesto tipo valor agregado (IVA)",2013]
["P050","Pan y otros productos de panadería y repostería n.c.p.",184.73915,"Impuesto tipo valor agregado (IVA)",2013]
["P051","Tortillas de maíz, incluso tostadas, horneadas o fritas",10.915025,"Impuesto tipo valor agregado (IVA)",2013]
["P052","Azúcar de caña sin refinar y refinada, melaza y los demás azúcares n.c.p.",423.451751,"Impuesto tipo valor agregado (IVA)",2013]
["P053","Productos alimenticios n.c.p.",670.57607399999995,"Impuesto tipo valor agregado (IVA)",2013]
["P054","Preparados para alimentación animal",50.248894999999997,"Impuesto tipo valor agregado (IVA)",2013]
["P055","Aguardientes, licores, vinos, demás bebidas espirituosas y productos del tabaco",92.198632000000003,"Impuesto tipo valor agregado (IVA)",2013]
["P056","Malta y cerveza de malta",216.31446299999999,"Impuesto tipo valor agregado (IVA)",2013]
["P057","Bebidas no alcohólicas",810.00760000000002,"Impuesto tipo valor agregado (IVA)",2013]
["P058","Aguas minerales y otras aguas embotelladas",101.93432199999999,"Impuesto tipo valor agregado (IVA)",2013]
["P059","Hilados, tejidos, telas y otros productos textiles excepto prendas de vestir",154.940854,"Impuesto tipo valor agregado (IVA)",2013]
["P060","Prendas de vestir, adobo y teñido de pieles",460.01257199999998,"Impuesto tipo valor agregado (IVA)",2013]
["P061","Cuero de piel curtida o adobada y cuero artificial o regenerado y artículos de cuero",62.437404999999998,"Impuesto tipo valor agregado (IVA)",2013]
["P062","Calzado y sus partes, de cualquier material y de cualquier uso",246.90091000000001,"Impuesto tipo valor agregado (IVA)",2013]
["P063","Madera aserrada y acepillada, productos de madera, corcho, paja y materiales trenzables",21.112179000000001,"Impuesto tipo valor agregado (IVA)",2013]
["P064","Pasta de papel y papel",271.25948599999998,"Impuesto tipo valor agregado (IVA)",2013]
["P065","Envases de papel y cartón",4.2942260000000001,"Impuesto tipo valor agregado (IVA)",2013]
["P066","Productos de la edición",170.750552,"Impuesto tipo valor agregado (IVA)",2013]
["P067","Productos de la impresión",56.714376999999999,"Impuesto tipo valor agregado (IVA)",2013]
["P068","Gasolinas, diésel oil y fuel oils",1378.5921969999999,"Impuesto tipo valor agregado (IVA)",2013]
["P069","Aceites, grasas lubricantes y otros aceites preparados",15.554821,"Impuesto tipo valor agregado (IVA)",2013]
["P070","Gases de petróleo, otros productos de la refinación de petróleo n.c.p.",262.47031199999998,"Impuesto tipo valor agregado (IVA)",2013]
["P071","Abonos, fertilizantes y pesticidas",8.8702880000000004,"Impuesto tipo valor agregado (IVA)",2013]
["P072","Pinturas, barnices, tintas y productos relacionados",41.093138000000003,"Impuesto tipo valor agregado (IVA)",2013]
["P073","Jabón, preparados de limpieza, perfumes y preparados de toilet",620.85667699999999,"Impuesto tipo valor agregado (IVA)",2013]
["P074","Otros productos químicos",103.302735,"Impuesto tipo valor agregado (IVA)",2013]
["P075","Productos farmacéuticos",762.00070400000004,"Impuesto tipo valor agregado (IVA)",2013]
["P076","Productos de caucho y plástico",393.593478,"Impuesto tipo valor agregado (IVA)",2013]
["P077","Vidrio y productos de vidrio",13.753641999999999,"Impuesto tipo valor agregado (IVA)",2013]
["P078","Productos de cerámica y arcilla",22.643568999999999,"Impuesto tipo valor agregado (IVA)",2013]
["P079","Cemento, cal y yeso",84.179191000000003,"Impuesto tipo valor agregado (IVA)",2013]
["P080","Artículos de hormigón, cemento y yeso",69.722711000000004,"Impuesto tipo valor agregado (IVA)",2013]
["P081","Piedras talladas para construcción y otros productos minerales no metálicos n.c.p.",6.2135199999999999,"Impuesto tipo valor agregado (IVA)",2013]
["P082","Métales básicos de hierro y acero, productos primarios de metales preciosos y otros metales no ferrosos",55.142128,"Impuesto tipo valor agregado (IVA)",2013]
["P083","Productos metálicos estructurales y sus partes de hierro o de acero",25.63016,"Impuesto tipo valor agregado (IVA)",2013]
["P084","Otros productos elaborados de metal",72.723546999999996,"Impuesto tipo valor agregado (IVA)",2013]
["P085","Maquinaria para usos generales y especiales, sus partes y piezas, excepto electrodomésticos",76.919296000000003,"Impuesto tipo valor agregado (IVA)",2013]
["P086","Electrodomésticos y sus partes",127.26478,"Impuesto tipo valor agregado (IVA)",2013]
["P087","Maquinaria de oficina, contabilidad e informática, sus partes y piezas",110.098794,"Impuesto tipo valor agregado (IVA)",2013]
["P088","Maquinaria y aparatos eléctricos, sus partes y piezas",57.551357000000003,"Impuesto tipo valor agregado (IVA)",2013]
["P089","Equipo y aparatos de radio, televisión y comunicaciones",834.30934600000001,"Impuesto tipo valor agregado (IVA)",2013]
["P090","Aparatos médicos, instrumentos ópticos y de precisión, relojes",56.307293999999999,"Impuesto tipo valor agregado (IVA)",2013]
["P091","Equipo de transporte",511.54883599999999,"Impuesto tipo valor agregado (IVA)",2013]
["P092","Muebles",115.37363499999999,"Impuesto tipo valor agregado (IVA)",2013]
["P093","Otros artículos n.c.p.",177.60736,"Impuesto tipo valor agregado (IVA)",2013]
["P094","Residuos y desechos",2.1073819999999999,"Impuesto tipo valor agregado (IVA)",2013]
["P095","Generación y distribución de energía eléctrica, gas, vapor y aire acondicionado",776.61359300000004,"Impuesto tipo valor agregado (IVA)",2013]
["P096","Agua natural y distribución de agua natural",82.816869999999994,"Impuesto tipo valor agregado (IVA)",2013]
["P097","Evacuación de aguas residuales, recogida, tratamiento y eliminación de desechos",13.890352999999999,"Impuesto tipo valor agregado (IVA)",2013]
["P098","Edificaciones residenciales",342.56662,"Impuesto tipo valor agregado (IVA)",2013]
["P099","Edificaciones no residenciales",170.653852,"Impuesto tipo valor agregado (IVA)",2013]
["P100","Obras de ingeniería civil",505.19962800000002,"Impuesto tipo valor agregado (IVA)",2013]
["P101","Servicios generales y especializados de construcción",256.11245000000002,"Impuesto tipo valor agregado (IVA)",2013]
["P102","Servicios de comercio",0,"Impuesto tipo valor agregado (IVA)",2013]
["P103","Mantenimiento y reparación de vehículos automotores y motocicletas",289.02838800000001,"Impuesto tipo valor agregado (IVA)",2013]
["P104","Servicio de transporte de pasajeros por vía terrestre",263.15351199999998,"Impuesto tipo valor agregado (IVA)",2013]
["P105","Servicio de transporte de carga por vía terrestre",37.813462000000001,"Impuesto tipo valor agregado (IVA)",2013]
["P106","Otros tipos de transporte",176.81652099999999,"Impuesto tipo valor agregado (IVA)",2013]
["P107","Servicios de almacenamiento y depósito",0.37169099999999999,"Impuesto tipo valor agregado (IVA)",2013]
["P108","Otros servicios de apoyo al transporte",81.382930999999999,"Impuesto tipo valor agregado (IVA)",2013]
["P109","Servicios postales y de mensajería",43.419322000000001,"Impuesto tipo valor agregado (IVA)",2013]
["P110","Servicio de alojamiento",84.547814000000002,"Impuesto tipo valor agregado (IVA)",2013]
["P111","Servicio de suministro de comidas y bebidas",1379.064871,"Impuesto tipo valor agregado (IVA)",2013]
["P112","Servicios de información, telecomunicaciones y radiodifusión",1703.5261519999999,"Impuesto tipo valor agregado (IVA)",2013]
["P113","Servicios de banco central",0,"Impuesto tipo valor agregado (IVA)",2013]
["P114","Otros servicios financieros y servicios de banca de inversión",0,"Impuesto tipo valor agregado (IVA)",2013]
["P115","Servicios de Intermediación Financiera Medidos Indirectamente (SIFMI)",0,"Impuesto tipo valor agregado (IVA)",2013]
["P116","Servicios de seguro, reaseguro y fondos de pensiones",410.10033800000002,"Impuesto tipo valor agregado (IVA)",2013]
["P117","Servicios auxiliares de la intermediación financiera",3.5766439999999999,"Impuesto tipo valor agregado (IVA)",2013]
["P118","Servicios de alquiler de vivienda",12.400988999999999,"Impuesto tipo valor agregado (IVA)",2013]
["P119","Otros servicios inmobiliarios, excepto alquiler de vivienda",293.08284099999997,"Impuesto tipo valor agregado (IVA)",2013]
["P120","Servicios jurídicos, de contabilidad, auditoría, teneduría de libros y consultoría fiscal",72.042869999999994,"Impuesto tipo valor agregado (IVA)",2013]
["P121","Servicios de tecnología de la información",35.924619,"Impuesto tipo valor agregado (IVA)",2013]
["P122","Servicios de arquitectura e ingeniería, ensayos y análisis técnicos",45.987243999999997,"Impuesto tipo valor agregado (IVA)",2013]
["P123","Otros servicios profesionales, científicos y técnicos",173.19415900000001,"Impuesto tipo valor agregado (IVA)",2013]
["P124","Servicios de publicidad y estudios de mercado",88.861215999999999,"Impuesto tipo valor agregado (IVA)",2013]
["P125","Servicios de arrendamiento o alquiler sin operador",110.99659,"Impuesto tipo valor agregado (IVA)",2013]
["P126","Servicios  de agencias de empleo y de dotación de recursos humanos",126.476528,"Impuesto tipo valor agregado (IVA)",2013]
["P127","Servicios de agencias de viajes, operadores turísticos y actividades conexas",15.886803,"Impuesto tipo valor agregado (IVA)",2013]
["P128","Servicios de seguridad, sistemas de seguridad e investigación privada",91.405533000000005,"Impuesto tipo valor agregado (IVA)",2013]
["P129","Servicios de limpieza",23.782620000000001,"Impuesto tipo valor agregado (IVA)",2013]
["P130","Servicios telefónicos de centros de llamadas",4.8682280000000002,"Impuesto tipo valor agregado (IVA)",2013]
["P131","Servicios administrativos, de apoyo de oficina y otros servicios de apoyo a las empresas",35.007880999999998,"Impuesto tipo valor agregado (IVA)",2013]
["P132","Servicios de mantenimiento, reparación e instalación de productos metálicos elaborados, maquinaria y equipo",55.186776000000002,"Impuesto tipo valor agregado (IVA)",2013]
["P133","Servicios de reparación de otros bienes",22.694454,"Impuesto tipo valor agregado (IVA)",2013]
["P134","Servicios de apoyo a la agricultura, caza, silvicultura y pesca",6.5528969999999997,"Impuesto tipo valor agregado (IVA)",2013]
["P135","Servicios de apoyo a la explotación de minas y canteras y los relacionados con la distribución de electricidad, gas y agua",0,"Impuesto tipo valor agregado (IVA)",2013]
["P136","Servicios de manufactura",0,"Impuesto tipo valor agregado (IVA)",2013]
["P137","Servicios públicos del gobierno general",0,"Impuesto tipo valor agregado (IVA)",2013]
["P138","Servicios públicos administrativos relacionados con la provisión de servicios educativos, de salud, servicios sociales, culturales y otros, sin contar los servicios de seguridad social",0,"Impuesto tipo valor agregado (IVA)",2013]
["P139","Otros servicios administrativos",0,"Impuesto tipo valor agregado (IVA)",2013]
["P140","Servicios públicos administrativos prestados a la comunidad en su conjunto",0,"Impuesto tipo valor agregado (IVA)",2013]
["P141","Servicios administrativos relacionados con los sistemas de seguridad social de afiliación obligatoria",0,"Impuesto tipo valor agregado (IVA)",2013]
["P142","Servicios de enseñanza",33.009343999999999,"Impuesto tipo valor agregado (IVA)",2013]
["P143","Servicios de hospitalización",152.55686800000001,"Impuesto tipo valor agregado (IVA)",2013]
["P144","Servicios médicos y dentales",250.84777199999999,"Impuesto tipo valor agregado (IVA)",2013]
["P145","Otros servicios de atención de la salud humana",123.38853899999999,"Impuesto tipo valor agregado (IVA)",2013]
["P146","Servicios audiovisuales, recreativos, culturales y deportivos",119.250806,"Impuesto tipo valor agregado (IVA)",2013]
["P147","Servicios de asociaciones que sirven a las empresas",0.14918100000000001,"Impuesto tipo valor agregado (IVA)",2013]
["P148","Servicios de asociaciones que sirven a los hogares",0,"Impuesto tipo valor agregado (IVA)",2013]
["P149","Otros servicios",83.420794999999998,"Impuesto tipo valor agregado (IVA)",2013]
["P150","Servicios domésticos",0,"Impuesto tipo valor agregado (IVA)",2013]
["P151","Compras directas en el exterior por residentes",0,"Impuesto tipo valor agregado (IVA)",2013]
["P152","Compras directas en el territorio nacional por no residentes",0,"Impuesto tipo valor agregado (IVA)",2013]
["P001","Maíz",1236.1941449999999,"Márgenes de comercio, transporte y distribución de energía",2013]
["P002","Frijoles",778.09383400000002,"Márgenes de comercio, transporte y distribución de energía",2013]
["P003","Leguminosas (legumbres secas) y semillas oleaginosas",154.83643699999999,"Márgenes de comercio, transporte y distribución de energía",2013]
["P004","Arroz",37.629528000000001,"Márgenes de comercio, transporte y distribución de energía",2013]
["P005","Otros cereales",73.261381999999998,"Márgenes de comercio, transporte y distribución de energía",2013]
["P006","Hortalizas",11632.339635,"Márgenes de comercio, transporte y distribución de energía",2013]
["P007","Sandías y melones",249.34479400000001,"Márgenes de comercio, transporte y distribución de energía",2013]
["P008","Ejotes y arvejas",178.107674,"Márgenes de comercio, transporte y distribución de energía",2013]
["P009","Raíces y tubérculos",3798.389866,"Márgenes de comercio, transporte y distribución de energía",2013]
["P010","Caña de azúcar y otras plantas azucareras",492.385312,"Márgenes de comercio, transporte y distribución de energía",2013]
["P011","Tabaco y otras plantas no perennes",218.12059300000001,"Márgenes de comercio, transporte y distribución de energía",2013]
["P012","Bananos, plátanos y otros",2610.3296310000001,"Márgenes de comercio, transporte y distribución de energía",2013]
["P013","Frutas tropicales y subtropicales",2619.4768549999999,"Márgenes de comercio, transporte y distribución de energía",2013]
["P014","Berries, otras frutas y semillas de frutas",2646.2468130000002,"Márgenes de comercio, transporte y distribución de energía",2013]
["P015","Palma africana",12.957027999999999,"Márgenes de comercio, transporte y distribución de energía",2013]
["P016","Café en grano",140.63015300000001,"Márgenes de comercio, transporte y distribución de energía",2013]
["P017","Cardamomo",48.337380000000003,"Márgenes de comercio, transporte y distribución de energía",2013]
["P018","Caucho natural",44.384281000000001,"Márgenes de comercio, transporte y distribución de energía",2013]
["P019","Propagación de plantas",59.374257999999998,"Márgenes de comercio, transporte y distribución de energía",2013]
["P020","Otros frutos oleaginosos, otras plantas bebestibles y especias aromáticas",109.826992,"Márgenes de comercio, transporte y distribución de energía",2013]
["P021","Ganado bovino",300.21339899999998,"Márgenes de comercio, transporte y distribución de energía",2013]
["P022","Ganado porcino y otro tipo de animales vivos n.c.p.",79.841468000000006,"Márgenes de comercio, transporte y distribución de energía",2013]
["P023","Aves de corral",548.21959800000002,"Márgenes de comercio, transporte y distribución de energía",2013]
["P024","Leche cruda",184.806051,"Márgenes de comercio, transporte y distribución de energía",2013]
["P025","Huevos",598.34198300000003,"Márgenes de comercio, transporte y distribución de energía",2013]
["P026","Otros productos de animales vivos",29.703747,"Márgenes de comercio, transporte y distribución de energía",2013]
["P027","Troncos de madera y leña",304.036541,"Márgenes de comercio, transporte y distribución de energía",2013]
["P028","Productos forestales no madereros",26.895458999999999,"Márgenes de comercio, transporte y distribución de energía",2013]
["P029","Peces vivos, frescos o refrigerados",542.70942700000001,"Márgenes de comercio, transporte y distribución de energía",2013]
["P030","Crustáceos sin congelar y otros productos de la pesca",205.454194,"Márgenes de comercio, transporte y distribución de energía",2013]
["P031","Petróleo crudo y gas natural",112.623829,"Márgenes de comercio, transporte y distribución de energía",2013]
["P032","Minerales metálicos",2.2672999999999999E-2,"Márgenes de comercio, transporte y distribución de energía",2013]
["P033","Minerales no metálicos",341.13923,"Márgenes de comercio, transporte y distribución de energía",2013]
["P034","Carne y despojos comestibles de ganado bovino; cueros y pieles de bovino y de otros animales",3993.1143280000001,"Márgenes de comercio, transporte y distribución de energía",2013]
["P035","Carne y despojos comestibles de ganado porcino",342.58297700000003,"Márgenes de comercio, transporte y distribución de energía",2013]
["P036","Carne y despojos comestibles de aves",1972.2743740000001,"Márgenes de comercio, transporte y distribución de energía",2013]
["P037","Carne y despojos de otros animales y conservas y preparados de carne",1030.086789,"Márgenes de comercio, transporte y distribución de energía",2013]
["P038","Pescado congelado, preparado o en conserva y sus productos",133.25717700000001,"Márgenes de comercio, transporte y distribución de energía",2013]
["P039","Crustáceos, moluscos y demás invertebrados acuáticos congelados, preparados o en conserva y sus productos",73.660988000000003,"Márgenes de comercio, transporte y distribución de energía",2013]
["P040","Vegetales preparados o en conserva, legumbres y papas",314.27399500000001,"Márgenes de comercio, transporte y distribución de energía",2013]
["P041","Preparaciones y conservas de frutas y nueces",278.20810499999999,"Márgenes de comercio, transporte y distribución de energía",2013]
["P042","Jugos de frutas",475.85661499999998,"Márgenes de comercio, transporte y distribución de energía",2013]
["P043","Aceites de origen vegetal",970.56126400000005,"Márgenes de comercio, transporte y distribución de energía",2013]
["P044","Margarina, grasas y otros aceites de origen animal y vegetal",388.05423999999999,"Márgenes de comercio, transporte y distribución de energía",2013]
["P045","Leche líquida y crema procesada",561.90745000000004,"Márgenes de comercio, transporte y distribución de energía",2013]
["P046","Otros productos lácteos n.c.p.",1066.7999380000001,"Márgenes de comercio, transporte y distribución de energía",2013]
["P047","Harina de trigo",313.80803600000002,"Márgenes de comercio, transporte y distribución de energía",2013]
["P048","Arroz sin cáscara",273.19027499999999,"Márgenes de comercio, transporte y distribución de energía",2013]
["P049","Otros productos de molinería, almidones y productos de almidón",751.59063600000002,"Márgenes de comercio, transporte y distribución de energía",2013]
["P050","Pan y otros productos de panadería y repostería n.c.p.",860.68419500000005,"Márgenes de comercio, transporte y distribución de energía",2013]
["P051","Tortillas de maíz, incluso tostadas, horneadas o fritas",9.2916170000000005,"Márgenes de comercio, transporte y distribución de energía",2013]
["P052","Azúcar de caña sin refinar y refinada, melaza y los demás azúcares n.c.p.",1993.1486030000001,"Márgenes de comercio, transporte y distribución de energía",2013]
["P053","Productos alimenticios n.c.p.",3821.7395069999998,"Márgenes de comercio, transporte y distribución de energía",2013]
["P054","Preparados para alimentación animal",394.46243299999998,"Márgenes de comercio, transporte y distribución de energía",2013]
["P055","Aguardientes, licores, vinos, demás bebidas espirituosas y productos del tabaco",996.86877500000003,"Márgenes de comercio, transporte y distribución de energía",2013]
["P056","Malta y cerveza de malta",1007.003954,"Márgenes de comercio, transporte y distribución de energía",2013]
["P057","Bebidas no alcohólicas",3284.471207,"Márgenes de comercio, transporte y distribución de energía",2013]
["P058","Aguas minerales y otras aguas embotelladas",324.45280100000002,"Márgenes de comercio, transporte y distribución de energía",2013]
["P059","Hilados, tejidos, telas y otros productos textiles excepto prendas de vestir",1299.844666,"Márgenes de comercio, transporte y distribución de energía",2013]
["P060","Prendas de vestir, adobo y teñido de pieles",4593.1003719999999,"Márgenes de comercio, transporte y distribución de energía",2013]
["P061","Cuero de piel curtida o adobada y cuero artificial o regenerado y artículos de cuero",374.749661,"Márgenes de comercio, transporte y distribución de energía",2013]
["P062","Calzado y sus partes, de cualquier material y de cualquier uso",2071.154978,"Márgenes de comercio, transporte y distribución de energía",2013]
["P063","Madera aserrada y acepillada, productos de madera, corcho, paja y materiales trenzables",400.37884500000001,"Márgenes de comercio, transporte y distribución de energía",2013]
["P064","Pasta de papel y papel",1869.3426770000001,"Márgenes de comercio, transporte y distribución de energía",2013]
["P065","Envases de papel y cartón",115.555791,"Márgenes de comercio, transporte y distribución de energía",2013]
["P066","Productos de la edición",587.56168600000001,"Márgenes de comercio, transporte y distribución de energía",2013]
["P067","Productos de la impresión",401.80654700000002,"Márgenes de comercio, transporte y distribución de energía",2013]
["P068","Gasolinas, diésel oil y fuel oils",5257.7848249999997,"Márgenes de comercio, transporte y distribución de energía",2013]
["P069","Aceites, grasas lubricantes y otros aceites preparados",262.040234,"Márgenes de comercio, transporte y distribución de energía",2013]
["P070","Gases de petróleo, otros productos de la refinación de petróleo n.c.p.",2102.4743429999999,"Márgenes de comercio, transporte y distribución de energía",2013]
["P071","Abonos, fertilizantes y pesticidas",1240.6027899999999,"Márgenes de comercio, transporte y distribución de energía",2013]
["P072","Pinturas, barnices, tintas y productos relacionados",407.265376,"Márgenes de comercio, transporte y distribución de energía",2013]
["P073","Jabón, preparados de limpieza, perfumes y preparados de toilet",2735.1954089999999,"Márgenes de comercio, transporte y distribución de energía",2013]
["P074","Otros productos químicos",951.712671,"Márgenes de comercio, transporte y distribución de energía",2013]
["P075","Productos farmacéuticos",2692.2307040000001,"Márgenes de comercio, transporte y distribución de energía",2013]
["P076","Productos de caucho y plástico",2953.5752109999999,"Márgenes de comercio, transporte y distribución de energía",2013]
["P077","Vidrio y productos de vidrio",165.78006300000001,"Márgenes de comercio, transporte y distribución de energía",2013]
["P078","Productos de cerámica y arcilla",363.94996700000002,"Márgenes de comercio, transporte y distribución de energía",2013]
["P079","Cemento, cal y yeso",376.57861500000001,"Márgenes de comercio, transporte y distribución de energía",2013]
["P080","Artículos de hormigón, cemento y yeso",436.56843700000002,"Márgenes de comercio, transporte y distribución de energía",2013]
["P081","Piedras talladas para construcción y otros productos minerales no metálicos n.c.p.",97.683227000000002,"Márgenes de comercio, transporte y distribución de energía",2013]
["P082","Métales básicos de hierro y acero, productos primarios de metales preciosos y otros metales no ferrosos",981.851809,"Márgenes de comercio, transporte y distribución de energía",2013]
["P083","Productos metálicos estructurales y sus partes de hierro o de acero",294.97655099999997,"Márgenes de comercio, transporte y distribución de energía",2013]
["P084","Otros productos elaborados de metal",673.05805399999997,"Márgenes de comercio, transporte y distribución de energía",2013]
["P085","Maquinaria para usos generales y especiales, sus partes y piezas, excepto electrodomésticos",2439.9740459999998,"Márgenes de comercio, transporte y distribución de energía",2013]
["P086","Electrodomésticos y sus partes",544.013598,"Márgenes de comercio, transporte y distribución de energía",2013]
["P087","Maquinaria de oficina, contabilidad e informática, sus partes y piezas",799.39279299999998,"Márgenes de comercio, transporte y distribución de energía",2013]
["P088","Maquinaria y aparatos eléctricos, sus partes y piezas",697.98335999999995,"Márgenes de comercio, transporte y distribución de energía",2013]
["P089","Equipo y aparatos de radio, televisión y comunicaciones",3162.7613259999998,"Márgenes de comercio, transporte y distribución de energía",2013]
["P090","Aparatos médicos, instrumentos ópticos y de precisión, relojes",731.08896700000003,"Márgenes de comercio, transporte y distribución de energía",2013]
["P091","Equipo de transporte",4329.3780210000004,"Márgenes de comercio, transporte y distribución de energía",2013]
["P092","Muebles",1270.6243939999999,"Márgenes de comercio, transporte y distribución de energía",2013]
["P093","Otros artículos n.c.p.",2190.014036,"Márgenes de comercio, transporte y distribución de energía",2013]
["P094","Residuos y desechos",443.76589999999999,"Márgenes de comercio, transporte y distribución de energía",2013]
["P095","Generación y distribución de energía eléctrica, gas, vapor y aire acondicionado",1270.989538,"Márgenes de comercio, transporte y distribución de energía",2013]
["P096","Agua natural y distribución de agua natural",0,"Márgenes de comercio, transporte y distribución de energía",2013]
["P097","Evacuación de aguas residuales, recogida, tratamiento y eliminación de desechos",0,"Márgenes de comercio, transporte y distribución de energía",2013]
["P098","Edificaciones residenciales",0,"Márgenes de comercio, transporte y distribución de energía",2013]
["P099","Edificaciones no residenciales",0,"Márgenes de comercio, transporte y distribución de energía",2013]
["P100","Obras de ingeniería civil",0,"Márgenes de comercio, transporte y distribución de energía",2013]
["P101","Servicios generales y especializados de construcción",0,"Márgenes de comercio, transporte y distribución de energía",2013]
["P102","Servicios de comercio",-102043.63823,"Márgenes de comercio, transporte y distribución de energía",2013]
["P103","Mantenimiento y reparación de vehículos automotores y motocicletas",0,"Márgenes de comercio, transporte y distribución de energía",2013]
["P104","Servicio de transporte de pasajeros por vía terrestre",0,"Márgenes de comercio, transporte y distribución de energía",2013]
["P105","Servicio de transporte de carga por vía terrestre",-5476.1719009999997,"Márgenes de comercio, transporte y distribución de energía",2013]
["P106","Otros tipos de transporte",-112.623829,"Márgenes de comercio, transporte y distribución de energía",2013]
["P107","Servicios de almacenamiento y depósito",0,"Márgenes de comercio, transporte y distribución de energía",2013]
["P108","Otros servicios de apoyo al transporte",0,"Márgenes de comercio, transporte y distribución de energía",2013]
["P109","Servicios postales y de mensajería",0,"Márgenes de comercio, transporte y distribución de energía",2013]
["P110","Servicio de alojamiento",0,"Márgenes de comercio, transporte y distribución de energía",2013]
["P111","Servicio de suministro de comidas y bebidas",0,"Márgenes de comercio, transporte y distribución de energía",2013]
["P112","Servicios de información, telecomunicaciones y radiodifusión",0,"Márgenes de comercio, transporte y distribución de energía",2013]
["P113","Servicios de banco central",0,"Márgenes de comercio, transporte y distribución de energía",2013]
["P114","Otros servicios financieros y servicios de banca de inversión",0,"Márgenes de comercio, transporte y distribución de energía",2013]
["P115","Servicios de Intermediación Financiera Medidos Indirectamente (SIFMI)",0,"Márgenes de comercio, transporte y distribución de energía",2013]
["P116","Servicios de seguro, reaseguro y fondos de pensiones",0,"Márgenes de comercio, transporte y distribución de energía",2013]
["P117","Servicios auxiliares de la intermediación financiera",0,"Márgenes de comercio, transporte y distribución de energía",2013]
["P118","Servicios de alquiler de vivienda",0,"Márgenes de comercio, transporte y distribución de energía",2013]
["P119","Otros servicios inmobiliarios, excepto alquiler de vivienda",0,"Márgenes de comercio, transporte y distribución de energía",2013]
["P120","Servicios jurídicos, de contabilidad, auditoría, teneduría de libros y consultoría fiscal",0,"Márgenes de comercio, transporte y distribución de energía",2013]
["P121","Servicios de tecnología de la información",0,"Márgenes de comercio, transporte y distribución de energía",2013]
["P122","Servicios de arquitectura e ingeniería, ensayos y análisis técnicos",0,"Márgenes de comercio, transporte y distribución de energía",2013]
["P123","Otros servicios profesionales, científicos y técnicos",0,"Márgenes de comercio, transporte y distribución de energía",2013]
["P124","Servicios de publicidad y estudios de mercado",0,"Márgenes de comercio, transporte y distribución de energía",2013]
["P125","Servicios de arrendamiento o alquiler sin operador",0,"Márgenes de comercio, transporte y distribución de energía",2013]
["P126","Servicios  de agencias de empleo y de dotación de recursos humanos",0,"Márgenes de comercio, transporte y distribución de energía",2013]
["P127","Servicios de agencias de viajes, operadores turísticos y actividades conexas",0,"Márgenes de comercio, transporte y distribución de energía",2013]
["P128","Servicios de seguridad, sistemas de seguridad e investigación privada",0,"Márgenes de comercio, transporte y distribución de energía",2013]
["P129","Servicios de limpieza",0,"Márgenes de comercio, transporte y distribución de energía",2013]
["P130","Servicios telefónicos de centros de llamadas",0,"Márgenes de comercio, transporte y distribución de energía",2013]
["P131","Servicios administrativos, de apoyo de oficina y otros servicios de apoyo a las empresas",0,"Márgenes de comercio, transporte y distribución de energía",2013]
["P132","Servicios de mantenimiento, reparación e instalación de productos metálicos elaborados, maquinaria y equipo",0,"Márgenes de comercio, transporte y distribución de energía",2013]
["P133","Servicios de reparación de otros bienes",0,"Márgenes de comercio, transporte y distribución de energía",2013]
["P134","Servicios de apoyo a la agricultura, caza, silvicultura y pesca",0,"Márgenes de comercio, transporte y distribución de energía",2013]
["P135","Servicios de apoyo a la explotación de minas y canteras y los relacionados con la distribución de electricidad, gas y agua",0,"Márgenes de comercio, transporte y distribución de energía",2013]
["P136","Servicios de manufactura",0,"Márgenes de comercio, transporte y distribución de energía",2013]
["P137","Servicios públicos del gobierno general",0,"Márgenes de comercio, transporte y distribución de energía",2013]
["P138","Servicios públicos administrativos relacionados con la provisión de servicios educativos, de salud, servicios sociales, culturales y otros, sin contar los servicios de seguridad social",0,"Márgenes de comercio, transporte y distribución de energía",2013]
["P139","Otros servicios administrativos",0,"Márgenes de comercio, transporte y distribución de energía",2013]
["P140","Servicios públicos administrativos prestados a la comunidad en su conjunto",0,"Márgenes de comercio, transporte y distribución de energía",2013]
["P141","Servicios administrativos relacionados con los sistemas de seguridad social de afiliación obligatoria",0,"Márgenes de comercio, transporte y distribución de energía",2013]
["P142","Servicios de enseñanza",0,"Márgenes de comercio, transporte y distribución de energía",2013]
["P143","Servicios de hospitalización",0,"Márgenes de comercio, transporte y distribución de energía",2013]
["P144","Servicios médicos y dentales",0,"Márgenes de comercio, transporte y distribución de energía",2013]
["P145","Otros servicios de atención de la salud humana",0,"Márgenes de comercio, transporte y distribución de energía",2013]
["P146","Servicios audiovisuales, recreativos, culturales y deportivos",0,"Márgenes de comercio, transporte y distribución de energía",2013]
["P147","Servicios de asociaciones que sirven a las empresas",0,"Márgenes de comercio, transporte y distribución de energía",2013]
["P148","Servicios de asociaciones que sirven a los hogares",0,"Márgenes de comercio, transporte y distribución de energía",2013]
["P149","Otros servicios",0,"Márgenes de comercio, transporte y distribución de energía",2013]
["P150","Servicios domésticos",0,"Márgenes de comercio, transporte y distribución de energía",2013]
["P151","Compras directas en el exterior por residentes",0,"Márgenes de comercio, transporte y distribución de energía",2013]
["P152","Compras directas en el territorio nacional por no residentes",0,"Márgenes de comercio, transporte y distribución de energía",2013]
["P001","Maíz",3302.630165,"Consumo Intermedio (PC)",2013]
["P002","Frijoles",305.28478999999999,"Consumo Intermedio (PC)",2013]
["P003","Leguminosas (legumbres secas) y semillas oleaginosas",426.52202899999997,"Consumo Intermedio (PC)",2013]
["P004","Arroz",427.979332,"Consumo Intermedio (PC)",2013]
["P005","Otros cereales",1385.401973,"Consumo Intermedio (PC)",2013]
["P006","Hortalizas",1207.865438,"Consumo Intermedio (PC)",2013]
["P007","Sandías y melones",17.448602000000001,"Consumo Intermedio (PC)",2013]
["P008","Ejotes y arvejas",53.838920000000002,"Consumo Intermedio (PC)",2013]
["P009","Raíces y tubérculos",555.70433200000002,"Consumo Intermedio (PC)",2013]
["P010","Caña de azúcar y otras plantas azucareras",6593.2944040000002,"Consumo Intermedio (PC)",2013]
["P011","Tabaco y otras plantas no perennes",1384.1577749999999,"Consumo Intermedio (PC)",2013]
["P012","Bananos, plátanos y otros",131.43719999999999,"Consumo Intermedio (PC)",2013]
["P013","Frutas tropicales y subtropicales",222.11612099999999,"Consumo Intermedio (PC)",2013]
["P014","Berries, otras frutas y semillas de frutas",426.55709000000002,"Consumo Intermedio (PC)",2013]
["P015","Palma africana",1841.1248189999999,"Consumo Intermedio (PC)",2013]
["P016","Café en grano",4292.2164830000002,"Consumo Intermedio (PC)",2013]
["P017","Cardamomo",769.66113700000005,"Consumo Intermedio (PC)",2013]
["P018","Caucho natural",1171.970982,"Consumo Intermedio (PC)",2013]
["P019","Propagación de plantas",357.93937,"Consumo Intermedio (PC)",2013]
["P020","Otros frutos oleaginosos, otras plantas bebestibles y especias aromáticas",124.390854,"Consumo Intermedio (PC)",2013]
["P021","Ganado bovino",4220.8995020000002,"Consumo Intermedio (PC)",2013]
["P022","Ganado porcino y otro tipo de animales vivos n.c.p.",1267.1358540000001,"Consumo Intermedio (PC)",2013]
["P023","Aves de corral",6295.0044239999997,"Consumo Intermedio (PC)",2013]
["P024","Leche cruda",1239.485308,"Consumo Intermedio (PC)",2013]
["P025","Huevos",430.14805999999999,"Consumo Intermedio (PC)",2013]
["P026","Otros productos de animales vivos",48.696300999999998,"Consumo Intermedio (PC)",2013]
["P027","Troncos de madera y leña",1718.5348100000001,"Consumo Intermedio (PC)",2013]
["P028","Productos forestales no madereros",10.280756999999999,"Consumo Intermedio (PC)",2013]
["P029","Peces vivos, frescos o refrigerados",39.777082999999998,"Consumo Intermedio (PC)",2013]
["P030","Crustáceos sin congelar y otros productos de la pesca",371.80134399999997,"Consumo Intermedio (PC)",2013]
["P031","Petróleo crudo y gas natural",284.77505200000002,"Consumo Intermedio (PC)",2013]
["P032","Minerales metálicos",17.414044000000001,"Consumo Intermedio (PC)",2013]
["P033","Minerales no metálicos",2991.85617,"Consumo Intermedio (PC)",2013]
["P034","Carne y despojos comestibles de ganado bovino; cueros y pieles de bovino y de otros animales",1763.3252709999999,"Consumo Intermedio (PC)",2013]
["P035","Carne y despojos comestibles de ganado porcino",857.221183,"Consumo Intermedio (PC)",2013]
["P036","Carne y despojos comestibles de aves",1879.0866659999999,"Consumo Intermedio (PC)",2013]
["P037","Carne y despojos de otros animales y conservas y preparados de carne",1103.633977,"Consumo Intermedio (PC)",2013]
["P038","Pescado congelado, preparado o en conserva y sus productos",503.91142600000001,"Consumo Intermedio (PC)",2013]
["P039","Crustáceos, moluscos y demás invertebrados acuáticos congelados, preparados o en conserva y sus productos",364.75945300000001,"Consumo Intermedio (PC)",2013]
["P040","Vegetales preparados o en conserva, legumbres y papas",484.15537599999999,"Consumo Intermedio (PC)",2013]
["P041","Preparaciones y conservas de frutas y nueces",325.14256899999998,"Consumo Intermedio (PC)",2013]
["P042","Jugos de frutas",183.41471799999999,"Consumo Intermedio (PC)",2013]
["P043","Aceites de origen vegetal",1736.379492,"Consumo Intermedio (PC)",2013]
["P044","Margarina, grasas y otros aceites de origen animal y vegetal",2132.2624980000001,"Consumo Intermedio (PC)",2013]
["P045","Leche líquida y crema procesada",240.35553400000001,"Consumo Intermedio (PC)",2013]
["P046","Otros productos lácteos n.c.p.",629.99971900000003,"Consumo Intermedio (PC)",2013]
["P047","Harina de trigo",2610.2461170000001,"Consumo Intermedio (PC)",2013]
["P048","Arroz sin cáscara",163.10193100000001,"Consumo Intermedio (PC)",2013]
["P049","Otros productos de molinería, almidones y productos de almidón",881.96022500000004,"Consumo Intermedio (PC)",2013]
["P050","Pan y otros productos de panadería y repostería n.c.p.",804.38485500000002,"Consumo Intermedio (PC)",2013]
["P051","Tortillas de maíz, incluso tostadas, horneadas o fritas",319.34743400000002,"Consumo Intermedio (PC)",2013]
["P052","Azúcar de caña sin refinar y refinada, melaza y los demás azúcares n.c.p.",2870.3793679999999,"Consumo Intermedio (PC)",2013]
["P053","Productos alimenticios n.c.p.",3277.3014330000001,"Consumo Intermedio (PC)",2013]
["P054","Preparados para alimentación animal",5970.9760509999996,"Consumo Intermedio (PC)",2013]
["P055","Aguardientes, licores, vinos, demás bebidas espirituosas y productos del tabaco",504.562926,"Consumo Intermedio (PC)",2013]
["P056","Malta y cerveza de malta",354.127657,"Consumo Intermedio (PC)",2013]
["P057","Bebidas no alcohólicas",554.61243400000001,"Consumo Intermedio (PC)",2013]
["P058","Aguas minerales y otras aguas embotelladas",290.31964699999997,"Consumo Intermedio (PC)",2013]
["P059","Hilados, tejidos, telas y otros productos textiles excepto prendas de vestir",4141.3687520000003,"Consumo Intermedio (PC)",2013]
["P060","Prendas de vestir, adobo y teñido de pieles",853.73295800000005,"Consumo Intermedio (PC)",2013]
["P061","Cuero de piel curtida o adobada y cuero artificial o regenerado y artículos de cuero",793.69217600000002,"Consumo Intermedio (PC)",2013]
["P062","Calzado y sus partes, de cualquier material y de cualquier uso",147.291087,"Consumo Intermedio (PC)",2013]
["P063","Madera aserrada y acepillada, productos de madera, corcho, paja y materiales trenzables",3494.6243850000001,"Consumo Intermedio (PC)",2013]
["P064","Pasta de papel y papel",4433.8557689999998,"Consumo Intermedio (PC)",2013]
["P065","Envases de papel y cartón",2186.9897030000002,"Consumo Intermedio (PC)",2013]
["P066","Productos de la edición",686.26559899999995,"Consumo Intermedio (PC)",2013]
["P067","Productos de la impresión",1796.912288,"Consumo Intermedio (PC)",2013]
["P068","Gasolinas, diésel oil y fuel oils",17099.603511000001,"Consumo Intermedio (PC)",2013]
["P069","Aceites, grasas lubricantes y otros aceites preparados",1091.3462039999999,"Consumo Intermedio (PC)",2013]
["P070","Gases de petróleo, otros productos de la refinación de petróleo n.c.p.",1674.090185,"Consumo Intermedio (PC)",2013]
["P071","Abonos, fertilizantes y pesticidas",7996.8773069999997,"Consumo Intermedio (PC)",2013]
["P072","Pinturas, barnices, tintas y productos relacionados",1792.135745,"Consumo Intermedio (PC)",2013]
["P073","Jabón, preparados de limpieza, perfumes y preparados de toilet",1005.996788,"Consumo Intermedio (PC)",2013]
["P074","Otros productos químicos",9996.4394769999999,"Consumo Intermedio (PC)",2013]
["P075","Productos farmacéuticos",1365.632899,"Consumo Intermedio (PC)",2013]
["P076","Productos de caucho y plástico",9484.0102599999991,"Consumo Intermedio (PC)",2013]
["P077","Vidrio y productos de vidrio",857.51723500000003,"Consumo Intermedio (PC)",2013]
["P078","Productos de cerámica y arcilla",1477.9366829999999,"Consumo Intermedio (PC)",2013]
["P079","Cemento, cal y yeso",4781.1484979999996,"Consumo Intermedio (PC)",2013]
["P080","Artículos de hormigón, cemento y yeso",2698.8422150000001,"Consumo Intermedio (PC)",2013]
["P081","Piedras talladas para construcción y otros productos minerales no metálicos n.c.p.",781.99409100000003,"Consumo Intermedio (PC)",2013]
["P082","Métales básicos de hierro y acero, productos primarios de metales preciosos y otros metales no ferrosos",9680.7801569999992,"Consumo Intermedio (PC)",2013]
["P083","Productos metálicos estructurales y sus partes de hierro o de acero",1333.600457,"Consumo Intermedio (PC)",2013]
["P084","Otros productos elaborados de metal",3895.7063720000001,"Consumo Intermedio (PC)",2013]
["P085","Maquinaria para usos generales y especiales, sus partes y piezas, excepto electrodomésticos",4488.9165389999998,"Consumo Intermedio (PC)",2013]
["P086","Electrodomésticos y sus partes",61.542332999999999,"Consumo Intermedio (PC)",2013]
["P087","Maquinaria de oficina, contabilidad e informática, sus partes y piezas",377.85200300000002,"Consumo Intermedio (PC)",2013]
["P088","Maquinaria y aparatos eléctricos, sus partes y piezas",2809.599514,"Consumo Intermedio (PC)",2013]
["P089","Equipo y aparatos de radio, televisión y comunicaciones",807.81365000000005,"Consumo Intermedio (PC)",2013]
["P090","Aparatos médicos, instrumentos ópticos y de precisión, relojes",543.93845499999998,"Consumo Intermedio (PC)",2013]
["P091","Equipo de transporte",1472.6116050000001,"Consumo Intermedio (PC)",2013]
["P092","Muebles",136.410965,"Consumo Intermedio (PC)",2013]
["P093","Otros artículos n.c.p.",1304.6857869999999,"Consumo Intermedio (PC)",2013]
["P094","Residuos y desechos",1698.8376370000001,"Consumo Intermedio (PC)",2013]
["P095","Generación y distribución de energía eléctrica, gas, vapor y aire acondicionado",9873.1169890000001,"Consumo Intermedio (PC)",2013]
["P096","Agua natural y distribución de agua natural",2271.5849950000002,"Consumo Intermedio (PC)",2013]
["P097","Evacuación de aguas residuales, recogida, tratamiento y eliminación de desechos",284.26827400000002,"Consumo Intermedio (PC)",2013]
["P098","Edificaciones residenciales",0,"Consumo Intermedio (PC)",2013]
["P099","Edificaciones no residenciales",0,"Consumo Intermedio (PC)",2013]
["P100","Obras de ingeniería civil",0,"Consumo Intermedio (PC)",2013]
["P101","Servicios generales y especializados de construcción",9946.4334980000003,"Consumo Intermedio (PC)",2013]
["P102","Servicios de comercio",0,"Consumo Intermedio (PC)",2013]
["P103","Mantenimiento y reparación de vehículos automotores y motocicletas",2572.1435070000002,"Consumo Intermedio (PC)",2013]
["P104","Servicio de transporte de pasajeros por vía terrestre",279.12965100000002,"Consumo Intermedio (PC)",2013]
["P105","Servicio de transporte de carga por vía terrestre",5215.2420169999996,"Consumo Intermedio (PC)",2013]
["P106","Otros tipos de transporte",679.37323000000004,"Consumo Intermedio (PC)",2013]
["P107","Servicios de almacenamiento y depósito",258.06286999999998,"Consumo Intermedio (PC)",2013]
["P108","Otros servicios de apoyo al transporte",2578.3930129999999,"Consumo Intermedio (PC)",2013]
["P109","Servicios postales y de mensajería",841.84525900000006,"Consumo Intermedio (PC)",2013]
["P110","Servicio de alojamiento",1069.9541610000001,"Consumo Intermedio (PC)",2013]
["P111","Servicio de suministro de comidas y bebidas",1836.8247899999999,"Consumo Intermedio (PC)",2013]
["P112","Servicios de información, telecomunicaciones y radiodifusión",8417.3958340000008,"Consumo Intermedio (PC)",2013]
["P113","Servicios de banco central",0,"Consumo Intermedio (PC)",2013]
["P114","Otros servicios financieros y servicios de banca de inversión",2033.619336,"Consumo Intermedio (PC)",2013]
["P115","Servicios de Intermediación Financiera Medidos Indirectamente (SIFMI)",5495.1824550000001,"Consumo Intermedio (PC)",2013]
["P116","Servicios de seguro, reaseguro y fondos de pensiones",3204.227136,"Consumo Intermedio (PC)",2013]
["P117","Servicios auxiliares de la intermediación financiera",2402.2160669999998,"Consumo Intermedio (PC)",2013]
["P118","Servicios de alquiler de vivienda",0,"Consumo Intermedio (PC)",2013]
["P119","Otros servicios inmobiliarios, excepto alquiler de vivienda",10910.989388,"Consumo Intermedio (PC)",2013]
["P120","Servicios jurídicos, de contabilidad, auditoría, teneduría de libros y consultoría fiscal",3722.7721139999999,"Consumo Intermedio (PC)",2013]
["P121","Servicios de tecnología de la información",1720.3694170000001,"Consumo Intermedio (PC)",2013]
["P122","Servicios de arquitectura e ingeniería, ensayos y análisis técnicos",2243.4676589999999,"Consumo Intermedio (PC)",2013]
["P123","Otros servicios profesionales, científicos y técnicos",6757.2265639999996,"Consumo Intermedio (PC)",2013]
["P124","Servicios de publicidad y estudios de mercado",4614.3178870000002,"Consumo Intermedio (PC)",2013]
["P125","Servicios de arrendamiento o alquiler sin operador",5310.0679520000003,"Consumo Intermedio (PC)",2013]
["P126","Servicios  de agencias de empleo y de dotación de recursos humanos",5986.0133660000001,"Consumo Intermedio (PC)",2013]
["P127","Servicios de agencias de viajes, operadores turísticos y actividades conexas",45.653095,"Consumo Intermedio (PC)",2013]
["P128","Servicios de seguridad, sistemas de seguridad e investigación privada",3200.0519479999998,"Consumo Intermedio (PC)",2013]
["P129","Servicios de limpieza",1009.028633,"Consumo Intermedio (PC)",2013]
["P130","Servicios telefónicos de centros de llamadas",363.59601700000002,"Consumo Intermedio (PC)",2013]
["P131","Servicios administrativos, de apoyo de oficina y otros servicios de apoyo a las empresas",1965.0660290000001,"Consumo Intermedio (PC)",2013]
["P132","Servicios de mantenimiento, reparación e instalación de productos metálicos elaborados, maquinaria y equipo",3740.4544860000001,"Consumo Intermedio (PC)",2013]
["P133","Servicios de reparación de otros bienes",566.61452299999996,"Consumo Intermedio (PC)",2013]
["P134","Servicios de apoyo a la agricultura, caza, silvicultura y pesca",3077.1488749999999,"Consumo Intermedio (PC)",2013]
["P135","Servicios de apoyo a la explotación de minas y canteras y los relacionados con la distribución de electricidad, gas y agua",381.873379,"Consumo Intermedio (PC)",2013]
["P136","Servicios de manufactura",2178.594529,"Consumo Intermedio (PC)",2013]
["P137","Servicios públicos del gobierno general",0,"Consumo Intermedio (PC)",2013]
["P138","Servicios públicos administrativos relacionados con la provisión de servicios educativos, de salud, servicios sociales, culturales y otros, sin contar los servicios de seguridad social",0,"Consumo Intermedio (PC)",2013]
["P139","Otros servicios administrativos",0,"Consumo Intermedio (PC)",2013]
["P140","Servicios públicos administrativos prestados a la comunidad en su conjunto",0,"Consumo Intermedio (PC)",2013]
["P141","Servicios administrativos relacionados con los sistemas de seguridad social de afiliación obligatoria",0,"Consumo Intermedio (PC)",2013]
["P142","Servicios de enseñanza",280.94424500000002,"Consumo Intermedio (PC)",2013]
["P143","Servicios de hospitalización",0,"Consumo Intermedio (PC)",2013]
["P144","Servicios médicos y dentales",311.56440900000001,"Consumo Intermedio (PC)",2013]
["P145","Otros servicios de atención de la salud humana",444.89751799999999,"Consumo Intermedio (PC)",2013]
["P146","Servicios audiovisuales, recreativos, culturales y deportivos",374.347936,"Consumo Intermedio (PC)",2013]
["P147","Servicios de asociaciones que sirven a las empresas",267.96163100000001,"Consumo Intermedio (PC)",2013]
["P148","Servicios de asociaciones que sirven a los hogares",0,"Consumo Intermedio (PC)",2013]
["P149","Otros servicios",43.340018000000001,"Consumo Intermedio (PC)",2013]
["P150","Servicios domésticos",0,"Consumo Intermedio (PC)",2013]
["P151","Compras directas en el exterior por residentes",164.10663299999999,"Consumo Intermedio (PC)",2013]
["P152","Compras directas en el territorio nacional por no residentes",0,"Consumo Intermedio (PC)",2013]
["P001","Maíz",4580.0363850000003,"Consumo Final privado (PC)",2013]
["P002","Frijoles",2117.6374190000001,"Consumo Final privado (PC)",2013]
["P003","Leguminosas (legumbres secas) y semillas oleaginosas",164.29319899999999,"Consumo Final privado (PC)",2013]
["P004","Arroz",0,"Consumo Final privado (PC)",2013]
["P005","Otros cereales",127.436216,"Consumo Final privado (PC)",2013]
["P006","Hortalizas",14860.204252,"Consumo Final privado (PC)",2013]
["P007","Sandías y melones",374.38212099999998,"Consumo Final privado (PC)",2013]
["P008","Ejotes y arvejas",228.80353099999999,"Consumo Final privado (PC)",2013]
["P009","Raíces y tubérculos",4986.0816569999997,"Consumo Final privado (PC)",2013]
["P010","Caña de azúcar y otras plantas azucareras",3.292611,"Consumo Final privado (PC)",2013]
["P011","Tabaco y otras plantas no perennes",306.25078999999999,"Consumo Final privado (PC)",2013]
["P012","Bananos, plátanos y otros",3328.6775560000001,"Consumo Final privado (PC)",2013]
["P013","Frutas tropicales y subtropicales",3735.6494109999999,"Consumo Final privado (PC)",2013]
["P014","Berries, otras frutas y semillas de frutas",4076.613934,"Consumo Final privado (PC)",2013]
["P015","Palma africana",0,"Consumo Final privado (PC)",2013]
["P016","Café en grano",0,"Consumo Final privado (PC)",2013]
["P017","Cardamomo",0,"Consumo Final privado (PC)",2013]
["P018","Caucho natural",0,"Consumo Final privado (PC)",2013]
["P019","Propagación de plantas",51.298934000000003,"Consumo Final privado (PC)",2013]
["P020","Otros frutos oleaginosos, otras plantas bebestibles y especias aromáticas",267.95844199999999,"Consumo Final privado (PC)",2013]
["P021","Ganado bovino",0,"Consumo Final privado (PC)",2013]
["P022","Ganado porcino y otro tipo de animales vivos n.c.p.",162.81188599999999,"Consumo Final privado (PC)",2013]
["P023","Aves de corral",516.718211,"Consumo Final privado (PC)",2013]
["P024","Leche cruda",693.662733,"Consumo Final privado (PC)",2013]
["P025","Huevos",3789.02576,"Consumo Final privado (PC)",2013]
["P026","Otros productos de animales vivos",36.380946999999999,"Consumo Final privado (PC)",2013]
["P027","Troncos de madera y leña",3230.239771,"Consumo Final privado (PC)",2013]
["P028","Productos forestales no madereros",112.413083,"Consumo Final privado (PC)",2013]
["P029","Peces vivos, frescos o refrigerados",1369.089381,"Consumo Final privado (PC)",2013]
["P030","Crustáceos sin congelar y otros productos de la pesca",445.152286,"Consumo Final privado (PC)",2013]
["P031","Petróleo crudo y gas natural",0,"Consumo Final privado (PC)",2013]
["P032","Minerales metálicos",0,"Consumo Final privado (PC)",2013]
["P033","Minerales no metálicos",244.02203399999999,"Consumo Final privado (PC)",2013]
["P034","Carne y despojos comestibles de ganado bovino; cueros y pieles de bovino y de otros animales",8906.6680359999991,"Consumo Final privado (PC)",2013]
["P035","Carne y despojos comestibles de ganado porcino",939.48082599999998,"Consumo Final privado (PC)",2013]
["P036","Carne y despojos comestibles de aves",8789.8556069999995,"Consumo Final privado (PC)",2013]
["P037","Carne y despojos de otros animales y conservas y preparados de carne",2712.5791279999999,"Consumo Final privado (PC)",2013]
["P038","Pescado congelado, preparado o en conserva y sus productos",195.53596999999999,"Consumo Final privado (PC)",2013]
["P039","Crustáceos, moluscos y demás invertebrados acuáticos congelados, preparados o en conserva y sus productos",55.868673999999999,"Consumo Final privado (PC)",2013]
["P040","Vegetales preparados o en conserva, legumbres y papas",856.89015199999994,"Consumo Final privado (PC)",2013]
["P041","Preparaciones y conservas de frutas y nueces",799.299667,"Consumo Final privado (PC)",2013]
["P042","Jugos de frutas",1429.4034320000001,"Consumo Final privado (PC)",2013]
["P043","Aceites de origen vegetal",2435.21164,"Consumo Final privado (PC)",2013]
["P044","Margarina, grasas y otros aceites de origen animal y vegetal",794.01454699999999,"Consumo Final privado (PC)",2013]
["P045","Leche líquida y crema procesada",1662.472552,"Consumo Final privado (PC)",2013]
["P046","Otros productos lácteos n.c.p.",3587.6339379999999,"Consumo Final privado (PC)",2013]
["P047","Harina de trigo",77.487502000000006,"Consumo Final privado (PC)",2013]
["P048","Arroz sin cáscara",746.14014399999996,"Consumo Final privado (PC)",2013]
["P049","Otros productos de molinería, almidones y productos de almidón",1889.897937,"Consumo Final privado (PC)",2013]
["P050","Pan y otros productos de panadería y repostería n.c.p.",7766.1175620000004,"Consumo Final privado (PC)",2013]
["P051","Tortillas de maíz, incluso tostadas, horneadas o fritas",5418.7530710000001,"Consumo Final privado (PC)",2013]
["P052","Azúcar de caña sin refinar y refinada, melaza y los demás azúcares n.c.p.",4726.3915559999996,"Consumo Final privado (PC)",2013]
["P053","Productos alimenticios n.c.p.",10125.812862000001,"Consumo Final privado (PC)",2013]
["P054","Preparados para alimentación animal",477.96691700000002,"Consumo Final privado (PC)",2013]
["P055","Aguardientes, licores, vinos, demás bebidas espirituosas y productos del tabaco",1997.0936380000001,"Consumo Final privado (PC)",2013]
["P056","Malta y cerveza de malta",2706.552072,"Consumo Final privado (PC)",2013]
["P057","Bebidas no alcohólicas",10563.569437,"Consumo Final privado (PC)",2013]
["P058","Aguas minerales y otras aguas embotelladas",1278.0932,"Consumo Final privado (PC)",2013]
["P059","Hilados, tejidos, telas y otros productos textiles excepto prendas de vestir",2748.8714249999998,"Consumo Final privado (PC)",2013]
["P060","Prendas de vestir, adobo y teñido de pieles",10672.764348000001,"Consumo Final privado (PC)",2013]
["P061","Cuero de piel curtida o adobada y cuero artificial o regenerado y artículos de cuero",1048.6364470000001,"Consumo Final privado (PC)",2013]
["P062","Calzado y sus partes, de cualquier material y de cualquier uso",4549.2620239999997,"Consumo Final privado (PC)",2013]
["P063","Madera aserrada y acepillada, productos de madera, corcho, paja y materiales trenzables",52.229622999999997,"Consumo Final privado (PC)",2013]
["P064","Pasta de papel y papel",3221.1308399999998,"Consumo Final privado (PC)",2013]
["P065","Envases de papel y cartón",7.8735759999999999,"Consumo Final privado (PC)",2013]
["P066","Productos de la edición",1991.1922549999999,"Consumo Final privado (PC)",2013]
["P067","Productos de la impresión",344.17902400000003,"Consumo Final privado (PC)",2013]
["P068","Gasolinas, diésel oil y fuel oils",11094.888241000001,"Consumo Final privado (PC)",2013]
["P069","Aceites, grasas lubricantes y otros aceites preparados",69.019508000000002,"Consumo Final privado (PC)",2013]
["P070","Gases de petróleo, otros productos de la refinación de petróleo n.c.p.",2754.4595079999999,"Consumo Final privado (PC)",2013]
["P071","Abonos, fertilizantes y pesticidas",15.046182,"Consumo Final privado (PC)",2013]
["P072","Pinturas, barnices, tintas y productos relacionados",149.07975200000001,"Consumo Final privado (PC)",2013]
["P073","Jabón, preparados de limpieza, perfumes y preparados de toilet",7177.7238539999998,"Consumo Final privado (PC)",2013]
["P074","Otros productos químicos",981.92425000000003,"Consumo Final privado (PC)",2013]
["P075","Productos farmacéuticos",5616.2588589999996,"Consumo Final privado (PC)",2013]
["P076","Productos de caucho y plástico",4847.9629340000001,"Consumo Final privado (PC)",2013]
["P077","Vidrio y productos de vidrio",148.97877299999999,"Consumo Final privado (PC)",2013]
["P078","Productos de cerámica y arcilla",331.93237699999997,"Consumo Final privado (PC)",2013]
["P079","Cemento, cal y yeso",68.436572999999996,"Consumo Final privado (PC)",2013]
["P080","Artículos de hormigón, cemento y yeso",5.0855999999999998E-2,"Consumo Final privado (PC)",2013]
["P081","Piedras talladas para construcción y otros productos minerales no metálicos n.c.p.",46.829255000000003,"Consumo Final privado (PC)",2013]
["P082","Métales básicos de hierro y acero, productos primarios de metales preciosos y otros metales no ferrosos",2.5669420000000001,"Consumo Final privado (PC)",2013]
["P083","Productos metálicos estructurales y sus partes de hierro o de acero",845.55085799999995,"Consumo Final privado (PC)",2013]
["P084","Otros productos elaborados de metal",952.081231,"Consumo Final privado (PC)",2013]
["P085","Maquinaria para usos generales y especiales, sus partes y piezas, excepto electrodomésticos",113.100556,"Consumo Final privado (PC)",2013]
["P086","Electrodomésticos y sus partes",1403.7453390000001,"Consumo Final privado (PC)",2013]
["P087","Maquinaria de oficina, contabilidad e informática, sus partes y piezas",688.19171700000004,"Consumo Final privado (PC)",2013]
["P088","Maquinaria y aparatos eléctricos, sus partes y piezas",329.69521900000001,"Consumo Final privado (PC)",2013]
["P089","Equipo y aparatos de radio, televisión y comunicaciones",7444.0726510000004,"Consumo Final privado (PC)",2013]
["P090","Aparatos médicos, instrumentos ópticos y de precisión, relojes",341.72719699999999,"Consumo Final privado (PC)",2013]
["P091","Equipo de transporte",5464.0983390000001,"Consumo Final privado (PC)",2013]
["P092","Muebles",3661.8433599999998,"Consumo Final privado (PC)",2013]
["P093","Otros artículos n.c.p.",3445.576943,"Consumo Final privado (PC)",2013]
["P094","Residuos y desechos",0,"Consumo Final privado (PC)",2013]
["P095","Generación y distribución de energía eléctrica, gas, vapor y aire acondicionado",4821.5521840000001,"Consumo Final privado (PC)",2013]
["P096","Agua natural y distribución de agua natural",1214.8438430000001,"Consumo Final privado (PC)",2013]
["P097","Evacuación de aguas residuales, recogida, tratamiento y eliminación de desechos",458.79794600000002,"Consumo Final privado (PC)",2013]
["P098","Edificaciones residenciales",0,"Consumo Final privado (PC)",2013]
["P099","Edificaciones no residenciales",0,"Consumo Final privado (PC)",2013]
["P100","Obras de ingeniería civil",0,"Consumo Final privado (PC)",2013]
["P101","Servicios generales y especializados de construcción",111.938647,"Consumo Final privado (PC)",2013]
["P102","Servicios de comercio",0,"Consumo Final privado (PC)",2013]
["P103","Mantenimiento y reparación de vehículos automotores y motocicletas",5973.3520079999998,"Consumo Final privado (PC)",2013]
["P104","Servicio de transporte de pasajeros por vía terrestre",5495.7605450000001,"Consumo Final privado (PC)",2013]
["P105","Servicio de transporte de carga por vía terrestre",20.472123,"Consumo Final privado (PC)",2013]
["P106","Otros tipos de transporte",1602.6643750000001,"Consumo Final privado (PC)",2013]
["P107","Servicios de almacenamiento y depósito",0,"Consumo Final privado (PC)",2013]
["P108","Otros servicios de apoyo al transporte",1837.8987529999999,"Consumo Final privado (PC)",2013]
["P109","Servicios postales y de mensajería",356.78755999999998,"Consumo Final privado (PC)",2013]
["P110","Servicio de alojamiento",976.72902299999998,"Consumo Final privado (PC)",2013]
["P111","Servicio de suministro de comidas y bebidas",25812.828266,"Consumo Final privado (PC)",2013]
["P112","Servicios de información, telecomunicaciones y radiodifusión",15072.731206,"Consumo Final privado (PC)",2013]
["P113","Servicios de banco central",0,"Consumo Final privado (PC)",2013]
["P114","Otros servicios financieros y servicios de banca de inversión",523.32619899999997,"Consumo Final privado (PC)",2013]
["P115","Servicios de Intermediación Financiera Medidos Indirectamente (SIFMI)",9102.6120169999995,"Consumo Final privado (PC)",2013]
["P116","Servicios de seguro, reaseguro y fondos de pensiones",1944.7727990000001,"Consumo Final privado (PC)",2013]
["P117","Servicios auxiliares de la intermediación financiera",1958.408463,"Consumo Final privado (PC)",2013]
["P118","Servicios de alquiler de vivienda",30475.175856999998,"Consumo Final privado (PC)",2013]
["P119","Otros servicios inmobiliarios, excepto alquiler de vivienda",30.712824000000001,"Consumo Final privado (PC)",2013]
["P120","Servicios jurídicos, de contabilidad, auditoría, teneduría de libros y consultoría fiscal",160.98744199999999,"Consumo Final privado (PC)",2013]
["P121","Servicios de tecnología de la información",0,"Consumo Final privado (PC)",2013]
["P122","Servicios de arquitectura e ingeniería, ensayos y análisis técnicos",91.264487000000003,"Consumo Final privado (PC)",2013]
["P123","Otros servicios profesionales, científicos y técnicos",137.26128199999999,"Consumo Final privado (PC)",2013]
["P124","Servicios de publicidad y estudios de mercado",2.848859,"Consumo Final privado (PC)",2013]
["P125","Servicios de arrendamiento o alquiler sin operador",356.66453799999999,"Consumo Final privado (PC)",2013]
["P126","Servicios  de agencias de empleo y de dotación de recursos humanos",0,"Consumo Final privado (PC)",2013]
["P127","Servicios de agencias de viajes, operadores turísticos y actividades conexas",234.14757599999999,"Consumo Final privado (PC)",2013]
["P128","Servicios de seguridad, sistemas de seguridad e investigación privada",276.53748400000001,"Consumo Final privado (PC)",2013]
["P129","Servicios de limpieza",29.183098000000001,"Consumo Final privado (PC)",2013]
["P130","Servicios telefónicos de centros de llamadas",0,"Consumo Final privado (PC)",2013]
["P131","Servicios administrativos, de apoyo de oficina y otros servicios de apoyo a las empresas",280.55201899999997,"Consumo Final privado (PC)",2013]
["P132","Servicios de mantenimiento, reparación e instalación de productos metálicos elaborados, maquinaria y equipo",1.113294,"Consumo Final privado (PC)",2013]
["P133","Servicios de reparación de otros bienes",706.27303900000004,"Consumo Final privado (PC)",2013]
["P134","Servicios de apoyo a la agricultura, caza, silvicultura y pesca",0,"Consumo Final privado (PC)",2013]
["P135","Servicios de apoyo a la explotación de minas y canteras y los relacionados con la distribución de electricidad, gas y agua",0,"Consumo Final privado (PC)",2013]
["P136","Servicios de manufactura",1029.0241820000001,"Consumo Final privado (PC)",2013]
["P137","Servicios públicos del gobierno general",506.43812000000003,"Consumo Final privado (PC)",2013]
["P138","Servicios públicos administrativos relacionados con la provisión de servicios educativos, de salud, servicios sociales, culturales y otros, sin contar los servicios de seguridad social",0.435778,"Consumo Final privado (PC)",2013]
["P139","Otros servicios administrativos",22.571999000000002,"Consumo Final privado (PC)",2013]
["P140","Servicios públicos administrativos prestados a la comunidad en su conjunto",494.05180100000001,"Consumo Final privado (PC)",2013]
["P141","Servicios administrativos relacionados con los sistemas de seguridad social de afiliación obligatoria",0.214003,"Consumo Final privado (PC)",2013]
["P142","Servicios de enseñanza",7968.1107819999997,"Consumo Final privado (PC)",2013]
["P143","Servicios de hospitalización",1710.9323999999999,"Consumo Final privado (PC)",2013]
["P144","Servicios médicos y dentales",3574.000196,"Consumo Final privado (PC)",2013]
["P145","Otros servicios de atención de la salud humana",2102.7410839999998,"Consumo Final privado (PC)",2013]
["P146","Servicios audiovisuales, recreativos, culturales y deportivos",1925.955999,"Consumo Final privado (PC)",2013]
["P147","Servicios de asociaciones que sirven a las empresas",0,"Consumo Final privado (PC)",2013]
["P148","Servicios de asociaciones que sirven a los hogares",1925.973125,"Consumo Final privado (PC)",2013]
["P149","Otros servicios",7714.6922720000002,"Consumo Final privado (PC)",2013]
["P150","Servicios domésticos",7294.099819,"Consumo Final privado (PC)",2013]
["P151","Compras directas en el exterior por residentes",6121.9131239999997,"Consumo Final privado (PC)",2013]
["P152","Compras directas en el territorio nacional por no residentes",-9586.7075839999998,"Consumo Final privado (PC)",2013]
["P001","Maíz",0,"Consumo Final del Gobierno (PC)",2013]
["P002","Frijoles",49.528613999999997,"Consumo Final del Gobierno (PC)",2013]
["P003","Leguminosas (legumbres secas) y semillas oleaginosas",0,"Consumo Final del Gobierno (PC)",2013]
["P004","Arroz",0,"Consumo Final del Gobierno (PC)",2013]
["P005","Otros cereales",0,"Consumo Final del Gobierno (PC)",2013]
["P006","Hortalizas",0.103604,"Consumo Final del Gobierno (PC)",2013]
["P007","Sandías y melones",0,"Consumo Final del Gobierno (PC)",2013]
["P008","Ejotes y arvejas",0,"Consumo Final del Gobierno (PC)",2013]
["P009","Raíces y tubérculos",0,"Consumo Final del Gobierno (PC)",2013]
["P010","Caña de azúcar y otras plantas azucareras",0,"Consumo Final del Gobierno (PC)",2013]
["P011","Tabaco y otras plantas no perennes",4.6038870000000003,"Consumo Final del Gobierno (PC)",2013]
["P012","Bananos, plátanos y otros",0,"Consumo Final del Gobierno (PC)",2013]
["P013","Frutas tropicales y subtropicales",0,"Consumo Final del Gobierno (PC)",2013]
["P014","Berries, otras frutas y semillas de frutas",2.7455E-2,"Consumo Final del Gobierno (PC)",2013]
["P015","Palma africana",0,"Consumo Final del Gobierno (PC)",2013]
["P016","Café en grano",0,"Consumo Final del Gobierno (PC)",2013]
["P017","Cardamomo",0,"Consumo Final del Gobierno (PC)",2013]
["P018","Caucho natural",0,"Consumo Final del Gobierno (PC)",2013]
["P019","Propagación de plantas",0,"Consumo Final del Gobierno (PC)",2013]
["P020","Otros frutos oleaginosos, otras plantas bebestibles y especias aromáticas",0,"Consumo Final del Gobierno (PC)",2013]
["P021","Ganado bovino",0,"Consumo Final del Gobierno (PC)",2013]
["P022","Ganado porcino y otro tipo de animales vivos n.c.p.",2.7346979999999999,"Consumo Final del Gobierno (PC)",2013]
["P023","Aves de corral",0.79858399999999996,"Consumo Final del Gobierno (PC)",2013]
["P024","Leche cruda",0,"Consumo Final del Gobierno (PC)",2013]
["P025","Huevos",0,"Consumo Final del Gobierno (PC)",2013]
["P026","Otros productos de animales vivos",0,"Consumo Final del Gobierno (PC)",2013]
["P027","Troncos de madera y leña",0,"Consumo Final del Gobierno (PC)",2013]
["P028","Productos forestales no madereros",0,"Consumo Final del Gobierno (PC)",2013]
["P029","Peces vivos, frescos o refrigerados",0,"Consumo Final del Gobierno (PC)",2013]
["P030","Crustáceos sin congelar y otros productos de la pesca",0,"Consumo Final del Gobierno (PC)",2013]
["P031","Petróleo crudo y gas natural",0,"Consumo Final del Gobierno (PC)",2013]
["P032","Minerales metálicos",0,"Consumo Final del Gobierno (PC)",2013]
["P033","Minerales no metálicos",1.367486,"Consumo Final del Gobierno (PC)",2013]
["P034","Carne y despojos comestibles de ganado bovino; cueros y pieles de bovino y de otros animales",0.30066599999999999,"Consumo Final del Gobierno (PC)",2013]
["P035","Carne y despojos comestibles de ganado porcino",0,"Consumo Final del Gobierno (PC)",2013]
["P036","Carne y despojos comestibles de aves",4.8188000000000002E-2,"Consumo Final del Gobierno (PC)",2013]
["P037","Carne y despojos de otros animales y conservas y preparados de carne",0,"Consumo Final del Gobierno (PC)",2013]
["P038","Pescado congelado, preparado o en conserva y sus productos",0,"Consumo Final del Gobierno (PC)",2013]
["P039","Crustáceos, moluscos y demás invertebrados acuáticos congelados, preparados o en conserva y sus productos",0,"Consumo Final del Gobierno (PC)",2013]
["P040","Vegetales preparados o en conserva, legumbres y papas",0,"Consumo Final del Gobierno (PC)",2013]
["P041","Preparaciones y conservas de frutas y nueces",0,"Consumo Final del Gobierno (PC)",2013]
["P042","Jugos de frutas",0,"Consumo Final del Gobierno (PC)",2013]
["P043","Aceites de origen vegetal",26.284181,"Consumo Final del Gobierno (PC)",2013]
["P044","Margarina, grasas y otros aceites de origen animal y vegetal",0,"Consumo Final del Gobierno (PC)",2013]
["P045","Leche líquida y crema procesada",0,"Consumo Final del Gobierno (PC)",2013]
["P046","Otros productos lácteos n.c.p.",19.200724000000001,"Consumo Final del Gobierno (PC)",2013]
["P047","Harina de trigo",0,"Consumo Final del Gobierno (PC)",2013]
["P048","Arroz sin cáscara",40.387552999999997,"Consumo Final del Gobierno (PC)",2013]
["P049","Otros productos de molinería, almidones y productos de almidón",109.789839,"Consumo Final del Gobierno (PC)",2013]
["P050","Pan y otros productos de panadería y repostería n.c.p.",3.95086,"Consumo Final del Gobierno (PC)",2013]
["P051","Tortillas de maíz, incluso tostadas, horneadas o fritas",0.174648,"Consumo Final del Gobierno (PC)",2013]
["P052","Azúcar de caña sin refinar y refinada, melaza y los demás azúcares n.c.p.",6.8835119999999996,"Consumo Final del Gobierno (PC)",2013]
["P053","Productos alimenticios n.c.p.",111.467935,"Consumo Final del Gobierno (PC)",2013]
["P054","Preparados para alimentación animal",0,"Consumo Final del Gobierno (PC)",2013]
["P055","Aguardientes, licores, vinos, demás bebidas espirituosas y productos del tabaco",0,"Consumo Final del Gobierno (PC)",2013]
["P056","Malta y cerveza de malta",0,"Consumo Final del Gobierno (PC)",2013]
["P057","Bebidas no alcohólicas",2.717892,"Consumo Final del Gobierno (PC)",2013]
["P058","Aguas minerales y otras aguas embotelladas",1.0133080000000001,"Consumo Final del Gobierno (PC)",2013]
["P059","Hilados, tejidos, telas y otros productos textiles excepto prendas de vestir",0,"Consumo Final del Gobierno (PC)",2013]
["P060","Prendas de vestir, adobo y teñido de pieles",0,"Consumo Final del Gobierno (PC)",2013]
["P061","Cuero de piel curtida o adobada y cuero artificial o regenerado y artículos de cuero",7.2232000000000005E-2,"Consumo Final del Gobierno (PC)",2013]
["P062","Calzado y sus partes, de cualquier material y de cualquier uso",0,"Consumo Final del Gobierno (PC)",2013]
["P063","Madera aserrada y acepillada, productos de madera, corcho, paja y materiales trenzables",0,"Consumo Final del Gobierno (PC)",2013]
["P064","Pasta de papel y papel",13.447870999999999,"Consumo Final del Gobierno (PC)",2013]
["P065","Envases de papel y cartón",0,"Consumo Final del Gobierno (PC)",2013]
["P066","Productos de la edición",0,"Consumo Final del Gobierno (PC)",2013]
["P067","Productos de la impresión",0,"Consumo Final del Gobierno (PC)",2013]
["P068","Gasolinas, diésel oil y fuel oils",0,"Consumo Final del Gobierno (PC)",2013]
["P069","Aceites, grasas lubricantes y otros aceites preparados",0,"Consumo Final del Gobierno (PC)",2013]
["P070","Gases de petróleo, otros productos de la refinación de petróleo n.c.p.",0,"Consumo Final del Gobierno (PC)",2013]
["P071","Abonos, fertilizantes y pesticidas",0,"Consumo Final del Gobierno (PC)",2013]
["P072","Pinturas, barnices, tintas y productos relacionados",0,"Consumo Final del Gobierno (PC)",2013]
["P073","Jabón, preparados de limpieza, perfumes y preparados de toilet",0,"Consumo Final del Gobierno (PC)",2013]
["P074","Otros productos químicos",0,"Consumo Final del Gobierno (PC)",2013]
["P075","Productos farmacéuticos",2427.3771740000002,"Consumo Final del Gobierno (PC)",2013]
["P076","Productos de caucho y plástico",0,"Consumo Final del Gobierno (PC)",2013]
["P077","Vidrio y productos de vidrio",0,"Consumo Final del Gobierno (PC)",2013]
["P078","Productos de cerámica y arcilla",0,"Consumo Final del Gobierno (PC)",2013]
["P079","Cemento, cal y yeso",0,"Consumo Final del Gobierno (PC)",2013]
["P080","Artículos de hormigón, cemento y yeso",0,"Consumo Final del Gobierno (PC)",2013]
["P081","Piedras talladas para construcción y otros productos minerales no metálicos n.c.p.",0,"Consumo Final del Gobierno (PC)",2013]
["P082","Métales básicos de hierro y acero, productos primarios de metales preciosos y otros metales no ferrosos",0,"Consumo Final del Gobierno (PC)",2013]
["P083","Productos metálicos estructurales y sus partes de hierro o de acero",0,"Consumo Final del Gobierno (PC)",2013]
["P084","Otros productos elaborados de metal",1.8710999999999998E-2,"Consumo Final del Gobierno (PC)",2013]
["P085","Maquinaria para usos generales y especiales, sus partes y piezas, excepto electrodomésticos",0,"Consumo Final del Gobierno (PC)",2013]
["P086","Electrodomésticos y sus partes",2.6870000000000002E-3,"Consumo Final del Gobierno (PC)",2013]
["P087","Maquinaria de oficina, contabilidad e informática, sus partes y piezas",0,"Consumo Final del Gobierno (PC)",2013]
["P088","Maquinaria y aparatos eléctricos, sus partes y piezas",0,"Consumo Final del Gobierno (PC)",2013]
["P089","Equipo y aparatos de radio, televisión y comunicaciones",0,"Consumo Final del Gobierno (PC)",2013]
["P090","Aparatos médicos, instrumentos ópticos y de precisión, relojes",7.9156110000000002,"Consumo Final del Gobierno (PC)",2013]
["P091","Equipo de transporte",0,"Consumo Final del Gobierno (PC)",2013]
["P092","Muebles",0,"Consumo Final del Gobierno (PC)",2013]
["P093","Otros artículos n.c.p.",10.250828,"Consumo Final del Gobierno (PC)",2013]
["P094","Residuos y desechos",0,"Consumo Final del Gobierno (PC)",2013]
["P095","Generación y distribución de energía eléctrica, gas, vapor y aire acondicionado",0,"Consumo Final del Gobierno (PC)",2013]
["P096","Agua natural y distribución de agua natural",0,"Consumo Final del Gobierno (PC)",2013]
["P097","Evacuación de aguas residuales, recogida, tratamiento y eliminación de desechos",0,"Consumo Final del Gobierno (PC)",2013]
["P098","Edificaciones residenciales",0,"Consumo Final del Gobierno (PC)",2013]
["P099","Edificaciones no residenciales",0,"Consumo Final del Gobierno (PC)",2013]
["P100","Obras de ingeniería civil",0,"Consumo Final del Gobierno (PC)",2013]
["P101","Servicios generales y especializados de construcción",0,"Consumo Final del Gobierno (PC)",2013]
["P102","Servicios de comercio",0,"Consumo Final del Gobierno (PC)",2013]
["P103","Mantenimiento y reparación de vehículos automotores y motocicletas",0,"Consumo Final del Gobierno (PC)",2013]
["P104","Servicio de transporte de pasajeros por vía terrestre",0,"Consumo Final del Gobierno (PC)",2013]
["P105","Servicio de transporte de carga por vía terrestre",0,"Consumo Final del Gobierno (PC)",2013]
["P106","Otros tipos de transporte",0,"Consumo Final del Gobierno (PC)",2013]
["P107","Servicios de almacenamiento y depósito",0,"Consumo Final del Gobierno (PC)",2013]
["P108","Otros servicios de apoyo al transporte",0,"Consumo Final del Gobierno (PC)",2013]
["P109","Servicios postales y de mensajería",0,"Consumo Final del Gobierno (PC)",2013]
["P110","Servicio de alojamiento",0,"Consumo Final del Gobierno (PC)",2013]
["P111","Servicio de suministro de comidas y bebidas",1138.001845,"Consumo Final del Gobierno (PC)",2013]
["P112","Servicios de información, telecomunicaciones y radiodifusión",0,"Consumo Final del Gobierno (PC)",2013]
["P113","Servicios de banco central",696.02774699999998,"Consumo Final del Gobierno (PC)",2013]
["P114","Otros servicios financieros y servicios de banca de inversión",0,"Consumo Final del Gobierno (PC)",2013]
["P115","Servicios de Intermediación Financiera Medidos Indirectamente (SIFMI)",0,"Consumo Final del Gobierno (PC)",2013]
["P116","Servicios de seguro, reaseguro y fondos de pensiones",0,"Consumo Final del Gobierno (PC)",2013]
["P117","Servicios auxiliares de la intermediación financiera",0,"Consumo Final del Gobierno (PC)",2013]
["P118","Servicios de alquiler de vivienda",0,"Consumo Final del Gobierno (PC)",2013]
["P119","Otros servicios inmobiliarios, excepto alquiler de vivienda",0,"Consumo Final del Gobierno (PC)",2013]
["P120","Servicios jurídicos, de contabilidad, auditoría, teneduría de libros y consultoría fiscal",0,"Consumo Final del Gobierno (PC)",2013]
["P121","Servicios de tecnología de la información",0,"Consumo Final del Gobierno (PC)",2013]
["P122","Servicios de arquitectura e ingeniería, ensayos y análisis técnicos",0,"Consumo Final del Gobierno (PC)",2013]
["P123","Otros servicios profesionales, científicos y técnicos",0,"Consumo Final del Gobierno (PC)",2013]
["P124","Servicios de publicidad y estudios de mercado",0,"Consumo Final del Gobierno (PC)",2013]
["P125","Servicios de arrendamiento o alquiler sin operador",0,"Consumo Final del Gobierno (PC)",2013]
["P126","Servicios  de agencias de empleo y de dotación de recursos humanos",0,"Consumo Final del Gobierno (PC)",2013]
["P127","Servicios de agencias de viajes, operadores turísticos y actividades conexas",0,"Consumo Final del Gobierno (PC)",2013]
["P128","Servicios de seguridad, sistemas de seguridad e investigación privada",0,"Consumo Final del Gobierno (PC)",2013]
["P129","Servicios de limpieza",0,"Consumo Final del Gobierno (PC)",2013]
["P130","Servicios telefónicos de centros de llamadas",0,"Consumo Final del Gobierno (PC)",2013]
["P131","Servicios administrativos, de apoyo de oficina y otros servicios de apoyo a las empresas",0,"Consumo Final del Gobierno (PC)",2013]
["P132","Servicios de mantenimiento, reparación e instalación de productos metálicos elaborados, maquinaria y equipo",0,"Consumo Final del Gobierno (PC)",2013]
["P133","Servicios de reparación de otros bienes",0,"Consumo Final del Gobierno (PC)",2013]
["P134","Servicios de apoyo a la agricultura, caza, silvicultura y pesca",0,"Consumo Final del Gobierno (PC)",2013]
["P135","Servicios de apoyo a la explotación de minas y canteras y los relacionados con la distribución de electricidad, gas y agua",0,"Consumo Final del Gobierno (PC)",2013]
["P136","Servicios de manufactura",0,"Consumo Final del Gobierno (PC)",2013]
["P137","Servicios públicos del gobierno general",9777.3277629999993,"Consumo Final del Gobierno (PC)",2013]
["P138","Servicios públicos administrativos relacionados con la provisión de servicios educativos, de salud, servicios sociales, culturales y otros, sin contar los servicios de seguridad social",1831.7318230000001,"Consumo Final del Gobierno (PC)",2013]
["P139","Otros servicios administrativos",4076.9174739999999,"Consumo Final del Gobierno (PC)",2013]
["P140","Servicios públicos administrativos prestados a la comunidad en su conjunto",8415.5062859999998,"Consumo Final del Gobierno (PC)",2013]
["P141","Servicios administrativos relacionados con los sistemas de seguridad social de afiliación obligatoria",738.01370099999997,"Consumo Final del Gobierno (PC)",2013]
["P142","Servicios de enseñanza",11648.613746000001,"Consumo Final del Gobierno (PC)",2013]
["P143","Servicios de hospitalización",4727.9121109999996,"Consumo Final del Gobierno (PC)",2013]
["P144","Servicios médicos y dentales",734.77828199999999,"Consumo Final del Gobierno (PC)",2013]
["P145","Otros servicios de atención de la salud humana",185.59393499999999,"Consumo Final del Gobierno (PC)",2013]
["P146","Servicios audiovisuales, recreativos, culturales y deportivos",190.230807,"Consumo Final del Gobierno (PC)",2013]
["P147","Servicios de asociaciones que sirven a las empresas",0,"Consumo Final del Gobierno (PC)",2013]
["P148","Servicios de asociaciones que sirven a los hogares",0,"Consumo Final del Gobierno (PC)",2013]
["P149","Otros servicios",0,"Consumo Final del Gobierno (PC)",2013]
["P150","Servicios domésticos",0,"Consumo Final del Gobierno (PC)",2013]
["P151","Compras directas en el exterior por residentes",0,"Consumo Final del Gobierno (PC)",2013]
["P152","Compras directas en el territorio nacional por no residentes",0,"Consumo Final del Gobierno (PC)",2013]
["P001","Maíz",0,"Formación Bruta de Capital Fijo (PC)",2013]
["P002","Frijoles",0,"Formación Bruta de Capital Fijo (PC)",2013]
["P003","Leguminosas (legumbres secas) y semillas oleaginosas",0,"Formación Bruta de Capital Fijo (PC)",2013]
["P004","Arroz",0,"Formación Bruta de Capital Fijo (PC)",2013]
["P005","Otros cereales",0,"Formación Bruta de Capital Fijo (PC)",2013]
["P006","Hortalizas",0,"Formación Bruta de Capital Fijo (PC)",2013]
["P007","Sandías y melones",0,"Formación Bruta de Capital Fijo (PC)",2013]
["P008","Ejotes y arvejas",0,"Formación Bruta de Capital Fijo (PC)",2013]
["P009","Raíces y tubérculos",0,"Formación Bruta de Capital Fijo (PC)",2013]
["P010","Caña de azúcar y otras plantas azucareras",0,"Formación Bruta de Capital Fijo (PC)",2013]
["P011","Tabaco y otras plantas no perennes",0,"Formación Bruta de Capital Fijo (PC)",2013]
["P012","Bananos, plátanos y otros",243.87355400000001,"Formación Bruta de Capital Fijo (PC)",2013]
["P013","Frutas tropicales y subtropicales",124.566649,"Formación Bruta de Capital Fijo (PC)",2013]
["P014","Berries, otras frutas y semillas de frutas",148.44569200000001,"Formación Bruta de Capital Fijo (PC)",2013]
["P015","Palma africana",609.05541500000004,"Formación Bruta de Capital Fijo (PC)",2013]
["P016","Café en grano",51.956268000000001,"Formación Bruta de Capital Fijo (PC)",2013]
["P017","Cardamomo",19.710516999999999,"Formación Bruta de Capital Fijo (PC)",2013]
["P018","Caucho natural",17.185780000000001,"Formación Bruta de Capital Fijo (PC)",2013]
["P019","Propagación de plantas",0,"Formación Bruta de Capital Fijo (PC)",2013]
["P020","Otros frutos oleaginosos, otras plantas bebestibles y especias aromáticas",6.5270520000000003,"Formación Bruta de Capital Fijo (PC)",2013]
["P021","Ganado bovino",54.824677999999999,"Formación Bruta de Capital Fijo (PC)",2013]
["P022","Ganado porcino y otro tipo de animales vivos n.c.p.",26.596931999999999,"Formación Bruta de Capital Fijo (PC)",2013]
["P023","Aves de corral",485.931895,"Formación Bruta de Capital Fijo (PC)",2013]
["P024","Leche cruda",0,"Formación Bruta de Capital Fijo (PC)",2013]
["P025","Huevos",0,"Formación Bruta de Capital Fijo (PC)",2013]
["P026","Otros productos de animales vivos",0,"Formación Bruta de Capital Fijo (PC)",2013]
["P027","Troncos de madera y leña",0,"Formación Bruta de Capital Fijo (PC)",2013]
["P028","Productos forestales no madereros",0,"Formación Bruta de Capital Fijo (PC)",2013]
["P029","Peces vivos, frescos o refrigerados",0,"Formación Bruta de Capital Fijo (PC)",2013]
["P030","Crustáceos sin congelar y otros productos de la pesca",0,"Formación Bruta de Capital Fijo (PC)",2013]
["P031","Petróleo crudo y gas natural",0,"Formación Bruta de Capital Fijo (PC)",2013]
["P032","Minerales metálicos",0,"Formación Bruta de Capital Fijo (PC)",2013]
["P033","Minerales no metálicos",0,"Formación Bruta de Capital Fijo (PC)",2013]
["P034","Carne y despojos comestibles de ganado bovino; cueros y pieles de bovino y de otros animales",0,"Formación Bruta de Capital Fijo (PC)",2013]
["P035","Carne y despojos comestibles de ganado porcino",0,"Formación Bruta de Capital Fijo (PC)",2013]
["P036","Carne y despojos comestibles de aves",0,"Formación Bruta de Capital Fijo (PC)",2013]
["P037","Carne y despojos de otros animales y conservas y preparados de carne",0,"Formación Bruta de Capital Fijo (PC)",2013]
["P038","Pescado congelado, preparado o en conserva y sus productos",0,"Formación Bruta de Capital Fijo (PC)",2013]
["P039","Crustáceos, moluscos y demás invertebrados acuáticos congelados, preparados o en conserva y sus productos",0,"Formación Bruta de Capital Fijo (PC)",2013]
["P040","Vegetales preparados o en conserva, legumbres y papas",0,"Formación Bruta de Capital Fijo (PC)",2013]
["P041","Preparaciones y conservas de frutas y nueces",0,"Formación Bruta de Capital Fijo (PC)",2013]
["P042","Jugos de frutas",0,"Formación Bruta de Capital Fijo (PC)",2013]
["P043","Aceites de origen vegetal",0,"Formación Bruta de Capital Fijo (PC)",2013]
["P044","Margarina, grasas y otros aceites de origen animal y vegetal",0,"Formación Bruta de Capital Fijo (PC)",2013]
["P045","Leche líquida y crema procesada",0,"Formación Bruta de Capital Fijo (PC)",2013]
["P046","Otros productos lácteos n.c.p.",0,"Formación Bruta de Capital Fijo (PC)",2013]
["P047","Harina de trigo",0,"Formación Bruta de Capital Fijo (PC)",2013]
["P048","Arroz sin cáscara",0,"Formación Bruta de Capital Fijo (PC)",2013]
["P049","Otros productos de molinería, almidones y productos de almidón",0,"Formación Bruta de Capital Fijo (PC)",2013]
["P050","Pan y otros productos de panadería y repostería n.c.p.",0,"Formación Bruta de Capital Fijo (PC)",2013]
["P051","Tortillas de maíz, incluso tostadas, horneadas o fritas",0,"Formación Bruta de Capital Fijo (PC)",2013]
["P052","Azúcar de caña sin refinar y refinada, melaza y los demás azúcares n.c.p.",0,"Formación Bruta de Capital Fijo (PC)",2013]
["P053","Productos alimenticios n.c.p.",0,"Formación Bruta de Capital Fijo (PC)",2013]
["P054","Preparados para alimentación animal",0,"Formación Bruta de Capital Fijo (PC)",2013]
["P055","Aguardientes, licores, vinos, demás bebidas espirituosas y productos del tabaco",0,"Formación Bruta de Capital Fijo (PC)",2013]
["P056","Malta y cerveza de malta",0,"Formación Bruta de Capital Fijo (PC)",2013]
["P057","Bebidas no alcohólicas",0,"Formación Bruta de Capital Fijo (PC)",2013]
["P058","Aguas minerales y otras aguas embotelladas",0,"Formación Bruta de Capital Fijo (PC)",2013]
["P059","Hilados, tejidos, telas y otros productos textiles excepto prendas de vestir",0,"Formación Bruta de Capital Fijo (PC)",2013]
["P060","Prendas de vestir, adobo y teñido de pieles",0,"Formación Bruta de Capital Fijo (PC)",2013]
["P061","Cuero de piel curtida o adobada y cuero artificial o regenerado y artículos de cuero",0,"Formación Bruta de Capital Fijo (PC)",2013]
["P062","Calzado y sus partes, de cualquier material y de cualquier uso",0,"Formación Bruta de Capital Fijo (PC)",2013]
["P063","Madera aserrada y acepillada, productos de madera, corcho, paja y materiales trenzables",49.119191000000001,"Formación Bruta de Capital Fijo (PC)",2013]
["P064","Pasta de papel y papel",0,"Formación Bruta de Capital Fijo (PC)",2013]
["P065","Envases de papel y cartón",0,"Formación Bruta de Capital Fijo (PC)",2013]
["P066","Productos de la edición",0,"Formación Bruta de Capital Fijo (PC)",2013]
["P067","Productos de la impresión",0,"Formación Bruta de Capital Fijo (PC)",2013]
["P068","Gasolinas, diésel oil y fuel oils",0,"Formación Bruta de Capital Fijo (PC)",2013]
["P069","Aceites, grasas lubricantes y otros aceites preparados",0,"Formación Bruta de Capital Fijo (PC)",2013]
["P070","Gases de petróleo, otros productos de la refinación de petróleo n.c.p.",0,"Formación Bruta de Capital Fijo (PC)",2013]
["P071","Abonos, fertilizantes y pesticidas",0,"Formación Bruta de Capital Fijo (PC)",2013]
["P072","Pinturas, barnices, tintas y productos relacionados",0,"Formación Bruta de Capital Fijo (PC)",2013]
["P073","Jabón, preparados de limpieza, perfumes y preparados de toilet",0,"Formación Bruta de Capital Fijo (PC)",2013]
["P074","Otros productos químicos",0,"Formación Bruta de Capital Fijo (PC)",2013]
["P075","Productos farmacéuticos",0,"Formación Bruta de Capital Fijo (PC)",2013]
["P076","Productos de caucho y plástico",0,"Formación Bruta de Capital Fijo (PC)",2013]
["P077","Vidrio y productos de vidrio",0,"Formación Bruta de Capital Fijo (PC)",2013]
["P078","Productos de cerámica y arcilla",0,"Formación Bruta de Capital Fijo (PC)",2013]
["P079","Cemento, cal y yeso",0,"Formación Bruta de Capital Fijo (PC)",2013]
["P080","Artículos de hormigón, cemento y yeso",0,"Formación Bruta de Capital Fijo (PC)",2013]
["P081","Piedras talladas para construcción y otros productos minerales no metálicos n.c.p.",0,"Formación Bruta de Capital Fijo (PC)",2013]
["P082","Métales básicos de hierro y acero, productos primarios de metales preciosos y otros metales no ferrosos",0,"Formación Bruta de Capital Fijo (PC)",2013]
["P083","Productos metálicos estructurales y sus partes de hierro o de acero",0,"Formación Bruta de Capital Fijo (PC)",2013]
["P084","Otros productos elaborados de metal",728.87902699999995,"Formación Bruta de Capital Fijo (PC)",2013]
["P085","Maquinaria para usos generales y especiales, sus partes y piezas, excepto electrodomésticos",8436.1898469999996,"Formación Bruta de Capital Fijo (PC)",2013]
["P086","Electrodomésticos y sus partes",207.59217100000001,"Formación Bruta de Capital Fijo (PC)",2013]
["P087","Maquinaria de oficina, contabilidad e informática, sus partes y piezas",1707.142053,"Formación Bruta de Capital Fijo (PC)",2013]
["P088","Maquinaria y aparatos eléctricos, sus partes y piezas",2773.2824909999999,"Formación Bruta de Capital Fijo (PC)",2013]
["P089","Equipo y aparatos de radio, televisión y comunicaciones",2001.348375,"Formación Bruta de Capital Fijo (PC)",2013]
["P090","Aparatos médicos, instrumentos ópticos y de precisión, relojes",1498.389097,"Formación Bruta de Capital Fijo (PC)",2013]
["P091","Equipo de transporte",6245.2886490000001,"Formación Bruta de Capital Fijo (PC)",2013]
["P092","Muebles",2725.2724910000002,"Formación Bruta de Capital Fijo (PC)",2013]
["P093","Otros artículos n.c.p.",238.05480499999999,"Formación Bruta de Capital Fijo (PC)",2013]
["P094","Residuos y desechos",0,"Formación Bruta de Capital Fijo (PC)",2013]
["P095","Generación y distribución de energía eléctrica, gas, vapor y aire acondicionado",0,"Formación Bruta de Capital Fijo (PC)",2013]
["P096","Agua natural y distribución de agua natural",0,"Formación Bruta de Capital Fijo (PC)",2013]
["P097","Evacuación de aguas residuales, recogida, tratamiento y eliminación de desechos",0,"Formación Bruta de Capital Fijo (PC)",2013]
["P098","Edificaciones residenciales",15215.939378999999,"Formación Bruta de Capital Fijo (PC)",2013]
["P099","Edificaciones no residenciales",6495.7327830000004,"Formación Bruta de Capital Fijo (PC)",2013]
["P100","Obras de ingeniería civil",11618.123935,"Formación Bruta de Capital Fijo (PC)",2013]
["P101","Servicios generales y especializados de construcción",0,"Formación Bruta de Capital Fijo (PC)",2013]
["P102","Servicios de comercio",0,"Formación Bruta de Capital Fijo (PC)",2013]
["P103","Mantenimiento y reparación de vehículos automotores y motocicletas",0,"Formación Bruta de Capital Fijo (PC)",2013]
["P104","Servicio de transporte de pasajeros por vía terrestre",0,"Formación Bruta de Capital Fijo (PC)",2013]
["P105","Servicio de transporte de carga por vía terrestre",0,"Formación Bruta de Capital Fijo (PC)",2013]
["P106","Otros tipos de transporte",0,"Formación Bruta de Capital Fijo (PC)",2013]
["P107","Servicios de almacenamiento y depósito",0,"Formación Bruta de Capital Fijo (PC)",2013]
["P108","Otros servicios de apoyo al transporte",0,"Formación Bruta de Capital Fijo (PC)",2013]
["P109","Servicios postales y de mensajería",0,"Formación Bruta de Capital Fijo (PC)",2013]
["P110","Servicio de alojamiento",0,"Formación Bruta de Capital Fijo (PC)",2013]
["P111","Servicio de suministro de comidas y bebidas",0,"Formación Bruta de Capital Fijo (PC)",2013]
["P112","Servicios de información, telecomunicaciones y radiodifusión",0,"Formación Bruta de Capital Fijo (PC)",2013]
["P113","Servicios de banco central",0,"Formación Bruta de Capital Fijo (PC)",2013]
["P114","Otros servicios financieros y servicios de banca de inversión",0,"Formación Bruta de Capital Fijo (PC)",2013]
["P115","Servicios de Intermediación Financiera Medidos Indirectamente (SIFMI)",0,"Formación Bruta de Capital Fijo (PC)",2013]
["P116","Servicios de seguro, reaseguro y fondos de pensiones",0,"Formación Bruta de Capital Fijo (PC)",2013]
["P117","Servicios auxiliares de la intermediación financiera",0,"Formación Bruta de Capital Fijo (PC)",2013]
["P118","Servicios de alquiler de vivienda",0,"Formación Bruta de Capital Fijo (PC)",2013]
["P119","Otros servicios inmobiliarios, excepto alquiler de vivienda",0,"Formación Bruta de Capital Fijo (PC)",2013]
["P120","Servicios jurídicos, de contabilidad, auditoría, teneduría de libros y consultoría fiscal",0,"Formación Bruta de Capital Fijo (PC)",2013]
["P121","Servicios de tecnología de la información",492.14238399999999,"Formación Bruta de Capital Fijo (PC)",2013]
["P122","Servicios de arquitectura e ingeniería, ensayos y análisis técnicos",354.25343400000003,"Formación Bruta de Capital Fijo (PC)",2013]
["P123","Otros servicios profesionales, científicos y técnicos",240.72553099999999,"Formación Bruta de Capital Fijo (PC)",2013]
["P124","Servicios de publicidad y estudios de mercado",0,"Formación Bruta de Capital Fijo (PC)",2013]
["P125","Servicios de arrendamiento o alquiler sin operador",0,"Formación Bruta de Capital Fijo (PC)",2013]
["P126","Servicios  de agencias de empleo y de dotación de recursos humanos",0,"Formación Bruta de Capital Fijo (PC)",2013]
["P127","Servicios de agencias de viajes, operadores turísticos y actividades conexas",0,"Formación Bruta de Capital Fijo (PC)",2013]
["P128","Servicios de seguridad, sistemas de seguridad e investigación privada",0,"Formación Bruta de Capital Fijo (PC)",2013]
["P129","Servicios de limpieza",0,"Formación Bruta de Capital Fijo (PC)",2013]
["P130","Servicios telefónicos de centros de llamadas",0,"Formación Bruta de Capital Fijo (PC)",2013]
["P131","Servicios administrativos, de apoyo de oficina y otros servicios de apoyo a las empresas",0,"Formación Bruta de Capital Fijo (PC)",2013]
["P132","Servicios de mantenimiento, reparación e instalación de productos metálicos elaborados, maquinaria y equipo",0,"Formación Bruta de Capital Fijo (PC)",2013]
["P133","Servicios de reparación de otros bienes",0,"Formación Bruta de Capital Fijo (PC)",2013]
["P134","Servicios de apoyo a la agricultura, caza, silvicultura y pesca",0,"Formación Bruta de Capital Fijo (PC)",2013]
["P135","Servicios de apoyo a la explotación de minas y canteras y los relacionados con la distribución de electricidad, gas y agua",0,"Formación Bruta de Capital Fijo (PC)",2013]
["P136","Servicios de manufactura",0,"Formación Bruta de Capital Fijo (PC)",2013]
["P137","Servicios públicos del gobierno general",0,"Formación Bruta de Capital Fijo (PC)",2013]
["P138","Servicios públicos administrativos relacionados con la provisión de servicios educativos, de salud, servicios sociales, culturales y otros, sin contar los servicios de seguridad social",0,"Formación Bruta de Capital Fijo (PC)",2013]
["P139","Otros servicios administrativos",0,"Formación Bruta de Capital Fijo (PC)",2013]
["P140","Servicios públicos administrativos prestados a la comunidad en su conjunto",0,"Formación Bruta de Capital Fijo (PC)",2013]
["P141","Servicios administrativos relacionados con los sistemas de seguridad social de afiliación obligatoria",0,"Formación Bruta de Capital Fijo (PC)",2013]
["P142","Servicios de enseñanza",0,"Formación Bruta de Capital Fijo (PC)",2013]
["P143","Servicios de hospitalización",0,"Formación Bruta de Capital Fijo (PC)",2013]
["P144","Servicios médicos y dentales",0,"Formación Bruta de Capital Fijo (PC)",2013]
["P145","Otros servicios de atención de la salud humana",0,"Formación Bruta de Capital Fijo (PC)",2013]
["P146","Servicios audiovisuales, recreativos, culturales y deportivos",0,"Formación Bruta de Capital Fijo (PC)",2013]
["P147","Servicios de asociaciones que sirven a las empresas",0,"Formación Bruta de Capital Fijo (PC)",2013]
["P148","Servicios de asociaciones que sirven a los hogares",0,"Formación Bruta de Capital Fijo (PC)",2013]
["P149","Otros servicios",0,"Formación Bruta de Capital Fijo (PC)",2013]
["P150","Servicios domésticos",0,"Formación Bruta de Capital Fijo (PC)",2013]
["P151","Compras directas en el exterior por residentes",18.441827,"Formación Bruta de Capital Fijo (PC)",2013]
["P152","Compras directas en el territorio nacional por no residentes",0,"Formación Bruta de Capital Fijo (PC)",2013]
["P001","Maíz",36.424615000000003,"Exportaciones (fob)",2013]
["P002","Frijoles",35.896611,"Exportaciones (fob)",2013]
["P003","Leguminosas (legumbres secas) y semillas oleaginosas",396.74388399999998,"Exportaciones (fob)",2013]
["P004","Arroz",3.7010000000000001E-2,"Exportaciones (fob)",2013]
["P005","Otros cereales",4.7776199999999998,"Exportaciones (fob)",2013]
["P006","Hortalizas",1126.487803,"Exportaciones (fob)",2013]
["P007","Sandías y melones",1110.558133,"Exportaciones (fob)",2013]
["P008","Ejotes y arvejas",672.37656700000002,"Exportaciones (fob)",2013]
["P009","Raíces y tubérculos",84.006352000000007,"Exportaciones (fob)",2013]
["P010","Caña de azúcar y otras plantas azucareras",2.3166660000000001,"Exportaciones (fob)",2013]
["P011","Tabaco y otras plantas no perennes",285.94704100000001,"Exportaciones (fob)",2013]
["P012","Bananos, plátanos y otros",4988.0592660000002,"Exportaciones (fob)",2013]
["P013","Frutas tropicales y subtropicales",260.04353300000002,"Exportaciones (fob)",2013]
["P014","Berries, otras frutas y semillas de frutas",235.79744400000001,"Exportaciones (fob)",2013]
["P015","Palma africana",0,"Exportaciones (fob)",2013]
["P016","Café en grano",5600.0248860000002,"Exportaciones (fob)",2013]
["P017","Cardamomo",1690.1990189999999,"Exportaciones (fob)",2013]
["P018","Caucho natural",1876.5972959999999,"Exportaciones (fob)",2013]
["P019","Propagación de plantas",253.83208500000001,"Exportaciones (fob)",2013]
["P020","Otros frutos oleaginosos, otras plantas bebestibles y especias aromáticas",24.015501,"Exportaciones (fob)",2013]
["P021","Ganado bovino",23.964399,"Exportaciones (fob)",2013]
["P022","Ganado porcino y otro tipo de animales vivos n.c.p.",1.1347799999999999,"Exportaciones (fob)",2013]
["P023","Aves de corral",12.504845,"Exportaciones (fob)",2013]
["P024","Leche cruda",0,"Exportaciones (fob)",2013]
["P025","Huevos",0,"Exportaciones (fob)",2013]
["P026","Otros productos de animales vivos",63.827888999999999,"Exportaciones (fob)",2013]
["P027","Troncos de madera y leña",11.523621,"Exportaciones (fob)",2013]
["P028","Productos forestales no madereros",155.55443700000001,"Exportaciones (fob)",2013]
["P029","Peces vivos, frescos o refrigerados",40.867966000000003,"Exportaciones (fob)",2013]
["P030","Crustáceos sin congelar y otros productos de la pesca",208.59537800000001,"Exportaciones (fob)",2013]
["P031","Petróleo crudo y gas natural",2327.3415180000002,"Exportaciones (fob)",2013]
["P032","Minerales metálicos",4016.789804,"Exportaciones (fob)",2013]
["P033","Minerales no metálicos",88.643835999999993,"Exportaciones (fob)",2013]
["P034","Carne y despojos comestibles de ganado bovino; cueros y pieles de bovino y de otros animales",59.336522000000002,"Exportaciones (fob)",2013]
["P035","Carne y despojos comestibles de ganado porcino",0.95746900000000001,"Exportaciones (fob)",2013]
["P036","Carne y despojos comestibles de aves",48.479380999999997,"Exportaciones (fob)",2013]
["P037","Carne y despojos de otros animales y conservas y preparados de carne",293.11837100000002,"Exportaciones (fob)",2013]
["P038","Pescado congelado, preparado o en conserva y sus productos",581.34234700000002,"Exportaciones (fob)",2013]
["P039","Crustáceos, moluscos y demás invertebrados acuáticos congelados, preparados o en conserva y sus productos",360.10227300000003,"Exportaciones (fob)",2013]
["P040","Vegetales preparados o en conserva, legumbres y papas",518.52026599999999,"Exportaciones (fob)",2013]
["P041","Preparaciones y conservas de frutas y nueces",613.96479799999997,"Exportaciones (fob)",2013]
["P042","Jugos de frutas",262.77235400000001,"Exportaciones (fob)",2013]
["P043","Aceites de origen vegetal",2509.2955069999998,"Exportaciones (fob)",2013]
["P044","Margarina, grasas y otros aceites de origen animal y vegetal",353.249863,"Exportaciones (fob)",2013]
["P045","Leche líquida y crema procesada",1.722218,"Exportaciones (fob)",2013]
["P046","Otros productos lácteos n.c.p.",118.80412800000001,"Exportaciones (fob)",2013]
["P047","Harina de trigo",26.779588,"Exportaciones (fob)",2013]
["P048","Arroz sin cáscara",3.4466380000000001,"Exportaciones (fob)",2013]
["P049","Otros productos de molinería, almidones y productos de almidón",282.88482800000003,"Exportaciones (fob)",2013]
["P050","Pan y otros productos de panadería y repostería n.c.p.",564.74982599999998,"Exportaciones (fob)",2013]
["P051","Tortillas de maíz, incluso tostadas, horneadas o fritas",0,"Exportaciones (fob)",2013]
["P052","Azúcar de caña sin refinar y refinada, melaza y los demás azúcares n.c.p.",7669.3661069999998,"Exportaciones (fob)",2013]
["P053","Productos alimenticios n.c.p.",2109.8661860000002,"Exportaciones (fob)",2013]
["P054","Preparados para alimentación animal",486.05105300000002,"Exportaciones (fob)",2013]
["P055","Aguardientes, licores, vinos, demás bebidas espirituosas y productos del tabaco",932.84012399999995,"Exportaciones (fob)",2013]
["P056","Malta y cerveza de malta",67.227592000000001,"Exportaciones (fob)",2013]
["P057","Bebidas no alcohólicas",805.80016000000001,"Exportaciones (fob)",2013]
["P058","Aguas minerales y otras aguas embotelladas",25.854832999999999,"Exportaciones (fob)",2013]
["P059","Hilados, tejidos, telas y otros productos textiles excepto prendas de vestir",1335.8201180000001,"Exportaciones (fob)",2013]
["P060","Prendas de vestir, adobo y teñido de pieles",2073.881085,"Exportaciones (fob)",2013]
["P061","Cuero de piel curtida o adobada y cuero artificial o regenerado y artículos de cuero",113.88449900000001,"Exportaciones (fob)",2013]
["P062","Calzado y sus partes, de cualquier material y de cualquier uso",284.04869600000001,"Exportaciones (fob)",2013]
["P063","Madera aserrada y acepillada, productos de madera, corcho, paja y materiales trenzables",500.09455800000001,"Exportaciones (fob)",2013]
["P064","Pasta de papel y papel",526.03469500000006,"Exportaciones (fob)",2013]
["P065","Envases de papel y cartón",922.03085299999998,"Exportaciones (fob)",2013]
["P066","Productos de la edición",76.934164999999993,"Exportaciones (fob)",2013]
["P067","Productos de la impresión",105.90377700000001,"Exportaciones (fob)",2013]
["P068","Gasolinas, diésel oil y fuel oils",997.97738500000003,"Exportaciones (fob)",2013]
["P069","Aceites, grasas lubricantes y otros aceites preparados",5.9842639999999996,"Exportaciones (fob)",2013]
["P070","Gases de petróleo, otros productos de la refinación de petróleo n.c.p.",1374.511616,"Exportaciones (fob)",2013]
["P071","Abonos, fertilizantes y pesticidas",1014.116533,"Exportaciones (fob)",2013]
["P072","Pinturas, barnices, tintas y productos relacionados",359.23313000000002,"Exportaciones (fob)",2013]
["P073","Jabón, preparados de limpieza, perfumes y preparados de toilet",1916.24686,"Exportaciones (fob)",2013]
["P074","Otros productos químicos",2328.073065,"Exportaciones (fob)",2013]
["P075","Productos farmacéuticos",999.62274200000002,"Exportaciones (fob)",2013]
["P076","Productos de caucho y plástico",2134.662448,"Exportaciones (fob)",2013]
["P077","Vidrio y productos de vidrio",374.12319500000001,"Exportaciones (fob)",2013]
["P078","Productos de cerámica y arcilla",373.82268299999998,"Exportaciones (fob)",2013]
["P079","Cemento, cal y yeso",87.707750000000004,"Exportaciones (fob)",2013]
["P080","Artículos de hormigón, cemento y yeso",18.384105999999999,"Exportaciones (fob)",2013]
["P081","Piedras talladas para construcción y otros productos minerales no metálicos n.c.p.",24.971747000000001,"Exportaciones (fob)",2013]
["P082","Métales básicos de hierro y acero, productos primarios de metales preciosos y otros metales no ferrosos",1546.010354,"Exportaciones (fob)",2013]
["P083","Productos metálicos estructurales y sus partes de hierro o de acero",133.16372699999999,"Exportaciones (fob)",2013]
["P084","Otros productos elaborados de metal",902.33774500000004,"Exportaciones (fob)",2013]
["P085","Maquinaria para usos generales y especiales, sus partes y piezas, excepto electrodomésticos",869.68060300000002,"Exportaciones (fob)",2013]
["P086","Electrodomésticos y sus partes",35.148442000000003,"Exportaciones (fob)",2013]
["P087","Maquinaria de oficina, contabilidad e informática, sus partes y piezas",34.289982000000002,"Exportaciones (fob)",2013]
["P088","Maquinaria y aparatos eléctricos, sus partes y piezas",265.69970599999999,"Exportaciones (fob)",2013]
["P089","Equipo y aparatos de radio, televisión y comunicaciones",167.41989699999999,"Exportaciones (fob)",2013]
["P090","Aparatos médicos, instrumentos ópticos y de precisión, relojes",91.584370000000007,"Exportaciones (fob)",2013]
["P091","Equipo de transporte",170.20729600000001,"Exportaciones (fob)",2013]
["P092","Muebles",362.18890199999998,"Exportaciones (fob)",2013]
["P093","Otros artículos n.c.p.",324.53353800000002,"Exportaciones (fob)",2013]
["P094","Residuos y desechos",625.65657999999996,"Exportaciones (fob)",2013]
["P095","Generación y distribución de energía eléctrica, gas, vapor y aire acondicionado",240.268396,"Exportaciones (fob)",2013]
["P096","Agua natural y distribución de agua natural",0,"Exportaciones (fob)",2013]
["P097","Evacuación de aguas residuales, recogida, tratamiento y eliminación de desechos",0,"Exportaciones (fob)",2013]
["P098","Edificaciones residenciales",0,"Exportaciones (fob)",2013]
["P099","Edificaciones no residenciales",0,"Exportaciones (fob)",2013]
["P100","Obras de ingeniería civil",0,"Exportaciones (fob)",2013]
["P101","Servicios generales y especializados de construcción",214.567116,"Exportaciones (fob)",2013]
["P102","Servicios de comercio",0,"Exportaciones (fob)",2013]
["P103","Mantenimiento y reparación de vehículos automotores y motocicletas",5.2266360000000001,"Exportaciones (fob)",2013]
["P104","Servicio de transporte de pasajeros por vía terrestre",5.2394230000000004,"Exportaciones (fob)",2013]
["P105","Servicio de transporte de carga por vía terrestre",719.79782899999998,"Exportaciones (fob)",2013]
["P106","Otros tipos de transporte",11.715173999999999,"Exportaciones (fob)",2013]
["P107","Servicios de almacenamiento y depósito",1.629894,"Exportaciones (fob)",2013]
["P108","Otros servicios de apoyo al transporte",1728.15969,"Exportaciones (fob)",2013]
["P109","Servicios postales y de mensajería",43.102684000000004,"Exportaciones (fob)",2013]
["P110","Servicio de alojamiento",0,"Exportaciones (fob)",2013]
["P111","Servicio de suministro de comidas y bebidas",33.324823000000002,"Exportaciones (fob)",2013]
["P112","Servicios de información, telecomunicaciones y radiodifusión",3535.478337,"Exportaciones (fob)",2013]
["P113","Servicios de banco central",0,"Exportaciones (fob)",2013]
["P114","Otros servicios financieros y servicios de banca de inversión",63.778551,"Exportaciones (fob)",2013]
["P115","Servicios de Intermediación Financiera Medidos Indirectamente (SIFMI)",131.67166800000001,"Exportaciones (fob)",2013]
["P116","Servicios de seguro, reaseguro y fondos de pensiones",236.77983800000001,"Exportaciones (fob)",2013]
["P117","Servicios auxiliares de la intermediación financiera",2.1205219999999998,"Exportaciones (fob)",2013]
["P118","Servicios de alquiler de vivienda",0,"Exportaciones (fob)",2013]
["P119","Otros servicios inmobiliarios, excepto alquiler de vivienda",0,"Exportaciones (fob)",2013]
["P120","Servicios jurídicos, de contabilidad, auditoría, teneduría de libros y consultoría fiscal",8.8639489999999999,"Exportaciones (fob)",2013]
["P121","Servicios de tecnología de la información",317.31404700000002,"Exportaciones (fob)",2013]
["P122","Servicios de arquitectura e ingeniería, ensayos y análisis técnicos",9.3152640000000009,"Exportaciones (fob)",2013]
["P123","Otros servicios profesionales, científicos y técnicos",227.09911600000001,"Exportaciones (fob)",2013]
["P124","Servicios de publicidad y estudios de mercado",37.836170000000003,"Exportaciones (fob)",2013]
["P125","Servicios de arrendamiento o alquiler sin operador",121.028423,"Exportaciones (fob)",2013]
["P126","Servicios  de agencias de empleo y de dotación de recursos humanos",0,"Exportaciones (fob)",2013]
["P127","Servicios de agencias de viajes, operadores turísticos y actividades conexas",443.79853300000002,"Exportaciones (fob)",2013]
["P128","Servicios de seguridad, sistemas de seguridad e investigación privada",8.0476980000000005,"Exportaciones (fob)",2013]
["P129","Servicios de limpieza",0,"Exportaciones (fob)",2013]
["P130","Servicios telefónicos de centros de llamadas",1847.9544450000001,"Exportaciones (fob)",2013]
["P131","Servicios administrativos, de apoyo de oficina y otros servicios de apoyo a las empresas",117.760099,"Exportaciones (fob)",2013]
["P132","Servicios de mantenimiento, reparación e instalación de productos metálicos elaborados, maquinaria y equipo",105.466978,"Exportaciones (fob)",2013]
["P133","Servicios de reparación de otros bienes",0,"Exportaciones (fob)",2013]
["P134","Servicios de apoyo a la agricultura, caza, silvicultura y pesca",0,"Exportaciones (fob)",2013]
["P135","Servicios de apoyo a la explotación de minas y canteras y los relacionados con la distribución de electricidad, gas y agua",0,"Exportaciones (fob)",2013]
["P136","Servicios de manufactura",3609.5874349999999,"Exportaciones (fob)",2013]
["P137","Servicios públicos del gobierno general",0,"Exportaciones (fob)",2013]
["P138","Servicios públicos administrativos relacionados con la provisión de servicios educativos, de salud, servicios sociales, culturales y otros, sin contar los servicios de seguridad social",0,"Exportaciones (fob)",2013]
["P139","Otros servicios administrativos",0,"Exportaciones (fob)",2013]
["P140","Servicios públicos administrativos prestados a la comunidad en su conjunto",25.349269,"Exportaciones (fob)",2013]
["P141","Servicios administrativos relacionados con los sistemas de seguridad social de afiliación obligatoria",0,"Exportaciones (fob)",2013]
["P142","Servicios de enseñanza",2.8947409999999998,"Exportaciones (fob)",2013]
["P143","Servicios de hospitalización",118.7062,"Exportaciones (fob)",2013]
["P144","Servicios médicos y dentales",175.05569399999999,"Exportaciones (fob)",2013]
["P145","Otros servicios de atención de la salud humana",53.569609,"Exportaciones (fob)",2013]
["P146","Servicios audiovisuales, recreativos, culturales y deportivos",0,"Exportaciones (fob)",2013]
["P147","Servicios de asociaciones que sirven a las empresas",0,"Exportaciones (fob)",2013]
["P148","Servicios de asociaciones que sirven a los hogares",0,"Exportaciones (fob)",2013]
["P149","Otros servicios",0,"Exportaciones (fob)",2013]
["P150","Servicios domésticos",0,"Exportaciones (fob)",2013]
["P151","Compras directas en el exterior por residentes",0,"Exportaciones (fob)",2013]
["P152","Compras directas en el territorio nacional por no residentes",9586.7075839999998,"Exportaciones (fob)",2013]
["P001","Maíz",38.522311999999999,"Variación de existencias (PC)",2013]
["P002","Frijoles",2.3093819999999998,"Variación de existencias (PC)",2013]
["P003","Leguminosas (legumbres secas) y semillas oleaginosas",-20.116133000000001,"Variación de existencias (PC)",2013]
["P004","Arroz",4.6070169999999999,"Variación de existencias (PC)",2013]
["P005","Otros cereales",-47.814194000000001,"Variación de existencias (PC)",2013]
["P006","Hortalizas",0,"Variación de existencias (PC)",2013]
["P007","Sandías y melones",17.736939,"Variación de existencias (PC)",2013]
["P008","Ejotes y arvejas",0,"Variación de existencias (PC)",2013]
["P009","Raíces y tubérculos",0,"Variación de existencias (PC)",2013]
["P010","Caña de azúcar y otras plantas azucareras",47.66095,"Variación de existencias (PC)",2013]
["P011","Tabaco y otras plantas no perennes",48.990738999999998,"Variación de existencias (PC)",2013]
["P012","Bananos, plátanos y otros",0,"Variación de existencias (PC)",2013]
["P013","Frutas tropicales y subtropicales",0,"Variación de existencias (PC)",2013]
["P014","Berries, otras frutas y semillas de frutas",0,"Variación de existencias (PC)",2013]
["P015","Palma africana",0,"Variación de existencias (PC)",2013]
["P016","Café en grano",-93.729144000000005,"Variación de existencias (PC)",2013]
["P017","Cardamomo",-108.194102,"Variación de existencias (PC)",2013]
["P018","Caucho natural",0,"Variación de existencias (PC)",2013]
["P019","Propagación de plantas",0,"Variación de existencias (PC)",2013]
["P020","Otros frutos oleaginosos, otras plantas bebestibles y especias aromáticas",0,"Variación de existencias (PC)",2013]
["P021","Ganado bovino",43.231946999999998,"Variación de existencias (PC)",2013]
["P022","Ganado porcino y otro tipo de animales vivos n.c.p.",0.56450299999999998,"Variación de existencias (PC)",2013]
["P023","Aves de corral",24.367279,"Variación de existencias (PC)",2013]
["P024","Leche cruda",0,"Variación de existencias (PC)",2013]
["P025","Huevos",0,"Variación de existencias (PC)",2013]
["P026","Otros productos de animales vivos",0,"Variación de existencias (PC)",2013]
["P027","Troncos de madera y leña",0,"Variación de existencias (PC)",2013]
["P028","Productos forestales no madereros",0,"Variación de existencias (PC)",2013]
["P029","Peces vivos, frescos o refrigerados",0,"Variación de existencias (PC)",2013]
["P030","Crustáceos sin congelar y otros productos de la pesca",92.126182,"Variación de existencias (PC)",2013]
["P031","Petróleo crudo y gas natural",23.071829000000001,"Variación de existencias (PC)",2013]
["P032","Minerales metálicos",10.669696999999999,"Variación de existencias (PC)",2013]
["P033","Minerales no metálicos",15.919783000000001,"Variación de existencias (PC)",2013]
["P034","Carne y despojos comestibles de ganado bovino; cueros y pieles de bovino y de otros animales",-4.7655380000000003,"Variación de existencias (PC)",2013]
["P035","Carne y despojos comestibles de ganado porcino",-5.5112639999999997,"Variación de existencias (PC)",2013]
["P036","Carne y despojos comestibles de aves",-29.385829999999999,"Variación de existencias (PC)",2013]
["P037","Carne y despojos de otros animales y conservas y preparados de carne",-14.39537,"Variación de existencias (PC)",2013]
["P038","Pescado congelado, preparado o en conserva y sus productos",4.4586990000000002,"Variación de existencias (PC)",2013]
["P039","Crustáceos, moluscos y demás invertebrados acuáticos congelados, preparados o en conserva y sus productos",-7.6377059999999997,"Variación de existencias (PC)",2013]
["P040","Vegetales preparados o en conserva, legumbres y papas",10.639802,"Variación de existencias (PC)",2013]
["P041","Preparaciones y conservas de frutas y nueces",7.1280700000000001,"Variación de existencias (PC)",2013]
["P042","Jugos de frutas",6.116987,"Variación de existencias (PC)",2013]
["P043","Aceites de origen vegetal",44.681260000000002,"Variación de existencias (PC)",2013]
["P044","Margarina, grasas y otros aceites de origen animal y vegetal",-1.056419,"Variación de existencias (PC)",2013]
["P045","Leche líquida y crema procesada",4.9160700000000004,"Variación de existencias (PC)",2013]
["P046","Otros productos lácteos n.c.p.",5.6652760000000004,"Variación de existencias (PC)",2013]
["P047","Harina de trigo",9.7068670000000008,"Variación de existencias (PC)",2013]
["P048","Arroz sin cáscara",8.0981229999999993,"Variación de existencias (PC)",2013]
["P049","Otros productos de molinería, almidones y productos de almidón",24.515027,"Variación de existencias (PC)",2013]
["P050","Pan y otros productos de panadería y repostería n.c.p.",0.58949099999999999,"Variación de existencias (PC)",2013]
["P051","Tortillas de maíz, incluso tostadas, horneadas o fritas",0.222383,"Variación de existencias (PC)",2013]
["P052","Azúcar de caña sin refinar y refinada, melaza y los demás azúcares n.c.p.",194.40995699999999,"Variación de existencias (PC)",2013]
["P053","Productos alimenticios n.c.p.",6.4244830000000004,"Variación de existencias (PC)",2013]
["P054","Preparados para alimentación animal",-54.762928000000002,"Variación de existencias (PC)",2013]
["P055","Aguardientes, licores, vinos, demás bebidas espirituosas y productos del tabaco",53.805402000000001,"Variación de existencias (PC)",2013]
["P056","Malta y cerveza de malta",45.609130999999998,"Variación de existencias (PC)",2013]
["P057","Bebidas no alcohólicas",119.7299,"Variación de existencias (PC)",2013]
["P058","Aguas minerales y otras aguas embotelladas",-1.5341549999999999,"Variación de existencias (PC)",2013]
["P059","Hilados, tejidos, telas y otros productos textiles excepto prendas de vestir",185.78274099999999,"Variación de existencias (PC)",2013]
["P060","Prendas de vestir, adobo y teñido de pieles",83.193389999999994,"Variación de existencias (PC)",2013]
["P061","Cuero de piel curtida o adobada y cuero artificial o regenerado y artículos de cuero",18.717103000000002,"Variación de existencias (PC)",2013]
["P062","Calzado y sus partes, de cualquier material y de cualquier uso",8.5595529999999993,"Variación de existencias (PC)",2013]
["P063","Madera aserrada y acepillada, productos de madera, corcho, paja y materiales trenzables",51.371003999999999,"Variación de existencias (PC)",2013]
["P064","Pasta de papel y papel",44.984838000000003,"Variación de existencias (PC)",2013]
["P065","Envases de papel y cartón",31.042867999999999,"Variación de existencias (PC)",2013]
["P066","Productos de la edición",51.080786000000003,"Variación de existencias (PC)",2013]
["P067","Productos de la impresión",16.612721000000001,"Variación de existencias (PC)",2013]
["P068","Gasolinas, diésel oil y fuel oils",287.14468900000003,"Variación de existencias (PC)",2013]
["P069","Aceites, grasas lubricantes y otros aceites preparados",29.549250000000001,"Variación de existencias (PC)",2013]
["P070","Gases de petróleo, otros productos de la refinación de petróleo n.c.p.",116.78220399999999,"Variación de existencias (PC)",2013]
["P071","Abonos, fertilizantes y pesticidas",52.725906000000002,"Variación de existencias (PC)",2013]
["P072","Pinturas, barnices, tintas y productos relacionados",6.1882320000000002,"Variación de existencias (PC)",2013]
["P073","Jabón, preparados de limpieza, perfumes y preparados de toilet",-10.877476,"Variación de existencias (PC)",2013]
["P074","Otros productos químicos",202.90087500000001,"Variación de existencias (PC)",2013]
["P075","Productos farmacéuticos",43.461911000000001,"Variación de existencias (PC)",2013]
["P076","Productos de caucho y plástico",-34.934767999999998,"Variación de existencias (PC)",2013]
["P077","Vidrio y productos de vidrio",6.1199640000000004,"Variación de existencias (PC)",2013]
["P078","Productos de cerámica y arcilla",26.138314000000001,"Variación de existencias (PC)",2013]
["P079","Cemento, cal y yeso",57.061534999999999,"Variación de existencias (PC)",2013]
["P080","Artículos de hormigón, cemento y yeso",25.576287000000001,"Variación de existencias (PC)",2013]
["P081","Piedras talladas para construcción y otros productos minerales no metálicos n.c.p.",18.284002999999998,"Variación de existencias (PC)",2013]
["P082","Métales básicos de hierro y acero, productos primarios de metales preciosos y otros metales no ferrosos",255.79484199999999,"Variación de existencias (PC)",2013]
["P083","Productos metálicos estructurales y sus partes de hierro o de acero",20.659673000000002,"Variación de existencias (PC)",2013]
["P084","Otros productos elaborados de metal",114.380008,"Variación de existencias (PC)",2013]
["P085","Maquinaria para usos generales y especiales, sus partes y piezas, excepto electrodomésticos",65.184003000000004,"Variación de existencias (PC)",2013]
["P086","Electrodomésticos y sus partes",6.7396609999999999,"Variación de existencias (PC)",2013]
["P087","Maquinaria de oficina, contabilidad e informática, sus partes y piezas",2.9350689999999999,"Variación de existencias (PC)",2013]
["P088","Maquinaria y aparatos eléctricos, sus partes y piezas",128.12347399999999,"Variación de existencias (PC)",2013]
["P089","Equipo y aparatos de radio, televisión y comunicaciones",142.34465700000001,"Variación de existencias (PC)",2013]
["P090","Aparatos médicos, instrumentos ópticos y de precisión, relojes",46.250824000000001,"Variación de existencias (PC)",2013]
["P091","Equipo de transporte",15.121689,"Variación de existencias (PC)",2013]
["P092","Muebles",19.621948,"Variación de existencias (PC)",2013]
["P093","Otros artículos n.c.p.",9.6827140000000007,"Variación de existencias (PC)",2013]
["P094","Residuos y desechos",7.0708849999999996,"Variación de existencias (PC)",2013]
["P095","Generación y distribución de energía eléctrica, gas, vapor y aire acondicionado",0,"Variación de existencias (PC)",2013]
["P096","Agua natural y distribución de agua natural",0,"Variación de existencias (PC)",2013]
["P097","Evacuación de aguas residuales, recogida, tratamiento y eliminación de desechos",0,"Variación de existencias (PC)",2013]
["P098","Edificaciones residenciales",435.86247200000003,"Variación de existencias (PC)",2013]
["P099","Edificaciones no residenciales",16.616617999999999,"Variación de existencias (PC)",2013]
["P100","Obras de ingeniería civil",0,"Variación de existencias (PC)",2013]
["P101","Servicios generales y especializados de construcción",0,"Variación de existencias (PC)",2013]
["P102","Servicios de comercio",0,"Variación de existencias (PC)",2013]
["P103","Mantenimiento y reparación de vehículos automotores y motocicletas",0,"Variación de existencias (PC)",2013]
["P104","Servicio de transporte de pasajeros por vía terrestre",0,"Variación de existencias (PC)",2013]
["P105","Servicio de transporte de carga por vía terrestre",0,"Variación de existencias (PC)",2013]
["P106","Otros tipos de transporte",0,"Variación de existencias (PC)",2013]
["P107","Servicios de almacenamiento y depósito",0,"Variación de existencias (PC)",2013]
["P108","Otros servicios de apoyo al transporte",0,"Variación de existencias (PC)",2013]
["P109","Servicios postales y de mensajería",0,"Variación de existencias (PC)",2013]
["P110","Servicio de alojamiento",0,"Variación de existencias (PC)",2013]
["P111","Servicio de suministro de comidas y bebidas",0,"Variación de existencias (PC)",2013]
["P112","Servicios de información, telecomunicaciones y radiodifusión",0,"Variación de existencias (PC)",2013]
["P113","Servicios de banco central",0,"Variación de existencias (PC)",2013]
["P114","Otros servicios financieros y servicios de banca de inversión",0,"Variación de existencias (PC)",2013]
["P115","Servicios de Intermediación Financiera Medidos Indirectamente (SIFMI)",0,"Variación de existencias (PC)",2013]
["P116","Servicios de seguro, reaseguro y fondos de pensiones",0,"Variación de existencias (PC)",2013]
["P117","Servicios auxiliares de la intermediación financiera",0,"Variación de existencias (PC)",2013]
["P118","Servicios de alquiler de vivienda",0,"Variación de existencias (PC)",2013]
["P119","Otros servicios inmobiliarios, excepto alquiler de vivienda",0,"Variación de existencias (PC)",2013]
["P120","Servicios jurídicos, de contabilidad, auditoría, teneduría de libros y consultoría fiscal",0,"Variación de existencias (PC)",2013]
["P121","Servicios de tecnología de la información",0,"Variación de existencias (PC)",2013]
["P122","Servicios de arquitectura e ingeniería, ensayos y análisis técnicos",0,"Variación de existencias (PC)",2013]
["P123","Otros servicios profesionales, científicos y técnicos",0,"Variación de existencias (PC)",2013]
["P124","Servicios de publicidad y estudios de mercado",0,"Variación de existencias (PC)",2013]
["P125","Servicios de arrendamiento o alquiler sin operador",0,"Variación de existencias (PC)",2013]
["P126","Servicios  de agencias de empleo y de dotación de recursos humanos",0,"Variación de existencias (PC)",2013]
["P127","Servicios de agencias de viajes, operadores turísticos y actividades conexas",0,"Variación de existencias (PC)",2013]
["P128","Servicios de seguridad, sistemas de seguridad e investigación privada",0,"Variación de existencias (PC)",2013]
["P129","Servicios de limpieza",0,"Variación de existencias (PC)",2013]
["P130","Servicios telefónicos de centros de llamadas",0,"Variación de existencias (PC)",2013]
["P131","Servicios administrativos, de apoyo de oficina y otros servicios de apoyo a las empresas",0,"Variación de existencias (PC)",2013]
["P132","Servicios de mantenimiento, reparación e instalación de productos metálicos elaborados, maquinaria y equipo",0,"Variación de existencias (PC)",2013]
["P133","Servicios de reparación de otros bienes",0,"Variación de existencias (PC)",2013]
["P134","Servicios de apoyo a la agricultura, caza, silvicultura y pesca",0,"Variación de existencias (PC)",2013]
["P135","Servicios de apoyo a la explotación de minas y canteras y los relacionados con la distribución de electricidad, gas y agua",0,"Variación de existencias (PC)",2013]
["P136","Servicios de manufactura",0,"Variación de existencias (PC)",2013]
["P137","Servicios públicos del gobierno general",0,"Variación de existencias (PC)",2013]
["P138","Servicios públicos administrativos relacionados con la provisión de servicios educativos, de salud, servicios sociales, culturales y otros, sin contar los servicios de seguridad social",0,"Variación de existencias (PC)",2013]
["P139","Otros servicios administrativos",0,"Variación de existencias (PC)",2013]
["P140","Servicios públicos administrativos prestados a la comunidad en su conjunto",0,"Variación de existencias (PC)",2013]
["P141","Servicios administrativos relacionados con los sistemas de seguridad social de afiliación obligatoria",0,"Variación de existencias (PC)",2013]
["P142","Servicios de enseñanza",0,"Variación de existencias (PC)",2013]
["P143","Servicios de hospitalización",0,"Variación de existencias (PC)",2013]
["P144","Servicios médicos y dentales",0,"Variación de existencias (PC)",2013]
["P145","Otros servicios de atención de la salud humana",0,"Variación de existencias (PC)",2013]
["P146","Servicios audiovisuales, recreativos, culturales y deportivos",0,"Variación de existencias (PC)",2013]
["P147","Servicios de asociaciones que sirven a las empresas",0,"Variación de existencias (PC)",2013]
["P148","Servicios de asociaciones que sirven a los hogares",0,"Variación de existencias (PC)",2013]
["P149","Otros servicios",0,"Variación de existencias (PC)",2013]
["P150","Servicios domésticos",0,"Variación de existencias (PC)",2013]
["P151","Compras directas en el exterior por residentes",0,"Variación de existencias (PC)",2013]
["P152","Compras directas en el territorio nacional por no residentes",0,"Variación de existencias (PC)",2013]
["P001","Maíz",0,"Ajuste CIF/FOB",2013]
["P002","Frijoles",0,"Ajuste CIF/FOB",2013]
["P003","Leguminosas (legumbres secas) y semillas oleaginosas",0,"Ajuste CIF/FOB",2013]
["P004","Arroz",0,"Ajuste CIF/FOB",2013]
["P005","Otros cereales",0,"Ajuste CIF/FOB",2013]
["P006","Hortalizas",0,"Ajuste CIF/FOB",2013]
["P007","Sandías y melones",0,"Ajuste CIF/FOB",2013]
["P008","Ejotes y arvejas",0,"Ajuste CIF/FOB",2013]
["P009","Raíces y tubérculos",0,"Ajuste CIF/FOB",2013]
["P010","Caña de azúcar y otras plantas azucareras",0,"Ajuste CIF/FOB",2013]
["P011","Tabaco y otras plantas no perennes",0,"Ajuste CIF/FOB",2013]
["P012","Bananos, plátanos y otros",0,"Ajuste CIF/FOB",2013]
["P013","Frutas tropicales y subtropicales",0,"Ajuste CIF/FOB",2013]
["P014","Berries, otras frutas y semillas de frutas",0,"Ajuste CIF/FOB",2013]
["P015","Palma africana",0,"Ajuste CIF/FOB",2013]
["P016","Café en grano",0,"Ajuste CIF/FOB",2013]
["P017","Cardamomo",0,"Ajuste CIF/FOB",2013]
["P018","Caucho natural",0,"Ajuste CIF/FOB",2013]
["P019","Propagación de plantas",0,"Ajuste CIF/FOB",2013]
["P020","Otros frutos oleaginosos, otras plantas bebestibles y especias aromáticas",0,"Ajuste CIF/FOB",2013]
["P021","Ganado bovino",0,"Ajuste CIF/FOB",2013]
["P022","Ganado porcino y otro tipo de animales vivos n.c.p.",0,"Ajuste CIF/FOB",2013]
["P023","Aves de corral",0,"Ajuste CIF/FOB",2013]
["P027","Troncos de madera y leña",0,"Ajuste CIF/FOB",2013]
["P045","Leche líquida y crema procesada",0,"Ajuste CIF/FOB",2013]
["P055","Aguardientes, licores, vinos, demás bebidas espirituosas y productos del tabaco",0,"Ajuste CIF/FOB",2013]
["P066","Productos de la edición",0,"Ajuste CIF/FOB",2013]
["P072","Pinturas, barnices, tintas y productos relacionados",0,"Ajuste CIF/FOB",2013]
["P083","Productos metálicos estructurales y sus partes de hierro o de acero",0,"Ajuste CIF/FOB",2013]
["P100","Obras de ingeniería civil",0,"Ajuste CIF/FOB",2013]
["P104","Servicio de transporte de pasajeros por vía terrestre",0,"Ajuste CIF/FOB",2013]
["P117","Servicios auxiliares de la intermediación financiera",0,"Ajuste CIF/FOB",2013]
["P137","Servicios públicos del gobierno general",0,"Ajuste CIF/FOB",2013]
["P141","Servicios administrativos relacionados con los sistemas de seguridad social de afiliación obligatoria",0,"Ajuste CIF/FOB",2013]
["P006","Hortalizas",5158.5610200000001,"Producción (PB)",2014]
["P017","Cardamomo",2608.2093629999999,"Producción (PB)",2014]
["P023","Aves de corral",7157.7910190000002,"Producción (PB)",2014]
["P034","Carne y despojos comestibles de ganado bovino; cueros y pieles de bovino y de otros animales",6850.0874830000002,"Producción (PB)",2014]
["P044","Margarina, grasas y otros aceites de origen animal y vegetal",1258.090872,"Producción (PB)",2014]
["P062","Calzado y sus partes, de cualquier material y de cualquier uso",1367.815265,"Producción (PB)",2014]
["P077","Vidrio y productos de vidrio",707.46276499999999,"Producción (PB)",2014]
["P086","Electrodomésticos y sus partes",0,"Producción (PB)",2014]
["P098","Edificaciones residenciales",15894.025232,"Producción (PB)",2014]
["P103","Mantenimiento y reparación de vehículos automotores y motocicletas",9062.5645810000005,"Producción (PB)",2014]
["P119","Otros servicios inmobiliarios, excepto alquiler de vivienda",11321.434916,"Producción (PB)",2014]
["P131","Servicios administrativos, de apoyo de oficina y otros servicios de apoyo a las empresas",2417.7826380000001,"Producción (PB)",2014]
["P136","Servicios de manufactura",7236.1705609999999,"Producción (PB)",2014]
["P148","Servicios de asociaciones que sirven a los hogares",2122.089641,"Producción (PB)",2014]
["P017","Cardamomo",0,"Impuestos sobre los productos, excepto IVA e impuestos sobre las importaciones",2014]
["P020","Otros frutos oleaginosos, otras plantas bebestibles y especias aromáticas",0,"Impuestos sobre los productos, excepto IVA e impuestos sobre las importaciones",2014]
["P038","Pescado congelado, preparado o en conserva y sus productos",0,"Impuestos sobre los productos, excepto IVA e impuestos sobre las importaciones",2014]
["P047","Harina de trigo",0,"Impuestos sobre los productos, excepto IVA e impuestos sobre las importaciones",2014]
["P059","Hilados, tejidos, telas y otros productos textiles excepto prendas de vestir",0,"Impuestos sobre los productos, excepto IVA e impuestos sobre las importaciones",2014]
["P068","Gasolinas, diésel oil y fuel oils",2433.8495280000002,"Impuestos sobre los productos, excepto IVA e impuestos sobre las importaciones",2014]
["P083","Productos metálicos estructurales y sus partes de hierro o de acero",0,"Impuestos sobre los productos, excepto IVA e impuestos sobre las importaciones",2014]
["P089","Equipo y aparatos de radio, televisión y comunicaciones",0,"Impuestos sobre los productos, excepto IVA e impuestos sobre las importaciones",2014]
["P100","Obras de ingeniería civil",0,"Impuestos sobre los productos, excepto IVA e impuestos sobre las importaciones",2014]
["P118","Servicios de alquiler de vivienda",0,"Impuestos sobre los productos, excepto IVA e impuestos sobre las importaciones",2014]
["P128","Servicios de seguridad, sistemas de seguridad e investigación privada",0,"Impuestos sobre los productos, excepto IVA e impuestos sobre las importaciones",2014]
["P139","Otros servicios administrativos",0,"Impuestos sobre los productos, excepto IVA e impuestos sobre las importaciones",2014]
["P004","Arroz",0,"Subvenciones a los productos",2014]
["P008","Ejotes y arvejas",0,"Subvenciones a los productos",2014]
["P017","Cardamomo",0,"Subvenciones a los productos",2014]
["P029","Peces vivos, frescos o refrigerados",0,"Subvenciones a los productos",2014]
["P045","Leche líquida y crema procesada",0,"Subvenciones a los productos",2014]
["P062","Calzado y sus partes, de cualquier material y de cualquier uso",0,"Subvenciones a los productos",2014]
["P073","Jabón, preparados de limpieza, perfumes y preparados de toilet",0,"Subvenciones a los productos",2014]
["P079","Cemento, cal y yeso",0,"Subvenciones a los productos",2014]
["P090","Aparatos médicos, instrumentos ópticos y de precisión, relojes",0,"Subvenciones a los productos",2014]
["P100","Obras de ingeniería civil",0,"Subvenciones a los productos",2014]
["P114","Otros servicios financieros y servicios de banca de inversión",0,"Subvenciones a los productos",2014]
["P121","Servicios de tecnología de la información",0,"Subvenciones a los productos",2014]
["P142","Servicios de enseñanza",0,"Subvenciones a los productos",2014]
["P002","Frijoles",214.38757200000001,"Importaciones (CIF)",2014]
["P007","Sandías y melones",1.628047,"Importaciones (CIF)",2014]
["P019","Propagación de plantas",44.378315999999998,"Importaciones (CIF)",2014]
["P035","Carne y despojos comestibles de ganado porcino",235.07468299999999,"Importaciones (CIF)",2014]
["P040","Vegetales preparados o en conserva, legumbres y papas",526.970687,"Importaciones (CIF)",2014]
["P053","Productos alimenticios n.c.p.",4104.345609,"Importaciones (CIF)",2014]
["P070","Gases de petróleo, otros productos de la refinación de petróleo n.c.p.",3438.6786189999998,"Importaciones (CIF)",2014]
["P082","Métales básicos de hierro y acero, productos primarios de metales preciosos y otros metales no ferrosos",5789.0079379999997,"Importaciones (CIF)",2014]
["P087","Maquinaria de oficina, contabilidad e informática, sus partes y piezas",1857.6554430000001,"Importaciones (CIF)",2014]
["P103","Mantenimiento y reparación de vehículos automotores y motocicletas",1.6644410000000001,"Importaciones (CIF)",2014]
["P111","Servicio de suministro de comidas y bebidas",15.21707,"Importaciones (CIF)",2014]
["P124","Servicios de publicidad y estudios de mercado",169.90779000000001,"Importaciones (CIF)",2014]
["P139","Otros servicios administrativos",0,"Importaciones (CIF)",2014]
["P145","Otros servicios de atención de la salud humana",1.9512999999999999E-2,"Importaciones (CIF)",2014]
["P004","Arroz",5.1670959999999999,"Impuestos y derechos sobre las importaciones excepto IVA",2014]
["P022","Ganado porcino y otro tipo de animales vivos n.c.p.",0.13107099999999999,"Impuestos y derechos sobre las importaciones excepto IVA",2014]
["P032","Minerales metálicos",4.0330000000000001E-3,"Impuestos y derechos sobre las importaciones excepto IVA",2014]
["P043","Aceites de origen vegetal",4.7016900000000001,"Impuestos y derechos sobre las importaciones excepto IVA",2014]
["P056","Malta y cerveza de malta",22.409555999999998,"Impuestos y derechos sobre las importaciones excepto IVA",2014]
["P064","Pasta de papel y papel",28.905581999999999,"Impuestos y derechos sobre las importaciones excepto IVA",2014]
["P073","Jabón, preparados de limpieza, perfumes y preparados de toilet",160.670008,"Impuestos y derechos sobre las importaciones excepto IVA",2014]
["P085","Maquinaria para usos generales y especiales, sus partes y piezas, excepto electrodomésticos",57.989308999999999,"Impuestos y derechos sobre las importaciones excepto IVA",2014]
["P101","Servicios generales y especializados de construcción",0,"Impuestos y derechos sobre las importaciones excepto IVA",2014]
["P114","Otros servicios financieros y servicios de banca de inversión",0,"Impuestos y derechos sobre las importaciones excepto IVA",2014]
["P118","Servicios de alquiler de vivienda",0,"Impuestos y derechos sobre las importaciones excepto IVA",2014]
["P135","Servicios de apoyo a la explotación de minas y canteras y los relacionados con la distribución de electricidad, gas y agua",0,"Impuestos y derechos sobre las importaciones excepto IVA",2014]
["P146","Servicios audiovisuales, recreativos, culturales y deportivos",0,"Impuestos y derechos sobre las importaciones excepto IVA",2014]
["P004","Arroz",0.33408700000000002,"Impuesto tipo valor agregado (IVA)",2014]
["P018","Caucho natural",0,"Impuesto tipo valor agregado (IVA)",2014]
["P025","Huevos",200.9391,"Impuesto tipo valor agregado (IVA)",2014]
["P035","Carne y despojos comestibles de ganado porcino",10.077510999999999,"Impuesto tipo valor agregado (IVA)",2014]
["P054","Preparados para alimentación animal",52.653523,"Impuesto tipo valor agregado (IVA)",2014]
["P067","Productos de la impresión",52.734845999999997,"Impuesto tipo valor agregado (IVA)",2014]
["P070","Gases de petróleo, otros productos de la refinación de petróleo n.c.p.",317.20084900000001,"Impuesto tipo valor agregado (IVA)",2014]
["P088","Maquinaria y aparatos eléctricos, sus partes y piezas",64.165629999999993,"Impuesto tipo valor agregado (IVA)",2014]
["P098","Edificaciones residenciales",416.21949599999999,"Impuesto tipo valor agregado (IVA)",2014]
["P105","Servicio de transporte de carga por vía terrestre",35.721375000000002,"Impuesto tipo valor agregado (IVA)",2014]
["P115","Servicios de Intermediación Financiera Medidos Indirectamente (SIFMI)",0,"Impuesto tipo valor agregado (IVA)",2014]
["P126","Servicios  de agencias de empleo y de dotación de recursos humanos",140.179092,"Impuesto tipo valor agregado (IVA)",2014]
["P139","Otros servicios administrativos",0,"Impuesto tipo valor agregado (IVA)",2014]
["P007","Sandías y melones",271.14760699999999,"Márgenes de comercio, transporte y distribución de energía",2014]
["P015","Palma africana",13.442449,"Márgenes de comercio, transporte y distribución de energía",2014]
["P028","Productos forestales no madereros",26.260427,"Márgenes de comercio, transporte y distribución de energía",2014]
["P032","Minerales metálicos",2.4153000000000001E-2,"Márgenes de comercio, transporte y distribución de energía",2014]
["P045","Leche líquida y crema procesada",613.10536400000001,"Márgenes de comercio, transporte y distribución de energía",2014]
["P060","Prendas de vestir, adobo y teñido de pieles",4846.5863470000004,"Márgenes de comercio, transporte y distribución de energía",2014]
["P066","Productos de la edición",634.11633600000005,"Márgenes de comercio, transporte y distribución de energía",2014]
["P077","Vidrio y productos de vidrio",170.84559899999999,"Márgenes de comercio, transporte y distribución de energía",2014]
["P099","Edificaciones no residenciales",0,"Márgenes de comercio, transporte y distribución de energía",2014]
["P101","Servicios generales y especializados de construcción",0,"Márgenes de comercio, transporte y distribución de energía",2014]
["P120","Servicios jurídicos, de contabilidad, auditoría, teneduría de libros y consultoría fiscal",0,"Márgenes de comercio, transporte y distribución de energía",2014]
["P129","Servicios de limpieza",0,"Márgenes de comercio, transporte y distribución de energía",2014]
["P137","Servicios públicos del gobierno general",0,"Márgenes de comercio, transporte y distribución de energía",2014]
["P146","Servicios audiovisuales, recreativos, culturales y deportivos",0,"Márgenes de comercio, transporte y distribución de energía",2014]
["P006","Hortalizas",1210.8417669999999,"Consumo Intermedio (PC)",2014]
["P022","Ganado porcino y otro tipo de animales vivos n.c.p.",1401.0187350000001,"Consumo Intermedio (PC)",2014]
["P039","Crustáceos, moluscos y demás invertebrados acuáticos congelados, preparados o en conserva y sus productos",600.97892999999999,"Consumo Intermedio (PC)",2014]
["P046","Otros productos lácteos n.c.p.",675.90547500000002,"Consumo Intermedio (PC)",2014]
["P060","Prendas de vestir, adobo y teñido de pieles",868.53707399999996,"Consumo Intermedio (PC)",2014]
["P069","Aceites, grasas lubricantes y otros aceites preparados",1140.2535700000001,"Consumo Intermedio (PC)",2014]
["P085","Maquinaria para usos generales y especiales, sus partes y piezas, excepto electrodomésticos",4799.151554,"Consumo Intermedio (PC)",2014]
["P090","Aparatos médicos, instrumentos ópticos y de precisión, relojes",615.61312299999997,"Consumo Intermedio (PC)",2014]
["P098","Edificaciones residenciales",0,"Consumo Intermedio (PC)",2014]
["P111","Servicio de suministro de comidas y bebidas",1922.331964,"Consumo Intermedio (PC)",2014]
["P126","Servicios  de agencias de empleo y de dotación de recursos humanos",6380.7446280000004,"Consumo Intermedio (PC)",2014]
["P140","Servicios públicos administrativos prestados a la comunidad en su conjunto",0,"Consumo Intermedio (PC)",2014]
["P002","Frijoles",2194.3796299999999,"Consumo Final privado (PC)",2014]
["P009","Raíces y tubérculos",5646.6703509999998,"Consumo Final privado (PC)",2014]
["P019","Propagación de plantas",53.597907999999997,"Consumo Final privado (PC)",2014]
["P030","Crustáceos sin congelar y otros productos de la pesca",526.428451,"Consumo Final privado (PC)",2014]
["P043","Aceites de origen vegetal",2571.4140990000001,"Consumo Final privado (PC)",2014]
["P051","Tortillas de maíz, incluso tostadas, horneadas o fritas",5647.0984159999998,"Consumo Final privado (PC)",2014]
["P071","Abonos, fertilizantes y pesticidas",15.735904,"Consumo Final privado (PC)",2014]
["P080","Artículos de hormigón, cemento y yeso",5.2228999999999998E-2,"Consumo Final privado (PC)",2014]
["P088","Maquinaria y aparatos eléctricos, sus partes y piezas",330.97148600000003,"Consumo Final privado (PC)",2014]
["P101","Servicios generales y especializados de construcción",117.063423,"Consumo Final privado (PC)",2014]
["P116","Servicios de seguro, reaseguro y fondos de pensiones",2137.5289440000001,"Consumo Final privado (PC)",2014]
["P122","Servicios de arquitectura e ingeniería, ensayos y análisis técnicos",96.351512999999997,"Consumo Final privado (PC)",2014]
["P140","Servicios públicos administrativos prestados a la comunidad en su conjunto",554.79090799999994,"Consumo Final privado (PC)",2014]
["P143","Servicios de hospitalización",1931.611208,"Consumo Final privado (PC)",2014]
["P005","Otros cereales",0,"Consumo Final del Gobierno (PC)",2014]
["P012","Bananos, plátanos y otros",0,"Consumo Final del Gobierno (PC)",2014]
["P033","Minerales no metálicos",1.7878149999999999,"Consumo Final del Gobierno (PC)",2014]
["P041","Preparaciones y conservas de frutas y nueces",0,"Consumo Final del Gobierno (PC)",2014]
["P050","Pan y otros productos de panadería y repostería n.c.p.",5.1194569999999997,"Consumo Final del Gobierno (PC)",2014]
["P062","Calzado y sus partes, de cualquier material y de cualquier uso",0,"Consumo Final del Gobierno (PC)",2014]
["P071","Abonos, fertilizantes y pesticidas",0,"Consumo Final del Gobierno (PC)",2014]
["P085","Maquinaria para usos generales y especiales, sus partes y piezas, excepto electrodomésticos",0,"Consumo Final del Gobierno (PC)",2014]
["P104","Servicio de transporte de pasajeros por vía terrestre",0,"Consumo Final del Gobierno (PC)",2014]
["P113","Servicios de banco central",658.57955700000002,"Consumo Final del Gobierno (PC)",2014]
["P125","Servicios de arrendamiento o alquiler sin operador",0,"Consumo Final del Gobierno (PC)",2014]
["P137","Servicios públicos del gobierno general",10057.605926,"Consumo Final del Gobierno (PC)",2014]
["P146","Servicios audiovisuales, recreativos, culturales y deportivos",211.19691,"Consumo Final del Gobierno (PC)",2014]
["P002","Frijoles",0,"Formación Bruta de Capital Fijo (PC)",2014]
["P015","Palma africana",842.01850300000001,"Formación Bruta de Capital Fijo (PC)",2014]
["P030","Crustáceos sin congelar y otros productos de la pesca",0,"Formación Bruta de Capital Fijo (PC)",2014]
["P044","Margarina, grasas y otros aceites de origen animal y vegetal",0,"Formación Bruta de Capital Fijo (PC)",2014]
["P047","Harina de trigo",0,"Formación Bruta de Capital Fijo (PC)",2014]
["P065","Envases de papel y cartón",0,"Formación Bruta de Capital Fijo (PC)",2014]
["P071","Abonos, fertilizantes y pesticidas",0,"Formación Bruta de Capital Fijo (PC)",2014]
["P086","Electrodomésticos y sus partes",211.72824900000001,"Formación Bruta de Capital Fijo (PC)",2014]
["P099","Edificaciones no residenciales",9020.0979850000003,"Formación Bruta de Capital Fijo (PC)",2014]
["P107","Servicios de almacenamiento y depósito",0,"Formación Bruta de Capital Fijo (PC)",2014]
["P116","Servicios de seguro, reaseguro y fondos de pensiones",0,"Formación Bruta de Capital Fijo (PC)",2014]
["P136","Servicios de manufactura",0,"Formación Bruta de Capital Fijo (PC)",2014]
["P144","Servicios médicos y dentales",0,"Formación Bruta de Capital Fijo (PC)",2014]
["P005","Otros cereales",3.2679830000000001,"Exportaciones (fob)",2014]
["P016","Café en grano",5183.1701849999999,"Exportaciones (fob)",2014]
["P026","Otros productos de animales vivos",50.620609000000002,"Exportaciones (fob)",2014]
["P033","Minerales no metálicos",73.417254,"Exportaciones (fob)",2014]
["P047","Harina de trigo",22.998961000000001,"Exportaciones (fob)",2014]
["P061","Cuero de piel curtida o adobada y cuero artificial o regenerado y artículos de cuero",103.859267,"Exportaciones (fob)",2014]
["P076","Productos de caucho y plástico",2264.8352369999998,"Exportaciones (fob)",2014]
["P077","Vidrio y productos de vidrio",384.69311699999997,"Exportaciones (fob)",2014]
["P096","Agua natural y distribución de agua natural",0,"Exportaciones (fob)",2014]
["P110","Servicio de alojamiento",0,"Exportaciones (fob)",2014]
["P113","Servicios de banco central",0,"Exportaciones (fob)",2014]
["P127","Servicios de agencias de viajes, operadores turísticos y actividades conexas",471.39744300000001,"Exportaciones (fob)",2014]
["P141","Servicios administrativos relacionados con los sistemas de seguridad social de afiliación obligatoria",0,"Exportaciones (fob)",2014]
["P148","Servicios de asociaciones que sirven a los hogares",0,"Exportaciones (fob)",2014]
["P013","Frutas tropicales y subtropicales",0,"Variación de existencias (PC)",2014]
["P017","Cardamomo",-139.36232200000001,"Variación de existencias (PC)",2014]
["P030","Crustáceos sin congelar y otros productos de la pesca",48.432702999999997,"Variación de existencias (PC)",2014]
["P050","Pan y otros productos de panadería y repostería n.c.p.",-4.9022589999999999,"Variación de existencias (PC)",2014]
["P058","Aguas minerales y otras aguas embotelladas",3.946482,"Variación de existencias (PC)",2014]
["P067","Productos de la impresión",-49.221178999999999,"Variación de existencias (PC)",2014]
["P075","Productos farmacéuticos",-56.254323999999997,"Variación de existencias (PC)",2014]
["P088","Maquinaria y aparatos eléctricos, sus partes y piezas",-49.564435000000003,"Variación de existencias (PC)",2014]
["P099","Edificaciones no residenciales",28.716971999999998,"Variación de existencias (PC)",2014]
["P109","Servicios postales y de mensajería",0,"Variación de existencias (PC)",2014]
["P127","Servicios de agencias de viajes, operadores turísticos y actividades conexas",0,"Variación de existencias (PC)",2014]
["P142","Servicios de enseñanza",0,"Variación de existencias (PC)",2014]
["P144","Servicios médicos y dentales",0,"Variación de existencias (PC)",2014]
["P007","Sandías y melones",0,"Ajuste CIF/FOB",2014]
["P020","Otros frutos oleaginosos, otras plantas bebestibles y especias aromáticas",0,"Ajuste CIF/FOB",2014]
["P028","Productos forestales no madereros",0,"Ajuste CIF/FOB",2014]
["P048","Arroz sin cáscara",0,"Ajuste CIF/FOB",2014]
["P049","Otros productos de molinería, almidones y productos de almidón",0,"Ajuste CIF/FOB",2014]
["P061","Cuero de piel curtida o adobada y cuero artificial o regenerado y artículos de cuero",0,"Ajuste CIF/FOB",2014]
["P082","Métales básicos de hierro y acero, productos primarios de metales preciosos y otros metales no ferrosos",0,"Ajuste CIF/FOB",2014]
["P091","Equipo de transporte",0,"Ajuste CIF/FOB",2014]
["P096","Agua natural y distribución de agua natural",0,"Ajuste CIF/FOB",2014]
["P112","Servicios de información, telecomunicaciones y radiodifusión",0,"Ajuste CIF/FOB",2014]
["P124","Servicios de publicidad y estudios de mercado",0,"Ajuste CIF/FOB",2014]
["P133","Servicios de reparación de otros bienes",0,"Ajuste CIF/FOB",2014]
["P152","Compras directas en el territorio nacional por no residentes",0,"Ajuste CIF/FOB",2014]
["P010","Caña de azúcar y otras plantas azucareras",5795.3864400000002,"Producción (PB)",2015]
["P017","Cardamomo",2858.7161689999998,"Producción (PB)",2015]
["P031","Petróleo crudo y gas natural",903.32407000000001,"Producción (PB)",2015]
["P045","Leche líquida y crema procesada",1118.7707210000001,"Producción (PB)",2015]
["P052","Azúcar de caña sin refinar y refinada, melaza y los demás azúcares n.c.p.",11943.562741,"Producción (PB)",2015]
["P069","Aceites, grasas lubricantes y otros aceites preparados",0,"Producción (PB)",2015]
["P073","Jabón, preparados de limpieza, perfumes y preparados de toilet",4392.8362040000002,"Producción (PB)",2015]
["P086","Electrodomésticos y sus partes",0,"Producción (PB)",2015]
["P102","Servicios de comercio",114465.39195799999,"Producción (PB)",2015]
["P114","Otros servicios financieros y servicios de banca de inversión",2787.9129269999999,"Producción (PB)",2015]
["P123","Otros servicios profesionales, científicos y técnicos",7511.247848,"Producción (PB)",2015]
["P131","Servicios administrativos, de apoyo de oficina y otros servicios de apoyo a las empresas",2682.4716899999999,"Producción (PB)",2015]
["P144","Servicios médicos y dentales",5905.5893020000003,"Producción (PB)",2015]
["P003","Leguminosas (legumbres secas) y semillas oleaginosas",0,"Impuestos sobre los productos, excepto IVA e impuestos sobre las importaciones",2015]
["P013","Frutas tropicales y subtropicales",0,"Impuestos sobre los productos, excepto IVA e impuestos sobre las importaciones",2015]
["P031","Petróleo crudo y gas natural",0,"Impuestos sobre los productos, excepto IVA e impuestos sobre las importaciones",2015]
["P042","Jugos de frutas",34.418909999999997,"Impuestos sobre los productos, excepto IVA e impuestos sobre las importaciones",2015]
["P048","Arroz sin cáscara",0,"Impuestos sobre los productos, excepto IVA e impuestos sobre las importaciones",2015]
["P063","Madera aserrada y acepillada, productos de madera, corcho, paja y materiales trenzables",0,"Impuestos sobre los productos, excepto IVA e impuestos sobre las importaciones",2015]
["P076","Productos de caucho y plástico",0,"Impuestos sobre los productos, excepto IVA e impuestos sobre las importaciones",2015]
["P084","Otros productos elaborados de metal",0,"Impuestos sobre los productos, excepto IVA e impuestos sobre las importaciones",2015]
["P093","Otros artículos n.c.p.",0,"Impuestos sobre los productos, excepto IVA e impuestos sobre las importaciones",2015]
["P111","Servicio de suministro de comidas y bebidas",0,"Impuestos sobre los productos, excepto IVA e impuestos sobre las importaciones",2015]
["P114","Otros servicios financieros y servicios de banca de inversión",0,"Impuestos sobre los productos, excepto IVA e impuestos sobre las importaciones",2015]
["P128","Servicios de seguridad, sistemas de seguridad e investigación privada",0,"Impuestos sobre los productos, excepto IVA e impuestos sobre las importaciones",2015]
["P147","Servicios de asociaciones que sirven a las empresas",0,"Impuestos sobre los productos, excepto IVA e impuestos sobre las importaciones",2015]
["P152","Compras directas en el territorio nacional por no residentes",0,"Impuestos sobre los productos, excepto IVA e impuestos sobre las importaciones",2015]
["P016","Café en grano",0,"Subvenciones a los productos",2015]
["P028","Productos forestales no madereros",0,"Subvenciones a los productos",2015]
["P033","Minerales no metálicos",0,"Subvenciones a los productos",2015]
["P045","Leche líquida y crema procesada",0,"Subvenciones a los productos",2015]
["P054","Preparados para alimentación animal",0,"Subvenciones a los productos",2015]
["P073","Jabón, preparados de limpieza, perfumes y preparados de toilet",0,"Subvenciones a los productos",2015]
["P087","Maquinaria de oficina, contabilidad e informática, sus partes y piezas",0,"Subvenciones a los productos",2015]
["P097","Evacuación de aguas residuales, recogida, tratamiento y eliminación de desechos",0,"Subvenciones a los productos",2015]
["P108","Otros servicios de apoyo al transporte",0,"Subvenciones a los productos",2015]
["P114","Otros servicios financieros y servicios de banca de inversión",0,"Subvenciones a los productos",2015]
["P125","Servicios de arrendamiento o alquiler sin operador",0,"Subvenciones a los productos",2015]
["P142","Servicios de enseñanza",0,"Subvenciones a los productos",2015]
["P146","Servicios audiovisuales, recreativos, culturales y deportivos",0,"Subvenciones a los productos",2015]
["P007","Sandías y melones",1.460933,"Importaciones (CIF)",2015]
["P027","Troncos de madera y leña",0.172955,"Importaciones (CIF)",2015]
["P031","Petróleo crudo y gas natural",0,"Importaciones (CIF)",2015]
["P048","Arroz sin cáscara",77.152945000000003,"Importaciones (CIF)",2015]
["P059","Hilados, tejidos, telas y otros productos textiles excepto prendas de vestir",1986.9724080000001,"Importaciones (CIF)",2015]
["P069","Aceites, grasas lubricantes y otros aceites preparados",953.35037899999998,"Importaciones (CIF)",2015]
["P076","Productos de caucho y plástico",5449.9268229999998,"Importaciones (CIF)",2015]
["P086","Electrodomésticos y sus partes",1099.15931,"Importaciones (CIF)",2015]
["P099","Edificaciones no residenciales",0,"Importaciones (CIF)",2015]
["P111","Servicio de suministro de comidas y bebidas",15.994763000000001,"Importaciones (CIF)",2015]
["P128","Servicios de seguridad, sistemas de seguridad e investigación privada",0,"Importaciones (CIF)",2015]
["P139","Otros servicios administrativos",0,"Importaciones (CIF)",2015]
["P149","Otros servicios",0,"Importaciones (CIF)",2015]
["P004","Arroz",4.273555,"Impuestos y derechos sobre las importaciones excepto IVA",2015]
["P018","Caucho natural",1.2864E-2,"Impuestos y derechos sobre las importaciones excepto IVA",2015]
["P028","Productos forestales no madereros",5.2449999999999997E-3,"Impuestos y derechos sobre las importaciones excepto IVA",2015]
["P039","Crustáceos, moluscos y demás invertebrados acuáticos congelados, preparados o en conserva y sus productos",1.100382,"Impuestos y derechos sobre las importaciones excepto IVA",2015]
["P056","Malta y cerveza de malta",28.880182999999999,"Impuestos y derechos sobre las importaciones excepto IVA",2015]
["P072","Pinturas, barnices, tintas y productos relacionados",10.648695,"Impuestos y derechos sobre las importaciones excepto IVA",2015]
["P073","Jabón, preparados de limpieza, perfumes y preparados de toilet",166.953565,"Impuestos y derechos sobre las importaciones excepto IVA",2015]
["P089","Equipo y aparatos de radio, televisión y comunicaciones",84.850572,"Impuestos y derechos sobre las importaciones excepto IVA",2015]
["P101","Servicios generales y especializados de construcción",0,"Impuestos y derechos sobre las importaciones excepto IVA",2015]
["P110","Servicio de alojamiento",0,"Impuestos y derechos sobre las importaciones excepto IVA",2015]
["P125","Servicios de arrendamiento o alquiler sin operador",0,"Impuestos y derechos sobre las importaciones excepto IVA",2015]
["P131","Servicios administrativos, de apoyo de oficina y otros servicios de apoyo a las empresas",0,"Impuestos y derechos sobre las importaciones excepto IVA",2015]
["P142","Servicios de enseñanza",0,"Impuestos y derechos sobre las importaciones excepto IVA",2015]
["P012","Bananos, plátanos y otros",32.613545000000002,"Impuesto tipo valor agregado (IVA)",2015]
["P018","Caucho natural",0,"Impuesto tipo valor agregado (IVA)",2015]
["P029","Peces vivos, frescos o refrigerados",17.544364000000002,"Impuesto tipo valor agregado (IVA)",2015]
["P046","Otros productos lácteos n.c.p.",260.50844999999998,"Impuesto tipo valor agregado (IVA)",2015]
["P050","Pan y otros productos de panadería y repostería n.c.p.",197.04377299999999,"Impuesto tipo valor agregado (IVA)",2015]
["P059","Hilados, tejidos, telas y otros productos textiles excepto prendas de vestir",161.82365300000001,"Impuesto tipo valor agregado (IVA)",2015]
["P071","Abonos, fertilizantes y pesticidas",8.1063229999999997,"Impuesto tipo valor agregado (IVA)",2015]
["P087","Maquinaria de oficina, contabilidad e informática, sus partes y piezas",96.320173999999994,"Impuesto tipo valor agregado (IVA)",2015]
["P104","Servicio de transporte de pasajeros por vía terrestre",304.32594699999999,"Impuesto tipo valor agregado (IVA)",2015]
["P113","Servicios de banco central",0,"Impuesto tipo valor agregado (IVA)",2015]
["P122","Servicios de arquitectura e ingeniería, ensayos y análisis técnicos",37.724825000000003,"Impuesto tipo valor agregado (IVA)",2015]
["P134","Servicios de apoyo a la agricultura, caza, silvicultura y pesca",6.2690489999999999,"Impuesto tipo valor agregado (IVA)",2015]
["P150","Servicios domésticos",0,"Impuesto tipo valor agregado (IVA)",2015]
["P003","Leguminosas (legumbres secas) y semillas oleaginosas",138.552919,"Márgenes de comercio, transporte y distribución de energía",2015]
["P015","Palma africana",13.358677999999999,"Márgenes de comercio, transporte y distribución de energía",2015]
["P032","Minerales metálicos",2.4115999999999999E-2,"Márgenes de comercio, transporte y distribución de energía",2015]
["P043","Aceites de origen vegetal",1121.613284,"Márgenes de comercio, transporte y distribución de energía",2015]
["P053","Productos alimenticios n.c.p.",4368.6549260000002,"Márgenes de comercio, transporte y distribución de energía",2015]
["P067","Productos de la impresión",412.35287699999998,"Márgenes de comercio, transporte y distribución de energía",2015]
["P074","Otros productos químicos",1012.88445,"Márgenes de comercio, transporte y distribución de energía",2015]
["P084","Otros productos elaborados de metal",716.03170999999998,"Márgenes de comercio, transporte y distribución de energía",2015]
["P095","Generación y distribución de energía eléctrica, gas, vapor y aire acondicionado",1617.441773,"Márgenes de comercio, transporte y distribución de energía",2015]
["P112","Servicios de información, telecomunicaciones y radiodifusión",0,"Márgenes de comercio, transporte y distribución de energía",2015]
["P124","Servicios de publicidad y estudios de mercado",0,"Márgenes de comercio, transporte y distribución de energía",2015]
["P129","Servicios de limpieza",0,"Márgenes de comercio, transporte y distribución de energía",2015]
["P145","Otros servicios de atención de la salud humana",0,"Márgenes de comercio, transporte y distribución de energía",2015]
["P005","Otros cereales",1235.935853,"Consumo Intermedio (PC)",2015]
["P014","Berries, otras frutas y semillas de frutas",465.44101499999999,"Consumo Intermedio (PC)",2015]
["P029","Peces vivos, frescos o refrigerados",41.942135,"Consumo Intermedio (PC)",2015]
["P035","Carne y despojos comestibles de ganado porcino",1018.278767,"Consumo Intermedio (PC)",2015]
["P046","Otros productos lácteos n.c.p.",686.54274099999998,"Consumo Intermedio (PC)",2015]
["P064","Pasta de papel y papel",4850.9473509999998,"Consumo Intermedio (PC)",2015]
["P074","Otros productos químicos",9952.1493530000007,"Consumo Intermedio (PC)",2015]
["P085","Maquinaria para usos generales y especiales, sus partes y piezas, excepto electrodomésticos",5280.5419099999999,"Consumo Intermedio (PC)",2015]
["P091","Equipo de transporte",1651.0377410000001,"Consumo Intermedio (PC)",2015]
["P106","Otros tipos de transporte",746.23439900000005,"Consumo Intermedio (PC)",2015]
["P115","Servicios de Intermediación Financiera Medidos Indirectamente (SIFMI)",6214.4467709999999,"Consumo Intermedio (PC)",2015]
["P126","Servicios  de agencias de empleo y de dotación de recursos humanos",6585.114552,"Consumo Intermedio (PC)",2015]
["P136","Servicios de manufactura",2306.4453279999998,"Consumo Intermedio (PC)",2015]
["P150","Servicios domésticos",0,"Consumo Intermedio (PC)",2015]
["P017","Cardamomo",0,"Consumo Final privado (PC)",2015]
["P026","Otros productos de animales vivos",34.995575000000002,"Consumo Final privado (PC)",2015]
["P038","Pescado congelado, preparado o en conserva y sus productos",220.875912,"Consumo Final privado (PC)",2015]
["P043","Aceites de origen vegetal",2678.4075520000001,"Consumo Final privado (PC)",2015]
["P055","Aguardientes, licores, vinos, demás bebidas espirituosas y productos del tabaco",2136.9130610000002,"Consumo Final privado (PC)",2015]
["P071","Abonos, fertilizantes y pesticidas",15.589726000000001,"Consumo Final privado (PC)",2015]
["P076","Productos de caucho y plástico",5577.9534400000002,"Consumo Final privado (PC)",2015]
["P088","Maquinaria y aparatos eléctricos, sus partes y piezas",342.97978999999998,"Consumo Final privado (PC)",2015]
["P109","Servicios postales y de mensajería",488.28684399999997,"Consumo Final privado (PC)",2015]
["P112","Servicios de información, telecomunicaciones y radiodifusión",16653.752205000001,"Consumo Final privado (PC)",2015]
["P130","Servicios telefónicos de centros de llamadas",0,"Consumo Final privado (PC)",2015]
["P140","Servicios públicos administrativos prestados a la comunidad en su conjunto",566.21481400000005,"Consumo Final privado (PC)",2015]
["P147","Servicios de asociaciones que sirven a las empresas",0,"Consumo Final privado (PC)",2015]
["P005","Otros cereales",0,"Consumo Final del Gobierno (PC)",2015]
["P016","Café en grano",0,"Consumo Final del Gobierno (PC)",2015]
["P033","Minerales no metálicos",0.87587400000000004,"Consumo Final del Gobierno (PC)",2015]
["P049","Otros productos de molinería, almidones y productos de almidón",61.018690999999997,"Consumo Final del Gobierno (PC)",2015]
["P057","Bebidas no alcohólicas",1.8147610000000001,"Consumo Final del Gobierno (PC)",2015]
["P070","Gases de petróleo, otros productos de la refinación de petróleo n.c.p.",0,"Consumo Final del Gobierno (PC)",2015]
["P074","Otros productos químicos",0,"Consumo Final del Gobierno (PC)",2015]
["P087","Maquinaria de oficina, contabilidad e informática, sus partes y piezas",0,"Consumo Final del Gobierno (PC)",2015]
["P102","Servicios de comercio",0,"Consumo Final del Gobierno (PC)",2015]
["P108","Otros servicios de apoyo al transporte",0,"Consumo Final del Gobierno (PC)",2015]
["P121","Servicios de tecnología de la información",0,"Consumo Final del Gobierno (PC)",2015]
["P137","Servicios públicos del gobierno general",10788.604541999999,"Consumo Final del Gobierno (PC)",2015]
["P150","Servicios domésticos",0,"Consumo Final del Gobierno (PC)",2015]
["P002","Frijoles",0,"Formación Bruta de Capital Fijo (PC)",2015]
["P019","Propagación de plantas",0,"Formación Bruta de Capital Fijo (PC)",2015]
["P030","Crustáceos sin congelar y otros productos de la pesca",0,"Formación Bruta de Capital Fijo (PC)",2015]
["P040","Vegetales preparados o en conserva, legumbres y papas",0,"Formación Bruta de Capital Fijo (PC)",2015]
["P054","Preparados para alimentación animal",0,"Formación Bruta de Capital Fijo (PC)",2015]
["P061","Cuero de piel curtida o adobada y cuero artificial o regenerado y artículos de cuero",0,"Formación Bruta de Capital Fijo (PC)",2015]
["P071","Abonos, fertilizantes y pesticidas",0,"Formación Bruta de Capital Fijo (PC)",2015]
["P090","Aparatos médicos, instrumentos ópticos y de precisión, relojes",1459.6764250000001,"Formación Bruta de Capital Fijo (PC)",2015]
["P099","Edificaciones no residenciales",9430.4209940000001,"Formación Bruta de Capital Fijo (PC)",2015]
["P111","Servicio de suministro de comidas y bebidas",0,"Formación Bruta de Capital Fijo (PC)",2015]
["P127","Servicios de agencias de viajes, operadores turísticos y actividades conexas",0,"Formación Bruta de Capital Fijo (PC)",2015]
["P132","Servicios de mantenimiento, reparación e instalación de productos metálicos elaborados, maquinaria y equipo",0,"Formación Bruta de Capital Fijo (PC)",2015]
["P140","Servicios públicos administrativos prestados a la comunidad en su conjunto",0,"Formación Bruta de Capital Fijo (PC)",2015]
["P001","Maíz",24.06419,"Exportaciones (fob)",2015]
["P016","Café en grano",5077.5101889999996,"Exportaciones (fob)",2015]
["P022","Ganado porcino y otro tipo de animales vivos n.c.p.",6.5714319999999997,"Exportaciones (fob)",2015]
["P044","Margarina, grasas y otros aceites de origen animal y vegetal",312.95113800000001,"Exportaciones (fob)",2015]
["P051","Tortillas de maíz, incluso tostadas, horneadas o fritas",0,"Exportaciones (fob)",2015]
["P061","Cuero de piel curtida o adobada y cuero artificial o regenerado y artículos de cuero",90.493300000000005,"Exportaciones (fob)",2015]
["P072","Pinturas, barnices, tintas y productos relacionados",416.91715399999998,"Exportaciones (fob)",2015]
["P085","Maquinaria para usos generales y especiales, sus partes y piezas, excepto electrodomésticos",905.55726800000002,"Exportaciones (fob)",2015]
["P093","Otros artículos n.c.p.",354.144634,"Exportaciones (fob)",2015]
["P113","Servicios de banco central",0,"Exportaciones (fob)",2015]
["P114","Otros servicios financieros y servicios de banca de inversión",49.663564999999998,"Exportaciones (fob)",2015]
["P135","Servicios de apoyo a la explotación de minas y canteras y los relacionados con la distribución de electricidad, gas y agua",0,"Exportaciones (fob)",2015]
["P148","Servicios de asociaciones que sirven a los hogares",0,"Exportaciones (fob)",2015]
["P004","Arroz",-5.2975839999999996,"Variación de existencias (PC)",2015]
["P013","Frutas tropicales y subtropicales",0,"Variación de existencias (PC)",2015]
["P021","Ganado bovino",105.25093699999999,"Variación de existencias (PC)",2015]
["P041","Preparaciones y conservas de frutas y nueces",-22.972465,"Variación de existencias (PC)",2015]
["P054","Preparados para alimentación animal",-4.8420059999999996,"Variación de existencias (PC)",2015]
["P058","Aguas minerales y otras aguas embotelladas",7.0506270000000004,"Variación de existencias (PC)",2015]
["P075","Productos farmacéuticos",31.921686000000001,"Variación de existencias (PC)",2015]
["P082","Métales básicos de hierro y acero, productos primarios de metales preciosos y otros metales no ferrosos",89.760369999999995,"Variación de existencias (PC)",2015]
["P096","Agua natural y distribución de agua natural",0,"Variación de existencias (PC)",2015]
["P110","Servicio de alojamiento",0,"Variación de existencias (PC)",2015]
["P117","Servicios auxiliares de la intermediación financiera",0,"Variación de existencias (PC)",2015]
["P127","Servicios de agencias de viajes, operadores turísticos y actividades conexas",0,"Variación de existencias (PC)",2015]
["P146","Servicios audiovisuales, recreativos, culturales y deportivos",0,"Variación de existencias (PC)",2015]
["P003","Leguminosas (legumbres secas) y semillas oleaginosas",0,"Ajuste CIF/FOB",2015]
["P015","Palma africana",0,"Ajuste CIF/FOB",2015]
["P027","Troncos de madera y leña",0,"Ajuste CIF/FOB",2015]
["P036","Carne y despojos comestibles de aves",0,"Ajuste CIF/FOB",2015]
["P044","Margarina, grasas y otros aceites de origen animal y vegetal",0,"Ajuste CIF/FOB",2015]
["P057","Bebidas no alcohólicas",0,"Ajuste CIF/FOB",2015]
["P072","Pinturas, barnices, tintas y productos relacionados",0,"Ajuste CIF/FOB",2015]
["P086","Electrodomésticos y sus partes",0,"Ajuste CIF/FOB",2015]
["P089","Equipo y aparatos de radio, televisión y comunicaciones",0,"Ajuste CIF/FOB",2015]
["P107","Servicios de almacenamiento y depósito",0,"Ajuste CIF/FOB",2015]
["P117","Servicios auxiliares de la intermediación financiera",0,"Ajuste CIF/FOB",2015]
["P128","Servicios de seguridad, sistemas de seguridad e investigación privada",0,"Ajuste CIF/FOB",2015]
["P137","Servicios públicos del gobierno general",0,"Ajuste CIF/FOB",2015]
["P152","Compras directas en el territorio nacional por no residentes",0,"Ajuste CIF/FOB",2015]
["P006","Hortalizas",5913.0187040000001,"Producción (PB)",2016]
["P024","Leche cruda",2013.6142050000001,"Producción (PB)",2016]
["P027","Troncos de madera y leña",5321.8266460000004,"Producción (PB)",2016]
["P041","Preparaciones y conservas de frutas y nueces",1193.033854,"Producción (PB)",2016]
["P060","Prendas de vestir, adobo y teñido de pieles",7285.2460010000004,"Producción (PB)",2016]
["P069","Aceites, grasas lubricantes y otros aceites preparados",0,"Producción (PB)",2016]
["P077","Vidrio y productos de vidrio",890.75102800000002,"Producción (PB)",2016]
["P086","Electrodomésticos y sus partes",0,"Producción (PB)",2016]
["P098","Edificaciones residenciales",21363.631829000002,"Producción (PB)",2016]
["P110","Servicio de alojamiento",2447.9933500000002,"Producción (PB)",2016]
["P119","Otros servicios inmobiliarios, excepto alquiler de vivienda",13073.950459,"Producción (PB)",2016]
["P138","Servicios públicos administrativos relacionados con la provisión de servicios educativos, de salud, servicios sociales, culturales y otros, sin contar los servicios de seguridad social",1763.015578,"Producción (PB)",2016]
["P152","Compras directas en el territorio nacional por no residentes",0,"Producción (PB)",2016]
["P003","Leguminosas (legumbres secas) y semillas oleaginosas",0,"Impuestos sobre los productos, excepto IVA e impuestos sobre las importaciones",2016]
["P017","Cardamomo",0,"Impuestos sobre los productos, excepto IVA e impuestos sobre las importaciones",2016]
["P031","Petróleo crudo y gas natural",0,"Impuestos sobre los productos, excepto IVA e impuestos sobre las importaciones",2016]
["P038","Pescado congelado, preparado o en conserva y sus productos",0,"Impuestos sobre los productos, excepto IVA e impuestos sobre las importaciones",2016]
["P048","Arroz sin cáscara",0,"Impuestos sobre los productos, excepto IVA e impuestos sobre las importaciones",2016]
["P059","Hilados, tejidos, telas y otros productos textiles excepto prendas de vestir",0,"Impuestos sobre los productos, excepto IVA e impuestos sobre las importaciones",2016]
["P072","Pinturas, barnices, tintas y productos relacionados",0,"Impuestos sobre los productos, excepto IVA e impuestos sobre las importaciones",2016]
["P092","Muebles",0,"Impuestos sobre los productos, excepto IVA e impuestos sobre las importaciones",2016]
["P100","Obras de ingeniería civil",0,"Impuestos sobre los productos, excepto IVA e impuestos sobre las importaciones",2016]
["P109","Servicios postales y de mensajería",0,"Impuestos sobre los productos, excepto IVA e impuestos sobre las importaciones",2016]
["P117","Servicios auxiliares de la intermediación financiera",0,"Impuestos sobre los productos, excepto IVA e impuestos sobre las importaciones",2016]
["P130","Servicios telefónicos de centros de llamadas",0,"Impuestos sobre los productos, excepto IVA e impuestos sobre las importaciones",2016]
["P143","Servicios de hospitalización",0,"Impuestos sobre los productos, excepto IVA e impuestos sobre las importaciones",2016]
["P152","Compras directas en el territorio nacional por no residentes",0,"Impuestos sobre los productos, excepto IVA e impuestos sobre las importaciones",2016]
["P020","Otros frutos oleaginosos, otras plantas bebestibles y especias aromáticas",0,"Subvenciones a los productos",2016]
["P028","Productos forestales no madereros",0,"Subvenciones a los productos",2016]
["P041","Preparaciones y conservas de frutas y nueces",0,"Subvenciones a los productos",2016]
["P052","Azúcar de caña sin refinar y refinada, melaza y los demás azúcares n.c.p.",0,"Subvenciones a los productos",2016]
["P062","Calzado y sus partes, de cualquier material y de cualquier uso",0,"Subvenciones a los productos",2016]
["P069","Aceites, grasas lubricantes y otros aceites preparados",0,"Subvenciones a los productos",2016]
["P083","Productos metálicos estructurales y sus partes de hierro o de acero",0,"Subvenciones a los productos",2016]
["P097","Evacuación de aguas residuales, recogida, tratamiento y eliminación de desechos",0,"Subvenciones a los productos",2016]
["P112","Servicios de información, telecomunicaciones y radiodifusión",0,"Subvenciones a los productos",2016]
["P125","Servicios de arrendamiento o alquiler sin operador",0,"Subvenciones a los productos",2016]
["P133","Servicios de reparación de otros bienes",0,"Subvenciones a los productos",2016]
["P142","Servicios de enseñanza",0,"Subvenciones a los productos",2016]
["P002","Frijoles",119.055618,"Importaciones (CIF)",2016]
["P014","Berries, otras frutas y semillas de frutas",467.31563799999998,"Importaciones (CIF)",2016]
["P023","Aves de corral",114.896629,"Importaciones (CIF)",2016]
["P042","Jugos de frutas",94.023456999999993,"Importaciones (CIF)",2016]
["P052","Azúcar de caña sin refinar y refinada, melaza y los demás azúcares n.c.p.",5.4029179999999997,"Importaciones (CIF)",2016]
["P059","Hilados, tejidos, telas y otros productos textiles excepto prendas de vestir",1997.3841649999999,"Importaciones (CIF)",2016]
["P073","Jabón, preparados de limpieza, perfumes y preparados de toilet",2469.858056,"Importaciones (CIF)",2016]
["P087","Maquinaria de oficina, contabilidad e informática, sus partes y piezas",1632.9631300000001,"Importaciones (CIF)",2016]
["P094","Residuos y desechos",327.51172000000003,"Importaciones (CIF)",2016]
["P111","Servicio de suministro de comidas y bebidas",15.509237000000001,"Importaciones (CIF)",2016]
["P115","Servicios de Intermediación Financiera Medidos Indirectamente (SIFMI)",1050.664389,"Importaciones (CIF)",2016]
["P128","Servicios de seguridad, sistemas de seguridad e investigación privada",0,"Importaciones (CIF)",2016]
["P136","Servicios de manufactura",0,"Importaciones (CIF)",2016]
["P005","Otros cereales",2.9500000000000001E-4,"Impuestos y derechos sobre las importaciones excepto IVA",2016]
["P011","Tabaco y otras plantas no perennes",4.3347999999999998E-2,"Impuestos y derechos sobre las importaciones excepto IVA",2016]
["P026","Otros productos de animales vivos",8.8470000000000007E-3,"Impuestos y derechos sobre las importaciones excepto IVA",2016]
["P039","Crustáceos, moluscos y demás invertebrados acuáticos congelados, preparados o en conserva y sus productos",1.0493969999999999,"Impuestos y derechos sobre las importaciones excepto IVA",2016]
["P043","Aceites de origen vegetal",4.2450840000000003,"Impuestos y derechos sobre las importaciones excepto IVA",2016]
["P056","Malta y cerveza de malta",35.462890000000002,"Impuestos y derechos sobre las importaciones excepto IVA",2016]
["P064","Pasta de papel y papel",30.085167999999999,"Impuestos y derechos sobre las importaciones excepto IVA",2016]
["P084","Otros productos elaborados de metal",62.367817000000002,"Impuestos y derechos sobre las importaciones excepto IVA",2016]
["P097","Evacuación de aguas residuales, recogida, tratamiento y eliminación de desechos",0,"Impuestos y derechos sobre las importaciones excepto IVA",2016]
["P108","Otros servicios de apoyo al transporte",0,"Impuestos y derechos sobre las importaciones excepto IVA",2016]
["P118","Servicios de alquiler de vivienda",0,"Impuestos y derechos sobre las importaciones excepto IVA",2016]
["P125","Servicios de arrendamiento o alquiler sin operador",0,"Impuestos y derechos sobre las importaciones excepto IVA",2016]
["P135","Servicios de apoyo a la explotación de minas y canteras y los relacionados con la distribución de electricidad, gas y agua",0,"Impuestos y derechos sobre las importaciones excepto IVA",2016]
["P001","Maíz",66.6374,"Impuesto tipo valor agregado (IVA)",2016]
["P004","Arroz",0.27086900000000003,"Impuesto tipo valor agregado (IVA)",2016]
["P018","Caucho natural",0,"Impuesto tipo valor agregado (IVA)",2016]
["P037","Carne y despojos de otros animales y conservas y preparados de carne",180.94756599999999,"Impuesto tipo valor agregado (IVA)",2016]
["P042","Jugos de frutas",112.42877,"Impuesto tipo valor agregado (IVA)",2016]
["P058","Aguas minerales y otras aguas embotelladas",123.314243,"Impuesto tipo valor agregado (IVA)",2016]
["P070","Gases de petróleo, otros productos de la refinación de petróleo n.c.p.",273.79218600000002,"Impuesto tipo valor agregado (IVA)",2016]
["P079","Cemento, cal y yeso",93.056646000000001,"Impuesto tipo valor agregado (IVA)",2016]
["P087","Maquinaria de oficina, contabilidad e informática, sus partes y piezas",94.042613000000003,"Impuesto tipo valor agregado (IVA)",2016]
["P096","Agua natural y distribución de agua natural",106.016003,"Impuesto tipo valor agregado (IVA)",2016]
["P115","Servicios de Intermediación Financiera Medidos Indirectamente (SIFMI)",0,"Impuesto tipo valor agregado (IVA)",2016]
["P129","Servicios de limpieza",25.780846,"Impuesto tipo valor agregado (IVA)",2016]
["P139","Otros servicios administrativos",0,"Impuesto tipo valor agregado (IVA)",2016]
["P150","Servicios domésticos",0,"Impuesto tipo valor agregado (IVA)",2016]
["P007","Sandías y melones",316.79915799999998,"Márgenes de comercio, transporte y distribución de energía",2016]
["P015","Palma africana",15.229023,"Márgenes de comercio, transporte y distribución de energía",2016]
["P028","Productos forestales no madereros",32.346589999999999,"Márgenes de comercio, transporte y distribución de energía",2016]
["P039","Crustáceos, moluscos y demás invertebrados acuáticos congelados, preparados o en conserva y sus productos",97.818618999999998,"Márgenes de comercio, transporte y distribución de energía",2016]
["P049","Otros productos de molinería, almidones y productos de almidón",933.737842,"Márgenes de comercio, transporte y distribución de energía",2016]
["P067","Productos de la impresión",414.07096200000001,"Márgenes de comercio, transporte y distribución de energía",2016]
["P078","Productos de cerámica y arcilla",433.96561000000003,"Márgenes de comercio, transporte y distribución de energía",2016]
["P084","Otros productos elaborados de metal",697.82606499999997,"Márgenes de comercio, transporte y distribución de energía",2016]
["P099","Edificaciones no residenciales",0,"Márgenes de comercio, transporte y distribución de energía",2016]
["P112","Servicios de información, telecomunicaciones y radiodifusión",0,"Márgenes de comercio, transporte y distribución de energía",2016]
["P120","Servicios jurídicos, de contabilidad, auditoría, teneduría de libros y consultoría fiscal",0,"Márgenes de comercio, transporte y distribución de energía",2016]
["P136","Servicios de manufactura",0,"Márgenes de comercio, transporte y distribución de energía",2016]
["P141","Servicios administrativos relacionados con los sistemas de seguridad social de afiliación obligatoria",0,"Márgenes de comercio, transporte y distribución de energía",2016]
["P001","Maíz",3597.5077160000001,"Consumo Intermedio (PC)",2016]
["P022","Ganado porcino y otro tipo de animales vivos n.c.p.",1487.8502739999999,"Consumo Intermedio (PC)",2016]
["P029","Peces vivos, frescos o refrigerados",42.588656,"Consumo Intermedio (PC)",2016]
["P039","Crustáceos, moluscos y demás invertebrados acuáticos congelados, preparados o en conserva y sus productos",413.23049700000001,"Consumo Intermedio (PC)",2016]
["P046","Otros productos lácteos n.c.p.",699.24469199999999,"Consumo Intermedio (PC)",2016]
["P060","Prendas de vestir, adobo y teñido de pieles",880.87507000000005,"Consumo Intermedio (PC)",2016]
["P070","Gases de petróleo, otros productos de la refinación de petróleo n.c.p.",1264.84292,"Consumo Intermedio (PC)",2016]
["P081","Piedras talladas para construcción y otros productos minerales no metálicos n.c.p.",585.39810699999998,"Consumo Intermedio (PC)",2016]
["P098","Edificaciones residenciales",0,"Consumo Intermedio (PC)",2016]
["P114","Otros servicios financieros y servicios de banca de inversión",2415.7379839999999,"Consumo Intermedio (PC)",2016]
["P115","Servicios de Intermediación Financiera Medidos Indirectamente (SIFMI)",6669.7693579999996,"Consumo Intermedio (PC)",2016]
["P131","Servicios administrativos, de apoyo de oficina y otros servicios de apoyo a las empresas",2294.0058210000002,"Consumo Intermedio (PC)",2016]
["P143","Servicios de hospitalización",0,"Consumo Intermedio (PC)",2016]
["P152","Compras directas en el territorio nacional por no residentes",0,"Consumo Intermedio (PC)",2016]
["P013","Frutas tropicales y subtropicales",4483.6474500000004,"Consumo Final privado (PC)",2016]
["P026","Otros productos de animales vivos",37.768985999999998,"Consumo Final privado (PC)",2016]
["P042","Jugos de frutas",1673.652108,"Consumo Final privado (PC)",2016]
["P054","Preparados para alimentación animal",548.382113,"Consumo Final privado (PC)",2016]
["P063","Madera aserrada y acepillada, productos de madera, corcho, paja y materiales trenzables",61.399203,"Consumo Final privado (PC)",2016]
["P067","Productos de la impresión",336.89740699999999,"Consumo Final privado (PC)",2016]
["P084","Otros productos elaborados de metal",1043.638299,"Consumo Final privado (PC)",2016]
["P095","Generación y distribución de energía eléctrica, gas, vapor y aire acondicionado",4983.6566110000003,"Consumo Final privado (PC)",2016]
["P105","Servicio de transporte de carga por vía terrestre",24.041574000000001,"Consumo Final privado (PC)",2016]
["P123","Otros servicios profesionales, científicos y técnicos",148.60540599999999,"Consumo Final privado (PC)",2016]
["P134","Servicios de apoyo a la agricultura, caza, silvicultura y pesca",0,"Consumo Final privado (PC)",2016]
["P140","Servicios públicos administrativos prestados a la comunidad en su conjunto",579.33466599999997,"Consumo Final privado (PC)",2016]
["P003","Leguminosas (legumbres secas) y semillas oleaginosas",0,"Consumo Final del Gobierno (PC)",2016]
["P012","Bananos, plátanos y otros",0,"Consumo Final del Gobierno (PC)",2016]
["P024","Leche cruda",0,"Consumo Final del Gobierno (PC)",2016]
["P040","Vegetales preparados o en conserva, legumbres y papas",0,"Consumo Final del Gobierno (PC)",2016]
["P045","Leche líquida y crema procesada",0,"Consumo Final del Gobierno (PC)",2016]
["P057","Bebidas no alcohólicas",2.7705310000000001,"Consumo Final del Gobierno (PC)",2016]
["P074","Otros productos químicos",0,"Consumo Final del Gobierno (PC)",2016]
["P085","Maquinaria para usos generales y especiales, sus partes y piezas, excepto electrodomésticos",0,"Consumo Final del Gobierno (PC)",2016]
["P095","Generación y distribución de energía eléctrica, gas, vapor y aire acondicionado",0,"Consumo Final del Gobierno (PC)",2016]
["P102","Servicios de comercio",0,"Consumo Final del Gobierno (PC)",2016]
["P116","Servicios de seguro, reaseguro y fondos de pensiones",0,"Consumo Final del Gobierno (PC)",2016]
["P126","Servicios  de agencias de empleo y de dotación de recursos humanos",0,"Consumo Final del Gobierno (PC)",2016]
["P137","Servicios públicos del gobierno general",10112.285647999999,"Consumo Final del Gobierno (PC)",2016]
["P002","Frijoles",0,"Formación Bruta de Capital Fijo (PC)",2016]
["P014","Berries, otras frutas y semillas de frutas",168.866974,"Formación Bruta de Capital Fijo (PC)",2016]
["P027","Troncos de madera y leña",0,"Formación Bruta de Capital Fijo (PC)",2016]
["P037","Carne y despojos de otros animales y conservas y preparados de carne",0,"Formación Bruta de Capital Fijo (PC)",2016]
["P048","Arroz sin cáscara",0,"Formación Bruta de Capital Fijo (PC)",2016]
["P054","Preparados para alimentación animal",0,"Formación Bruta de Capital Fijo (PC)",2016]
["P065","Envases de papel y cartón",0,"Formación Bruta de Capital Fijo (PC)",2016]
["P082","Métales básicos de hierro y acero, productos primarios de metales preciosos y otros metales no ferrosos",0,"Formación Bruta de Capital Fijo (PC)",2016]
["P086","Electrodomésticos y sus partes",220.052639,"Formación Bruta de Capital Fijo (PC)",2016]
["P099","Edificaciones no residenciales",8297.7710559999996,"Formación Bruta de Capital Fijo (PC)",2016]
["P119","Otros servicios inmobiliarios, excepto alquiler de vivienda",0,"Formación Bruta de Capital Fijo (PC)",2016]
["P123","Otros servicios profesionales, científicos y técnicos",358.44322399999999,"Formación Bruta de Capital Fijo (PC)",2016]
["P140","Servicios públicos administrativos prestados a la comunidad en su conjunto",0,"Formación Bruta de Capital Fijo (PC)",2016]
["P151","Compras directas en el exterior por residentes",39.587062000000003,"Formación Bruta de Capital Fijo (PC)",2016]
["P005","Otros cereales",0.553921,"Exportaciones (fob)",2016]
["P016","Café en grano",4954.785578,"Exportaciones (fob)",2016]
["P026","Otros productos de animales vivos",41.659506999999998,"Exportaciones (fob)",2016]
["P044","Margarina, grasas y otros aceites de origen animal y vegetal",324.25400200000001,"Exportaciones (fob)",2016]
["P059","Hilados, tejidos, telas y otros productos textiles excepto prendas de vestir",1504.6030960000001,"Exportaciones (fob)",2016]
["P068","Gasolinas, diésel oil y fuel oils",760.69744300000002,"Exportaciones (fob)",2016]
["P080","Artículos de hormigón, cemento y yeso",11.852905,"Exportaciones (fob)",2016]
["P085","Maquinaria para usos generales y especiales, sus partes y piezas, excepto electrodomésticos",748.22224700000004,"Exportaciones (fob)",2016]
["P097","Evacuación de aguas residuales, recogida, tratamiento y eliminación de desechos",0,"Exportaciones (fob)",2016]
["P113","Servicios de banco central",0,"Exportaciones (fob)",2016]
["P118","Servicios de alquiler de vivienda",0,"Exportaciones (fob)",2016]
["P130","Servicios telefónicos de centros de llamadas",3168.0172229999998,"Exportaciones (fob)",2016]
["P151","Compras directas en el exterior por residentes",0,"Exportaciones (fob)",2016]
["P002","Frijoles",-3.9031479999999998,"Variación de existencias (PC)",2016]
["P020","Otros frutos oleaginosos, otras plantas bebestibles y especias aromáticas",0,"Variación de existencias (PC)",2016]
["P029","Peces vivos, frescos o refrigerados",0,"Variación de existencias (PC)",2016]
["P041","Preparaciones y conservas de frutas y nueces",-8.9660890000000002,"Variación de existencias (PC)",2016]
["P050","Pan y otros productos de panadería y repostería n.c.p.",4.7133469999999997,"Variación de existencias (PC)",2016]
["P065","Envases de papel y cartón",-26.947099000000001,"Variación de existencias (PC)",2016]
["P071","Abonos, fertilizantes y pesticidas",-33.225279,"Variación de existencias (PC)",2016]
["P082","Métales básicos de hierro y acero, productos primarios de metales preciosos y otros metales no ferrosos",-14.947498,"Variación de existencias (PC)",2016]
["P100","Obras de ingeniería civil",0,"Variación de existencias (PC)",2016]
["P110","Servicio de alojamiento",0,"Variación de existencias (PC)",2016]
["P121","Servicios de tecnología de la información",0,"Variación de existencias (PC)",2016]
["P127","Servicios de agencias de viajes, operadores turísticos y actividades conexas",0,"Variación de existencias (PC)",2016]
["P142","Servicios de enseñanza",0,"Variación de existencias (PC)",2016]
["P151","Compras directas en el exterior por residentes",0,"Variación de existencias (PC)",2016]
["P011","Tabaco y otras plantas no perennes",0,"Ajuste CIF/FOB",2016]
["P027","Troncos de madera y leña",0,"Ajuste CIF/FOB",2016]
["P040","Vegetales preparados o en conserva, legumbres y papas",0,"Ajuste CIF/FOB",2016]
["P044","Margarina, grasas y otros aceites de origen animal y vegetal",0,"Ajuste CIF/FOB",2016]
["P061","Cuero de piel curtida o adobada y cuero artificial o regenerado y artículos de cuero",0,"Ajuste CIF/FOB",2016]
["P072","Pinturas, barnices, tintas y productos relacionados",0,"Ajuste CIF/FOB",2016]
["P082","Métales básicos de hierro y acero, productos primarios de metales preciosos y otros metales no ferrosos",0,"Ajuste CIF/FOB",2016]
["P096","Agua natural y distribución de agua natural",0,"Ajuste CIF/FOB",2016]
["P103","Mantenimiento y reparación de vehículos automotores y motocicletas",0,"Ajuste CIF/FOB",2016]
["P113","Servicios de banco central",0,"Ajuste CIF/FOB",2016]
["P124","Servicios de publicidad y estudios de mercado",0,"Ajuste CIF/FOB",2016]
["P141","Servicios administrativos relacionados con los sistemas de seguridad social de afiliación obligatoria",0,"Ajuste CIF/FOB",2016]
["P001","Maíz",4756.5473279999997,"Producción (PB)",2017]
["P017","Cardamomo",3712.903084,"Producción (PB)",2017]
["P022","Ganado porcino y otro tipo de animales vivos n.c.p.",1670.8193510000001,"Producción (PB)",2017]
["P031","Petróleo crudo y gas natural",916.481585,"Producción (PB)",2017]
["P052","Azúcar de caña sin refinar y refinada, melaza y los demás azúcares n.c.p.",11796.937357000001,"Producción (PB)",2017]
["P064","Pasta de papel y papel",1974.268785,"Producción (PB)",2017]
["P069","Aceites, grasas lubricantes y otros aceites preparados",0,"Producción (PB)",2017]
["P085","Maquinaria para usos generales y especiales, sus partes y piezas, excepto electrodomésticos",1512.7262330000001,"Producción (PB)",2017]
["P093","Otros artículos n.c.p.",1728.017067,"Producción (PB)",2017]
["P106","Otros tipos de transporte",653.26496399999996,"Producción (PB)",2017]
["P121","Servicios de tecnología de la información",2597.3511149999999,"Producción (PB)",2017]
["P127","Servicios de agencias de viajes, operadores turísticos y actividades conexas",858.97389399999997,"Producción (PB)",2017]
["P138","Servicios públicos administrativos relacionados con la provisión de servicios educativos, de salud, servicios sociales, culturales y otros, sin contar los servicios de seguridad social",1970.860895,"Producción (PB)",2017]
["P004","Arroz",0,"Impuestos sobre los productos, excepto IVA e impuestos sobre las importaciones",2017]
["P014","Berries, otras frutas y semillas de frutas",0,"Impuestos sobre los productos, excepto IVA e impuestos sobre las importaciones",2017]
["P025","Huevos",0,"Impuestos sobre los productos, excepto IVA e impuestos sobre las importaciones",2017]
["P038","Pescado congelado, preparado o en conserva y sus productos",0,"Impuestos sobre los productos, excepto IVA e impuestos sobre las importaciones",2017]
["P046","Otros productos lácteos n.c.p.",1.595974,"Impuestos sobre los productos, excepto IVA e impuestos sobre las importaciones",2017]
["P055","Aguardientes, licores, vinos, demás bebidas espirituosas y productos del tabaco",444.11696699999999,"Impuestos sobre los productos, excepto IVA e impuestos sobre las importaciones",2017]
["P067","Productos de la impresión",0,"Impuestos sobre los productos, excepto IVA e impuestos sobre las importaciones",2017]
["P083","Productos metálicos estructurales y sus partes de hierro o de acero",0,"Impuestos sobre los productos, excepto IVA e impuestos sobre las importaciones",2017]
["P096","Agua natural y distribución de agua natural",0,"Impuestos sobre los productos, excepto IVA e impuestos sobre las importaciones",2017]
["P100","Obras de ingeniería civil",0,"Impuestos sobre los productos, excepto IVA e impuestos sobre las importaciones",2017]
["P117","Servicios auxiliares de la intermediación financiera",0,"Impuestos sobre los productos, excepto IVA e impuestos sobre las importaciones",2017]
["P124","Servicios de publicidad y estudios de mercado",0,"Impuestos sobre los productos, excepto IVA e impuestos sobre las importaciones",2017]
["P138","Servicios públicos administrativos relacionados con la provisión de servicios educativos, de salud, servicios sociales, culturales y otros, sin contar los servicios de seguridad social",0,"Impuestos sobre los productos, excepto IVA e impuestos sobre las importaciones",2017]
["P152","Compras directas en el territorio nacional por no residentes",0,"Impuestos sobre los productos, excepto IVA e impuestos sobre las importaciones",2017]
["P007","Sandías y melones",0,"Subvenciones a los productos",2017]
["P017","Cardamomo",0,"Subvenciones a los productos",2017]
["P036","Carne y despojos comestibles de aves",0,"Subvenciones a los productos",2017]
["P037","Carne y despojos de otros animales y conservas y preparados de carne",0,"Subvenciones a los productos",2017]
["P052","Azúcar de caña sin refinar y refinada, melaza y los demás azúcares n.c.p.",0,"Subvenciones a los productos",2017]
["P070","Gases de petróleo, otros productos de la refinación de petróleo n.c.p.",0,"Subvenciones a los productos",2017]
["P080","Artículos de hormigón, cemento y yeso",0,"Subvenciones a los productos",2017]
["P087","Maquinaria de oficina, contabilidad e informática, sus partes y piezas",0,"Subvenciones a los productos",2017]
["P097","Evacuación de aguas residuales, recogida, tratamiento y eliminación de desechos",0,"Subvenciones a los productos",2017]
["P108","Otros servicios de apoyo al transporte",0,"Subvenciones a los productos",2017]
["P121","Servicios de tecnología de la información",0,"Subvenciones a los productos",2017]
["P129","Servicios de limpieza",0,"Subvenciones a los productos",2017]
["P149","Otros servicios",0,"Subvenciones a los productos",2017]
["P010","Caña de azúcar y otras plantas azucareras",2.6609000000000001E-2,"Importaciones (CIF)",2017]
["P014","Berries, otras frutas y semillas de frutas",435.66247499999997,"Importaciones (CIF)",2017]
["P027","Troncos de madera y leña",0.94832899999999998,"Importaciones (CIF)",2017]
["P042","Jugos de frutas",82.762422000000001,"Importaciones (CIF)",2017]
["P048","Arroz sin cáscara",102.147395,"Importaciones (CIF)",2017]
["P066","Productos de la edición",470.07105100000001,"Importaciones (CIF)",2017]
["P069","Aceites, grasas lubricantes y otros aceites preparados",876.29260299999999,"Importaciones (CIF)",2017]
["P083","Productos metálicos estructurales y sus partes de hierro o de acero",393.87699700000002,"Importaciones (CIF)",2017]
["P102","Servicios de comercio",0,"Importaciones (CIF)",2017]
["P111","Servicio de suministro de comidas y bebidas",15.667319000000001,"Importaciones (CIF)",2017]
["P119","Otros servicios inmobiliarios, excepto alquiler de vivienda",0,"Importaciones (CIF)",2017]
["P128","Servicios de seguridad, sistemas de seguridad e investigación privada",0,"Importaciones (CIF)",2017]
["P140","Servicios públicos administrativos prestados a la comunidad en su conjunto",246.4118,"Importaciones (CIF)",2017]
["P004","Arroz",4.2451569999999998,"Impuestos y derechos sobre las importaciones excepto IVA",2017]
["P009","Raíces y tubérculos",2.4370669999999999,"Impuestos y derechos sobre las importaciones excepto IVA",2017]
["P028","Productos forestales no madereros",2.7807999999999999E-2,"Impuestos y derechos sobre las importaciones excepto IVA",2017]
["P042","Jugos de frutas",0.46360699999999999,"Impuestos y derechos sobre las importaciones excepto IVA",2017]
["P051","Tortillas de maíz, incluso tostadas, horneadas o fritas",0,"Impuestos y derechos sobre las importaciones excepto IVA",2017]
["P063","Madera aserrada y acepillada, productos de madera, corcho, paja y materiales trenzables",20.124915999999999,"Impuestos y derechos sobre las importaciones excepto IVA",2017]
["P072","Pinturas, barnices, tintas y productos relacionados",11.812979,"Impuestos y derechos sobre las importaciones excepto IVA",2017]
["P080","Artículos de hormigón, cemento y yeso",1.086514,"Impuestos y derechos sobre las importaciones excepto IVA",2017]
["P093","Otros artículos n.c.p.",187.955725,"Impuestos y derechos sobre las importaciones excepto IVA",2017]
["P108","Otros servicios de apoyo al transporte",0,"Impuestos y derechos sobre las importaciones excepto IVA",2017]
["P122","Servicios de arquitectura e ingeniería, ensayos y análisis técnicos",0,"Impuestos y derechos sobre las importaciones excepto IVA",2017]
["P125","Servicios de arrendamiento o alquiler sin operador",0,"Impuestos y derechos sobre las importaciones excepto IVA",2017]
["P143","Servicios de hospitalización",0,"Impuestos y derechos sobre las importaciones excepto IVA",2017]
["P001","Maíz",74.990100999999996,"Impuesto tipo valor agregado (IVA)",2017]
["P012","Bananos, plátanos y otros",37.431379,"Impuesto tipo valor agregado (IVA)",2017]
["P025","Huevos",216.358396,"Impuesto tipo valor agregado (IVA)",2017]
["P033","Minerales no metálicos",19.397615999999999,"Impuesto tipo valor agregado (IVA)",2017]
["P042","Jugos de frutas",122.209701,"Impuesto tipo valor agregado (IVA)",2017]
["P062","Calzado y sus partes, de cualquier material y de cualquier uso",299.24541499999998,"Impuesto tipo valor agregado (IVA)",2017]
["P070","Gases de petróleo, otros productos de la refinación de petróleo n.c.p.",344.13611400000002,"Impuesto tipo valor agregado (IVA)",2017]
["P083","Productos metálicos estructurales y sus partes de hierro o de acero",25.093513999999999,"Impuesto tipo valor agregado (IVA)",2017]
["P098","Edificaciones residenciales",534.24540000000002,"Impuesto tipo valor agregado (IVA)",2017]
["P104","Servicio de transporte de pasajeros por vía terrestre",359.62573800000001,"Impuesto tipo valor agregado (IVA)",2017]
["P111","Servicio de suministro de comidas y bebidas",1728.1607369999999,"Impuesto tipo valor agregado (IVA)",2017]
["P125","Servicios de arrendamiento o alquiler sin operador",111.781828,"Impuesto tipo valor agregado (IVA)",2017]
["P139","Otros servicios administrativos",0,"Impuesto tipo valor agregado (IVA)",2017]
["P002","Frijoles",1018.593894,"Márgenes de comercio, transporte y distribución de energía",2017]
["P015","Palma africana",17.144559000000001,"Márgenes de comercio, transporte y distribución de energía",2017]
["P023","Aves de corral",642.103027,"Márgenes de comercio, transporte y distribución de energía",2017]
["P032","Minerales metálicos",1.9819E-2,"Márgenes de comercio, transporte y distribución de energía",2017]
["P044","Margarina, grasas y otros aceites de origen animal y vegetal",508.41512999999998,"Márgenes de comercio, transporte y distribución de energía",2017]
["P053","Productos alimenticios n.c.p.",5215.341359,"Márgenes de comercio, transporte y distribución de energía",2017]
["P067","Productos de la impresión",418.16017799999997,"Márgenes de comercio, transporte y distribución de energía",2017]
["P074","Otros productos químicos",1098.372942,"Márgenes de comercio, transporte y distribución de energía",2017]
["P095","Generación y distribución de energía eléctrica, gas, vapor y aire acondicionado",1370.6477239999999,"Márgenes de comercio, transporte y distribución de energía",2017]
["P107","Servicios de almacenamiento y depósito",0,"Márgenes de comercio, transporte y distribución de energía",2017]
["P119","Otros servicios inmobiliarios, excepto alquiler de vivienda",0,"Márgenes de comercio, transporte y distribución de energía",2017]
["P128","Servicios de seguridad, sistemas de seguridad e investigación privada",0,"Márgenes de comercio, transporte y distribución de energía",2017]
["P136","Servicios de manufactura",0,"Márgenes de comercio, transporte y distribución de energía",2017]
["P145","Otros servicios de atención de la salud humana",0,"Márgenes de comercio, transporte y distribución de energía",2017]
["P012","Bananos, plátanos y otros",159.51902799999999,"Consumo Intermedio (PC)",2017]
["P014","Berries, otras frutas y semillas de frutas",583.48468600000001,"Consumo Intermedio (PC)",2017]
["P029","Peces vivos, frescos o refrigerados",49.917537000000003,"Consumo Intermedio (PC)",2017]
["P047","Harina de trigo",2321.1997150000002,"Consumo Intermedio (PC)",2017]
["P053","Productos alimenticios n.c.p.",4140.8692799999999,"Consumo Intermedio (PC)",2017]
["P068","Gasolinas, diésel oil y fuel oils",10377.555568,"Consumo Intermedio (PC)",2017]
["P081","Piedras talladas para construcción y otros productos minerales no metálicos n.c.p.",594.15315299999997,"Consumo Intermedio (PC)",2017]
["P089","Equipo y aparatos de radio, televisión y comunicaciones",967.85341700000004,"Consumo Intermedio (PC)",2017]
["P098","Edificaciones residenciales",0,"Consumo Intermedio (PC)",2017]
["P106","Otros tipos de transporte",754.97037699999998,"Consumo Intermedio (PC)",2017]
["P126","Servicios  de agencias de empleo y de dotación de recursos humanos",6695.7247029999999,"Consumo Intermedio (PC)",2017]
["P139","Otros servicios administrativos",0,"Consumo Intermedio (PC)",2017]
["P150","Servicios domésticos",0,"Consumo Intermedio (PC)",2017]
["P008","Ejotes y arvejas",317.082337,"Consumo Final privado (PC)",2017]
["P015","Palma africana",0,"Consumo Final privado (PC)",2017]
["P029","Peces vivos, frescos o refrigerados",1750.9183519999999,"Consumo Final privado (PC)",2017]
["P043","Aceites de origen vegetal",2775.8603029999999,"Consumo Final privado (PC)",2017]
["P046","Otros productos lácteos n.c.p.",4767.26206,"Consumo Final privado (PC)",2017]
["P059","Hilados, tejidos, telas y otros productos textiles excepto prendas de vestir",3143.5462779999998,"Consumo Final privado (PC)",2017]
["P078","Productos de cerámica y arcilla",373.96734400000003,"Consumo Final privado (PC)",2017]
["P088","Maquinaria y aparatos eléctricos, sus partes y piezas",400.93095699999998,"Consumo Final privado (PC)",2017]
["P095","Generación y distribución de energía eléctrica, gas, vapor y aire acondicionado",5119.9505760000002,"Consumo Final privado (PC)",2017]
["P109","Servicios postales y de mensajería",401.42098600000003,"Consumo Final privado (PC)",2017]
["P123","Otros servicios profesionales, científicos y técnicos",154.37277800000001,"Consumo Final privado (PC)",2017]
["P130","Servicios telefónicos de centros de llamadas",0,"Consumo Final privado (PC)",2017]
["P147","Servicios de asociaciones que sirven a las empresas",0,"Consumo Final privado (PC)",2017]
["P151","Compras directas en el exterior por residentes",5769.7823840000001,"Consumo Final privado (PC)",2017]
["P012","Bananos, plátanos y otros",0,"Consumo Final del Gobierno (PC)",2017]
["P032","Minerales metálicos",0,"Consumo Final del Gobierno (PC)",2017]
["P040","Vegetales preparados o en conserva, legumbres y papas",0,"Consumo Final del Gobierno (PC)",2017]
["P049","Otros productos de molinería, almidones y productos de almidón",50.57311,"Consumo Final del Gobierno (PC)",2017]
["P057","Bebidas no alcohólicas",2.7670530000000002,"Consumo Final del Gobierno (PC)",2017]
["P070","Gases de petróleo, otros productos de la refinación de petróleo n.c.p.",0,"Consumo Final del Gobierno (PC)",2017]
["P081","Piedras talladas para construcción y otros productos minerales no metálicos n.c.p.",0,"Consumo Final del Gobierno (PC)",2017]
["P091","Equipo de transporte",0,"Consumo Final del Gobierno (PC)",2017]
["P109","Servicios postales y de mensajería",0,"Consumo Final del Gobierno (PC)",2017]
["P124","Servicios de publicidad y estudios de mercado",0,"Consumo Final del Gobierno (PC)",2017]
["P126","Servicios  de agencias de empleo y de dotación de recursos humanos",0,"Consumo Final del Gobierno (PC)",2017]
["P141","Servicios administrativos relacionados con los sistemas de seguridad social de afiliación obligatoria",853.18243800000005,"Consumo Final del Gobierno (PC)",2017]
["P002","Frijoles",0,"Formación Bruta de Capital Fijo (PC)",2017]
["P010","Caña de azúcar y otras plantas azucareras",0,"Formación Bruta de Capital Fijo (PC)",2017]
["P026","Otros productos de animales vivos",0,"Formación Bruta de Capital Fijo (PC)",2017]
["P031","Petróleo crudo y gas natural",0,"Formación Bruta de Capital Fijo (PC)",2017]
["P043","Aceites de origen vegetal",0,"Formación Bruta de Capital Fijo (PC)",2017]
["P064","Pasta de papel y papel",0,"Formación Bruta de Capital Fijo (PC)",2017]
["P073","Jabón, preparados de limpieza, perfumes y preparados de toilet",0,"Formación Bruta de Capital Fijo (PC)",2017]
["P078","Productos de cerámica y arcilla",0,"Formación Bruta de Capital Fijo (PC)",2017]
["P094","Residuos y desechos",0,"Formación Bruta de Capital Fijo (PC)",2017]
["P106","Otros tipos de transporte",0,"Formación Bruta de Capital Fijo (PC)",2017]
["P115","Servicios de Intermediación Financiera Medidos Indirectamente (SIFMI)",0,"Formación Bruta de Capital Fijo (PC)",2017]
["P123","Otros servicios profesionales, científicos y técnicos",383.54368399999998,"Formación Bruta de Capital Fijo (PC)",2017]
["P144","Servicios médicos y dentales",0,"Formación Bruta de Capital Fijo (PC)",2017]
["P151","Compras directas en el exterior por residentes",10.245400999999999,"Formación Bruta de Capital Fijo (PC)",2017]
["P013","Frutas tropicales y subtropicales",414.64186599999999,"Exportaciones (fob)",2017]
["P023","Aves de corral",13.189325999999999,"Exportaciones (fob)",2017]
["P034","Carne y despojos comestibles de ganado bovino; cueros y pieles de bovino y de otros animales",58.723562000000001,"Exportaciones (fob)",2017]
["P040","Vegetales preparados o en conserva, legumbres y papas",622.57964700000002,"Exportaciones (fob)",2017]
["P055","Aguardientes, licores, vinos, demás bebidas espirituosas y productos del tabaco",762.522561,"Exportaciones (fob)",2017]
["P068","Gasolinas, diésel oil y fuel oils",741.02787999999998,"Exportaciones (fob)",2017]
["P084","Otros productos elaborados de metal",826.81675800000005,"Exportaciones (fob)",2017]
["P096","Agua natural y distribución de agua natural",0,"Exportaciones (fob)",2017]
["P105","Servicio de transporte de carga por vía terrestre",717.57988,"Exportaciones (fob)",2017]
["P113","Servicios de banco central",0,"Exportaciones (fob)",2017]
["P126","Servicios  de agencias de empleo y de dotación de recursos humanos",0,"Exportaciones (fob)",2017]
["P137","Servicios públicos del gobierno general",0,"Exportaciones (fob)",2017]
["P147","Servicios de asociaciones que sirven a las empresas",0,"Exportaciones (fob)",2017]
["P013","Frutas tropicales y subtropicales",0,"Variación de existencias (PC)",2017]
["P024","Leche cruda",0,"Variación de existencias (PC)",2017]
["P030","Crustáceos sin congelar y otros productos de la pesca",0,"Variación de existencias (PC)",2017]
["P045","Leche líquida y crema procesada",-2.1501619999999999,"Variación de existencias (PC)",2017]
["P058","Aguas minerales y otras aguas embotelladas",-35.670296999999998,"Variación de existencias (PC)",2017]
["P066","Productos de la edición",-14.172094,"Variación de existencias (PC)",2017]
["P075","Productos farmacéuticos",-9.7834210000000006,"Variación de existencias (PC)",2017]
["P093","Otros artículos n.c.p.",63.880718999999999,"Variación de existencias (PC)",2017]
["P096","Agua natural y distribución de agua natural",0,"Variación de existencias (PC)",2017]
["P117","Servicios auxiliares de la intermediación financiera",0,"Variación de existencias (PC)",2017]
["P129","Servicios de limpieza",0,"Variación de existencias (PC)",2017]
["P134","Servicios de apoyo a la agricultura, caza, silvicultura y pesca",0,"Variación de existencias (PC)",2017]
["P150","Servicios domésticos",0,"Variación de existencias (PC)",2017]
["P010","Caña de azúcar y otras plantas azucareras",0,"Ajuste CIF/FOB",2017]
["P015","Palma africana",0,"Ajuste CIF/FOB",2017]
["P027","Troncos de madera y leña",0,"Ajuste CIF/FOB",2017]
["P036","Carne y despojos comestibles de aves",0,"Ajuste CIF/FOB",2017]
["P055","Aguardientes, licores, vinos, demás bebidas espirituosas y productos del tabaco",0,"Ajuste CIF/FOB",2017]
["P069","Aceites, grasas lubricantes y otros aceites preparados",0,"Ajuste CIF/FOB",2017]
["P079","Cemento, cal y yeso",0,"Ajuste CIF/FOB",2017]
["P090","Aparatos médicos, instrumentos ópticos y de precisión, relojes",0,"Ajuste CIF/FOB",2017]
["P096","Agua natural y distribución de agua natural",0,"Ajuste CIF/FOB",2017]
["P107","Servicios de almacenamiento y depósito",0,"Ajuste CIF/FOB",2017]
["P124","Servicios de publicidad y estudios de mercado",0,"Ajuste CIF/FOB",2017]
["P128","Servicios de seguridad, sistemas de seguridad e investigación privada",0,"Ajuste CIF/FOB",2017]
["P141","Servicios administrativos relacionados con los sistemas de seguridad social de afiliación obligatoria",0,"Ajuste CIF/FOB",2017]
["P009","Raíces y tubérculos",2513.6847859999998,"Producción (PB)",2018]
["P013","Frutas tropicales y subtropicales",2259.708592,"Producción (PB)",2018]
["P030","Crustáceos sin congelar y otros productos de la pesca",810.75180799999998,"Producción (PB)",2018]
["P041","Preparaciones y conservas de frutas y nueces",1191.3809879999999,"Producción (PB)",2018]
["P051","Tortillas de maíz, incluso tostadas, horneadas o fritas",7114.9695359999996,"Producción (PB)",2018]
["P058","Aguas minerales y otras aguas embotelladas",1535.587933,"Producción (PB)",2018]
["P068","Gasolinas, diésel oil y fuel oils",129.047853,"Producción (PB)",2018]
["P081","Piedras talladas para construcción y otros productos minerales no metálicos n.c.p.",481.72397799999999,"Producción (PB)",2018]
["P093","Otros artículos n.c.p.",1852.2986840000001,"Producción (PB)",2018]
["P110","Servicio de alojamiento",2913.9680910000002,"Producción (PB)",2018]
["P121","Servicios de tecnología de la información",2707.1791029999999,"Producción (PB)",2018]
["P131","Servicios administrativos, de apoyo de oficina y otros servicios de apoyo a las empresas",2988.696488,"Producción (PB)",2018]
["P138","Servicios públicos administrativos relacionados con la provisión de servicios educativos, de salud, servicios sociales, culturales y otros, sin contar los servicios de seguridad social",2207.6694859999998,"Producción (PB)",2018]
["P152","Compras directas en el territorio nacional por no residentes",0,"Producción (PB)",2018]
["P010","Caña de azúcar y otras plantas azucareras",0,"Impuestos sobre los productos, excepto IVA e impuestos sobre las importaciones",2018]
["P021","Ganado bovino",0,"Impuestos sobre los productos, excepto IVA e impuestos sobre las importaciones",2018]
["P038","Pescado congelado, preparado o en conserva y sus productos",0,"Impuestos sobre los productos, excepto IVA e impuestos sobre las importaciones",2018]
["P050","Pan y otros productos de panadería y repostería n.c.p.",0,"Impuestos sobre los productos, excepto IVA e impuestos sobre las importaciones",2018]
["P055","Aguardientes, licores, vinos, demás bebidas espirituosas y productos del tabaco",440.41004099999998,"Impuestos sobre los productos, excepto IVA e impuestos sobre las importaciones",2018]
["P071","Abonos, fertilizantes y pesticidas",0,"Impuestos sobre los productos, excepto IVA e impuestos sobre las importaciones",2018]
["P083","Productos metálicos estructurales y sus partes de hierro o de acero",0,"Impuestos sobre los productos, excepto IVA e impuestos sobre las importaciones",2018]
["P092","Muebles",0,"Impuestos sobre los productos, excepto IVA e impuestos sobre las importaciones",2018]
["P107","Servicios de almacenamiento y depósito",0,"Impuestos sobre los productos, excepto IVA e impuestos sobre las importaciones",2018]
["P113","Servicios de banco central",0,"Impuestos sobre los productos, excepto IVA e impuestos sobre las importaciones",2018]
["P124","Servicios de publicidad y estudios de mercado",0,"Impuestos sobre los productos, excepto IVA e impuestos sobre las importaciones",2018]
["P134","Servicios de apoyo a la agricultura, caza, silvicultura y pesca",0,"Impuestos sobre los productos, excepto IVA e impuestos sobre las importaciones",2018]
["P152","Compras directas en el territorio nacional por no residentes",0,"Impuestos sobre los productos, excepto IVA e impuestos sobre las importaciones",2018]
["P011","Tabaco y otras plantas no perennes",0,"Subvenciones a los productos",2018]
["P017","Cardamomo",0,"Subvenciones a los productos",2018]
["P032","Minerales metálicos",0,"Subvenciones a los productos",2018]
["P041","Preparaciones y conservas de frutas y nueces",0,"Subvenciones a los productos",2018]
["P053","Productos alimenticios n.c.p.",0,"Subvenciones a los productos",2018]
["P069","Aceites, grasas lubricantes y otros aceites preparados",0,"Subvenciones a los productos",2018]
["P074","Otros productos químicos",0,"Subvenciones a los productos",2018]
["P095","Generación y distribución de energía eléctrica, gas, vapor y aire acondicionado",-760.04725399999995,"Subvenciones a los productos",2018]
["P104","Servicio de transporte de pasajeros por vía terrestre",-195,"Subvenciones a los productos",2018]
["P116","Servicios de seguro, reaseguro y fondos de pensiones",0,"Subvenciones a los productos",2018]
["P121","Servicios de tecnología de la información",0,"Subvenciones a los productos",2018]
["P133","Servicios de reparación de otros bienes",0,"Subvenciones a los productos",2018]
["P149","Otros servicios",0,"Subvenciones a los productos",2018]
["P014","Berries, otras frutas y semillas de frutas",467.22139099999998,"Importaciones (CIF)",2018]
["P025","Huevos",227.73234099999999,"Importaciones (CIF)",2018]
["P035","Carne y despojos comestibles de ganado porcino",288.12490400000002,"Importaciones (CIF)",2018]
["P038","Pescado congelado, preparado o en conserva y sus productos",488.13009199999999,"Importaciones (CIF)",2018]
["P056","Malta y cerveza de malta",641.97140000000002,"Importaciones (CIF)",2018]
["P066","Productos de la edición",545.83088299999997,"Importaciones (CIF)",2018]
["P077","Vidrio y productos de vidrio",551.74098500000002,"Importaciones (CIF)",2018]
["P094","Residuos y desechos",702.95643299999995,"Importaciones (CIF)",2018]
["P106","Otros tipos de transporte",9166.2657039999995,"Importaciones (CIF)",2018]
["P111","Servicio de suministro de comidas y bebidas",15.822436,"Importaciones (CIF)",2018]
["P127","Servicios de agencias de viajes, operadores turísticos y actividades conexas",0.57719600000000004,"Importaciones (CIF)",2018]
["P135","Servicios de apoyo a la explotación de minas y canteras y los relacionados con la distribución de electricidad, gas y agua",0,"Importaciones (CIF)",2018]
["P148","Servicios de asociaciones que sirven a los hogares",0,"Importaciones (CIF)",2018]
["P011","Tabaco y otras plantas no perennes",0.16566800000000001,"Impuestos y derechos sobre las importaciones excepto IVA",2018]
["P017","Cardamomo",0,"Impuestos y derechos sobre las importaciones excepto IVA",2018]
["P028","Productos forestales no madereros",3.8351000000000003E-2,"Impuestos y derechos sobre las importaciones excepto IVA",2018]
["P046","Otros productos lácteos n.c.p.",90.246756000000005,"Impuestos y derechos sobre las importaciones excepto IVA",2018]
["P056","Malta y cerveza de malta",59.941552999999999,"Impuestos y derechos sobre las importaciones excepto IVA",2018]
["P067","Productos de la impresión",1.7274879999999999,"Impuestos y derechos sobre las importaciones excepto IVA",2018]
["P073","Jabón, preparados de limpieza, perfumes y preparados de toilet",203.11702299999999,"Impuestos y derechos sobre las importaciones excepto IVA",2018]
["P088","Maquinaria y aparatos eléctricos, sus partes y piezas",78.291949000000002,"Impuestos y derechos sobre las importaciones excepto IVA",2018]
["P097","Evacuación de aguas residuales, recogida, tratamiento y eliminación de desechos",0,"Impuestos y derechos sobre las importaciones excepto IVA",2018]
["P108","Otros servicios de apoyo al transporte",0,"Impuestos y derechos sobre las importaciones excepto IVA",2018]
["P118","Servicios de alquiler de vivienda",0,"Impuestos y derechos sobre las importaciones excepto IVA",2018]
["P132","Servicios de mantenimiento, reparación e instalación de productos metálicos elaborados, maquinaria y equipo",0,"Impuestos y derechos sobre las importaciones excepto IVA",2018]
["P139","Otros servicios administrativos",0,"Impuestos y derechos sobre las importaciones excepto IVA",2018]
["P008","Ejotes y arvejas",4.8638139999999996,"Impuesto tipo valor agregado (IVA)",2018]
["P020","Otros frutos oleaginosos, otras plantas bebestibles y especias aromáticas",7.3453369999999998,"Impuesto tipo valor agregado (IVA)",2018]
["P025","Huevos",238.15726799999999,"Impuesto tipo valor agregado (IVA)",2018]
["P037","Carne y despojos de otros animales y conservas y preparados de carne",210.32997800000001,"Impuesto tipo valor agregado (IVA)",2018]
["P053","Productos alimenticios n.c.p.",880.74546299999997,"Impuesto tipo valor agregado (IVA)",2018]
["P058","Aguas minerales y otras aguas embotelladas",141.352002,"Impuesto tipo valor agregado (IVA)",2018]
["P077","Vidrio y productos de vidrio",16.554123000000001,"Impuesto tipo valor agregado (IVA)",2018]
["P079","Cemento, cal y yeso",108.92919000000001,"Impuesto tipo valor agregado (IVA)",2018]
["P094","Residuos y desechos",2.4391120000000002,"Impuesto tipo valor agregado (IVA)",2018]
["P112","Servicios de información, telecomunicaciones y radiodifusión",2089.1504709999999,"Impuesto tipo valor agregado (IVA)",2018]
["P122","Servicios de arquitectura e ingeniería, ensayos y análisis técnicos",49.410288000000001,"Impuesto tipo valor agregado (IVA)",2018]
["P129","Servicios de limpieza",24.253772000000001,"Impuesto tipo valor agregado (IVA)",2018]
["P139","Otros servicios administrativos",0,"Impuesto tipo valor agregado (IVA)",2018]
["P150","Servicios domésticos",0,"Impuesto tipo valor agregado (IVA)",2018]
["P015","Palma africana",17.844187000000002,"Márgenes de comercio, transporte y distribución de energía",2018]
["P019","Propagación de plantas",79.453477000000007,"Márgenes de comercio, transporte y distribución de energía",2018]
["P039","Crustáceos, moluscos y demás invertebrados acuáticos congelados, preparados o en conserva y sus productos",98.559099000000003,"Márgenes de comercio, transporte y distribución de energía",2018]
["P052","Azúcar de caña sin refinar y refinada, melaza y los demás azúcares n.c.p.",2481.5377789999998,"Márgenes de comercio, transporte y distribución de energía",2018]
["P056","Malta y cerveza de malta",1443.8318670000001,"Márgenes de comercio, transporte y distribución de energía",2018]
["P069","Aceites, grasas lubricantes y otros aceites preparados",281.59988700000002,"Márgenes de comercio, transporte y distribución de energía",2018]
["P084","Otros productos elaborados de metal",772.69540300000006,"Márgenes de comercio, transporte y distribución de energía",2018]
["P090","Aparatos médicos, instrumentos ópticos y de precisión, relojes",782.16053999999997,"Márgenes de comercio, transporte y distribución de energía",2018]
["P103","Mantenimiento y reparación de vehículos automotores y motocicletas",0,"Márgenes de comercio, transporte y distribución de energía",2018]
["P119","Otros servicios inmobiliarios, excepto alquiler de vivienda",0,"Márgenes de comercio, transporte y distribución de energía",2018]
["P132","Servicios de mantenimiento, reparación e instalación de productos metálicos elaborados, maquinaria y equipo",0,"Márgenes de comercio, transporte y distribución de energía",2018]
["P136","Servicios de manufactura",0,"Márgenes de comercio, transporte y distribución de energía",2018]
["P001","Maíz",3704.2621789999998,"Consumo Intermedio (PC)",2018]
["P008","Ejotes y arvejas",48.003512000000001,"Consumo Intermedio (PC)",2018]
["P022","Ganado porcino y otro tipo de animales vivos n.c.p.",1514.305791,"Consumo Intermedio (PC)",2018]
["P036","Carne y despojos comestibles de aves",2286.1539870000001,"Consumo Intermedio (PC)",2018]
["P043","Aceites de origen vegetal",2330.8851460000001,"Consumo Intermedio (PC)",2018]
["P053","Productos alimenticios n.c.p.",4438.058454,"Consumo Intermedio (PC)",2018]
["P072","Pinturas, barnices, tintas y productos relacionados",2050.9478720000002,"Consumo Intermedio (PC)",2018]
["P081","Piedras talladas para construcción y otros productos minerales no metálicos n.c.p.",707.05439699999999,"Consumo Intermedio (PC)",2018]
["P093","Otros artículos n.c.p.",1851.3762979999999,"Consumo Intermedio (PC)",2018]
["P098","Edificaciones residenciales",0,"Consumo Intermedio (PC)",2018]
["P114","Otros servicios financieros y servicios de banca de inversión",2511.0479730000002,"Consumo Intermedio (PC)",2018]
["P122","Servicios de arquitectura e ingeniería, ensayos y análisis técnicos",2563.9494370000002,"Consumo Intermedio (PC)",2018]
["P135","Servicios de apoyo a la explotación de minas y canteras y los relacionados con la distribución de electricidad, gas y agua",22.555820000000001,"Consumo Intermedio (PC)",2018]
["P150","Servicios domésticos",0,"Consumo Intermedio (PC)",2018]
["P012","Bananos, plátanos y otros",4298.3005069999999,"Consumo Final privado (PC)",2018]
["P015","Palma africana",0,"Consumo Final privado (PC)",2018]
["P033","Minerales no metálicos",339.86969499999998,"Consumo Final privado (PC)",2018]
["P043","Aceites de origen vegetal",2883.3320720000002,"Consumo Final privado (PC)",2018]
["P054","Preparados para alimentación animal",599.11172799999997,"Consumo Final privado (PC)",2018]
["P067","Productos de la impresión",354.04139500000002,"Consumo Final privado (PC)",2018]
["P075","Productos farmacéuticos",7416.2342490000001,"Consumo Final privado (PC)",2018]
["P084","Otros productos elaborados de metal",1083.6684700000001,"Consumo Final privado (PC)",2018]
["P096","Agua natural y distribución de agua natural",1744.8363360000001,"Consumo Final privado (PC)",2018]
["P117","Servicios auxiliares de la intermediación financiera",2511.470824,"Consumo Final privado (PC)",2018]
["P119","Otros servicios inmobiliarios, excepto alquiler de vivienda",42.253101999999998,"Consumo Final privado (PC)",2018]
["P138","Servicios públicos administrativos relacionados con la provisión de servicios educativos, de salud, servicios sociales, culturales y otros, sin contar los servicios de seguridad social",1.5425519999999999,"Consumo Final privado (PC)",2018]
["P147","Servicios de asociaciones que sirven a las empresas",0,"Consumo Final privado (PC)",2018]
["P003","Leguminosas (legumbres secas) y semillas oleaginosas",0,"Consumo Final del Gobierno (PC)",2018]
["P023","Aves de corral",2.3003589999999998,"Consumo Final del Gobierno (PC)",2018]
["P024","Leche cruda",0,"Consumo Final del Gobierno (PC)",2018]
["P040","Vegetales preparados o en conserva, legumbres y papas",0,"Consumo Final del Gobierno (PC)",2018]
["P057","Bebidas no alcohólicas",0.52903299999999998,"Consumo Final del Gobierno (PC)",2018]
["P064","Pasta de papel y papel",17.229759000000001,"Consumo Final del Gobierno (PC)",2018]
["P078","Productos de cerámica y arcilla",0,"Consumo Final del Gobierno (PC)",2018]
["P092","Muebles",0,"Consumo Final del Gobierno (PC)",2018]
["P095","Generación y distribución de energía eléctrica, gas, vapor y aire acondicionado",0,"Consumo Final del Gobierno (PC)",2018]
["P109","Servicios postales y de mensajería",0,"Consumo Final del Gobierno (PC)",2018]
["P116","Servicios de seguro, reaseguro y fondos de pensiones",0,"Consumo Final del Gobierno (PC)",2018]
["P137","Servicios públicos del gobierno general",12891.004902999999,"Consumo Final del Gobierno (PC)",2018]
["P149","Otros servicios",0,"Consumo Final del Gobierno (PC)",2018]
["P009","Raíces y tubérculos",0,"Formación Bruta de Capital Fijo (PC)",2018]
["P018","Caucho natural",10.595928000000001,"Formación Bruta de Capital Fijo (PC)",2018]
["P026","Otros productos de animales vivos",0,"Formación Bruta de Capital Fijo (PC)",2018]
["P039","Crustáceos, moluscos y demás invertebrados acuáticos congelados, preparados o en conserva y sus productos",0,"Formación Bruta de Capital Fijo (PC)",2018]
["P054","Preparados para alimentación animal",0,"Formación Bruta de Capital Fijo (PC)",2018]
["P056","Malta y cerveza de malta",0,"Formación Bruta de Capital Fijo (PC)",2018]
["P071","Abonos, fertilizantes y pesticidas",0,"Formación Bruta de Capital Fijo (PC)",2018]
["P089","Equipo y aparatos de radio, televisión y comunicaciones",2437.7915600000001,"Formación Bruta de Capital Fijo (PC)",2018]
["P095","Generación y distribución de energía eléctrica, gas, vapor y aire acondicionado",0,"Formación Bruta de Capital Fijo (PC)",2018]
["P110","Servicio de alojamiento",0,"Formación Bruta de Capital Fijo (PC)",2018]
["P119","Otros servicios inmobiliarios, excepto alquiler de vivienda",0,"Formación Bruta de Capital Fijo (PC)",2018]
["P134","Servicios de apoyo a la agricultura, caza, silvicultura y pesca",0,"Formación Bruta de Capital Fijo (PC)",2018]
["P140","Servicios públicos administrativos prestados a la comunidad en su conjunto",0,"Formación Bruta de Capital Fijo (PC)",2018]
["P006","Hortalizas",1166.7283789999999,"Exportaciones (fob)",2018]
["P009","Raíces y tubérculos",137.01963499999999,"Exportaciones (fob)",2018]
["P023","Aves de corral",16.082785999999999,"Exportaciones (fob)",2018]
["P042","Jugos de frutas",249.96436399999999,"Exportaciones (fob)",2018]
["P051","Tortillas de maíz, incluso tostadas, horneadas o fritas",0,"Exportaciones (fob)",2018]
["P059","Hilados, tejidos, telas y otros productos textiles excepto prendas de vestir",1830.822244,"Exportaciones (fob)",2018]
["P068","Gasolinas, diésel oil y fuel oils",731.95758999999998,"Exportaciones (fob)",2018]
["P080","Artículos de hormigón, cemento y yeso",16.023136000000001,"Exportaciones (fob)",2018]
["P092","Muebles",387.17132700000002,"Exportaciones (fob)",2018]
["P101","Servicios generales y especializados de construcción",142.609275,"Exportaciones (fob)",2018]
["P120","Servicios jurídicos, de contabilidad, auditoría, teneduría de libros y consultoría fiscal",13.278873000000001,"Exportaciones (fob)",2018]
["P134","Servicios de apoyo a la agricultura, caza, silvicultura y pesca",0,"Exportaciones (fob)",2018]
["P137","Servicios públicos del gobierno general",0,"Exportaciones (fob)",2018]
["P151","Compras directas en el exterior por residentes",0,"Exportaciones (fob)",2018]
["P013","Frutas tropicales y subtropicales",0,"Variación de existencias (PC)",2018]
["P020","Otros frutos oleaginosos, otras plantas bebestibles y especias aromáticas",0,"Variación de existencias (PC)",2018]
["P037","Carne y despojos de otros animales y conservas y preparados de carne",1.413994,"Variación de existencias (PC)",2018]
["P041","Preparaciones y conservas de frutas y nueces",1.614107,"Variación de existencias (PC)",2018]
["P054","Preparados para alimentación animal",13.871676000000001,"Variación de existencias (PC)",2018]
["P074","Otros productos químicos",179.28205,"Variación de existencias (PC)",2018]
["P082","Métales básicos de hierro y acero, productos primarios de metales preciosos y otros metales no ferrosos",23.502610000000001,"Variación de existencias (PC)",2018]
["P091","Equipo de transporte",75.950963000000002,"Variación de existencias (PC)",2018]
["P099","Edificaciones no residenciales",-147.69292100000001,"Variación de existencias (PC)",2018]
["P112","Servicios de información, telecomunicaciones y radiodifusión",0,"Variación de existencias (PC)",2018]
["P125","Servicios de arrendamiento o alquiler sin operador",0,"Variación de existencias (PC)",2018]
["P134","Servicios de apoyo a la agricultura, caza, silvicultura y pesca",0,"Variación de existencias (PC)",2018]
["P002","Frijoles",0,"Ajuste CIF/FOB",2018]
["P010","Caña de azúcar y otras plantas azucareras",0,"Ajuste CIF/FOB",2018]
["P023","Aves de corral",0,"Ajuste CIF/FOB",2018]
["P034","Carne y despojos comestibles de ganado bovino; cueros y pieles de bovino y de otros animales",0,"Ajuste CIF/FOB",2018]
["P044","Margarina, grasas y otros aceites de origen animal y vegetal",0,"Ajuste CIF/FOB",2018]
["P051","Tortillas de maíz, incluso tostadas, horneadas o fritas",0,"Ajuste CIF/FOB",2018]
["P065","Envases de papel y cartón",0,"Ajuste CIF/FOB",2018]
["P079","Cemento, cal y yeso",0,"Ajuste CIF/FOB",2018]
["P094","Residuos y desechos",0,"Ajuste CIF/FOB",2018]
["P096","Agua natural y distribución de agua natural",0,"Ajuste CIF/FOB",2018]
["P115","Servicios de Intermediación Financiera Medidos Indirectamente (SIFMI)",0,"Ajuste CIF/FOB",2018]
["P120","Servicios jurídicos, de contabilidad, auditoría, teneduría de libros y consultoría fiscal",0,"Ajuste CIF/FOB",2018]
["P136","Servicios de manufactura",0,"Ajuste CIF/FOB",2018]
["P148","Servicios de asociaciones que sirven a los hogares",0,"Ajuste CIF/FOB",2018]
["P005","Otros cereales",104.247265,"Producción (PB)",2019]
["P013","Frutas tropicales y subtropicales",2414.6980990000002,"Producción (PB)",2019]
["P034","Carne y despojos comestibles de ganado bovino; cueros y pieles de bovino y de otros animales",7156.3122549999998,"Producción (PB)",2019]
["P041","Preparaciones y conservas de frutas y nueces",1293.370823,"Producción (PB)",2019]
["P055","Aguardientes, licores, vinos, demás bebidas espirituosas y productos del tabaco",1397.377882,"Producción (PB)",2019]
["P069","Aceites, grasas lubricantes y otros aceites preparados",0,"Producción (PB)",2019]
["P076","Productos de caucho y plástico",10574.515792,"Producción (PB)",2019]
["P082","Métales básicos de hierro y acero, productos primarios de metales preciosos y otros metales no ferrosos",8916.8398529999995,"Producción (PB)",2019]
["P097","Evacuación de aguas residuales, recogida, tratamiento y eliminación de desechos",994.12395700000002,"Producción (PB)",2019]
["P110","Servicio de alojamiento",3152.7925989999999,"Producción (PB)",2019]
["P126","Servicios  de agencias de empleo y de dotación de recursos humanos",6512.0276949999998,"Producción (PB)",2019]
["P139","Otros servicios administrativos",4881.9260999999997,"Producción (PB)",2019]
["P145","Otros servicios de atención de la salud humana",4037.2980830000001,"Producción (PB)",2019]
["P008","Ejotes y arvejas",0,"Impuestos sobre los productos, excepto IVA e impuestos sobre las importaciones",2019]
["P021","Ganado bovino",0,"Impuestos sobre los productos, excepto IVA e impuestos sobre las importaciones",2019]
["P025","Huevos",0,"Impuestos sobre los productos, excepto IVA e impuestos sobre las importaciones",2019]
["P038","Pescado congelado, preparado o en conserva y sus productos",0,"Impuestos sobre los productos, excepto IVA e impuestos sobre las importaciones",2019]
["P046","Otros productos lácteos n.c.p.",1.812284,"Impuestos sobre los productos, excepto IVA e impuestos sobre las importaciones",2019]
["P066","Productos de la edición",0,"Impuestos sobre los productos, excepto IVA e impuestos sobre las importaciones",2019]
["P079","Cemento, cal y yeso",131.39970299999999,"Impuestos sobre los productos, excepto IVA e impuestos sobre las importaciones",2019]
["P090","Aparatos médicos, instrumentos ópticos y de precisión, relojes",0,"Impuestos sobre los productos, excepto IVA e impuestos sobre las importaciones",2019]
["P100","Obras de ingeniería civil",0,"Impuestos sobre los productos, excepto IVA e impuestos sobre las importaciones",2019]
["P107","Servicios de almacenamiento y depósito",0,"Impuestos sobre los productos, excepto IVA e impuestos sobre las importaciones",2019]
["P117","Servicios auxiliares de la intermediación financiera",0,"Impuestos sobre los productos, excepto IVA e impuestos sobre las importaciones",2019]
["P135","Servicios de apoyo a la explotación de minas y canteras y los relacionados con la distribución de electricidad, gas y agua",0,"Impuestos sobre los productos, excepto IVA e impuestos sobre las importaciones",2019]
["P138","Servicios públicos administrativos relacionados con la provisión de servicios educativos, de salud, servicios sociales, culturales y otros, sin contar los servicios de seguridad social",0,"Impuestos sobre los productos, excepto IVA e impuestos sobre las importaciones",2019]
["P152","Compras directas en el territorio nacional por no residentes",0,"Impuestos sobre los productos, excepto IVA e impuestos sobre las importaciones",2019]
["P019","Propagación de plantas",0,"Subvenciones a los productos",2019]
["P024","Leche cruda",0,"Subvenciones a los productos",2019]
["P040","Vegetales preparados o en conserva, legumbres y papas",0,"Subvenciones a los productos",2019]
["P052","Azúcar de caña sin refinar y refinada, melaza y los demás azúcares n.c.p.",0,"Subvenciones a los productos",2019]
["P057","Bebidas no alcohólicas",0,"Subvenciones a los productos",2019]
["P069","Aceites, grasas lubricantes y otros aceites preparados",0,"Subvenciones a los productos",2019]
["P078","Productos de cerámica y arcilla",0,"Subvenciones a los productos",2019]
["P097","Evacuación de aguas residuales, recogida, tratamiento y eliminación de desechos",0,"Subvenciones a los productos",2019]
["P111","Servicio de suministro de comidas y bebidas",0,"Subvenciones a los productos",2019]
["P121","Servicios de tecnología de la información",0,"Subvenciones a los productos",2019]
["P132","Servicios de mantenimiento, reparación e instalación de productos metálicos elaborados, maquinaria y equipo",0,"Subvenciones a los productos",2019]
["P141","Servicios administrativos relacionados con los sistemas de seguridad social de afiliación obligatoria",0,"Subvenciones a los productos",2019]
["P149","Otros servicios",0,"Subvenciones a los productos",2019]
["P010","Caña de azúcar y otras plantas azucareras",0,"Importaciones (CIF)",2019]
["P021","Ganado bovino",0.47210200000000002,"Importaciones (CIF)",2019]
["P031","Petróleo crudo y gas natural",0,"Importaciones (CIF)",2019]
["P049","Otros productos de molinería, almidones y productos de almidón",1074.4913200000001,"Importaciones (CIF)",2019]
["P060","Prendas de vestir, adobo y teñido de pieles",2962.9938659999998,"Importaciones (CIF)",2019]
["P066","Productos de la edición",486.05854099999999,"Importaciones (CIF)",2019]
["P081","Piedras talladas para construcción y otros productos minerales no metálicos n.c.p.",223.46633800000001,"Importaciones (CIF)",2019]
["P094","Residuos y desechos",731.11845100000005,"Importaciones (CIF)",2019]
["P102","Servicios de comercio",0,"Importaciones (CIF)",2019]
["P118","Servicios de alquiler de vivienda",0,"Importaciones (CIF)",2019]
["P123","Otros servicios profesionales, científicos y técnicos",510.18237199999999,"Importaciones (CIF)",2019]
["P135","Servicios de apoyo a la explotación de minas y canteras y los relacionados con la distribución de electricidad, gas y agua",0,"Importaciones (CIF)",2019]
["P144","Servicios médicos y dentales",0,"Importaciones (CIF)",2019]
["P011","Tabaco y otras plantas no perennes",0.15488299999999999,"Impuestos y derechos sobre las importaciones excepto IVA",2019]
["P021","Ganado bovino",0,"Impuestos y derechos sobre las importaciones excepto IVA",2019]
["P028","Productos forestales no madereros",3.7284999999999999E-2,"Impuestos y derechos sobre las importaciones excepto IVA",2019]
["P042","Jugos de frutas",0.56825800000000004,"Impuestos y derechos sobre las importaciones excepto IVA",2019]
["P052","Azúcar de caña sin refinar y refinada, melaza y los demás azúcares n.c.p.",0.674987,"Impuestos y derechos sobre las importaciones excepto IVA",2019]
["P063","Madera aserrada y acepillada, productos de madera, corcho, paja y materiales trenzables",22.359396,"Impuestos y derechos sobre las importaciones excepto IVA",2019]
["P080","Artículos de hormigón, cemento y yeso",1.242156,"Impuestos y derechos sobre las importaciones excepto IVA",2019]
["P084","Otros productos elaborados de metal",61.643678999999999,"Impuestos y derechos sobre las importaciones excepto IVA",2019]
["P097","Evacuación de aguas residuales, recogida, tratamiento y eliminación de desechos",0,"Impuestos y derechos sobre las importaciones excepto IVA",2019]
["P113","Servicios de banco central",0,"Impuestos y derechos sobre las importaciones excepto IVA",2019]
["P125","Servicios de arrendamiento o alquiler sin operador",0,"Impuestos y derechos sobre las importaciones excepto IVA",2019]
["P134","Servicios de apoyo a la agricultura, caza, silvicultura y pesca",0,"Impuestos y derechos sobre las importaciones excepto IVA",2019]
["P143","Servicios de hospitalización",0,"Impuestos y derechos sobre las importaciones excepto IVA",2019]
["P008","Ejotes y arvejas",5.5899570000000001,"Impuesto tipo valor agregado (IVA)",2019]
["P024","Leche cruda",0.88263100000000005,"Impuesto tipo valor agregado (IVA)",2019]
["P025","Huevos",264.12095199999999,"Impuesto tipo valor agregado (IVA)",2019]
["P045","Leche líquida y crema procesada",47.782192000000002,"Impuesto tipo valor agregado (IVA)",2019]
["P049","Otros productos de molinería, almidones y productos de almidón",189.68532500000001,"Impuesto tipo valor agregado (IVA)",2019]
["P066","Productos de la edición",156.78891100000001,"Impuesto tipo valor agregado (IVA)",2019]
["P077","Vidrio y productos de vidrio",17.055129000000001,"Impuesto tipo valor agregado (IVA)",2019]
["P087","Maquinaria de oficina, contabilidad e informática, sus partes y piezas",103.293728,"Impuesto tipo valor agregado (IVA)",2019]
["P094","Residuos y desechos",2.5674199999999998,"Impuesto tipo valor agregado (IVA)",2019]
["P116","Servicios de seguro, reaseguro y fondos de pensiones",634.93787599999996,"Impuesto tipo valor agregado (IVA)",2019]
["P122","Servicios de arquitectura e ingeniería, ensayos y análisis técnicos",55.860529,"Impuesto tipo valor agregado (IVA)",2019]
["P137","Servicios públicos del gobierno general",0,"Impuesto tipo valor agregado (IVA)",2019]
["P146","Servicios audiovisuales, recreativos, culturales y deportivos",125.681867,"Impuesto tipo valor agregado (IVA)",2019]
["P006","Hortalizas",17041.280607000001,"Márgenes de comercio, transporte y distribución de energía",2019]
["P011","Tabaco y otras plantas no perennes",307.32314700000001,"Márgenes de comercio, transporte y distribución de energía",2019]
["P027","Troncos de madera y leña",367.83667000000003,"Márgenes de comercio, transporte y distribución de energía",2019]
["P039","Crustáceos, moluscos y demás invertebrados acuáticos congelados, preparados o en conserva y sus productos",98.876289,"Márgenes de comercio, transporte y distribución de energía",2019]
["P056","Malta y cerveza de malta",1578.469382,"Márgenes de comercio, transporte y distribución de energía",2019]
["P067","Productos de la impresión",494.02693699999998,"Márgenes de comercio, transporte y distribución de energía",2019]
["P077","Vidrio y productos de vidrio",210.36411799999999,"Márgenes de comercio, transporte y distribución de energía",2019]
["P080","Artículos de hormigón, cemento y yeso",609.94631300000003,"Márgenes de comercio, transporte y distribución de energía",2019]
["P098","Edificaciones residenciales",0,"Márgenes de comercio, transporte y distribución de energía",2019]
["P108","Otros servicios de apoyo al transporte",0,"Márgenes de comercio, transporte y distribución de energía",2019]
["P119","Otros servicios inmobiliarios, excepto alquiler de vivienda",0,"Márgenes de comercio, transporte y distribución de energía",2019]
["P136","Servicios de manufactura",0,"Márgenes de comercio, transporte y distribución de energía",2019]
["P148","Servicios de asociaciones que sirven a los hogares",0,"Márgenes de comercio, transporte y distribución de energía",2019]
["P149","Otros servicios",0,"Márgenes de comercio, transporte y distribución de energía",2019]
["P019","Propagación de plantas",449.17754500000001,"Consumo Intermedio (PC)",2019]
["P030","Crustáceos sin congelar y otros productos de la pesca",497.31684300000001,"Consumo Intermedio (PC)",2019]
["P036","Carne y despojos comestibles de aves",2437.3377949999999,"Consumo Intermedio (PC)",2019]
["P047","Harina de trigo",2614.4053210000002,"Consumo Intermedio (PC)",2019]
["P064","Pasta de papel y papel",6082.0727470000002,"Consumo Intermedio (PC)",2019]
["P068","Gasolinas, diésel oil y fuel oils",12479.626616,"Consumo Intermedio (PC)",2019]
["P088","Maquinaria y aparatos eléctricos, sus partes y piezas",3293.9988469999998,"Consumo Intermedio (PC)",2019]
["P089","Equipo y aparatos de radio, televisión y comunicaciones",1127.1077250000001,"Consumo Intermedio (PC)",2019]
["P105","Servicio de transporte de carga por vía terrestre",6680.627743,"Consumo Intermedio (PC)",2019]
["P122","Servicios de arquitectura e ingeniería, ensayos y análisis técnicos",2782.4434580000002,"Consumo Intermedio (PC)",2019]
["P133","Servicios de reparación de otros bienes",748.33690799999999,"Consumo Intermedio (PC)",2019]
["P139","Otros servicios administrativos",0,"Consumo Intermedio (PC)",2019]
["P150","Servicios domésticos",0,"Consumo Intermedio (PC)",2019]
["P008","Ejotes y arvejas",353.09137199999998,"Consumo Final privado (PC)",2019]
["P026","Otros productos de animales vivos",52.576326000000002,"Consumo Final privado (PC)",2019]
["P029","Peces vivos, frescos o refrigerados",1953.9002069999999,"Consumo Final privado (PC)",2019]
["P050","Pan y otros productos de panadería y repostería n.c.p.",10326.715029000001,"Consumo Final privado (PC)",2019]
["P062","Calzado y sus partes, de cualquier material y de cualquier uso",5655.0098639999997,"Consumo Final privado (PC)",2019]
["P067","Productos de la impresión",373.92800799999998,"Consumo Final privado (PC)",2019]
["P079","Cemento, cal y yeso",83.367225000000005,"Consumo Final privado (PC)",2019]
["P095","Generación y distribución de energía eléctrica, gas, vapor y aire acondicionado",5963.1268110000001,"Consumo Final privado (PC)",2019]
["P100","Obras de ingeniería civil",0,"Consumo Final privado (PC)",2019]
["P112","Servicios de información, telecomunicaciones y radiodifusión",20330.316363000002,"Consumo Final privado (PC)",2019]
["P121","Servicios de tecnología de la información",0,"Consumo Final privado (PC)",2019]
["P136","Servicios de manufactura",1284.5071250000001,"Consumo Final privado (PC)",2019]
["P002","Frijoles",39.541426000000001,"Consumo Final del Gobierno (PC)",2019]
["P011","Tabaco y otras plantas no perennes",7.3694449999999998,"Consumo Final del Gobierno (PC)",2019]
["P019","Propagación de plantas",0,"Consumo Final del Gobierno (PC)",2019]
["P032","Minerales metálicos",0,"Consumo Final del Gobierno (PC)",2019]
["P047","Harina de trigo",0,"Consumo Final del Gobierno (PC)",2019]
["P053","Productos alimenticios n.c.p.",88.030910000000006,"Consumo Final del Gobierno (PC)",2019]
["P064","Pasta de papel y papel",17.331852000000001,"Consumo Final del Gobierno (PC)",2019]
["P082","Métales básicos de hierro y acero, productos primarios de metales preciosos y otros metales no ferrosos",0,"Consumo Final del Gobierno (PC)",2019]
["P092","Muebles",0,"Consumo Final del Gobierno (PC)",2019]
["P103","Mantenimiento y reparación de vehículos automotores y motocicletas",0,"Consumo Final del Gobierno (PC)",2019]
["P109","Servicios postales y de mensajería",0,"Consumo Final del Gobierno (PC)",2019]
["P124","Servicios de publicidad y estudios de mercado",0,"Consumo Final del Gobierno (PC)",2019]
["P133","Servicios de reparación de otros bienes",0,"Consumo Final del Gobierno (PC)",2019]
["P145","Otros servicios de atención de la salud humana",131.75099499999999,"Consumo Final del Gobierno (PC)",2019]
["P009","Raíces y tubérculos",0,"Formación Bruta de Capital Fijo (PC)",2019]
["P022","Ganado porcino y otro tipo de animales vivos n.c.p.",57.422018000000001,"Formación Bruta de Capital Fijo (PC)",2019]
["P026","Otros productos de animales vivos",0,"Formación Bruta de Capital Fijo (PC)",2019]
["P043","Aceites de origen vegetal",0,"Formación Bruta de Capital Fijo (PC)",2019]
["P054","Preparados para alimentación animal",0,"Formación Bruta de Capital Fijo (PC)",2019]
["P064","Pasta de papel y papel",0,"Formación Bruta de Capital Fijo (PC)",2019]
["P078","Productos de cerámica y arcilla",0,"Formación Bruta de Capital Fijo (PC)",2019]
["P085","Maquinaria para usos generales y especiales, sus partes y piezas, excepto electrodomésticos",7836.3207400000001,"Formación Bruta de Capital Fijo (PC)",2019]
["P095","Generación y distribución de energía eléctrica, gas, vapor y aire acondicionado",0,"Formación Bruta de Capital Fijo (PC)",2019]
["P114","Otros servicios financieros y servicios de banca de inversión",0,"Formación Bruta de Capital Fijo (PC)",2019]
["P123","Otros servicios profesionales, científicos y técnicos",431.101403,"Formación Bruta de Capital Fijo (PC)",2019]
["P135","Servicios de apoyo a la explotación de minas y canteras y los relacionados con la distribución de electricidad, gas y agua",0,"Formación Bruta de Capital Fijo (PC)",2019]
["P140","Servicios públicos administrativos prestados a la comunidad en su conjunto",0,"Formación Bruta de Capital Fijo (PC)",2019]
["P004","Arroz",0,"Exportaciones (fob)",2019]
["P013","Frutas tropicales y subtropicales",480.98201299999999,"Exportaciones (fob)",2019]
["P023","Aves de corral",12.562290000000001,"Exportaciones (fob)",2019]
["P034","Carne y despojos comestibles de ganado bovino; cueros y pieles de bovino y de otros animales",78.383876000000001,"Exportaciones (fob)",2019]
["P051","Tortillas de maíz, incluso tostadas, horneadas o fritas",0,"Exportaciones (fob)",2019]
["P067","Productos de la impresión",122.743151,"Exportaciones (fob)",2019]
["P075","Productos farmacéuticos",1261.6177789999999,"Exportaciones (fob)",2019]
["P088","Maquinaria y aparatos eléctricos, sus partes y piezas",228.20085499999999,"Exportaciones (fob)",2019]
["P092","Muebles",358.673362,"Exportaciones (fob)",2019]
["P105","Servicio de transporte de carga por vía terrestre",721.33164199999999,"Exportaciones (fob)",2019]
["P120","Servicios jurídicos, de contabilidad, auditoría, teneduría de libros y consultoría fiscal",17.024146999999999,"Exportaciones (fob)",2019]
["P126","Servicios  de agencias de empleo y de dotación de recursos humanos",0,"Exportaciones (fob)",2019]
["P148","Servicios de asociaciones que sirven a los hogares",0,"Exportaciones (fob)",2019]
["P007","Sandías y melones",-16.72353,"Variación de existencias (PC)",2019]
["P009","Raíces y tubérculos",0,"Variación de existencias (PC)",2019]
["P028","Productos forestales no madereros",0,"Variación de existencias (PC)",2019]
["P037","Carne y despojos de otros animales y conservas y preparados de carne",4.2506599999999999,"Variación de existencias (PC)",2019]
["P049","Otros productos de molinería, almidones y productos de almidón",7.4286950000000003,"Variación de existencias (PC)",2019]
["P065","Envases de papel y cartón",-43.223488000000003,"Variación de existencias (PC)",2019]
["P066","Productos de la edición",-18.593132000000001,"Variación de existencias (PC)",2019]
["P082","Métales básicos de hierro y acero, productos primarios de metales preciosos y otros metales no ferrosos",-168.113203,"Variación de existencias (PC)",2019]
["P099","Edificaciones no residenciales",268.99026500000002,"Variación de existencias (PC)",2019]
["P106","Otros tipos de transporte",0,"Variación de existencias (PC)",2019]
["P120","Servicios jurídicos, de contabilidad, auditoría, teneduría de libros y consultoría fiscal",0,"Variación de existencias (PC)",2019]
["P134","Servicios de apoyo a la agricultura, caza, silvicultura y pesca",0,"Variación de existencias (PC)",2019]
["P141","Servicios administrativos relacionados con los sistemas de seguridad social de afiliación obligatoria",0,"Variación de existencias (PC)",2019]
["P151","Compras directas en el exterior por residentes",0,"Variación de existencias (PC)",2019]
["P006","Hortalizas",0,"Ajuste CIF/FOB",2019]
["P019","Propagación de plantas",0,"Ajuste CIF/FOB",2019]
["P034","Carne y despojos comestibles de ganado bovino; cueros y pieles de bovino y de otros animales",0,"Ajuste CIF/FOB",2019]
["P048","Arroz sin cáscara",0,"Ajuste CIF/FOB",2019]
["P062","Calzado y sus partes, de cualquier material y de cualquier uso",0,"Ajuste CIF/FOB",2019]
["P069","Aceites, grasas lubricantes y otros aceites preparados",0,"Ajuste CIF/FOB",2019]
["P079","Cemento, cal y yeso",0,"Ajuste CIF/FOB",2019]
["P090","Aparatos médicos, instrumentos ópticos y de precisión, relojes",0,"Ajuste CIF/FOB",2019]
["P103","Mantenimiento y reparación de vehículos automotores y motocicletas",0,"Ajuste CIF/FOB",2019]
["P111","Servicio de suministro de comidas y bebidas",0,"Ajuste CIF/FOB",2019]
["P131","Servicios administrativos, de apoyo de oficina y otros servicios de apoyo a las empresas",0,"Ajuste CIF/FOB",2019]
["P144","Servicios médicos y dentales",0,"Ajuste CIF/FOB",2019]
["P148","Servicios de asociaciones que sirven a los hogares",0,"Ajuste CIF/FOB",2019]
["P009","Raíces y tubérculos",3699.1759379999999,"Producción (PB)",2020]
["P024","Leche cruda",2208.5460410000001,"Producción (PB)",2020]
["P030","Crustáceos sin congelar y otros productos de la pesca",750.582944,"Producción (PB)",2020]
["P048","Arroz sin cáscara",773.64794500000005,"Producción (PB)",2020]
["P051","Tortillas de maíz, incluso tostadas, horneadas o fritas",8052.5265939999999,"Producción (PB)",2020]
["P065","Envases de papel y cartón",3544.717733,"Producción (PB)",2020]
["P084","Otros productos elaborados de metal",3402.2113490000002,"Producción (PB)",2020]
["P093","Otros artículos n.c.p.",1667.7399439999999,"Producción (PB)",2020]
["P101","Servicios generales y especializados de construcción",12691.815687,"Producción (PB)",2020]
["P110","Servicio de alojamiento",1858.2110339999999,"Producción (PB)",2020]
["P122","Servicios de arquitectura e ingeniería, ensayos y análisis técnicos",2773.9711010000001,"Producción (PB)",2020]
["P138","Servicios públicos administrativos relacionados con la provisión de servicios educativos, de salud, servicios sociales, culturales y otros, sin contar los servicios de seguridad social",2239.6522340000001,"Producción (PB)",2020]
["P143","Servicios de hospitalización",11698.719482,"Producción (PB)",2020]
["P010","Caña de azúcar y otras plantas azucareras",0,"Impuestos sobre los productos, excepto IVA e impuestos sobre las importaciones",2020]
["P024","Leche cruda",0,"Impuestos sobre los productos, excepto IVA e impuestos sobre las importaciones",2020]
["P033","Minerales no metálicos",0,"Impuestos sobre los productos, excepto IVA e impuestos sobre las importaciones",2020]
["P045","Leche líquida y crema procesada",0,"Impuestos sobre los productos, excepto IVA e impuestos sobre las importaciones",2020]
["P054","Preparados para alimentación animal",0,"Impuestos sobre los productos, excepto IVA e impuestos sobre las importaciones",2020]
["P062","Calzado y sus partes, de cualquier material y de cualquier uso",0,"Impuestos sobre los productos, excepto IVA e impuestos sobre las importaciones",2020]
["P075","Productos farmacéuticos",0,"Impuestos sobre los productos, excepto IVA e impuestos sobre las importaciones",2020]
["P090","Aparatos médicos, instrumentos ópticos y de precisión, relojes",0,"Impuestos sobre los productos, excepto IVA e impuestos sobre las importaciones",2020]
["P104","Servicio de transporte de pasajeros por vía terrestre",0,"Impuestos sobre los productos, excepto IVA e impuestos sobre las importaciones",2020]
["P107","Servicios de almacenamiento y depósito",0,"Impuestos sobre los productos, excepto IVA e impuestos sobre las importaciones",2020]
["P125","Servicios de arrendamiento o alquiler sin operador",0,"Impuestos sobre los productos, excepto IVA e impuestos sobre las importaciones",2020]
["P131","Servicios administrativos, de apoyo de oficina y otros servicios de apoyo a las empresas",0,"Impuestos sobre los productos, excepto IVA e impuestos sobre las importaciones",2020]
["P146","Servicios audiovisuales, recreativos, culturales y deportivos",0,"Impuestos sobre los productos, excepto IVA e impuestos sobre las importaciones",2020]
["P007","Sandías y melones",0,"Subvenciones a los productos",2020]
["P015","Palma africana",0,"Subvenciones a los productos",2020]
["P024","Leche cruda",0,"Subvenciones a los productos",2020]
["P044","Margarina, grasas y otros aceites de origen animal y vegetal",0,"Subvenciones a los productos",2020]
["P052","Azúcar de caña sin refinar y refinada, melaza y los demás azúcares n.c.p.",0,"Subvenciones a los productos",2020]
["P065","Envases de papel y cartón",0,"Subvenciones a los productos",2020]
["P069","Aceites, grasas lubricantes y otros aceites preparados",0,"Subvenciones a los productos",2020]
["P086","Electrodomésticos y sus partes",0,"Subvenciones a los productos",2020]
["P093","Otros artículos n.c.p.",0,"Subvenciones a los productos",2020]
["P107","Servicios de almacenamiento y depósito",0,"Subvenciones a los productos",2020]
["P121","Servicios de tecnología de la información",0,"Subvenciones a los productos",2020]
["P136","Servicios de manufactura",0,"Subvenciones a los productos",2020]
["P138","Servicios públicos administrativos relacionados con la provisión de servicios educativos, de salud, servicios sociales, culturales y otros, sin contar los servicios de seguridad social",0,"Subvenciones a los productos",2020]
["P005","Otros cereales",1329.6723710000001,"Importaciones (CIF)",2020]
["P014","Berries, otras frutas y semillas de frutas",576.00430800000004,"Importaciones (CIF)",2020]
["P026","Otros productos de animales vivos",4.3389829999999998,"Importaciones (CIF)",2020]
["P035","Carne y despojos comestibles de ganado porcino",301.09630600000003,"Importaciones (CIF)",2020]
["P049","Otros productos de molinería, almidones y productos de almidón",1261.4198490000001,"Importaciones (CIF)",2020]
["P056","Malta y cerveza de malta",747.42203199999994,"Importaciones (CIF)",2020]
["P073","Jabón, preparados de limpieza, perfumes y preparados de toilet",2954.1122169999999,"Importaciones (CIF)",2020]
["P089","Equipo y aparatos de radio, televisión y comunicaciones",7840.8317740000002,"Importaciones (CIF)",2020]
["P090","Aparatos médicos, instrumentos ópticos y de precisión, relojes",2207.9088769999998,"Importaciones (CIF)",2020]
["P110","Servicio de alojamiento",0,"Importaciones (CIF)",2020]
["P118","Servicios de alquiler de vivienda",0,"Importaciones (CIF)",2020]
["P127","Servicios de agencias de viajes, operadores turísticos y actividades conexas",0.22889499999999999,"Importaciones (CIF)",2020]
["P146","Servicios audiovisuales, recreativos, culturales y deportivos",46.538401,"Importaciones (CIF)",2020]
["P148","Servicios de asociaciones que sirven a los hogares",0,"Importaciones (CIF)",2020]
["P011","Tabaco y otras plantas no perennes",0.17264299999999999,"Impuestos y derechos sobre las importaciones excepto IVA",2020]
["P029","Peces vivos, frescos o refrigerados",0.27446500000000001,"Impuestos y derechos sobre las importaciones excepto IVA",2020]
["P035","Carne y despojos comestibles de ganado porcino",5.2083149999999998,"Impuestos y derechos sobre las importaciones excepto IVA",2020]
["P050","Pan y otros productos de panadería y repostería n.c.p.",6.5201950000000002,"Impuestos y derechos sobre las importaciones excepto IVA",2020]
["P063","Madera aserrada y acepillada, productos de madera, corcho, paja y materiales trenzables",19.997924999999999,"Impuestos y derechos sobre las importaciones excepto IVA",2020]
["P067","Productos de la impresión",0.81150100000000003,"Impuestos y derechos sobre las importaciones excepto IVA",2020]
["P080","Artículos de hormigón, cemento y yeso",1.1310340000000001,"Impuestos y derechos sobre las importaciones excepto IVA",2020]
["P088","Maquinaria y aparatos eléctricos, sus partes y piezas",68.348906999999997,"Impuestos y derechos sobre las importaciones excepto IVA",2020]
["P108","Otros servicios de apoyo al transporte",0,"Impuestos y derechos sobre las importaciones excepto IVA",2020]
["P121","Servicios de tecnología de la información",0,"Impuestos y derechos sobre las importaciones excepto IVA",2020]
["P132","Servicios de mantenimiento, reparación e instalación de productos metálicos elaborados, maquinaria y equipo",0,"Impuestos y derechos sobre las importaciones excepto IVA",2020]
["P142","Servicios de enseñanza",0,"Impuestos y derechos sobre las importaciones excepto IVA",2020]
["P149","Otros servicios",0,"Impuestos y derechos sobre las importaciones excepto IVA",2020]
["P011","Tabaco y otras plantas no perennes",14.170648999999999,"Impuesto tipo valor agregado (IVA)",2020]
["P025","Huevos",308.56753900000001,"Impuesto tipo valor agregado (IVA)",2020]
["P028","Productos forestales no madereros",1.0307299999999999,"Impuesto tipo valor agregado (IVA)",2020]
["P041","Preparaciones y conservas de frutas y nueces",55.174436999999998,"Impuesto tipo valor agregado (IVA)",2020]
["P060","Prendas de vestir, adobo y teñido de pieles",527.20335,"Impuesto tipo valor agregado (IVA)",2020]
["P070","Gases de petróleo, otros productos de la refinación de petróleo n.c.p.",361.26904300000001,"Impuesto tipo valor agregado (IVA)",2020]
["P077","Vidrio y productos de vidrio",17.311738999999999,"Impuesto tipo valor agregado (IVA)",2020]
["P091","Equipo de transporte",803.60413600000004,"Impuesto tipo valor agregado (IVA)",2020]
["P105","Servicio de transporte de carga por vía terrestre",32.953361999999998,"Impuesto tipo valor agregado (IVA)",2020]
["P112","Servicios de información, telecomunicaciones y radiodifusión",2366.6884580000001,"Impuesto tipo valor agregado (IVA)",2020]
["P129","Servicios de limpieza",22.927902,"Impuesto tipo valor agregado (IVA)",2020]
["P133","Servicios de reparación de otros bienes",42.730116000000002,"Impuesto tipo valor agregado (IVA)",2020]
["P146","Servicios audiovisuales, recreativos, culturales y deportivos",82.220427999999998,"Impuesto tipo valor agregado (IVA)",2020]
["P010","Caña de azúcar y otras plantas azucareras",411.06341600000002,"Márgenes de comercio, transporte y distribución de energía",2020]
["P022","Ganado porcino y otro tipo de animales vivos n.c.p.",89.583068999999995,"Márgenes de comercio, transporte y distribución de energía",2020]
["P031","Petróleo crudo y gas natural",66.533392000000006,"Márgenes de comercio, transporte y distribución de energía",2020]
["P039","Crustáceos, moluscos y demás invertebrados acuáticos congelados, preparados o en conserva y sus productos",112.167599,"Márgenes de comercio, transporte y distribución de energía",2020]
["P052","Azúcar de caña sin refinar y refinada, melaza y los demás azúcares n.c.p.",2690.5153059999998,"Márgenes de comercio, transporte y distribución de energía",2020]
["P063","Madera aserrada y acepillada, productos de madera, corcho, paja y materiales trenzables",532.56713999999999,"Márgenes de comercio, transporte y distribución de energía",2020]
["P073","Jabón, preparados de limpieza, perfumes y preparados de toilet",5108.982583,"Márgenes de comercio, transporte y distribución de energía",2020]
["P091","Equipo de transporte",5807.4309030000004,"Márgenes de comercio, transporte y distribución de energía",2020]
["P094","Residuos y desechos",507.48239699999999,"Márgenes de comercio, transporte y distribución de energía",2020]
["P108","Otros servicios de apoyo al transporte",0,"Márgenes de comercio, transporte y distribución de energía",2020]
["P123","Otros servicios profesionales, científicos y técnicos",0,"Márgenes de comercio, transporte y distribución de energía",2020]
["P136","Servicios de manufactura",0,"Márgenes de comercio, transporte y distribución de energía",2020]
["P144","Servicios médicos y dentales",0,"Márgenes de comercio, transporte y distribución de energía",2020]
["P008","Ejotes y arvejas",39.204709000000001,"Consumo Intermedio (PC)",2020]
["P013","Frutas tropicales y subtropicales",339.16466200000002,"Consumo Intermedio (PC)",2020]
["P025","Huevos",400.424465,"Consumo Intermedio (PC)",2020]
["P034","Carne y despojos comestibles de ganado bovino; cueros y pieles de bovino y de otros animales",1984.5764939999999,"Consumo Intermedio (PC)",2020]
["P055","Aguardientes, licores, vinos, demás bebidas espirituosas y productos del tabaco",516.96097399999996,"Consumo Intermedio (PC)",2020]
["P060","Prendas de vestir, adobo y teñido de pieles",1029.300894,"Consumo Intermedio (PC)",2020]
["P076","Productos de caucho y plástico",11885.927383,"Consumo Intermedio (PC)",2020]
["P088","Maquinaria y aparatos eléctricos, sus partes y piezas",3132.5605500000001,"Consumo Intermedio (PC)",2020]
["P093","Otros artículos n.c.p.",1699.190349,"Consumo Intermedio (PC)",2020]
["P105","Servicio de transporte de carga por vía terrestre",6402.6272349999999,"Consumo Intermedio (PC)",2020]
["P126","Servicios  de agencias de empleo y de dotación de recursos humanos",6428.7999470000004,"Consumo Intermedio (PC)",2020]
["P133","Servicios de reparación de otros bienes",767.15785800000003,"Consumo Intermedio (PC)",2020]
["P147","Servicios de asociaciones que sirven a las empresas",387.90722599999998,"Consumo Intermedio (PC)",2020]
["P005","Otros cereales",138.96991399999999,"Consumo Final privado (PC)",2020]
["P016","Café en grano",0,"Consumo Final privado (PC)",2020]
["P022","Ganado porcino y otro tipo de animales vivos n.c.p.",197.42295899999999,"Consumo Final privado (PC)",2020]
["P037","Carne y despojos de otros animales y conservas y preparados de carne",4181.9244159999998,"Consumo Final privado (PC)",2020]
["P050","Pan y otros productos de panadería y repostería n.c.p.",10831.96148,"Consumo Final privado (PC)",2020]
["P066","Productos de la edición",1802.6368649999999,"Consumo Final privado (PC)",2020]
["P067","Productos de la impresión",322.66875199999998,"Consumo Final privado (PC)",2020]
["P087","Maquinaria de oficina, contabilidad e informática, sus partes y piezas",585.10224600000004,"Consumo Final privado (PC)",2020]
["P091","Equipo de transporte",8579.5278259999995,"Consumo Final privado (PC)",2020]
["P108","Otros servicios de apoyo al transporte",3008.414053,"Consumo Final privado (PC)",2020]
["P119","Otros servicios inmobiliarios, excepto alquiler de vivienda",44.748277999999999,"Consumo Final privado (PC)",2020]
["P129","Servicios de limpieza",38.880944,"Consumo Final privado (PC)",2020]
["P136","Servicios de manufactura",1333.0174199999999,"Consumo Final privado (PC)",2020]
["P006","Hortalizas",110.20404499999999,"Consumo Final del Gobierno (PC)",2020]
["P012","Bananos, plátanos y otros",36.526502000000001,"Consumo Final del Gobierno (PC)",2020]
["P027","Troncos de madera y leña",0,"Consumo Final del Gobierno (PC)",2020]
["P040","Vegetales preparados o en conserva, legumbres y papas",0,"Consumo Final del Gobierno (PC)",2020]
["P048","Arroz sin cáscara",221.25266500000001,"Consumo Final del Gobierno (PC)",2020]
["P057","Bebidas no alcohólicas",0.74691799999999997,"Consumo Final del Gobierno (PC)",2020]
["P075","Productos farmacéuticos",2473.571363,"Consumo Final del Gobierno (PC)",2020]
["P078","Productos de cerámica y arcilla",0,"Consumo Final del Gobierno (PC)",2020]
["P088","Maquinaria y aparatos eléctricos, sus partes y piezas",0,"Consumo Final del Gobierno (PC)",2020]
["P099","Edificaciones no residenciales",0,"Consumo Final del Gobierno (PC)",2020]
["P116","Servicios de seguro, reaseguro y fondos de pensiones",70.492579000000006,"Consumo Final del Gobierno (PC)",2020]
["P132","Servicios de mantenimiento, reparación e instalación de productos metálicos elaborados, maquinaria y equipo",0,"Consumo Final del Gobierno (PC)",2020]
["P144","Servicios médicos y dentales",1530.9230230000001,"Consumo Final del Gobierno (PC)",2020]
["P149","Otros servicios",0,"Consumo Final del Gobierno (PC)",2020]
["P009","Raíces y tubérculos",0,"Formación Bruta de Capital Fijo (PC)",2020]
["P018","Caucho natural",10.381873000000001,"Formación Bruta de Capital Fijo (PC)",2020]
["P033","Minerales no metálicos",0,"Formación Bruta de Capital Fijo (PC)",2020]
["P039","Crustáceos, moluscos y demás invertebrados acuáticos congelados, preparados o en conserva y sus productos",0,"Formación Bruta de Capital Fijo (PC)",2020]
["P061","Cuero de piel curtida o adobada y cuero artificial o regenerado y artículos de cuero",0,"Formación Bruta de Capital Fijo (PC)",2020]
["P072","Pinturas, barnices, tintas y productos relacionados",0,"Formación Bruta de Capital Fijo (PC)",2020]
["P078","Productos de cerámica y arcilla",0,"Formación Bruta de Capital Fijo (PC)",2020]
["P089","Equipo y aparatos de radio, televisión y comunicaciones",2180.3706440000001,"Formación Bruta de Capital Fijo (PC)",2020]
["P106","Otros tipos de transporte",0,"Formación Bruta de Capital Fijo (PC)",2020]
["P110","Servicio de alojamiento",0,"Formación Bruta de Capital Fijo (PC)",2020]
["P123","Otros servicios profesionales, científicos y técnicos",424.90598999999997,"Formación Bruta de Capital Fijo (PC)",2020]
["P131","Servicios administrativos, de apoyo de oficina y otros servicios de apoyo a las empresas",0,"Formación Bruta de Capital Fijo (PC)",2020]
["P147","Servicios de asociaciones que sirven a las empresas",0,"Formación Bruta de Capital Fijo (PC)",2020]
["P012","Bananos, plátanos y otros",7178.8954590000003,"Exportaciones (fob)",2020]
["P023","Aves de corral",17.213274999999999,"Exportaciones (fob)",2020]
["P029","Peces vivos, frescos o refrigerados",21.492218000000001,"Exportaciones (fob)",2020]
["P040","Vegetales preparados o en conserva, legumbres y papas",820.26765399999999,"Exportaciones (fob)",2020]
["P050","Pan y otros productos de panadería y repostería n.c.p.",878.74994900000002,"Exportaciones (fob)",2020]
["P063","Madera aserrada y acepillada, productos de madera, corcho, paja y materiales trenzables",741.78283299999998,"Exportaciones (fob)",2020]
["P075","Productos farmacéuticos",1447.9913329999999,"Exportaciones (fob)",2020]
["P092","Muebles",365.749865,"Exportaciones (fob)",2020]
["P103","Mantenimiento y reparación de vehículos automotores y motocicletas",9.8842990000000004,"Exportaciones (fob)",2020]
["P113","Servicios de banco central",0,"Exportaciones (fob)",2020]
["P120","Servicios jurídicos, de contabilidad, auditoría, teneduría de libros y consultoría fiscal",12.59853,"Exportaciones (fob)",2020]
["P134","Servicios de apoyo a la agricultura, caza, silvicultura y pesca",0,"Exportaciones (fob)",2020]
["P144","Servicios médicos y dentales",233.651713,"Exportaciones (fob)",2020]
["P003","Leguminosas (legumbres secas) y semillas oleaginosas",-17.879294000000002,"Variación de existencias (PC)",2020]
["P020","Otros frutos oleaginosos, otras plantas bebestibles y especias aromáticas",0,"Variación de existencias (PC)",2020]
["P032","Minerales metálicos",-1.952882,"Variación de existencias (PC)",2020]
["P037","Carne y despojos de otros animales y conservas y preparados de carne",10.605771000000001,"Variación de existencias (PC)",2020]
["P053","Productos alimenticios n.c.p.",60.975670000000001,"Variación de existencias (PC)",2020]
["P065","Envases de papel y cartón",14.118136,"Variación de existencias (PC)",2020]
["P074","Otros productos químicos",-53.340702999999998,"Variación de existencias (PC)",2020]
["P089","Equipo y aparatos de radio, televisión y comunicaciones",205.65974700000001,"Variación de existencias (PC)",2020]
["P095","Generación y distribución de energía eléctrica, gas, vapor y aire acondicionado",0,"Variación de existencias (PC)",2020]
["P106","Otros tipos de transporte",0,"Variación de existencias (PC)",2020]
["P124","Servicios de publicidad y estudios de mercado",0,"Variación de existencias (PC)",2020]
["P134","Servicios de apoyo a la agricultura, caza, silvicultura y pesca",0,"Variación de existencias (PC)",2020]
["P145","Otros servicios de atención de la salud humana",0,"Variación de existencias (PC)",2020]
["P151","Compras directas en el exterior por residentes",0,"Variación de existencias (PC)",2020]
["P014","Berries, otras frutas y semillas de frutas",0,"Ajuste CIF/FOB",2020]
["P023","Aves de corral",0,"Ajuste CIF/FOB",2020]
["P035","Carne y despojos comestibles de ganado porcino",0,"Ajuste CIF/FOB",2020]
["P051","Tortillas de maíz, incluso tostadas, horneadas o fritas",0,"Ajuste CIF/FOB",2020]
["P056","Malta y cerveza de malta",0,"Ajuste CIF/FOB",2020]
["P077","Vidrio y productos de vidrio",0,"Ajuste CIF/FOB",2020]
["P086","Electrodomésticos y sus partes",0,"Ajuste CIF/FOB",2020]
["P098","Edificaciones residenciales",0,"Ajuste CIF/FOB",2020]
["P103","Mantenimiento y reparación de vehículos automotores y motocicletas",0,"Ajuste CIF/FOB",2020]
["P115","Servicios de Intermediación Financiera Medidos Indirectamente (SIFMI)",0,"Ajuste CIF/FOB",2020]
["P131","Servicios administrativos, de apoyo de oficina y otros servicios de apoyo a las empresas",0,"Ajuste CIF/FOB",2020]
["P136","Servicios de manufactura",0,"Ajuste CIF/FOB",2020]
["P148","Servicios de asociaciones que sirven a los hogares",0,"Ajuste CIF/FOB",2020]
["P017","Cardamomo",5815.5909689999999,"Producción (PB)",2021]
["P020","Otros frutos oleaginosos, otras plantas bebestibles y especias aromáticas",575.47528399999999,"Producción (PB)",2021]
["P038","Pescado congelado, preparado o en conserva y sus productos",615.01933699999995,"Producción (PB)",2021]
["P048","Arroz sin cáscara",846.26919899999996,"Producción (PB)",2021]
["P055","Aguardientes, licores, vinos, demás bebidas espirituosas y productos del tabaco",1563.2098779999999,"Producción (PB)",2021]
["P065","Envases de papel y cartón",4134.6547380000002,"Producción (PB)",2021]
["P076","Productos de caucho y plástico",14220.014381999999,"Producción (PB)",2021]
["P093","Otros artículos n.c.p.",1956.2794220000001,"Producción (PB)",2021]
["P109","Servicios postales y de mensajería",1692.6484230000001,"Producción (PB)",2021]
["P117","Servicios auxiliares de la intermediación financiera",7645.2964309999998,"Producción (PB)",2021]
["P130","Servicios telefónicos de centros de llamadas",6614.1490350000004,"Producción (PB)",2021]
["P134","Servicios de apoyo a la agricultura, caza, silvicultura y pesca",3902.8229110000002,"Producción (PB)",2021]
["P151","Compras directas en el exterior por residentes",0,"Producción (PB)",2021]
["P010","Caña de azúcar y otras plantas azucareras",0,"Impuestos sobre los productos, excepto IVA e impuestos sobre las importaciones",2021]
["P016","Café en grano",68.385572999999994,"Impuestos sobre los productos, excepto IVA e impuestos sobre las importaciones",2021]
["P038","Pescado congelado, preparado o en conserva y sus productos",0,"Impuestos sobre los productos, excepto IVA e impuestos sobre las importaciones",2021]
["P049","Otros productos de molinería, almidones y productos de almidón",0,"Impuestos sobre los productos, excepto IVA e impuestos sobre las importaciones",2021]
["P051","Tortillas de maíz, incluso tostadas, horneadas o fritas",0,"Impuestos sobre los productos, excepto IVA e impuestos sobre las importaciones",2021]
["P070","Gases de petróleo, otros productos de la refinación de petróleo n.c.p.",50.864483,"Impuestos sobre los productos, excepto IVA e impuestos sobre las importaciones",2021]
["P079","Cemento, cal y yeso",183.223613,"Impuestos sobre los productos, excepto IVA e impuestos sobre las importaciones",2021]
["P090","Aparatos médicos, instrumentos ópticos y de precisión, relojes",0,"Impuestos sobre los productos, excepto IVA e impuestos sobre las importaciones",2021]
["P100","Obras de ingeniería civil",0,"Impuestos sobre los productos, excepto IVA e impuestos sobre las importaciones",2021]
["P114","Otros servicios financieros y servicios de banca de inversión",0,"Impuestos sobre los productos, excepto IVA e impuestos sobre las importaciones",2021]
["P121","Servicios de tecnología de la información",0,"Impuestos sobre los productos, excepto IVA e impuestos sobre las importaciones",2021]
["P142","Servicios de enseñanza",0,"Impuestos sobre los productos, excepto IVA e impuestos sobre las importaciones",2021]
["P002","Frijoles",0,"Subvenciones a los productos",2021]
["P007","Sandías y melones",0,"Subvenciones a los productos",2021]
["P019","Propagación de plantas",0,"Subvenciones a los productos",2021]
["P035","Carne y despojos comestibles de ganado porcino",0,"Subvenciones a los productos",2021]
["P040","Vegetales preparados o en conserva, legumbres y papas",0,"Subvenciones a los productos",2021]
["P059","Hilados, tejidos, telas y otros productos textiles excepto prendas de vestir",0,"Subvenciones a los productos",2021]
["P061","Cuero de piel curtida o adobada y cuero artificial o regenerado y artículos de cuero",0,"Subvenciones a los productos",2021]
["P076","Productos de caucho y plástico",0,"Subvenciones a los productos",2021]
["P094","Residuos y desechos",0,"Subvenciones a los productos",2021]
["P104","Servicio de transporte de pasajeros por vía terrestre",-204,"Subvenciones a los productos",2021]
["P111","Servicio de suministro de comidas y bebidas",0,"Subvenciones a los productos",2021]
["P121","Servicios de tecnología de la información",0,"Subvenciones a los productos",2021]
["P132","Servicios de mantenimiento, reparación e instalación de productos metálicos elaborados, maquinaria y equipo",0,"Subvenciones a los productos",2021]
["P145","Otros servicios de atención de la salud humana",0,"Subvenciones a los productos",2021]
["P001","Maíz",3673.0260309999999,"Importaciones (CIF)",2021]
["P021","Ganado bovino",2.8164189999999998,"Importaciones (CIF)",2021]
["P034","Carne y despojos comestibles de ganado bovino; cueros y pieles de bovino y de otros animales",843.82912699999997,"Importaciones (CIF)",2021]
["P038","Pescado congelado, preparado o en conserva y sus productos",606.18896400000006,"Importaciones (CIF)",2021]
["P051","Tortillas de maíz, incluso tostadas, horneadas o fritas",0,"Importaciones (CIF)",2021]
["P066","Productos de la edición",550.64022399999999,"Importaciones (CIF)",2021]
["P072","Pinturas, barnices, tintas y productos relacionados",1235.225324,"Importaciones (CIF)",2021]
["P085","Maquinaria para usos generales y especiales, sus partes y piezas, excepto electrodomésticos",11493.735486,"Importaciones (CIF)",2021]
["P101","Servicios generales y especializados de construcción",93.241568000000001,"Importaciones (CIF)",2021]
["P114","Otros servicios financieros y servicios de banca de inversión",359.73497800000001,"Importaciones (CIF)",2021]
["P118","Servicios de alquiler de vivienda",0,"Importaciones (CIF)",2021]
["P135","Servicios de apoyo a la explotación de minas y canteras y los relacionados con la distribución de electricidad, gas y agua",0,"Importaciones (CIF)",2021]
["P142","Servicios de enseñanza",7.7523900000000001,"Importaciones (CIF)",2021]
["P004","Arroz",0.61585000000000001,"Impuestos y derechos sobre las importaciones excepto IVA",2021]
["P018","Caucho natural",1.5789999999999998E-2,"Impuestos y derechos sobre las importaciones excepto IVA",2021]
["P025","Huevos",0,"Impuestos y derechos sobre las importaciones excepto IVA",2021]
["P035","Carne y despojos comestibles de ganado porcino",10.313469,"Impuestos y derechos sobre las importaciones excepto IVA",2021]
["P054","Preparados para alimentación animal",9.6858579999999996,"Impuestos y derechos sobre las importaciones excepto IVA",2021]
["P063","Madera aserrada y acepillada, productos de madera, corcho, paja y materiales trenzables",37.025348000000001,"Impuestos y derechos sobre las importaciones excepto IVA",2021]
["P075","Productos farmacéuticos",159.813908,"Impuestos y derechos sobre las importaciones excepto IVA",2021]
["P080","Artículos de hormigón, cemento y yeso",1.533215,"Impuestos y derechos sobre las importaciones excepto IVA",2021]
["P096","Agua natural y distribución de agua natural",0,"Impuestos y derechos sobre las importaciones excepto IVA",2021]
["P104","Servicio de transporte de pasajeros por vía terrestre",0,"Impuestos y derechos sobre las importaciones excepto IVA",2021]
["P117","Servicios auxiliares de la intermediación financiera",0,"Impuestos y derechos sobre las importaciones excepto IVA",2021]
["P132","Servicios de mantenimiento, reparación e instalación de productos metálicos elaborados, maquinaria y equipo",0,"Impuestos y derechos sobre las importaciones excepto IVA",2021]
["P146","Servicios audiovisuales, recreativos, culturales y deportivos",0,"Impuestos y derechos sobre las importaciones excepto IVA",2021]
["P149","Otros servicios",0,"Impuestos y derechos sobre las importaciones excepto IVA",2021]
["P015","Palma africana",0,"Impuesto tipo valor agregado (IVA)",2021]
["P025","Huevos",315.72301599999997,"Impuesto tipo valor agregado (IVA)",2021]
["P036","Carne y despojos comestibles de aves",833.78969199999995,"Impuesto tipo valor agregado (IVA)",2021]
["P049","Otros productos de molinería, almidones y productos de almidón",283.39796000000001,"Impuesto tipo valor agregado (IVA)",2021]
["P057","Bebidas no alcohólicas",1640.422587,"Impuesto tipo valor agregado (IVA)",2021]
["P066","Productos de la edición",189.114969,"Impuesto tipo valor agregado (IVA)",2021]
["P086","Electrodomésticos y sus partes",345.77206699999999,"Impuesto tipo valor agregado (IVA)",2021]
["P099","Edificaciones no residenciales",197.11205699999999,"Impuesto tipo valor agregado (IVA)",2021]
["P101","Servicios generales y especializados de construcción",460.15049499999998,"Impuesto tipo valor agregado (IVA)",2021]
["P120","Servicios jurídicos, de contabilidad, auditoría, teneduría de libros y consultoría fiscal",99.806122999999999,"Impuesto tipo valor agregado (IVA)",2021]
["P129","Servicios de limpieza",24.707740000000001,"Impuesto tipo valor agregado (IVA)",2021]
["P137","Servicios públicos del gobierno general",0,"Impuesto tipo valor agregado (IVA)",2021]
["P146","Servicios audiovisuales, recreativos, culturales y deportivos",112.311629,"Impuesto tipo valor agregado (IVA)",2021]
["P006","Hortalizas",19888.366924000002,"Márgenes de comercio, transporte y distribución de energía",2021]
["P022","Ganado porcino y otro tipo de animales vivos n.c.p.",98.178034999999994,"Márgenes de comercio, transporte y distribución de energía",2021]
["P039","Crustáceos, moluscos y demás invertebrados acuáticos congelados, preparados o en conserva y sus productos",156.87118799999999,"Márgenes de comercio, transporte y distribución de energía",2021]
["P046","Otros productos lácteos n.c.p.",2554.901946,"Márgenes de comercio, transporte y distribución de energía",2021]
["P060","Prendas de vestir, adobo y teñido de pieles",5772.580019,"Márgenes de comercio, transporte y distribución de energía",2021]
["P063","Madera aserrada y acepillada, productos de madera, corcho, paja y materiales trenzables",686.63607100000002,"Márgenes de comercio, transporte y distribución de energía",2021]
["P077","Vidrio y productos de vidrio",254.05491799999999,"Márgenes de comercio, transporte y distribución de energía",2021]
["P091","Equipo de transporte",8555.6401889999997,"Márgenes de comercio, transporte y distribución de energía",2021]
["P098","Edificaciones residenciales",0,"Márgenes de comercio, transporte y distribución de energía",2021]
["P119","Otros servicios inmobiliarios, excepto alquiler de vivienda",0,"Márgenes de comercio, transporte y distribución de energía",2021]
["P131","Servicios administrativos, de apoyo de oficina y otros servicios de apoyo a las empresas",0,"Márgenes de comercio, transporte y distribución de energía",2021]
["P132","Servicios de mantenimiento, reparación e instalación de productos metálicos elaborados, maquinaria y equipo",0,"Márgenes de comercio, transporte y distribución de energía",2021]
["P152","Compras directas en el territorio nacional por no residentes",0,"Márgenes de comercio, transporte y distribución de energía",2021]
["P008","Ejotes y arvejas",43.622669000000002,"Consumo Intermedio (PC)",2021]
["P017","Cardamomo",2000.7558160000001,"Consumo Intermedio (PC)",2021]
["P036","Carne y despojos comestibles de aves",2610.504801,"Consumo Intermedio (PC)",2021]
["P038","Pescado congelado, preparado o en conserva y sus productos",450.921179,"Consumo Intermedio (PC)",2021]
["P053","Productos alimenticios n.c.p.",5221.3759879999998,"Consumo Intermedio (PC)",2021]
["P071","Abonos, fertilizantes y pesticidas",10214.523485,"Consumo Intermedio (PC)",2021]
["P077","Vidrio y productos de vidrio",1398.2340630000001,"Consumo Intermedio (PC)",2021]
["P092","Muebles",254.06993600000001,"Consumo Intermedio (PC)",2021]
["P101","Servicios generales y especializados de construcción",15737.590322,"Consumo Intermedio (PC)",2021]
["P116","Servicios de seguro, reaseguro y fondos de pensiones",4156.2820140000003,"Consumo Intermedio (PC)",2021]
["P122","Servicios de arquitectura e ingeniería, ensayos y análisis técnicos",2891.6153810000001,"Consumo Intermedio (PC)",2021]
["P140","Servicios públicos administrativos prestados a la comunidad en su conjunto",0,"Consumo Intermedio (PC)",2021]
["P143","Servicios de hospitalización",0,"Consumo Intermedio (PC)",2021]
["P005","Otros cereales",152.600976,"Consumo Final privado (PC)",2021]
["P020","Otros frutos oleaginosos, otras plantas bebestibles y especias aromáticas",569.01189399999998,"Consumo Final privado (PC)",2021]
["P033","Minerales no metálicos",360.96443499999998,"Consumo Final privado (PC)",2021]
["P041","Preparaciones y conservas de frutas y nueces",1265.1195540000001,"Consumo Final privado (PC)",2021]
["P050","Pan y otros productos de panadería y repostería n.c.p.",11407.684933,"Consumo Final privado (PC)",2021]
["P062","Calzado y sus partes, de cualquier material y de cualquier uso",5492.1077130000003,"Consumo Final privado (PC)",2021]
["P074","Otros productos químicos",1933.5226250000001,"Consumo Final privado (PC)",2021]
["P083","Productos metálicos estructurales y sus partes de hierro o de acero",1171.032432,"Consumo Final privado (PC)",2021]
["P102","Servicios de comercio",0,"Consumo Final privado (PC)",2021]
["P104","Servicio de transporte de pasajeros por vía terrestre",7116.3615989999998,"Consumo Final privado (PC)",2021]
["P119","Otros servicios inmobiliarios, excepto alquiler de vivienda",49.992336000000002,"Consumo Final privado (PC)",2021]
["P133","Servicios de reparación de otros bienes",1022.3385510000001,"Consumo Final privado (PC)",2021]
["P147","Servicios de asociaciones que sirven a las empresas",0,"Consumo Final privado (PC)",2021]
["P002","Frijoles",403.29801500000002,"Consumo Final del Gobierno (PC)",2021]
["P019","Propagación de plantas",0,"Consumo Final del Gobierno (PC)",2021]
["P023","Aves de corral",1.3359000000000001,"Consumo Final del Gobierno (PC)",2021]
["P036","Carne y despojos comestibles de aves",1.6868999999999999E-2,"Consumo Final del Gobierno (PC)",2021]
["P044","Margarina, grasas y otros aceites de origen animal y vegetal",0,"Consumo Final del Gobierno (PC)",2021]
["P064","Pasta de papel y papel",34.170020000000001,"Consumo Final del Gobierno (PC)",2021]
["P073","Jabón, preparados de limpieza, perfumes y preparados de toilet",0,"Consumo Final del Gobierno (PC)",2021]
["P081","Piedras talladas para construcción y otros productos minerales no metálicos n.c.p.",0,"Consumo Final del Gobierno (PC)",2021]
["P094","Residuos y desechos",0,"Consumo Final del Gobierno (PC)",2021]
["P103","Mantenimiento y reparación de vehículos automotores y motocicletas",0,"Consumo Final del Gobierno (PC)",2021]
["P116","Servicios de seguro, reaseguro y fondos de pensiones",105.639083,"Consumo Final del Gobierno (PC)",2021]
["P136","Servicios de manufactura",0,"Consumo Final del Gobierno (PC)",2021]
["P144","Servicios médicos y dentales",1860.4915370000001,"Consumo Final del Gobierno (PC)",2021]
["P005","Otros cereales",0,"Formación Bruta de Capital Fijo (PC)",2021]
["P016","Café en grano",64.688137999999995,"Formación Bruta de Capital Fijo (PC)",2021]
["P026","Otros productos de animales vivos",0,"Formación Bruta de Capital Fijo (PC)",2021]
["P033","Minerales no metálicos",0,"Formación Bruta de Capital Fijo (PC)",2021]
["P047","Harina de trigo",0,"Formación Bruta de Capital Fijo (PC)",2021]
["P061","Cuero de piel curtida o adobada y cuero artificial o regenerado y artículos de cuero",0,"Formación Bruta de Capital Fijo (PC)",2021]
["P076","Productos de caucho y plástico",0,"Formación Bruta de Capital Fijo (PC)",2021]
["P078","Productos de cerámica y arcilla",0,"Formación Bruta de Capital Fijo (PC)",2021]
["P097","Evacuación de aguas residuales, recogida, tratamiento y eliminación de desechos",0,"Formación Bruta de Capital Fijo (PC)",2021]
["P102","Servicios de comercio",0,"Formación Bruta de Capital Fijo (PC)",2021]
["P118","Servicios de alquiler de vivienda",0,"Formación Bruta de Capital Fijo (PC)",2021]
["P130","Servicios telefónicos de centros de llamadas",0,"Formación Bruta de Capital Fijo (PC)",2021]
["P139","Otros servicios administrativos",0,"Formación Bruta de Capital Fijo (PC)",2021]
["P147","Servicios de asociaciones que sirven a las empresas",0,"Formación Bruta de Capital Fijo (PC)",2021]
["P016","Café en grano",7160.3207190000003,"Exportaciones (fob)",2021]
["P023","Aves de corral",22.119228,"Exportaciones (fob)",2021]
["P037","Carne y despojos de otros animales y conservas y preparados de carne",540.97178199999996,"Exportaciones (fob)",2021]
["P047","Harina de trigo",32.566324000000002,"Exportaciones (fob)",2021]
["P058","Aguas minerales y otras aguas embotelladas",43.772801000000001,"Exportaciones (fob)",2021]
["P064","Pasta de papel y papel",1344.1009340000001,"Exportaciones (fob)",2021]
["P079","Cemento, cal y yeso",181.46805900000001,"Exportaciones (fob)",2021]
["P092","Muebles",568.66177900000002,"Exportaciones (fob)",2021]
["P108","Otros servicios de apoyo al transporte",2180.684929,"Exportaciones (fob)",2021]
["P109","Servicios postales y de mensajería",48.837941999999998,"Exportaciones (fob)",2021]
["P127","Servicios de agencias de viajes, operadores turísticos y actividades conexas",333.926942,"Exportaciones (fob)",2021]
["P142","Servicios de enseñanza",2.026081,"Exportaciones (fob)",2021]
["P144","Servicios médicos y dentales",241.19423699999999,"Exportaciones (fob)",2021]
["P007","Sandías y melones",4.9951540000000003,"Variación de existencias (PC)",2021]
["P020","Otros frutos oleaginosos, otras plantas bebestibles y especias aromáticas",0,"Variación de existencias (PC)",2021]
["P028","Productos forestales no madereros",0,"Variación de existencias (PC)",2021]
["P044","Margarina, grasas y otros aceites de origen animal y vegetal",17.796476999999999,"Variación de existencias (PC)",2021]
["P049","Otros productos de molinería, almidones y productos de almidón",-59.158985000000001,"Variación de existencias (PC)",2021]
["P061","Cuero de piel curtida o adobada y cuero artificial o regenerado y artículos de cuero",-62.912089999999999,"Variación de existencias (PC)",2021]
["P082","Métales básicos de hierro y acero, productos primarios de metales preciosos y otros metales no ferrosos",203.10367500000001,"Variación de existencias (PC)",2021]
["P089","Equipo y aparatos de radio, televisión y comunicaciones",-172.919499,"Variación de existencias (PC)",2021]
["P099","Edificaciones no residenciales",493.30078400000002,"Variación de existencias (PC)",2021]
["P117","Servicios auxiliares de la intermediación financiera",0,"Variación de existencias (PC)",2021]
["P120","Servicios jurídicos, de contabilidad, auditoría, teneduría de libros y consultoría fiscal",0,"Variación de existencias (PC)",2021]
["P134","Servicios de apoyo a la agricultura, caza, silvicultura y pesca",0,"Variación de existencias (PC)",2021]
["P141","Servicios administrativos relacionados con los sistemas de seguridad social de afiliación obligatoria",0,"Variación de existencias (PC)",2021]
["P006","Hortalizas",0,"Ajuste CIF/FOB",2021]
["P022","Ganado porcino y otro tipo de animales vivos n.c.p.",0,"Ajuste CIF/FOB",2021]
["P034","Carne y despojos comestibles de ganado bovino; cueros y pieles de bovino y de otros animales",0,"Ajuste CIF/FOB",2021]
["P039","Crustáceos, moluscos y demás invertebrados acuáticos congelados, preparados o en conserva y sus productos",0,"Ajuste CIF/FOB",2021]
["P051","Tortillas de maíz, incluso tostadas, horneadas o fritas",0,"Ajuste CIF/FOB",2021]
["P060","Prendas de vestir, adobo y teñido de pieles",0,"Ajuste CIF/FOB",2021]
["P079","Cemento, cal y yeso",0,"Ajuste CIF/FOB",2021]
["P081","Piedras talladas para construcción y otros productos minerales no metálicos n.c.p.",0,"Ajuste CIF/FOB",2021]
["P103","Mantenimiento y reparación de vehículos automotores y motocicletas",0,"Ajuste CIF/FOB",2021]
["P114","Otros servicios financieros y servicios de banca de inversión",0,"Ajuste CIF/FOB",2021]
["P123","Otros servicios profesionales, científicos y técnicos",0,"Ajuste CIF/FOB",2021]
["P138","Servicios públicos administrativos relacionados con la provisión de servicios educativos, de salud, servicios sociales, culturales y otros, sin contar los servicios de seguridad social",0,"Ajuste CIF/FOB",2021]
["P144","Servicios médicos y dentales",0,"Ajuste CIF/FOB",2021]
["P003","Leguminosas (legumbres secas) y semillas oleaginosas",818.77564700000005,"Producción (PB)",2022]
["P013","Frutas tropicales y subtropicales",3334.3816390000002,"Producción (PB)",2022]
["P031","Petróleo crudo y gas natural",1341.2293110000001,"Producción (PB)",2022]
["P042","Jugos de frutas",2216.5440450000001,"Producción (PB)",2022]
["P048","Arroz sin cáscara",967.80098699999996,"Producción (PB)",2022]
["P063","Madera aserrada y acepillada, productos de madera, corcho, paja y materiales trenzables",5812.0703489999996,"Producción (PB)",2022]
["P076","Productos de caucho y plástico",16081.774501,"Producción (PB)",2022]
["P084","Otros productos elaborados de metal",4869.9020119999996,"Producción (PB)",2022]
["P100","Obras de ingeniería civil",19957.043616999999,"Producción (PB)",2022]
["P105","Servicio de transporte de carga por vía terrestre",19187.423108999999,"Producción (PB)",2022]
["P117","Servicios auxiliares de la intermediación financiera",9108.2057779999996,"Producción (PB)",2022]
["P134","Servicios de apoyo a la agricultura, caza, silvicultura y pesca",4349.0787659999996,"Producción (PB)",2022]
["P145","Otros servicios de atención de la salud humana",5684.361406,"Producción (PB)",2022]
["P003","Leguminosas (legumbres secas) y semillas oleaginosas",0,"Impuestos sobre los productos, excepto IVA e impuestos sobre las importaciones",2022]
["P010","Caña de azúcar y otras plantas azucareras",0,"Impuestos sobre los productos, excepto IVA e impuestos sobre las importaciones",2022]
["P024","Leche cruda",0,"Impuestos sobre los productos, excepto IVA e impuestos sobre las importaciones",2022]
["P034","Carne y despojos comestibles de ganado bovino; cueros y pieles de bovino y de otros animales",0,"Impuestos sobre los productos, excepto IVA e impuestos sobre las importaciones",2022]
["P045","Leche líquida y crema procesada",0,"Impuestos sobre los productos, excepto IVA e impuestos sobre las importaciones",2022]
["P062","Calzado y sus partes, de cualquier material y de cualquier uso",0,"Impuestos sobre los productos, excepto IVA e impuestos sobre las importaciones",2022]
["P066","Productos de la edición",0,"Impuestos sobre los productos, excepto IVA e impuestos sobre las importaciones",2022]
["P079","Cemento, cal y yeso",185.530294,"Impuestos sobre los productos, excepto IVA e impuestos sobre las importaciones",2022]
["P095","Generación y distribución de energía eléctrica, gas, vapor y aire acondicionado",0,"Impuestos sobre los productos, excepto IVA e impuestos sobre las importaciones",2022]
["P107","Servicios de almacenamiento y depósito",0,"Impuestos sobre los productos, excepto IVA e impuestos sobre las importaciones",2022]
["P116","Servicios de seguro, reaseguro y fondos de pensiones",21.377578,"Impuestos sobre los productos, excepto IVA e impuestos sobre las importaciones",2022]
["P125","Servicios de arrendamiento o alquiler sin operador",0,"Impuestos sobre los productos, excepto IVA e impuestos sobre las importaciones",2022]
["P142","Servicios de enseñanza",0,"Impuestos sobre los productos, excepto IVA e impuestos sobre las importaciones",2022]
["P146","Servicios audiovisuales, recreativos, culturales y deportivos",0,"Impuestos sobre los productos, excepto IVA e impuestos sobre las importaciones",2022]
["P007","Sandías y melones",0,"Subvenciones a los productos",2022]
["P027","Troncos de madera y leña",0,"Subvenciones a los productos",2022]
["P031","Petróleo crudo y gas natural",0,"Subvenciones a los productos",2022]
["P048","Arroz sin cáscara",0,"Subvenciones a los productos",2022]
["P059","Hilados, tejidos, telas y otros productos textiles excepto prendas de vestir",0,"Subvenciones a los productos",2022]
["P065","Envases de papel y cartón",0,"Subvenciones a los productos",2022]
["P076","Productos de caucho y plástico",0,"Subvenciones a los productos",2022]
["P086","Electrodomésticos y sus partes",0,"Subvenciones a los productos",2022]
["P104","Servicio de transporte de pasajeros por vía terrestre",-200,"Subvenciones a los productos",2022]
["P119","Otros servicios inmobiliarios, excepto alquiler de vivienda",0,"Subvenciones a los productos",2022]
["P128","Servicios de seguridad, sistemas de seguridad e investigación privada",0,"Subvenciones a los productos",2022]
["P140","Servicios públicos administrativos prestados a la comunidad en su conjunto",0,"Subvenciones a los productos",2022]
["P145","Otros servicios de atención de la salud humana",0,"Subvenciones a los productos",2022]
["P009","Raíces y tubérculos",60.054288999999997,"Importaciones (CIF)",2022]
["P021","Ganado bovino",2.8449909999999998,"Importaciones (CIF)",2022]
["P026","Otros productos de animales vivos",8.5072419999999997,"Importaciones (CIF)",2022]
["P038","Pescado congelado, preparado o en conserva y sus productos",710.16650600000003,"Importaciones (CIF)",2022]
["P059","Hilados, tejidos, telas y otros productos textiles excepto prendas de vestir",4562.4183009999997,"Importaciones (CIF)",2022]
["P062","Calzado y sus partes, de cualquier material y de cualquier uso",2085.893403,"Importaciones (CIF)",2022]
["P080","Artículos de hormigón, cemento y yeso",197.617277,"Importaciones (CIF)",2022]
["P090","Aparatos médicos, instrumentos ópticos y de precisión, relojes",2788.5235109999999,"Importaciones (CIF)",2022]
["P101","Servicios generales y especializados de construcción",114.125535,"Importaciones (CIF)",2022]
["P107","Servicios de almacenamiento y depósito",0,"Importaciones (CIF)",2022]
["P118","Servicios de alquiler de vivienda",0,"Importaciones (CIF)",2022]
["P131","Servicios administrativos, de apoyo de oficina y otros servicios de apoyo a las empresas",47.567357000000001,"Importaciones (CIF)",2022]
["P142","Servicios de enseñanza",8.4054350000000007,"Importaciones (CIF)",2022]
["P008","Ejotes y arvejas",0,"Impuestos y derechos sobre las importaciones excepto IVA",2022]
["P018","Caucho natural",3.9640000000000002E-2,"Impuestos y derechos sobre las importaciones excepto IVA",2022]
["P029","Peces vivos, frescos o refrigerados",0.32817000000000002,"Impuestos y derechos sobre las importaciones excepto IVA",2022]
["P046","Otros productos lácteos n.c.p.",150.40938199999999,"Impuestos y derechos sobre las importaciones excepto IVA",2022]
["P050","Pan y otros productos de panadería y repostería n.c.p.",9.0273570000000003,"Impuestos y derechos sobre las importaciones excepto IVA",2022]
["P059","Hilados, tejidos, telas y otros productos textiles excepto prendas de vestir",128.31940299999999,"Impuestos y derechos sobre las importaciones excepto IVA",2022]
["P071","Abonos, fertilizantes y pesticidas",90.126481999999996,"Impuestos y derechos sobre las importaciones excepto IVA",2022]
["P087","Maquinaria de oficina, contabilidad e informática, sus partes y piezas",0,"Impuestos y derechos sobre las importaciones excepto IVA",2022]
["P104","Servicio de transporte de pasajeros por vía terrestre",0,"Impuestos y derechos sobre las importaciones excepto IVA",2022]
["P115","Servicios de Intermediación Financiera Medidos Indirectamente (SIFMI)",0,"Impuestos y derechos sobre las importaciones excepto IVA",2022]
["P121","Servicios de tecnología de la información",0,"Impuestos y derechos sobre las importaciones excepto IVA",2022]
["P132","Servicios de mantenimiento, reparación e instalación de productos metálicos elaborados, maquinaria y equipo",0,"Impuestos y derechos sobre las importaciones excepto IVA",2022]
["P142","Servicios de enseñanza",0,"Impuestos y derechos sobre las importaciones excepto IVA",2022]
["P004","Arroz",1.4090000000000001E-3,"Impuesto tipo valor agregado (IVA)",2022]
["P011","Tabaco y otras plantas no perennes",18.075638999999999,"Impuesto tipo valor agregado (IVA)",2022]
["P032","Minerales metálicos",3.6059999999999998E-3,"Impuesto tipo valor agregado (IVA)",2022]
["P044","Margarina, grasas y otros aceites de origen animal y vegetal",117.34946600000001,"Impuesto tipo valor agregado (IVA)",2022]
["P049","Otros productos de molinería, almidones y productos de almidón",328.103228,"Impuesto tipo valor agregado (IVA)",2022]
["P061","Cuero de piel curtida o adobada y cuero artificial o regenerado y artículos de cuero",110.506411,"Impuesto tipo valor agregado (IVA)",2022]
["P077","Vidrio y productos de vidrio",25.383897000000001,"Impuesto tipo valor agregado (IVA)",2022]
["P082","Métales básicos de hierro y acero, productos primarios de metales preciosos y otros metales no ferrosos",128.99721700000001,"Impuesto tipo valor agregado (IVA)",2022]
["P094","Residuos y desechos",3.2902170000000002,"Impuesto tipo valor agregado (IVA)",2022]
["P103","Mantenimiento y reparación de vehículos automotores y motocicletas",587.54141100000004,"Impuesto tipo valor agregado (IVA)",2022]
["P118","Servicios de alquiler de vivienda",18.790471,"Impuesto tipo valor agregado (IVA)",2022]
["P136","Servicios de manufactura",0,"Impuesto tipo valor agregado (IVA)",2022]
["P145","Otros servicios de atención de la salud humana",330.33594799999997,"Impuesto tipo valor agregado (IVA)",2022]
["P001","Maíz",3442.8244719999998,"Márgenes de comercio, transporte y distribución de energía",2022]
["P014","Berries, otras frutas y semillas de frutas",5166.962614,"Márgenes de comercio, transporte y distribución de energía",2022]
["P029","Peces vivos, frescos o refrigerados",868.65948000000003,"Márgenes de comercio, transporte y distribución de energía",2022]
["P035","Carne y despojos comestibles de ganado porcino",517.54327599999999,"Márgenes de comercio, transporte y distribución de energía",2022]
["P046","Otros productos lácteos n.c.p.",3032.7632309999999,"Márgenes de comercio, transporte y distribución de energía",2022]
["P064","Pasta de papel y papel",3947.480419,"Márgenes de comercio, transporte y distribución de energía",2022]
["P074","Otros productos químicos",2070.2980259999999,"Márgenes de comercio, transporte y distribución de energía",2022]
["P085","Maquinaria para usos generales y especiales, sus partes y piezas, excepto electrodomésticos",3484.9927269999998,"Márgenes de comercio, transporte y distribución de energía",2022]
["P098","Edificaciones residenciales",0,"Márgenes de comercio, transporte y distribución de energía",2022]
["P106","Otros tipos de transporte",-47.697111999999997,"Márgenes de comercio, transporte y distribución de energía",2022]
["P115","Servicios de Intermediación Financiera Medidos Indirectamente (SIFMI)",0,"Márgenes de comercio, transporte y distribución de energía",2022]
["P127","Servicios de agencias de viajes, operadores turísticos y actividades conexas",0,"Márgenes de comercio, transporte y distribución de energía",2022]
["P143","Servicios de hospitalización",0,"Márgenes de comercio, transporte y distribución de energía",2022]
["P004","Arroz",600.48324300000002,"Consumo Intermedio (PC)",2022]
["P008","Ejotes y arvejas",50.309817000000002,"Consumo Intermedio (PC)",2022]
["P025","Huevos",489.07245999999998,"Consumo Intermedio (PC)",2022]
["P036","Carne y despojos comestibles de aves",3230.5388889999999,"Consumo Intermedio (PC)",2022]
["P046","Otros productos lácteos n.c.p.",1075.329277,"Consumo Intermedio (PC)",2022]
["P060","Prendas de vestir, adobo y teñido de pieles",1309.576992,"Consumo Intermedio (PC)",2022]
["P067","Productos de la impresión",2687.0524169999999,"Consumo Intermedio (PC)",2022]
["P077","Vidrio y productos de vidrio",1624.2473050000001,"Consumo Intermedio (PC)",2022]
["P096","Agua natural y distribución de agua natural",3993.82312,"Consumo Intermedio (PC)",2022]
["P105","Servicio de transporte de carga por vía terrestre",8709.6409280000007,"Consumo Intermedio (PC)",2022]
["P117","Servicios auxiliares de la intermediación financiera",5245.1386759999996,"Consumo Intermedio (PC)",2022]
["P122","Servicios de arquitectura e ingeniería, ensayos y análisis técnicos",3321.8009149999998,"Consumo Intermedio (PC)",2022]
["P138","Servicios públicos administrativos relacionados con la provisión de servicios educativos, de salud, servicios sociales, culturales y otros, sin contar los servicios de seguridad social",0,"Consumo Intermedio (PC)",2022]
["P147","Servicios de asociaciones que sirven a las empresas",479.67396400000001,"Consumo Intermedio (PC)",2022]
["P005","Otros cereales",235.9914,"Consumo Final privado (PC)",2022]
["P016","Café en grano",0,"Consumo Final privado (PC)",2022]
["P029","Peces vivos, frescos o refrigerados",2324.6244040000001,"Consumo Final privado (PC)",2022]
["P049","Otros productos de molinería, almidones y productos de almidón",3005.0167369999999,"Consumo Final privado (PC)",2022]
["P057","Bebidas no alcohólicas",20824.029403,"Consumo Final privado (PC)",2022]
["P070","Gases de petróleo, otros productos de la refinación de petróleo n.c.p.",6023.6206149999998,"Consumo Final privado (PC)",2022]
["P074","Otros productos químicos",2518.4615690000001,"Consumo Final privado (PC)",2022]
["P087","Maquinaria de oficina, contabilidad e informática, sus partes y piezas",987.65826900000002,"Consumo Final privado (PC)",2022]
["P102","Servicios de comercio",0,"Consumo Final privado (PC)",2022]
["P108","Otros servicios de apoyo al transporte",4317.7675099999997,"Consumo Final privado (PC)",2022]
["P119","Otros servicios inmobiliarios, excepto alquiler de vivienda",56.286161999999997,"Consumo Final privado (PC)",2022]
["P141","Servicios administrativos relacionados con los sistemas de seguridad social de afiliación obligatoria",0.33966200000000002,"Consumo Final privado (PC)",2022]
["P143","Servicios de hospitalización",4478.8068800000001,"Consumo Final privado (PC)",2022]
["P010","Caña de azúcar y otras plantas azucareras",0,"Consumo Final del Gobierno (PC)",2022]
["P019","Propagación de plantas",0,"Consumo Final del Gobierno (PC)",2022]
["P027","Troncos de madera y leña",0,"Consumo Final del Gobierno (PC)",2022]
["P036","Carne y despojos comestibles de aves",8.1558000000000005E-2,"Consumo Final del Gobierno (PC)",2022]
["P048","Arroz sin cáscara",219.43844300000001,"Consumo Final del Gobierno (PC)",2022]
["P064","Pasta de papel y papel",29.148426000000001,"Consumo Final del Gobierno (PC)",2022]
["P081","Piedras talladas para construcción y otros productos minerales no metálicos n.c.p.",0,"Consumo Final del Gobierno (PC)",2022]
["P088","Maquinaria y aparatos eléctricos, sus partes y piezas",0,"Consumo Final del Gobierno (PC)",2022]
["P102","Servicios de comercio",0,"Consumo Final del Gobierno (PC)",2022]
["P105","Servicio de transporte de carga por vía terrestre",0,"Consumo Final del Gobierno (PC)",2022]
["P123","Otros servicios profesionales, científicos y técnicos",0,"Consumo Final del Gobierno (PC)",2022]
["P133","Servicios de reparación de otros bienes",0,"Consumo Final del Gobierno (PC)",2022]
["P140","Servicios públicos administrativos prestados a la comunidad en su conjunto",14964.985622,"Consumo Final del Gobierno (PC)",2022]
["P001","Maíz",0,"Formación Bruta de Capital Fijo (PC)",2022]
["P016","Café en grano",84.426192,"Formación Bruta de Capital Fijo (PC)",2022]
["P030","Crustáceos sin congelar y otros productos de la pesca",0,"Formación Bruta de Capital Fijo (PC)",2022]
["P044","Margarina, grasas y otros aceites de origen animal y vegetal",0,"Formación Bruta de Capital Fijo (PC)",2022]
["P051","Tortillas de maíz, incluso tostadas, horneadas o fritas",0,"Formación Bruta de Capital Fijo (PC)",2022]
["P061","Cuero de piel curtida o adobada y cuero artificial o regenerado y artículos de cuero",0,"Formación Bruta de Capital Fijo (PC)",2022]
["P072","Pinturas, barnices, tintas y productos relacionados",0,"Formación Bruta de Capital Fijo (PC)",2022]
["P085","Maquinaria para usos generales y especiales, sus partes y piezas, excepto electrodomésticos",12212.533626,"Formación Bruta de Capital Fijo (PC)",2022]
["P093","Otros artículos n.c.p.",462.76148799999999,"Formación Bruta de Capital Fijo (PC)",2022]
["P113","Servicios de banco central",0,"Formación Bruta de Capital Fijo (PC)",2022]
["P122","Servicios de arquitectura e ingeniería, ensayos y análisis técnicos",219.12027599999999,"Formación Bruta de Capital Fijo (PC)",2022]
["P130","Servicios telefónicos de centros de llamadas",0,"Formación Bruta de Capital Fijo (PC)",2022]
["P143","Servicios de hospitalización",0,"Formación Bruta de Capital Fijo (PC)",2022]
["P006","Hortalizas",1796.4918640000001,"Exportaciones (fob)",2022]
["P012","Bananos, plátanos y otros",8234.8124160000007,"Exportaciones (fob)",2022]
["P030","Crustáceos sin congelar y otros productos de la pesca",31.593340000000001,"Exportaciones (fob)",2022]
["P033","Minerales no metálicos",213.98985300000001,"Exportaciones (fob)",2022]
["P047","Harina de trigo",45.639806999999998,"Exportaciones (fob)",2022]
["P054","Preparados para alimentación animal",1183.5929329999999,"Exportaciones (fob)",2022]
["P075","Productos farmacéuticos",1812.618174,"Exportaciones (fob)",2022]
["P083","Productos metálicos estructurales y sus partes de hierro o de acero",393.65666499999998,"Exportaciones (fob)",2022]
["P092","Muebles",594.37426800000003,"Exportaciones (fob)",2022]
["P104","Servicio de transporte de pasajeros por vía terrestre",5.0107200000000001,"Exportaciones (fob)",2022]
["P116","Servicios de seguro, reaseguro y fondos de pensiones",388.27562899999998,"Exportaciones (fob)",2022]
["P125","Servicios de arrendamiento o alquiler sin operador",155.51295500000001,"Exportaciones (fob)",2022]
["P144","Servicios médicos y dentales",338.67865999999998,"Exportaciones (fob)",2022]
["P146","Servicios audiovisuales, recreativos, culturales y deportivos",0,"Exportaciones (fob)",2022]
["P015","Palma africana",0,"Variación de existencias (PC)",2022]
["P027","Troncos de madera y leña",0,"Variación de existencias (PC)",2022]
["P036","Carne y despojos comestibles de aves",-1.5675760000000001,"Variación de existencias (PC)",2022]
["P044","Margarina, grasas y otros aceites de origen animal y vegetal",-18.688200999999999,"Variación de existencias (PC)",2022]
["P057","Bebidas no alcohólicas",84.642555000000002,"Variación de existencias (PC)",2022]
["P072","Pinturas, barnices, tintas y productos relacionados",15.514616,"Variación de existencias (PC)",2022]
["P086","Electrodomésticos y sus partes",-11.984557000000001,"Variación de existencias (PC)",2022]
["P089","Equipo y aparatos de radio, televisión y comunicaciones",201.80547999999999,"Variación de existencias (PC)",2022]
["P107","Servicios de almacenamiento y depósito",0,"Variación de existencias (PC)",2022]
["P113","Servicios de banco central",0,"Variación de existencias (PC)",2022]
["P128","Servicios de seguridad, sistemas de seguridad e investigación privada",0,"Variación de existencias (PC)",2022]
["P141","Servicios administrativos relacionados con los sistemas de seguridad social de afiliación obligatoria",0,"Variación de existencias (PC)",2022]
["P149","Otros servicios",0,"Variación de existencias (PC)",2022]
["P006","Hortalizas",0,"Ajuste CIF/FOB",2022]
["P026","Otros productos de animales vivos",0,"Ajuste CIF/FOB",2022]
["P034","Carne y despojos comestibles de ganado bovino; cueros y pieles de bovino y de otros animales",0,"Ajuste CIF/FOB",2022]
["P047","Harina de trigo",0,"Ajuste CIF/FOB",2022]
["P058","Aguas minerales y otras aguas embotelladas",0,"Ajuste CIF/FOB",2022]
["P068","Gasolinas, diésel oil y fuel oils",0,"Ajuste CIF/FOB",2022]
["P075","Productos farmacéuticos",0,"Ajuste CIF/FOB",2022]
["P089","Equipo y aparatos de radio, televisión y comunicaciones",0,"Ajuste CIF/FOB",2022]
["P103","Mantenimiento y reparación de vehículos automotores y motocicletas",0,"Ajuste CIF/FOB",2022]
["P118","Servicios de alquiler de vivienda",0,"Ajuste CIF/FOB",2022]
["P120","Servicios jurídicos, de contabilidad, auditoría, teneduría de libros y consultoría fiscal",0,"Ajuste CIF/FOB",2022]
["P139","Otros servicios administrativos",0,"Ajuste CIF/FOB",2022]
["P148","Servicios de asociaciones que sirven a los hogares",0,"Ajuste CIF/FOB",2022]
["P008","Ejotes y arvejas",1404.95091,"Producción (PB)","2023 p/"]
["P017","Cardamomo",3873.7081459999999,"Producción (PB)","2023 p/"]
["P031","Petróleo crudo y gas natural",886.39914399999998,"Producción (PB)","2023 p/"]
["P038","Pescado congelado, preparado o en conserva y sus productos",496.99620800000002,"Producción (PB)","2023 p/"]
["P055","Aguardientes, licores, vinos, demás bebidas espirituosas y productos del tabaco",1795.0181230000001,"Producción (PB)","2023 p/"]
["P059","Hilados, tejidos, telas y otros productos textiles excepto prendas de vestir",7702.019284,"Producción (PB)","2023 p/"]
["P072","Pinturas, barnices, tintas y productos relacionados",1717.309129,"Producción (PB)","2023 p/"]
["P092","Muebles",8891.0952780000007,"Producción (PB)","2023 p/"]
["P100","Obras de ingeniería civil",19653.389414000001,"Producción (PB)","2023 p/"]
["P109","Servicios postales y de mensajería",2182.7055030000001,"Producción (PB)","2023 p/"]
["P117","Servicios auxiliares de la intermediación financiera",10659.807396,"Producción (PB)","2023 p/"]
["P130","Servicios telefónicos de centros de llamadas",8567.0138480000005,"Producción (PB)","2023 p/"]
["P141","Servicios administrativos relacionados con los sistemas de seguridad social de afiliación obligatoria",1383.3306809999999,"Producción (PB)","2023 p/"]
["P151","Compras directas en el exterior por residentes",0,"Producción (PB)","2023 p/"]
["P017","Cardamomo",0,"Impuestos sobre los productos, excepto IVA e impuestos sobre las importaciones","2023 p/"]
["P032","Minerales metálicos",0,"Impuestos sobre los productos, excepto IVA e impuestos sobre las importaciones","2023 p/"]
["P034","Carne y despojos comestibles de ganado bovino; cueros y pieles de bovino y de otros animales",0,"Impuestos sobre los productos, excepto IVA e impuestos sobre las importaciones","2023 p/"]
["P049","Otros productos de molinería, almidones y productos de almidón",0,"Impuestos sobre los productos, excepto IVA e impuestos sobre las importaciones","2023 p/"]
["P062","Calzado y sus partes, de cualquier material y de cualquier uso",0,"Impuestos sobre los productos, excepto IVA e impuestos sobre las importaciones","2023 p/"]
["P070","Gases de petróleo, otros productos de la refinación de petróleo n.c.p.",59.993932999999998,"Impuestos sobre los productos, excepto IVA e impuestos sobre las importaciones","2023 p/"]
["P090","Aparatos médicos, instrumentos ópticos y de precisión, relojes",0,"Impuestos sobre los productos, excepto IVA e impuestos sobre las importaciones","2023 p/"]
["P091","Equipo de transporte",0,"Impuestos sobre los productos, excepto IVA e impuestos sobre las importaciones","2023 p/"]
["P103","Mantenimiento y reparación de vehículos automotores y motocicletas",0,"Impuestos sobre los productos, excepto IVA e impuestos sobre las importaciones","2023 p/"]
["P124","Servicios de publicidad y estudios de mercado",0,"Impuestos sobre los productos, excepto IVA e impuestos sobre las importaciones","2023 p/"]
["P131","Servicios administrativos, de apoyo de oficina y otros servicios de apoyo a las empresas",0,"Impuestos sobre los productos, excepto IVA e impuestos sobre las importaciones","2023 p/"]
["P141","Servicios administrativos relacionados con los sistemas de seguridad social de afiliación obligatoria",0,"Impuestos sobre los productos, excepto IVA e impuestos sobre las importaciones","2023 p/"]
["P007","Sandías y melones",0,"Subvenciones a los productos","2023 p/"]
["P010","Caña de azúcar y otras plantas azucareras",0,"Subvenciones a los productos","2023 p/"]
["P023","Aves de corral",0,"Subvenciones a los productos","2023 p/"]
["P042","Jugos de frutas",0,"Subvenciones a los productos","2023 p/"]
["P052","Azúcar de caña sin refinar y refinada, melaza y los demás azúcares n.c.p.",0,"Subvenciones a los productos","2023 p/"]
["P059","Hilados, tejidos, telas y otros productos textiles excepto prendas de vestir",0,"Subvenciones a los productos","2023 p/"]
["P073","Jabón, preparados de limpieza, perfumes y preparados de toilet",0,"Subvenciones a los productos","2023 p/"]
["P087","Maquinaria de oficina, contabilidad e informática, sus partes y piezas",0,"Subvenciones a los productos","2023 p/"]
["P094","Residuos y desechos",0,"Subvenciones a los productos","2023 p/"]
["P111","Servicio de suministro de comidas y bebidas",0,"Subvenciones a los productos","2023 p/"]
["P115","Servicios de Intermediación Financiera Medidos Indirectamente (SIFMI)",0,"Subvenciones a los productos","2023 p/"]
["P128","Servicios de seguridad, sistemas de seguridad e investigación privada",0,"Subvenciones a los productos","2023 p/"]
["P144","Servicios médicos y dentales",0,"Subvenciones a los productos","2023 p/"]
["P004","Arroz",430.22464000000002,"Importaciones (CIF)","2023 p/"]
["P013","Frutas tropicales y subtropicales",19.533411000000001,"Importaciones (CIF)","2023 p/"]
["P021","Ganado bovino",3.1569820000000002,"Importaciones (CIF)","2023 p/"]
["P034","Carne y despojos comestibles de ganado bovino; cueros y pieles de bovino y de otros animales",1155.342492,"Importaciones (CIF)","2023 p/"]
["P045","Leche líquida y crema procesada",557.90293799999995,"Importaciones (CIF)","2023 p/"]
["P055","Aguardientes, licores, vinos, demás bebidas espirituosas y productos del tabaco",656.10525199999995,"Importaciones (CIF)","2023 p/"]
["P073","Jabón, preparados de limpieza, perfumes y preparados de toilet",4251.5695260000002,"Importaciones (CIF)","2023 p/"]
["P084","Otros productos elaborados de metal",4088.4360409999999,"Importaciones (CIF)","2023 p/"]
["P090","Aparatos médicos, instrumentos ópticos y de precisión, relojes",2924.4248069999999,"Importaciones (CIF)","2023 p/"]
["P105","Servicio de transporte de carga por vía terrestre",3000.884998,"Importaciones (CIF)","2023 p/"]
["P118","Servicios de alquiler de vivienda",0,"Importaciones (CIF)","2023 p/"]
["P126","Servicios  de agencias de empleo y de dotación de recursos humanos",0,"Importaciones (CIF)","2023 p/"]
["P142","Servicios de enseñanza",7.8564850000000002,"Importaciones (CIF)","2023 p/"]
["P147","Servicios de asociaciones que sirven a las empresas",0,"Importaciones (CIF)","2023 p/"]
["P007","Sandías y melones",4.9789E-2,"Impuestos y derechos sobre las importaciones excepto IVA","2023 p/"]
["P016","Café en grano",1.567E-2,"Impuestos y derechos sobre las importaciones excepto IVA","2023 p/"]
["P037","Carne y despojos de otros animales y conservas y preparados de carne",13.535093,"Impuestos y derechos sobre las importaciones excepto IVA","2023 p/"]
["P042","Jugos de frutas",1.030154,"Impuestos y derechos sobre las importaciones excepto IVA","2023 p/"]
["P058","Aguas minerales y otras aguas embotelladas",1.5757620000000001,"Impuestos y derechos sobre las importaciones excepto IVA","2023 p/"]
["P070","Gases de petróleo, otros productos de la refinación de petróleo n.c.p.",0.208984,"Impuestos y derechos sobre las importaciones excepto IVA","2023 p/"]
["P075","Productos farmacéuticos",177.42777799999999,"Impuestos y derechos sobre las importaciones excepto IVA","2023 p/"]
["P087","Maquinaria de oficina, contabilidad e informática, sus partes y piezas",0,"Impuestos y derechos sobre las importaciones excepto IVA","2023 p/"]
["P096","Agua natural y distribución de agua natural",0,"Impuestos y derechos sobre las importaciones excepto IVA","2023 p/"]
["P115","Servicios de Intermediación Financiera Medidos Indirectamente (SIFMI)",0,"Impuestos y derechos sobre las importaciones excepto IVA","2023 p/"]
["P129","Servicios de limpieza",0,"Impuestos y derechos sobre las importaciones excepto IVA","2023 p/"]
["P139","Otros servicios administrativos",0,"Impuestos y derechos sobre las importaciones excepto IVA","2023 p/"]
["P150","Servicios domésticos",0,"Impuestos y derechos sobre las importaciones excepto IVA","2023 p/"]
["P004","Arroz",1.3749999999999999E-3,"Impuesto tipo valor agregado (IVA)","2023 p/"]
["P019","Propagación de plantas",1.683981,"Impuesto tipo valor agregado (IVA)","2023 p/"]
["P032","Minerales metálicos",2.7060000000000001E-3,"Impuesto tipo valor agregado (IVA)","2023 p/"]
["P036","Carne y despojos comestibles de aves",1034.9344630000001,"Impuesto tipo valor agregado (IVA)","2023 p/"]
["P049","Otros productos de molinería, almidones y productos de almidón",342.745789,"Impuesto tipo valor agregado (IVA)","2023 p/"]
["P069","Aceites, grasas lubricantes y otros aceites preparados",29.709330000000001,"Impuesto tipo valor agregado (IVA)","2023 p/"]
["P073","Jabón, preparados de limpieza, perfumes y preparados de toilet",1469.0483879999999,"Impuesto tipo valor agregado (IVA)","2023 p/"]
["P090","Aparatos médicos, instrumentos ópticos y de precisión, relojes",95.206253000000004,"Impuesto tipo valor agregado (IVA)","2023 p/"]
["P101","Servicios generales y especializados de construcción",670.98408600000005,"Impuesto tipo valor agregado (IVA)","2023 p/"]
["P111","Servicio de suministro de comidas y bebidas",3439.9289910000002,"Impuesto tipo valor agregado (IVA)","2023 p/"]
["P118","Servicios de alquiler de vivienda",19.887836,"Impuesto tipo valor agregado (IVA)","2023 p/"]
["P128","Servicios de seguridad, sistemas de seguridad e investigación privada",111.601079,"Impuesto tipo valor agregado (IVA)","2023 p/"]
["P146","Servicios audiovisuales, recreativos, culturales y deportivos",195.08869000000001,"Impuesto tipo valor agregado (IVA)","2023 p/"]
["P009","Raíces y tubérculos",10726.468586000001,"Márgenes de comercio, transporte y distribución de energía","2023 p/"]
["P018","Caucho natural",33.002803,"Márgenes de comercio, transporte y distribución de energía","2023 p/"]
["P030","Crustáceos sin congelar y otros productos de la pesca",481.94730099999998,"Márgenes de comercio, transporte y distribución de energía","2023 p/"]
["P039","Crustáceos, moluscos y demás invertebrados acuáticos congelados, preparados o en conserva y sus productos",167.26013399999999,"Márgenes de comercio, transporte y distribución de energía","2023 p/"]
["P046","Otros productos lácteos n.c.p.",3363.4304120000002,"Márgenes de comercio, transporte y distribución de energía","2023 p/"]
["P060","Prendas de vestir, adobo y teñido de pieles",6610.9454580000001,"Márgenes de comercio, transporte y distribución de energía","2023 p/"]
["P070","Gases de petróleo, otros productos de la refinación de petróleo n.c.p.",5154.2455069999996,"Márgenes de comercio, transporte y distribución de energía","2023 p/"]
["P081","Piedras talladas para construcción y otros productos minerales no metálicos n.c.p.",151.30094600000001,"Márgenes de comercio, transporte y distribución de energía","2023 p/"]
["P098","Edificaciones residenciales",0,"Márgenes de comercio, transporte y distribución de energía","2023 p/"]
["P114","Otros servicios financieros y servicios de banca de inversión",0,"Márgenes de comercio, transporte y distribución de energía","2023 p/"]
["P115","Servicios de Intermediación Financiera Medidos Indirectamente (SIFMI)",0,"Márgenes de comercio, transporte y distribución de energía","2023 p/"]
["P131","Servicios administrativos, de apoyo de oficina y otros servicios de apoyo a las empresas",0,"Márgenes de comercio, transporte y distribución de energía","2023 p/"]
["P143","Servicios de hospitalización",0,"Márgenes de comercio, transporte y distribución de energía","2023 p/"]
["P152","Compras directas en el territorio nacional por no residentes",0,"Márgenes de comercio, transporte y distribución de energía","2023 p/"]
["P015","Palma africana",4583.9529789999997,"Consumo Intermedio (PC)","2023 p/"]
["P021","Ganado bovino",7402.76361,"Consumo Intermedio (PC)","2023 p/"]
["P032","Minerales metálicos",39.849547000000001,"Consumo Intermedio (PC)","2023 p/"]
["P054","Preparados para alimentación animal",12381.238232,"Consumo Intermedio (PC)","2023 p/"]
["P060","Prendas de vestir, adobo y teñido de pieles",1449.758881,"Consumo Intermedio (PC)","2023 p/"]
["P071","Abonos, fertilizantes y pesticidas",12750.586466999999,"Consumo Intermedio (PC)","2023 p/"]
["P088","Maquinaria y aparatos eléctricos, sus partes y piezas",4751.4716349999999,"Consumo Intermedio (PC)","2023 p/"]
["P092","Muebles",291.04167799999999,"Consumo Intermedio (PC)","2023 p/"]
["P101","Servicios generales y especializados de construcción",20411.088838,"Consumo Intermedio (PC)","2023 p/"]
["P113","Servicios de banco central",0,"Consumo Intermedio (PC)","2023 p/"]
["P129","Servicios de limpieza",1860.8586849999999,"Consumo Intermedio (PC)","2023 p/"]
["P146","Servicios audiovisuales, recreativos, culturales y deportivos",615.39575500000001,"Consumo Intermedio (PC)","2023 p/"]
["P005","Otros cereales",241.94366500000001,"Consumo Final privado (PC)","2023 p/"]
["P011","Tabaco y otras plantas no perennes",530.89625799999999,"Consumo Final privado (PC)","2023 p/"]
["P022","Ganado porcino y otro tipo de animales vivos n.c.p.",248.53466700000001,"Consumo Final privado (PC)","2023 p/"]
["P032","Minerales metálicos",0,"Consumo Final privado (PC)","2023 p/"]
["P045","Leche líquida y crema procesada",3051.4415250000002,"Consumo Final privado (PC)","2023 p/"]
["P057","Bebidas no alcohólicas",23644.139316000001,"Consumo Final privado (PC)","2023 p/"]
["P074","Otros productos químicos",2233.9838789999999,"Consumo Final privado (PC)","2023 p/"]
["P085","Maquinaria para usos generales y especiales, sus partes y piezas, excepto electrodomésticos",229.61558600000001,"Consumo Final privado (PC)","2023 p/"]
["P095","Generación y distribución de energía eléctrica, gas, vapor y aire acondicionado",8348.4264789999997,"Consumo Final privado (PC)","2023 p/"]
["P109","Servicios postales y de mensajería",743.94243200000005,"Consumo Final privado (PC)","2023 p/"]
["P116","Servicios de seguro, reaseguro y fondos de pensiones",4192.7939909999996,"Consumo Final privado (PC)","2023 p/"]
["P126","Servicios  de agencias de empleo y de dotación de recursos humanos",0,"Consumo Final privado (PC)","2023 p/"]
["P137","Servicios públicos del gobierno general",1241.1394330000001,"Consumo Final privado (PC)","2023 p/"]
["P002","Frijoles",694.44236899999999,"Consumo Final del Gobierno (PC)","2023 p/"]
["P014","Berries, otras frutas y semillas de frutas",180.85144,"Consumo Final del Gobierno (PC)","2023 p/"]
["P019","Propagación de plantas",0,"Consumo Final del Gobierno (PC)","2023 p/"]
["P035","Carne y despojos comestibles de ganado porcino",0,"Consumo Final del Gobierno (PC)","2023 p/"]
["P047","Harina de trigo",45.464526999999997,"Consumo Final del Gobierno (PC)","2023 p/"]
["P056","Malta y cerveza de malta",0,"Consumo Final del Gobierno (PC)","2023 p/"]
["P071","Abonos, fertilizantes y pesticidas",0,"Consumo Final del Gobierno (PC)","2023 p/"]
["P077","Vidrio y productos de vidrio",0,"Consumo Final del Gobierno (PC)","2023 p/"]
["P088","Maquinaria y aparatos eléctricos, sus partes y piezas",0,"Consumo Final del Gobierno (PC)","2023 p/"]
["P106","Otros tipos de transporte",0,"Consumo Final del Gobierno (PC)","2023 p/"]
["P116","Servicios de seguro, reaseguro y fondos de pensiones",277.542146,"Consumo Final del Gobierno (PC)","2023 p/"]
["P127","Servicios de agencias de viajes, operadores turísticos y actividades conexas",0,"Consumo Final del Gobierno (PC)","2023 p/"]
["P133","Servicios de reparación de otros bienes",0,"Consumo Final del Gobierno (PC)","2023 p/"]
["P148","Servicios de asociaciones que sirven a los hogares",0,"Consumo Final del Gobierno (PC)","2023 p/"]
["P005","Otros cereales",0,"Formación Bruta de Capital Fijo (PC)","2023 p/"]
["P017","Cardamomo",32.219566999999998,"Formación Bruta de Capital Fijo (PC)","2023 p/"]
["P033","Minerales no metálicos",0,"Formación Bruta de Capital Fijo (PC)","2023 p/"]
["P046","Otros productos lácteos n.c.p.",0,"Formación Bruta de Capital Fijo (PC)","2023 p/"]
["P059","Hilados, tejidos, telas y otros productos textiles excepto prendas de vestir",0,"Formación Bruta de Capital Fijo (PC)","2023 p/"]
["P068","Gasolinas, diésel oil y fuel oils",0,"Formación Bruta de Capital Fijo (PC)","2023 p/"]
["P080","Artículos de hormigón, cemento y yeso",0,"Formación Bruta de Capital Fijo (PC)","2023 p/"]
["P085","Maquinaria para usos generales y especiales, sus partes y piezas, excepto electrodomésticos",14035.724861999999,"Formación Bruta de Capital Fijo (PC)","2023 p/"]
["P097","Evacuación de aguas residuales, recogida, tratamiento y eliminación de desechos",0,"Formación Bruta de Capital Fijo (PC)","2023 p/"]
["P113","Servicios de banco central",0,"Formación Bruta de Capital Fijo (PC)","2023 p/"]
["P118","Servicios de alquiler de vivienda",0,"Formación Bruta de Capital Fijo (PC)","2023 p/"]
["P130","Servicios telefónicos de centros de llamadas",0,"Formación Bruta de Capital Fijo (PC)","2023 p/"]
["P151","Compras directas en el exterior por residentes",10.433707999999999,"Formación Bruta de Capital Fijo (PC)","2023 p/"]
["P002","Frijoles",11.863059,"Exportaciones (fob)","2023 p/"]
["P020","Otros frutos oleaginosos, otras plantas bebestibles y especias aromáticas",90.721688,"Exportaciones (fob)","2023 p/"]
["P030","Crustáceos sin congelar y otros productos de la pesca",9.3937589999999993,"Exportaciones (fob)","2023 p/"]
["P037","Carne y despojos de otros animales y conservas y preparados de carne",622.27758200000005,"Exportaciones (fob)","2023 p/"]
["P047","Harina de trigo",32.761749000000002,"Exportaciones (fob)","2023 p/"]
["P058","Aguas minerales y otras aguas embotelladas",64.306803000000002,"Exportaciones (fob)","2023 p/"]
["P075","Productos farmacéuticos",2213.2133699999999,"Exportaciones (fob)","2023 p/"]
["P091","Equipo de transporte",335.916878,"Exportaciones (fob)","2023 p/"]
["P099","Edificaciones no residenciales",0,"Exportaciones (fob)","2023 p/"]
["P112","Servicios de información, telecomunicaciones y radiodifusión",1529.8291119999999,"Exportaciones (fob)","2023 p/"]
["P116","Servicios de seguro, reaseguro y fondos de pensiones",404.89154300000001,"Exportaciones (fob)","2023 p/"]
["P129","Servicios de limpieza",0,"Exportaciones (fob)","2023 p/"]
["P144","Servicios médicos y dentales",335.71621099999999,"Exportaciones (fob)","2023 p/"]
["P150","Servicios domésticos",0,"Exportaciones (fob)","2023 p/"]
["P009","Raíces y tubérculos",0,"Variación de existencias (PC)","2023 p/"]
["P031","Petróleo crudo y gas natural",84.923680000000004,"Variación de existencias (PC)","2023 p/"]
["P033","Minerales no metálicos",-95.952819000000005,"Variación de existencias (PC)","2023 p/"]
["P052","Azúcar de caña sin refinar y refinada, melaza y los demás azúcares n.c.p.",145.361796,"Variación de existencias (PC)","2023 p/"]
["P061","Cuero de piel curtida o adobada y cuero artificial o regenerado y artículos de cuero",108.167733,"Variación de existencias (PC)","2023 p/"]
["P072","Pinturas, barnices, tintas y productos relacionados",166.023673,"Variación de existencias (PC)","2023 p/"]
["P082","Métales básicos de hierro y acero, productos primarios de metales preciosos y otros metales no ferrosos",-111.72902000000001,"Variación de existencias (PC)","2023 p/"]
["P096","Agua natural y distribución de agua natural",0,"Variación de existencias (PC)","2023 p/"]
["P103","Mantenimiento y reparación de vehículos automotores y motocicletas",0,"Variación de existencias (PC)","2023 p/"]
["P113","Servicios de banco central",0,"Variación de existencias (PC)","2023 p/"]
["P132","Servicios de mantenimiento, reparación e instalación de productos metálicos elaborados, maquinaria y equipo",0,"Variación de existencias (PC)","2023 p/"]
["P141","Servicios administrativos relacionados con los sistemas de seguridad social de afiliación obligatoria",0,"Variación de existencias (PC)","2023 p/"]
["P001","Maíz",0,"Ajuste CIF/FOB","2023 p/"]
["P017","Cardamomo",0,"Ajuste CIF/FOB","2023 p/"]
["P022","Ganado porcino y otro tipo de animales vivos n.c.p.",0,"Ajuste CIF/FOB","2023 p/"]
["P030","Crustáceos sin congelar y otros productos de la pesca",0,"Ajuste CIF/FOB","2023 p/"]
["P043","Aceites de origen vegetal",0,"Ajuste CIF/FOB","2023 p/"]
["P058","Aguas minerales y otras aguas embotelladas",0,"Ajuste CIF/FOB","2023 p/"]
["P064","Pasta de papel y papel",0,"Ajuste CIF/FOB","2023 p/"]
["P086","Electrodomésticos y sus partes",0,"Ajuste CIF/FOB","2023 p/"]
["P093","Otros artículos n.c.p.",0,"Ajuste CIF/FOB","2023 p/"]
["P103","Mantenimiento y reparación de vehículos automotores y motocicletas",0,"Ajuste CIF/FOB","2023 p/"]
["P114","Otros servicios financieros y servicios de banca de inversión",0,"Ajuste CIF/FOB","2023 p/"]
["P127","Servicios de agencias de viajes, operadores turísticos y actividades conexas",0,"Ajuste CIF/FOB","2023 p/"]
["P135","Servicios de apoyo a la explotación de minas y canteras y los relacionados con la distribución de electricidad, gas y agua",0,"Ajuste CIF/FOB","2023 p/"]
["P003","Leguminosas (legumbres secas) y semillas oleaginosas",963.56676900000002,"Producción (PB)","2024 p/"]
["P004","Arroz",132.841419,"Producción (PB)","2024 p/"]
["P020","Otros frutos oleaginosos, otras plantas bebestibles y especias aromáticas",625.34319600000003,"Producción (PB)","2024 p/"]
["P033","Minerales no metálicos",4422.8024699999996,"Producción (PB)","2024 p/"]
["P048","Arroz sin cáscara",1184.3376720000001,"Producción (PB)","2024 p/"]
["P054","Preparados para alimentación animal",11921.486236999999,"Producción (PB)","2024 p/"]
["P063","Madera aserrada y acepillada, productos de madera, corcho, paja y materiales trenzables",6400.866927,"Producción (PB)","2024 p/"]
["P083","Productos metálicos estructurales y sus partes de hierro o de acero",2378.0410280000001,"Producción (PB)","2024 p/"]
["P096","Agua natural y distribución de agua natural",6633.8920109999999,"Producción (PB)","2024 p/"]
["P100","Obras de ingeniería civil",18769.448965,"Producción (PB)","2024 p/"]
["P117","Servicios auxiliares de la intermediación financiera",12257.873380000001,"Producción (PB)","2024 p/"]
["P124","Servicios de publicidad y estudios de mercado",9188.784807,"Producción (PB)","2024 p/"]
["P138","Servicios públicos administrativos relacionados con la provisión de servicios educativos, de salud, servicios sociales, culturales y otros, sin contar los servicios de seguridad social",2753.3193769999998,"Producción (PB)","2024 p/"]
["P152","Compras directas en el territorio nacional por no residentes",0,"Producción (PB)","2024 p/"]
["P007","Sandías y melones",0,"Impuestos sobre los productos, excepto IVA e impuestos sobre las importaciones","2024 p/"]
["P017","Cardamomo",0,"Impuestos sobre los productos, excepto IVA e impuestos sobre las importaciones","2024 p/"]
["P036","Carne y despojos comestibles de aves",0,"Impuestos sobre los productos, excepto IVA e impuestos sobre las importaciones","2024 p/"]
["P045","Leche líquida y crema procesada",0,"Impuestos sobre los productos, excepto IVA e impuestos sobre las importaciones","2024 p/"]
["P057","Bebidas no alcohólicas",476.52999299999999,"Impuestos sobre los productos, excepto IVA e impuestos sobre las importaciones","2024 p/"]
["P069","Aceites, grasas lubricantes y otros aceites preparados",0,"Impuestos sobre los productos, excepto IVA e impuestos sobre las importaciones","2024 p/"]
["P078","Productos de cerámica y arcilla",0,"Impuestos sobre los productos, excepto IVA e impuestos sobre las importaciones","2024 p/"]
["P086","Electrodomésticos y sus partes",0,"Impuestos sobre los productos, excepto IVA e impuestos sobre las importaciones","2024 p/"]
["P099","Edificaciones no residenciales",0,"Impuestos sobre los productos, excepto IVA e impuestos sobre las importaciones","2024 p/"]
["P114","Otros servicios financieros y servicios de banca de inversión",0,"Impuestos sobre los productos, excepto IVA e impuestos sobre las importaciones","2024 p/"]
["P128","Servicios de seguridad, sistemas de seguridad e investigación privada",0,"Impuestos sobre los productos, excepto IVA e impuestos sobre las importaciones","2024 p/"]
["P131","Servicios administrativos, de apoyo de oficina y otros servicios de apoyo a las empresas",0,"Impuestos sobre los productos, excepto IVA e impuestos sobre las importaciones","2024 p/"]
["P149","Otros servicios",0,"Impuestos sobre los productos, excepto IVA e impuestos sobre las importaciones","2024 p/"]
["P007","Sandías y melones",0,"Subvenciones a los productos","2024 p/"]
["P018","Caucho natural",0,"Subvenciones a los productos","2024 p/"]
["P031","Petróleo crudo y gas natural",0,"Subvenciones a los productos","2024 p/"]
["P039","Crustáceos, moluscos y demás invertebrados acuáticos congelados, preparados o en conserva y sus productos",0,"Subvenciones a los productos","2024 p/"]
["P048","Arroz sin cáscara",0,"Subvenciones a los productos","2024 p/"]
["P068","Gasolinas, diésel oil y fuel oils",0,"Subvenciones a los productos","2024 p/"]
["P069","Aceites, grasas lubricantes y otros aceites preparados",0,"Subvenciones a los productos","2024 p/"]
["P083","Productos metálicos estructurales y sus partes de hierro o de acero",0,"Subvenciones a los productos","2024 p/"]
["P102","Servicios de comercio",0,"Subvenciones a los productos","2024 p/"]
["P111","Servicio de suministro de comidas y bebidas",0,"Subvenciones a los productos","2024 p/"]
["P119","Otros servicios inmobiliarios, excepto alquiler de vivienda",0,"Subvenciones a los productos","2024 p/"]
["P128","Servicios de seguridad, sistemas de seguridad e investigación privada",0,"Subvenciones a los productos","2024 p/"]
["P140","Servicios públicos administrativos prestados a la comunidad en su conjunto",0,"Subvenciones a los productos","2024 p/"]
["P152","Compras directas en el territorio nacional por no residentes",0,"Subvenciones a los productos","2024 p/"]
["P009","Raíces y tubérculos",116.396868,"Importaciones (CIF)","2024 p/"]
["P028","Productos forestales no madereros",39.268704999999997,"Importaciones (CIF)","2024 p/"]
["P042","Jugos de frutas",186.11857699999999,"Importaciones (CIF)","2024 p/"]
["P045","Leche líquida y crema procesada",483.71978000000001,"Importaciones (CIF)","2024 p/"]
["P059","Hilados, tejidos, telas y otros productos textiles excepto prendas de vestir",3410.287523,"Importaciones (CIF)","2024 p/"]
["P073","Jabón, preparados de limpieza, perfumes y preparados de toilet",4547.9975089999998,"Importaciones (CIF)","2024 p/"]
["P080","Artículos de hormigón, cemento y yeso",246.979153,"Importaciones (CIF)","2024 p/"]
["P090","Aparatos médicos, instrumentos ópticos y de precisión, relojes",3207.0501220000001,"Importaciones (CIF)","2024 p/"]
["P101","Servicios generales y especializados de construcción",119.35034400000001,"Importaciones (CIF)","2024 p/"]
["P114","Otros servicios financieros y servicios de banca de inversión",262.45408600000002,"Importaciones (CIF)","2024 p/"]
["P134","Servicios de apoyo a la agricultura, caza, silvicultura y pesca",0,"Importaciones (CIF)","2024 p/"]
["P142","Servicios de enseñanza",11.075976000000001,"Importaciones (CIF)","2024 p/"]
["P151","Compras directas en el exterior por residentes",12552.497504999999,"Importaciones (CIF)","2024 p/"]
["P007","Sandías y melones",5.0994999999999999E-2,"Impuestos y derechos sobre las importaciones excepto IVA","2024 p/"]
["P020","Otros frutos oleaginosos, otras plantas bebestibles y especias aromáticas",5.3855389999999996,"Impuestos y derechos sobre las importaciones excepto IVA","2024 p/"]
["P035","Carne y despojos comestibles de ganado porcino",12.348903999999999,"Impuestos y derechos sobre las importaciones excepto IVA","2024 p/"]
["P041","Preparaciones y conservas de frutas y nueces",16.406113999999999,"Impuestos y derechos sobre las importaciones excepto IVA","2024 p/"]
["P059","Hilados, tejidos, telas y otros productos textiles excepto prendas de vestir",120.093417,"Impuestos y derechos sobre las importaciones excepto IVA","2024 p/"]
["P074","Otros productos químicos",76.977216999999996,"Impuestos y derechos sobre las importaciones excepto IVA","2024 p/"]
["P083","Productos metálicos estructurales y sus partes de hierro o de acero",36.663431000000003,"Impuestos y derechos sobre las importaciones excepto IVA","2024 p/"]
["P094","Residuos y desechos",35.191794000000002,"Impuestos y derechos sobre las importaciones excepto IVA","2024 p/"]
["P104","Servicio de transporte de pasajeros por vía terrestre",0,"Impuestos y derechos sobre las importaciones excepto IVA","2024 p/"]
["P111","Servicio de suministro de comidas y bebidas",0,"Impuestos y derechos sobre las importaciones excepto IVA","2024 p/"]
["P125","Servicios de arrendamiento o alquiler sin operador",0,"Impuestos y derechos sobre las importaciones excepto IVA","2024 p/"]
["P139","Otros servicios administrativos",0,"Impuestos y derechos sobre las importaciones excepto IVA","2024 p/"]
["P002","Frijoles",253.863562,"Impuesto tipo valor agregado (IVA)","2024 p/"]
["P015","Palma africana",0,"Impuesto tipo valor agregado (IVA)","2024 p/"]
["P023","Aves de corral",3.0258989999999999,"Impuesto tipo valor agregado (IVA)","2024 p/"]
["P032","Minerales metálicos",3.5430000000000001E-3,"Impuesto tipo valor agregado (IVA)","2024 p/"]
["P044","Margarina, grasas y otros aceites de origen animal y vegetal",150.08056300000001,"Impuesto tipo valor agregado (IVA)","2024 p/"]
["P056","Malta y cerveza de malta",654.36032599999999,"Impuesto tipo valor agregado (IVA)","2024 p/"]
["P065","Envases de papel y cartón",7.2186310000000002,"Impuesto tipo valor agregado (IVA)","2024 p/"]
["P084","Otros productos elaborados de metal",161.71319199999999,"Impuesto tipo valor agregado (IVA)","2024 p/"]
["P094","Residuos y desechos",3.366333,"Impuesto tipo valor agregado (IVA)","2024 p/"]
["P101","Servicios generales y especializados de construcción",523.22915999999998,"Impuesto tipo valor agregado (IVA)","2024 p/"]
["P115","Servicios de Intermediación Financiera Medidos Indirectamente (SIFMI)",0,"Impuesto tipo valor agregado (IVA)","2024 p/"]
["P129","Servicios de limpieza",36.230321000000004,"Impuesto tipo valor agregado (IVA)","2024 p/"]
["P136","Servicios de manufactura",0,"Impuesto tipo valor agregado (IVA)","2024 p/"]
["P001","Maíz",4330.5781230000002,"Márgenes de comercio, transporte y distribución de energía","2024 p/"]
["P005","Otros cereales",108.515503,"Márgenes de comercio, transporte y distribución de energía","2024 p/"]
["P018","Caucho natural",35.693666999999998,"Márgenes de comercio, transporte y distribución de energía","2024 p/"]
["P026","Otros productos de animales vivos",36.133490000000002,"Márgenes de comercio, transporte y distribución de energía","2024 p/"]
["P046","Otros productos lácteos n.c.p.",3638.7693629999999,"Márgenes de comercio, transporte y distribución de energía","2024 p/"]
["P055","Aguardientes, licores, vinos, demás bebidas espirituosas y productos del tabaco",2168.740957,"Márgenes de comercio, transporte y distribución de energía","2024 p/"]
["P063","Madera aserrada y acepillada, productos de madera, corcho, paja y materiales trenzables",817.14163399999995,"Márgenes de comercio, transporte y distribución de energía","2024 p/"]
["P076","Productos de caucho y plástico",6030.3316860000004,"Márgenes de comercio, transporte y distribución de energía","2024 p/"]
["P085","Maquinaria para usos generales y especiales, sus partes y piezas, excepto electrodomésticos",3987.5455010000001,"Márgenes de comercio, transporte y distribución de energía","2024 p/"]
["P098","Edificaciones residenciales",0,"Márgenes de comercio, transporte y distribución de energía","2024 p/"]
["P106","Otros tipos de transporte",-78.138766000000004,"Márgenes de comercio, transporte y distribución de energía","2024 p/"]
["P126","Servicios  de agencias de empleo y de dotación de recursos humanos",0,"Márgenes de comercio, transporte y distribución de energía","2024 p/"]
["P139","Otros servicios administrativos",0,"Márgenes de comercio, transporte y distribución de energía","2024 p/"]
["P150","Servicios domésticos",0,"Márgenes de comercio, transporte y distribución de energía","2024 p/"]
["P008","Ejotes y arvejas",58.394567000000002,"Consumo Intermedio (PC)","2024 p/"]
["P015","Palma africana",3940.4240020000002,"Consumo Intermedio (PC)","2024 p/"]
["P025","Huevos",551.15788399999997,"Consumo Intermedio (PC)","2024 p/"]
["P043","Aceites de origen vegetal",3745.0082649999999,"Consumo Intermedio (PC)","2024 p/"]
["P046","Otros productos lácteos n.c.p.",1207.992195,"Consumo Intermedio (PC)","2024 p/"]
["P060","Prendas de vestir, adobo y teñido de pieles",1467.8327879999999,"Consumo Intermedio (PC)","2024 p/"]
["P079","Cemento, cal y yeso",11188.605106000001,"Consumo Intermedio (PC)","2024 p/"]
["P084","Otros productos elaborados de metal",6494.3642209999998,"Consumo Intermedio (PC)","2024 p/"]
["P100","Obras de ingeniería civil",0,"Consumo Intermedio (PC)","2024 p/"]
["P112","Servicios de información, telecomunicaciones y radiodifusión",10898.699621,"Consumo Intermedio (PC)","2024 p/"]
["P121","Servicios de tecnología de la información",3547.3841240000002,"Consumo Intermedio (PC)","2024 p/"]
["P129","Servicios de limpieza",2021.5321300000001,"Consumo Intermedio (PC)","2024 p/"]
["P138","Servicios públicos administrativos relacionados con la provisión de servicios educativos, de salud, servicios sociales, culturales y otros, sin contar los servicios de seguridad social",0,"Consumo Intermedio (PC)","2024 p/"]
["P005","Otros cereales",220.44413399999999,"Consumo Final privado (PC)","2024 p/"]
["P019","Propagación de plantas",114.10361899999999,"Consumo Final privado (PC)","2024 p/"]
["P029","Peces vivos, frescos o refrigerados",2580.7415729999998,"Consumo Final privado (PC)","2024 p/"]
["P040","Vegetales preparados o en conserva, legumbres y papas",2090.4693379999999,"Consumo Final privado (PC)","2024 p/"]
["P046","Otros productos lácteos n.c.p.",9285.5308050000003,"Consumo Final privado (PC)","2024 p/"]
["P061","Cuero de piel curtida o adobada y cuero artificial o regenerado y artículos de cuero",1958.08088,"Consumo Final privado (PC)","2024 p/"]
["P074","Otros productos químicos",2262.8779009999998,"Consumo Final privado (PC)","2024 p/"]
["P078","Productos de cerámica y arcilla",597.19924100000003,"Consumo Final privado (PC)","2024 p/"]
["P091","Equipo de transporte",17363.556302000001,"Consumo Final privado (PC)","2024 p/"]
["P109","Servicios postales y de mensajería",853.63258099999996,"Consumo Final privado (PC)","2024 p/"]
["P124","Servicios de publicidad y estudios de mercado",6.2385450000000002,"Consumo Final privado (PC)","2024 p/"]
["P126","Servicios  de agencias de empleo y de dotación de recursos humanos",0,"Consumo Final privado (PC)","2024 p/"]
["P141","Servicios administrativos relacionados con los sistemas de seguridad social de afiliación obligatoria",0.377917,"Consumo Final privado (PC)","2024 p/"]
["P002","Frijoles",620.33356400000002,"Consumo Final del Gobierno (PC)","2024 p/"]
["P010","Caña de azúcar y otras plantas azucareras",0,"Consumo Final del Gobierno (PC)","2024 p/"]
["P026","Otros productos de animales vivos",0,"Consumo Final del Gobierno (PC)","2024 p/"]
["P031","Petróleo crudo y gas natural",0,"Consumo Final del Gobierno (PC)","2024 p/"]
["P043","Aceites de origen vegetal",261.57689900000003,"Consumo Final del Gobierno (PC)","2024 p/"]
["P064","Pasta de papel y papel",33.392718000000002,"Consumo Final del Gobierno (PC)","2024 p/"]
["P071","Abonos, fertilizantes y pesticidas",0,"Consumo Final del Gobierno (PC)","2024 p/"]
["P081","Piedras talladas para construcción y otros productos minerales no metálicos n.c.p.",0,"Consumo Final del Gobierno (PC)","2024 p/"]
["P088","Maquinaria y aparatos eléctricos, sus partes y piezas",0,"Consumo Final del Gobierno (PC)","2024 p/"]
["P102","Servicios de comercio",0,"Consumo Final del Gobierno (PC)","2024 p/"]
["P112","Servicios de información, telecomunicaciones y radiodifusión",0,"Consumo Final del Gobierno (PC)","2024 p/"]
["P123","Otros servicios profesionales, científicos y técnicos",0,"Consumo Final del Gobierno (PC)","2024 p/"]
["P140","Servicios públicos administrativos prestados a la comunidad en su conjunto",17389.287856999999,"Consumo Final del Gobierno (PC)","2024 p/"]
["P004","Arroz",0,"Formación Bruta de Capital Fijo (PC)","2024 p/"]
["P005","Otros cereales",0,"Formación Bruta de Capital Fijo (PC)","2024 p/"]
["P021","Ganado bovino",60.617998,"Formación Bruta de Capital Fijo (PC)","2024 p/"]
["P033","Minerales no metálicos",0,"Formación Bruta de Capital Fijo (PC)","2024 p/"]
["P042","Jugos de frutas",0,"Formación Bruta de Capital Fijo (PC)","2024 p/"]
["P061","Cuero de piel curtida o adobada y cuero artificial o regenerado y artículos de cuero",0,"Formación Bruta de Capital Fijo (PC)","2024 p/"]
["P063","Madera aserrada y acepillada, productos de madera, corcho, paja y materiales trenzables",57.080545000000001,"Formación Bruta de Capital Fijo (PC)","2024 p/"]
["P074","Otros productos químicos",0,"Formación Bruta de Capital Fijo (PC)","2024 p/"]
["P096","Agua natural y distribución de agua natural",0,"Formación Bruta de Capital Fijo (PC)","2024 p/"]
["P105","Servicio de transporte de carga por vía terrestre",0,"Formación Bruta de Capital Fijo (PC)","2024 p/"]
["P109","Servicios postales y de mensajería",0,"Formación Bruta de Capital Fijo (PC)","2024 p/"]
["P110","Servicio de alojamiento",0,"Formación Bruta de Capital Fijo (PC)","2024 p/"]
["P111","Servicio de suministro de comidas y bebidas",0,"Formación Bruta de Capital Fijo (PC)","2024 p/"]
["P112","Servicios de información, telecomunicaciones y radiodifusión",0,"Formación Bruta de Capital Fijo (PC)","2024 p/"]
["P113","Servicios de banco central",0,"Formación Bruta de Capital Fijo (PC)","2024 p/"]
["P114","Otros servicios financieros y servicios de banca de inversión",0,"Formación Bruta de Capital Fijo (PC)","2024 p/"]
["P115","Servicios de Intermediación Financiera Medidos Indirectamente (SIFMI)",0,"Formación Bruta de Capital Fijo (PC)","2024 p/"]
["P116","Servicios de seguro, reaseguro y fondos de pensiones",0,"Formación Bruta de Capital Fijo (PC)","2024 p/"]
["P117","Servicios auxiliares de la intermediación financiera",0,"Formación Bruta de Capital Fijo (PC)","2024 p/"]
["P118","Servicios de alquiler de vivienda",0,"Formación Bruta de Capital Fijo (PC)","2024 p/"]
["P119","Otros servicios inmobiliarios, excepto alquiler de vivienda",0,"Formación Bruta de Capital Fijo (PC)","2024 p/"]
["P120","Servicios jurídicos, de contabilidad, auditoría, teneduría de libros y consultoría fiscal",0,"Formación Bruta de Capital Fijo (PC)","2024 p/"]
["P121","Servicios de tecnología de la información",864.49782900000002,"Formación Bruta de Capital Fijo (PC)","2024 p/"]
["P122","Servicios de arquitectura e ingeniería, ensayos y análisis técnicos",232.07407599999999,"Formación Bruta de Capital Fijo (PC)","2024 p/"]
["P123","Otros servicios profesionales, científicos y técnicos",613.90194299999996,"Formación Bruta de Capital Fijo (PC)","2024 p/"]
["P124","Servicios de publicidad y estudios de mercado",0,"Formación Bruta de Capital Fijo (PC)","2024 p/"]
["P125","Servicios de arrendamiento o alquiler sin operador",0,"Formación Bruta de Capital Fijo (PC)","2024 p/"]
["P126","Servicios  de agencias de empleo y de dotación de recursos humanos",0,"Formación Bruta de Capital Fijo (PC)","2024 p/"]
["P127","Servicios de agencias de viajes, operadores turísticos y actividades conexas",0,"Formación Bruta de Capital Fijo (PC)","2024 p/"]
["P128","Servicios de seguridad, sistemas de seguridad e investigación privada",0,"Formación Bruta de Capital Fijo (PC)","2024 p/"]
["P129","Servicios de limpieza",0,"Formación Bruta de Capital Fijo (PC)","2024 p/"]
["P130","Servicios telefónicos de centros de llamadas",0,"Formación Bruta de Capital Fijo (PC)","2024 p/"]
["P131","Servicios administrativos, de apoyo de oficina y otros servicios de apoyo a las empresas",0,"Formación Bruta de Capital Fijo (PC)","2024 p/"]
["P132","Servicios de mantenimiento, reparación e instalación de productos metálicos elaborados, maquinaria y equipo",0,"Formación Bruta de Capital Fijo (PC)","2024 p/"]
["P133","Servicios de reparación de otros bienes",0,"Formación Bruta de Capital Fijo (PC)","2024 p/"]
["P134","Servicios de apoyo a la agricultura, caza, silvicultura y pesca",0,"Formación Bruta de Capital Fijo (PC)","2024 p/"]
["P135","Servicios de apoyo a la explotación de minas y canteras y los relacionados con la distribución de electricidad, gas y agua",0,"Formación Bruta de Capital Fijo (PC)","2024 p/"]
["P136","Servicios de manufactura",0,"Formación Bruta de Capital Fijo (PC)","2024 p/"]
["P137","Servicios públicos del gobierno general",0,"Formación Bruta de Capital Fijo (PC)","2024 p/"]
["P138","Servicios públicos administrativos relacionados con la provisión de servicios educativos, de salud, servicios sociales, culturales y otros, sin contar los servicios de seguridad social",0,"Formación Bruta de Capital Fijo (PC)","2024 p/"]
["P139","Otros servicios administrativos",0,"Formación Bruta de Capital Fijo (PC)","2024 p/"]
["P140","Servicios públicos administrativos prestados a la comunidad en su conjunto",0,"Formación Bruta de Capital Fijo (PC)","2024 p/"]
["P141","Servicios administrativos relacionados con los sistemas de seguridad social de afiliación obligatoria",0,"Formación Bruta de Capital Fijo (PC)","2024 p/"]
["P142","Servicios de enseñanza",0,"Formación Bruta de Capital Fijo (PC)","2024 p/"]
["P143","Servicios de hospitalización",0,"Formación Bruta de Capital Fijo (PC)","2024 p/"]
["P144","Servicios médicos y dentales",0,"Formación Bruta de Capital Fijo (PC)","2024 p/"]
["P145","Otros servicios de atención de la salud humana",0,"Formación Bruta de Capital Fijo (PC)","2024 p/"]
["P146","Servicios audiovisuales, recreativos, culturales y deportivos",0,"Formación Bruta de Capital Fijo (PC)","2024 p/"]
["P147","Servicios de asociaciones que sirven a las empresas",0,"Formación Bruta de Capital Fijo (PC)","2024 p/"]
["P148","Servicios de asociaciones que sirven a los hogares",0,"Formación Bruta de Capital Fijo (PC)","2024 p/"]
["P149","Otros servicios",0,"Formación Bruta de Capital Fijo (PC)","2024 p/"]
["P150","Servicios domésticos",0,"Formación Bruta de Capital Fijo (PC)","2024 p/"]
["P151","Compras directas en el exterior por residentes",15.147576000000001,"Formación Bruta de Capital Fijo (PC)","2024 p/"]
["P152","Compras directas en el territorio nacional por no residentes",0,"Formación Bruta de Capital Fijo (PC)","2024 p/"]
["P001","Maíz",41.897297999999999,"Exportaciones (fob)","2024 p/"]
["P002","Frijoles",13.599838,"Exportaciones (fob)","2024 p/"]
["P003","Leguminosas (legumbres secas) y semillas oleaginosas",413.65883700000001,"Exportaciones (fob)","2024 p/"]
["P004","Arroz",0,"Exportaciones (fob)","2024 p/"]
["P005","Otros cereales",5.6334609999999996,"Exportaciones (fob)","2024 p/"]
["P006","Hortalizas",1951.982849,"Exportaciones (fob)","2024 p/"]
["P007","Sandías y melones",2027.6480879999999,"Exportaciones (fob)","2024 p/"]
["P008","Ejotes y arvejas",1070.924225,"Exportaciones (fob)","2024 p/"]
["P009","Raíces y tubérculos",211.51769400000001,"Exportaciones (fob)","2024 p/"]
["P010","Caña de azúcar y otras plantas azucareras",3.8649999999999997E-2,"Exportaciones (fob)","2024 p/"]
["P011","Tabaco y otras plantas no perennes",467.87384300000002,"Exportaciones (fob)","2024 p/"]
["P012","Bananos, plátanos y otros",8932.107317,"Exportaciones (fob)","2024 p/"]
["P013","Frutas tropicales y subtropicales",471.65184799999997,"Exportaciones (fob)","2024 p/"]
["P014","Berries, otras frutas y semillas de frutas",417.394453,"Exportaciones (fob)","2024 p/"]
["P015","Palma africana",0.42708099999999999,"Exportaciones (fob)","2024 p/"]
["P016","Café en grano",7088.8669159999999,"Exportaciones (fob)","2024 p/"]
["P017","Cardamomo",3823.2597599999999,"Exportaciones (fob)","2024 p/"]
["P018","Caucho natural",1433.745048,"Exportaciones (fob)","2024 p/"]
["P019","Propagación de plantas",422.97802899999999,"Exportaciones (fob)","2024 p/"]
["P020","Otros frutos oleaginosos, otras plantas bebestibles y especias aromáticas",67.108733000000001,"Exportaciones (fob)","2024 p/"]
["P021","Ganado bovino",86.890192999999996,"Exportaciones (fob)","2024 p/"]
["P022","Ganado porcino y otro tipo de animales vivos n.c.p.",1.263458,"Exportaciones (fob)","2024 p/"]
["P023","Aves de corral",27.489809000000001,"Exportaciones (fob)","2024 p/"]
["P024","Leche cruda",0,"Exportaciones (fob)","2024 p/"]
["P025","Huevos",22.209185000000002,"Exportaciones (fob)","2024 p/"]
["P026","Otros productos de animales vivos",33.023750999999997,"Exportaciones (fob)","2024 p/"]
["P027","Troncos de madera y leña",77.611356999999998,"Exportaciones (fob)","2024 p/"]
["P028","Productos forestales no madereros",274.329026,"Exportaciones (fob)","2024 p/"]
["P029","Peces vivos, frescos o refrigerados",52.549312999999998,"Exportaciones (fob)","2024 p/"]
["P030","Crustáceos sin congelar y otros productos de la pesca",46.964762999999998,"Exportaciones (fob)","2024 p/"]
["P031","Petróleo crudo y gas natural",503.189369,"Exportaciones (fob)","2024 p/"]
["P032","Minerales metálicos",105.490504,"Exportaciones (fob)","2024 p/"]
["P033","Minerales no metálicos",238.35609700000001,"Exportaciones (fob)","2024 p/"]
["P034","Carne y despojos comestibles de ganado bovino; cueros y pieles de bovino y de otros animales",67.674503000000001,"Exportaciones (fob)","2024 p/"]
["P035","Carne y despojos comestibles de ganado porcino",0.87865300000000002,"Exportaciones (fob)","2024 p/"]
["P036","Carne y despojos comestibles de aves",37.453234000000002,"Exportaciones (fob)","2024 p/"]
["P037","Carne y despojos de otros animales y conservas y preparados de carne",695.16047400000002,"Exportaciones (fob)","2024 p/"]
["P038","Pescado congelado, preparado o en conserva y sus productos",856.50429499999996,"Exportaciones (fob)","2024 p/"]
["P039","Crustáceos, moluscos y demás invertebrados acuáticos congelados, preparados o en conserva y sus productos",594.99795300000005,"Exportaciones (fob)","2024 p/"]
["P040","Vegetales preparados o en conserva, legumbres y papas",1071.102676,"Exportaciones (fob)","2024 p/"]
["P041","Preparaciones y conservas de frutas y nueces",1300.8836859999999,"Exportaciones (fob)","2024 p/"]
["P042","Jugos de frutas",503.85253399999999,"Exportaciones (fob)","2024 p/"]
["P043","Aceites de origen vegetal",4782.1020179999996,"Exportaciones (fob)","2024 p/"]
["P044","Margarina, grasas y otros aceites de origen animal y vegetal",880.21990400000004,"Exportaciones (fob)","2024 p/"]
["P045","Leche líquida y crema procesada",5.2337179999999996,"Exportaciones (fob)","2024 p/"]
["P046","Otros productos lácteos n.c.p.",505.39988699999998,"Exportaciones (fob)","2024 p/"]
["P047","Harina de trigo",32.732151999999999,"Exportaciones (fob)","2024 p/"]
["P048","Arroz sin cáscara",6.9798489999999997,"Exportaciones (fob)","2024 p/"]
["P049","Otros productos de molinería, almidones y productos de almidón",811.13608999999997,"Exportaciones (fob)","2024 p/"]
["P050","Pan y otros productos de panadería y repostería n.c.p.",1690.373096,"Exportaciones (fob)","2024 p/"]
["P051","Tortillas de maíz, incluso tostadas, horneadas o fritas",0,"Exportaciones (fob)","2024 p/"]
["P052","Azúcar de caña sin refinar y refinada, melaza y los demás azúcares n.c.p.",6302.1577790000001,"Exportaciones (fob)","2024 p/"]
["P053","Productos alimenticios n.c.p.",4238.787593,"Exportaciones (fob)","2024 p/"]
["P054","Preparados para alimentación animal",1084.7486960000001,"Exportaciones (fob)","2024 p/"]
["P055","Aguardientes, licores, vinos, demás bebidas espirituosas y productos del tabaco",733.18148399999995,"Exportaciones (fob)","2024 p/"]
["P056","Malta y cerveza de malta",157.12234699999999,"Exportaciones (fob)","2024 p/"]
["P057","Bebidas no alcohólicas",1531.765431,"Exportaciones (fob)","2024 p/"]
["P058","Aguas minerales y otras aguas embotelladas",86.628178000000005,"Exportaciones (fob)","2024 p/"]
["P059","Hilados, tejidos, telas y otros productos textiles excepto prendas de vestir",2877.624065,"Exportaciones (fob)","2024 p/"]
["P060","Prendas de vestir, adobo y teñido de pieles",5892.1722710000004,"Exportaciones (fob)","2024 p/"]
["P061","Cuero de piel curtida o adobada y cuero artificial o regenerado y artículos de cuero",81.179912999999999,"Exportaciones (fob)","2024 p/"]
["P062","Calzado y sus partes, de cualquier material y de cualquier uso",555.44190600000002,"Exportaciones (fob)","2024 p/"]
["P063","Madera aserrada y acepillada, productos de madera, corcho, paja y materiales trenzables",877.42920700000002,"Exportaciones (fob)","2024 p/"]
["P064","Pasta de papel y papel",1952.5309769999999,"Exportaciones (fob)","2024 p/"]
["P065","Envases de papel y cartón",1208.6005580000001,"Exportaciones (fob)","2024 p/"]
["P066","Productos de la edición",199.61653100000001,"Exportaciones (fob)","2024 p/"]
["P067","Productos de la impresión",115.56527,"Exportaciones (fob)","2024 p/"]
["P068","Gasolinas, diésel oil y fuel oils",1207.6509269999999,"Exportaciones (fob)","2024 p/"]
["P069","Aceites, grasas lubricantes y otros aceites preparados",23.248256000000001,"Exportaciones (fob)","2024 p/"]
["P070","Gases de petróleo, otros productos de la refinación de petróleo n.c.p.",1751.379762,"Exportaciones (fob)","2024 p/"]
["P071","Abonos, fertilizantes y pesticidas",1971.5582589999999,"Exportaciones (fob)","2024 p/"]
["P072","Pinturas, barnices, tintas y productos relacionados",600.02772800000002,"Exportaciones (fob)","2024 p/"]
["P073","Jabón, preparados de limpieza, perfumes y preparados de toilet",3695.4911959999999,"Exportaciones (fob)","2024 p/"]
["P074","Otros productos químicos",2804.5724829999999,"Exportaciones (fob)","2024 p/"]
["P075","Productos farmacéuticos",2260.224236,"Exportaciones (fob)","2024 p/"]
["P076","Productos de caucho y plástico",4421.5937020000001,"Exportaciones (fob)","2024 p/"]
["P077","Vidrio y productos de vidrio",430.62570899999997,"Exportaciones (fob)","2024 p/"]
["P078","Productos de cerámica y arcilla",611.037104,"Exportaciones (fob)","2024 p/"]
["P079","Cemento, cal y yeso",406.29950300000002,"Exportaciones (fob)","2024 p/"]
["P080","Artículos de hormigón, cemento y yeso",39.384490999999997,"Exportaciones (fob)","2024 p/"]
["P081","Piedras talladas para construcción y otros productos minerales no metálicos n.c.p.",27.433491,"Exportaciones (fob)","2024 p/"]
["P082","Métales básicos de hierro y acero, productos primarios de metales preciosos y otros metales no ferrosos",2913.8713379999999,"Exportaciones (fob)","2024 p/"]
["P083","Productos metálicos estructurales y sus partes de hierro o de acero",404.29699499999998,"Exportaciones (fob)","2024 p/"]
["P084","Otros productos elaborados de metal",1477.7118800000001,"Exportaciones (fob)","2024 p/"]
["P085","Maquinaria para usos generales y especiales, sus partes y piezas, excepto electrodomésticos",1550.664178,"Exportaciones (fob)","2024 p/"]
["P086","Electrodomésticos y sus partes",106.193726,"Exportaciones (fob)","2024 p/"]
["P087","Maquinaria de oficina, contabilidad e informática, sus partes y piezas",49.479340000000001,"Exportaciones (fob)","2024 p/"]
["P088","Maquinaria y aparatos eléctricos, sus partes y piezas",551.95328400000005,"Exportaciones (fob)","2024 p/"]
["P089","Equipo y aparatos de radio, televisión y comunicaciones",213.46517600000001,"Exportaciones (fob)","2024 p/"]
["P090","Aparatos médicos, instrumentos ópticos y de precisión, relojes",273.84378099999998,"Exportaciones (fob)","2024 p/"]
["P091","Equipo de transporte",315.564818,"Exportaciones (fob)","2024 p/"]
["P092","Muebles",607.02254800000003,"Exportaciones (fob)","2024 p/"]
["P093","Otros artículos n.c.p.",481.14442500000001,"Exportaciones (fob)","2024 p/"]
["P094","Residuos y desechos",878.68310799999995,"Exportaciones (fob)","2024 p/"]
["P095","Generación y distribución de energía eléctrica, gas, vapor y aire acondicionado",1272.2365179999999,"Exportaciones (fob)","2024 p/"]
["P096","Agua natural y distribución de agua natural",0,"Exportaciones (fob)","2024 p/"]
["P097","Evacuación de aguas residuales, recogida, tratamiento y eliminación de desechos",0,"Exportaciones (fob)","2024 p/"]
["P098","Edificaciones residenciales",0,"Exportaciones (fob)","2024 p/"]
["P099","Edificaciones no residenciales",0,"Exportaciones (fob)","2024 p/"]
["P100","Obras de ingeniería civil",0,"Exportaciones (fob)","2024 p/"]
["P101","Servicios generales y especializados de construcción",173.98773600000001,"Exportaciones (fob)","2024 p/"]
["P102","Servicios de comercio",0,"Exportaciones (fob)","2024 p/"]
["P103","Mantenimiento y reparación de vehículos automotores y motocicletas",16.483374999999999,"Exportaciones (fob)","2024 p/"]
["P104","Servicio de transporte de pasajeros por vía terrestre",5.3151419999999998,"Exportaciones (fob)","2024 p/"]
["P105","Servicio de transporte de carga por vía terrestre",1005.473477,"Exportaciones (fob)","2024 p/"]
["P106","Otros tipos de transporte",26.939623999999998,"Exportaciones (fob)","2024 p/"]
["P107","Servicios de almacenamiento y depósito",16.641217000000001,"Exportaciones (fob)","2024 p/"]
["P108","Otros servicios de apoyo al transporte",2876.114075,"Exportaciones (fob)","2024 p/"]
["P109","Servicios postales y de mensajería",55.223151999999999,"Exportaciones (fob)","2024 p/"]
["P110","Servicio de alojamiento",0,"Exportaciones (fob)","2024 p/"]
["P111","Servicio de suministro de comidas y bebidas",31.18628,"Exportaciones (fob)","2024 p/"]
["P112","Servicios de información, telecomunicaciones y radiodifusión",1146.185232,"Exportaciones (fob)","2024 p/"]
["P113","Servicios de banco central",0,"Exportaciones (fob)","2024 p/"]
["P114","Otros servicios financieros y servicios de banca de inversión",24.309315999999999,"Exportaciones (fob)","2024 p/"]
["P115","Servicios de Intermediación Financiera Medidos Indirectamente (SIFMI)",574.534087,"Exportaciones (fob)","2024 p/"]
["P116","Servicios de seguro, reaseguro y fondos de pensiones",466.61008299999997,"Exportaciones (fob)","2024 p/"]
["P117","Servicios auxiliares de la intermediación financiera",0,"Exportaciones (fob)","2024 p/"]
["P118","Servicios de alquiler de vivienda",0,"Exportaciones (fob)","2024 p/"]
["P119","Otros servicios inmobiliarios, excepto alquiler de vivienda",0,"Exportaciones (fob)","2024 p/"]
["P120","Servicios jurídicos, de contabilidad, auditoría, teneduría de libros y consultoría fiscal",15.239020999999999,"Exportaciones (fob)","2024 p/"]
["P121","Servicios de tecnología de la información",633.37275299999999,"Exportaciones (fob)","2024 p/"]
["P122","Servicios de arquitectura e ingeniería, ensayos y análisis técnicos",15.002521,"Exportaciones (fob)","2024 p/"]
["P123","Otros servicios profesionales, científicos y técnicos",1089.473675,"Exportaciones (fob)","2024 p/"]
["P124","Servicios de publicidad y estudios de mercado",84.503524999999996,"Exportaciones (fob)","2024 p/"]
["P125","Servicios de arrendamiento o alquiler sin operador",164.05007599999999,"Exportaciones (fob)","2024 p/"]
["P126","Servicios  de agencias de empleo y de dotación de recursos humanos",0,"Exportaciones (fob)","2024 p/"]
["P127","Servicios de agencias de viajes, operadores turísticos y actividades conexas",726.58585400000004,"Exportaciones (fob)","2024 p/"]
["P128","Servicios de seguridad, sistemas de seguridad e investigación privada",13.285939000000001,"Exportaciones (fob)","2024 p/"]
["P129","Servicios de limpieza",0,"Exportaciones (fob)","2024 p/"]
["P130","Servicios telefónicos de centros de llamadas",8723.3312440000009,"Exportaciones (fob)","2024 p/"]
["P131","Servicios administrativos, de apoyo de oficina y otros servicios de apoyo a las empresas",179.81188,"Exportaciones (fob)","2024 p/"]
["P132","Servicios de mantenimiento, reparación e instalación de productos metálicos elaborados, maquinaria y equipo",181.56653600000001,"Exportaciones (fob)","2024 p/"]
["P133","Servicios de reparación de otros bienes",0,"Exportaciones (fob)","2024 p/"]
["P134","Servicios de apoyo a la agricultura, caza, silvicultura y pesca",0,"Exportaciones (fob)","2024 p/"]
["P135","Servicios de apoyo a la explotación de minas y canteras y los relacionados con la distribución de electricidad, gas y agua",0,"Exportaciones (fob)","2024 p/"]
["P136","Servicios de manufactura",4226.9864379999999,"Exportaciones (fob)","2024 p/"]
["P137","Servicios públicos del gobierno general",0,"Exportaciones (fob)","2024 p/"]
["P138","Servicios públicos administrativos relacionados con la provisión de servicios educativos, de salud, servicios sociales, culturales y otros, sin contar los servicios de seguridad social",0,"Exportaciones (fob)","2024 p/"]
["P139","Otros servicios administrativos",0,"Exportaciones (fob)","2024 p/"]
["P140","Servicios públicos administrativos prestados a la comunidad en su conjunto",65.198076999999998,"Exportaciones (fob)","2024 p/"]
["P141","Servicios administrativos relacionados con los sistemas de seguridad social de afiliación obligatoria",0,"Exportaciones (fob)","2024 p/"]
["P142","Servicios de enseñanza",3.4360689999999998,"Exportaciones (fob)","2024 p/"]
["P143","Servicios de hospitalización",238.695345,"Exportaciones (fob)","2024 p/"]
["P144","Servicios médicos y dentales",358.04301800000002,"Exportaciones (fob)","2024 p/"]
["P145","Otros servicios de atención de la salud humana",105.626535,"Exportaciones (fob)","2024 p/"]
["P146","Servicios audiovisuales, recreativos, culturales y deportivos",0,"Exportaciones (fob)","2024 p/"]
["P147","Servicios de asociaciones que sirven a las empresas",0,"Exportaciones (fob)","2024 p/"]
["P148","Servicios de asociaciones que sirven a los hogares",0,"Exportaciones (fob)","2024 p/"]
["P149","Otros servicios",0,"Exportaciones (fob)","2024 p/"]
["P150","Servicios domésticos",0,"Exportaciones (fob)","2024 p/"]
["P151","Compras directas en el exterior por residentes",0,"Exportaciones (fob)","2024 p/"]
["P152","Compras directas en el territorio nacional por no residentes",12859.543996,"Exportaciones (fob)","2024 p/"]
["P001","Maíz",156.22847200000001,"Variación de existencias (PC)","2024 p/"]
["P002","Frijoles",13.198256000000001,"Variación de existencias (PC)","2024 p/"]
["P003","Leguminosas (legumbres secas) y semillas oleaginosas",106.44743200000001,"Variación de existencias (PC)","2024 p/"]
["P004","Arroz",92.698429000000004,"Variación de existencias (PC)","2024 p/"]
["P005","Otros cereales",-20.301731,"Variación de existencias (PC)","2024 p/"]
["P006","Hortalizas",0,"Variación de existencias (PC)","2024 p/"]
["P007","Sandías y melones",6.0074670000000001,"Variación de existencias (PC)","2024 p/"]
["P008","Ejotes y arvejas",0,"Variación de existencias (PC)","2024 p/"]
["P009","Raíces y tubérculos",0,"Variación de existencias (PC)","2024 p/"]
["P010","Caña de azúcar y otras plantas azucareras",99.157034999999993,"Variación de existencias (PC)","2024 p/"]
["P011","Tabaco y otras plantas no perennes",15.19013,"Variación de existencias (PC)","2024 p/"]
["P012","Bananos, plátanos y otros",0,"Variación de existencias (PC)","2024 p/"]
["P013","Frutas tropicales y subtropicales",0,"Variación de existencias (PC)","2024 p/"]
["P014","Berries, otras frutas y semillas de frutas",0,"Variación de existencias (PC)","2024 p/"]
["P015","Palma africana",0,"Variación de existencias (PC)","2024 p/"]
["P016","Café en grano",98.215124000000003,"Variación de existencias (PC)","2024 p/"]
["P017","Cardamomo",-198.34889999999999,"Variación de existencias (PC)","2024 p/"]
["P018","Caucho natural",0,"Variación de existencias (PC)","2024 p/"]
["P019","Propagación de plantas",0,"Variación de existencias (PC)","2024 p/"]
["P020","Otros frutos oleaginosos, otras plantas bebestibles y especias aromáticas",0,"Variación de existencias (PC)","2024 p/"]
["P021","Ganado bovino",31.713401000000001,"Variación de existencias (PC)","2024 p/"]
["P022","Ganado porcino y otro tipo de animales vivos n.c.p.",-2.2135530000000001,"Variación de existencias (PC)","2024 p/"]
["P023","Aves de corral",40.913212000000001,"Variación de existencias (PC)","2024 p/"]
["P024","Leche cruda",0,"Variación de existencias (PC)","2024 p/"]
["P025","Huevos",0,"Variación de existencias (PC)","2024 p/"]
["P026","Otros productos de animales vivos",0,"Variación de existencias (PC)","2024 p/"]
["P027","Troncos de madera y leña",0,"Variación de existencias (PC)","2024 p/"]
["P028","Productos forestales no madereros",0,"Variación de existencias (PC)","2024 p/"]
["P029","Peces vivos, frescos o refrigerados",0,"Variación de existencias (PC)","2024 p/"]
["P030","Crustáceos sin congelar y otros productos de la pesca",0,"Variación de existencias (PC)","2024 p/"]
["P031","Petróleo crudo y gas natural",-71.348748000000001,"Variación de existencias (PC)","2024 p/"]
["P032","Minerales metálicos",-6.7825610000000003,"Variación de existencias (PC)","2024 p/"]
["P033","Minerales no metálicos",53.227561000000001,"Variación de existencias (PC)","2024 p/"]
["P034","Carne y despojos comestibles de ganado bovino; cueros y pieles de bovino y de otros animales",1.229171,"Variación de existencias (PC)","2024 p/"]
["P035","Carne y despojos comestibles de ganado porcino",17.252687000000002,"Variación de existencias (PC)","2024 p/"]
["P036","Carne y despojos comestibles de aves",78.953813999999994,"Variación de existencias (PC)","2024 p/"]
["P037","Carne y despojos de otros animales y conservas y preparados de carne",-27.292314999999999,"Variación de existencias (PC)","2024 p/"]
["P038","Pescado congelado, preparado o en conserva y sus productos",-33.573042999999998,"Variación de existencias (PC)","2024 p/"]
["P039","Crustáceos, moluscos y demás invertebrados acuáticos congelados, preparados o en conserva y sus productos",-34.834600999999999,"Variación de existencias (PC)","2024 p/"]
["P040","Vegetales preparados o en conserva, legumbres y papas",84.937394999999995,"Variación de existencias (PC)","2024 p/"]
["P041","Preparaciones y conservas de frutas y nueces",41.291148,"Variación de existencias (PC)","2024 p/"]
["P042","Jugos de frutas",23.191564,"Variación de existencias (PC)","2024 p/"]
["P043","Aceites de origen vegetal",227.60736499999999,"Variación de existencias (PC)","2024 p/"]
["P044","Margarina, grasas y otros aceites de origen animal y vegetal",128.687804,"Variación de existencias (PC)","2024 p/"]
["P045","Leche líquida y crema procesada",-15.404007,"Variación de existencias (PC)","2024 p/"]
["P046","Otros productos lácteos n.c.p.",35.250903999999998,"Variación de existencias (PC)","2024 p/"]
["P047","Harina de trigo",44.565519999999999,"Variación de existencias (PC)","2024 p/"]
["P048","Arroz sin cáscara",-5.6871099999999997,"Variación de existencias (PC)","2024 p/"]
["P049","Otros productos de molinería, almidones y productos de almidón",-62.024405999999999,"Variación de existencias (PC)","2024 p/"]
["P050","Pan y otros productos de panadería y repostería n.c.p.",-2.6758549999999999,"Variación de existencias (PC)","2024 p/"]
["P051","Tortillas de maíz, incluso tostadas, horneadas o fritas",0.66534800000000005,"Variación de existencias (PC)","2024 p/"]
["P052","Azúcar de caña sin refinar y refinada, melaza y los demás azúcares n.c.p.",-982.29668800000002,"Variación de existencias (PC)","2024 p/"]
["P053","Productos alimenticios n.c.p.",184.12206800000001,"Variación de existencias (PC)","2024 p/"]
["P054","Preparados para alimentación animal",-45.243166000000002,"Variación de existencias (PC)","2024 p/"]
["P055","Aguardientes, licores, vinos, demás bebidas espirituosas y productos del tabaco",46.403398000000003,"Variación de existencias (PC)","2024 p/"]
["P056","Malta y cerveza de malta",-124.778004,"Variación de existencias (PC)","2024 p/"]
["P057","Bebidas no alcohólicas",-86.373069000000001,"Variación de existencias (PC)","2024 p/"]
["P058","Aguas minerales y otras aguas embotelladas",-47.748154,"Variación de existencias (PC)","2024 p/"]
["P059","Hilados, tejidos, telas y otros productos textiles excepto prendas de vestir",156.546921,"Variación de existencias (PC)","2024 p/"]
["P060","Prendas de vestir, adobo y teñido de pieles",153.53889899999999,"Variación de existencias (PC)","2024 p/"]
["P061","Cuero de piel curtida o adobada y cuero artificial o regenerado y artículos de cuero",12.473526,"Variación de existencias (PC)","2024 p/"]
["P062","Calzado y sus partes, de cualquier material y de cualquier uso",-46.965079000000003,"Variación de existencias (PC)","2024 p/"]
["P063","Madera aserrada y acepillada, productos de madera, corcho, paja y materiales trenzables",68.101916000000003,"Variación de existencias (PC)","2024 p/"]
["P064","Pasta de papel y papel",-128.09942899999999,"Variación de existencias (PC)","2024 p/"]
["P065","Envases de papel y cartón",104.299477,"Variación de existencias (PC)","2024 p/"]
["P066","Productos de la edición",-12.628158000000001,"Variación de existencias (PC)","2024 p/"]
["P067","Productos de la impresión",15.996694,"Variación de existencias (PC)","2024 p/"]
["P068","Gasolinas, diésel oil y fuel oils",762.19976399999996,"Variación de existencias (PC)","2024 p/"]
["P069","Aceites, grasas lubricantes y otros aceites preparados",179.50546600000001,"Variación de existencias (PC)","2024 p/"]
["P070","Gases de petróleo, otros productos de la refinación de petróleo n.c.p.",326.312501,"Variación de existencias (PC)","2024 p/"]
["P071","Abonos, fertilizantes y pesticidas",875.11009200000001,"Variación de existencias (PC)","2024 p/"]
["P072","Pinturas, barnices, tintas y productos relacionados",81.726778999999993,"Variación de existencias (PC)","2024 p/"]
["P073","Jabón, preparados de limpieza, perfumes y preparados de toilet",-26.248462,"Variación de existencias (PC)","2024 p/"]
["P074","Otros productos químicos",-425.40474,"Variación de existencias (PC)","2024 p/"]
["P075","Productos farmacéuticos",-121.27225,"Variación de existencias (PC)","2024 p/"]
["P076","Productos de caucho y plástico",310.672279,"Variación de existencias (PC)","2024 p/"]
["P077","Vidrio y productos de vidrio",133.642323,"Variación de existencias (PC)","2024 p/"]
["P078","Productos de cerámica y arcilla",-55.397606000000003,"Variación de existencias (PC)","2024 p/"]
["P079","Cemento, cal y yeso",22.219068,"Variación de existencias (PC)","2024 p/"]
["P080","Artículos de hormigón, cemento y yeso",237.877308,"Variación de existencias (PC)","2024 p/"]
["P081","Piedras talladas para construcción y otros productos minerales no metálicos n.c.p.",25.814769999999999,"Variación de existencias (PC)","2024 p/"]
["P082","Métales básicos de hierro y acero, productos primarios de metales preciosos y otros metales no ferrosos",507.22685200000001,"Variación de existencias (PC)","2024 p/"]
["P083","Productos metálicos estructurales y sus partes de hierro o de acero",201.623636,"Variación de existencias (PC)","2024 p/"]
["P084","Otros productos elaborados de metal",127.686026,"Variación de existencias (PC)","2024 p/"]
["P085","Maquinaria para usos generales y especiales, sus partes y piezas, excepto electrodomésticos",632.41884600000003,"Variación de existencias (PC)","2024 p/"]
["P086","Electrodomésticos y sus partes",35.500295000000001,"Variación de existencias (PC)","2024 p/"]
["P087","Maquinaria de oficina, contabilidad e informática, sus partes y piezas",-21.766577999999999,"Variación de existencias (PC)","2024 p/"]
["P088","Maquinaria y aparatos eléctricos, sus partes y piezas",346.72036000000003,"Variación de existencias (PC)","2024 p/"]
["P089","Equipo y aparatos de radio, televisión y comunicaciones",-107.22104400000001,"Variación de existencias (PC)","2024 p/"]
["P090","Aparatos médicos, instrumentos ópticos y de precisión, relojes",70.771190000000004,"Variación de existencias (PC)","2024 p/"]
["P091","Equipo de transporte",-40.023806999999998,"Variación de existencias (PC)","2024 p/"]
["P092","Muebles",21.355312999999999,"Variación de existencias (PC)","2024 p/"]
["P093","Otros artículos n.c.p.",86.86354,"Variación de existencias (PC)","2024 p/"]
["P094","Residuos y desechos",-122.323044,"Variación de existencias (PC)","2024 p/"]
["P095","Generación y distribución de energía eléctrica, gas, vapor y aire acondicionado",0,"Variación de existencias (PC)","2024 p/"]
["P096","Agua natural y distribución de agua natural",0,"Variación de existencias (PC)","2024 p/"]
["P097","Evacuación de aguas residuales, recogida, tratamiento y eliminación de desechos",0,"Variación de existencias (PC)","2024 p/"]
["P098","Edificaciones residenciales",164.03882200000001,"Variación de existencias (PC)","2024 p/"]
["P099","Edificaciones no residenciales",-348.87615199999999,"Variación de existencias (PC)","2024 p/"]
["P100","Obras de ingeniería civil",0,"Variación de existencias (PC)","2024 p/"]
["P101","Servicios generales y especializados de construcción",0,"Variación de existencias (PC)","2024 p/"]
["P102","Servicios de comercio",0,"Variación de existencias (PC)","2024 p/"]
["P103","Mantenimiento y reparación de vehículos automotores y motocicletas",0,"Variación de existencias (PC)","2024 p/"]
["P104","Servicio de transporte de pasajeros por vía terrestre",0,"Variación de existencias (PC)","2024 p/"]
["P105","Servicio de transporte de carga por vía terrestre",0,"Variación de existencias (PC)","2024 p/"]
["P106","Otros tipos de transporte",0,"Variación de existencias (PC)","2024 p/"]
["P107","Servicios de almacenamiento y depósito",0,"Variación de existencias (PC)","2024 p/"]
["P108","Otros servicios de apoyo al transporte",0,"Variación de existencias (PC)","2024 p/"]
["P109","Servicios postales y de mensajería",0,"Variación de existencias (PC)","2024 p/"]
["P110","Servicio de alojamiento",0,"Variación de existencias (PC)","2024 p/"]
["P111","Servicio de suministro de comidas y bebidas",0,"Variación de existencias (PC)","2024 p/"]
["P112","Servicios de información, telecomunicaciones y radiodifusión",0,"Variación de existencias (PC)","2024 p/"]
["P113","Servicios de banco central",0,"Variación de existencias (PC)","2024 p/"]
["P114","Otros servicios financieros y servicios de banca de inversión",0,"Variación de existencias (PC)","2024 p/"]
["P115","Servicios de Intermediación Financiera Medidos Indirectamente (SIFMI)",0,"Variación de existencias (PC)","2024 p/"]
["P116","Servicios de seguro, reaseguro y fondos de pensiones",0,"Variación de existencias (PC)","2024 p/"]
["P117","Servicios auxiliares de la intermediación financiera",0,"Variación de existencias (PC)","2024 p/"]
["P118","Servicios de alquiler de vivienda",0,"Variación de existencias (PC)","2024 p/"]
["P119","Otros servicios inmobiliarios, excepto alquiler de vivienda",0,"Variación de existencias (PC)","2024 p/"]
["P120","Servicios jurídicos, de contabilidad, auditoría, teneduría de libros y consultoría fiscal",0,"Variación de existencias (PC)","2024 p/"]
["P121","Servicios de tecnología de la información",0,"Variación de existencias (PC)","2024 p/"]
["P122","Servicios de arquitectura e ingeniería, ensayos y análisis técnicos",0,"Variación de existencias (PC)","2024 p/"]
["P123","Otros servicios profesionales, científicos y técnicos",0,"Variación de existencias (PC)","2024 p/"]
["P124","Servicios de publicidad y estudios de mercado",0,"Variación de existencias (PC)","2024 p/"]
["P125","Servicios de arrendamiento o alquiler sin operador",0,"Variación de existencias (PC)","2024 p/"]
["P126","Servicios  de agencias de empleo y de dotación de recursos humanos",0,"Variación de existencias (PC)","2024 p/"]
["P127","Servicios de agencias de viajes, operadores turísticos y actividades conexas",0,"Variación de existencias (PC)","2024 p/"]
["P128","Servicios de seguridad, sistemas de seguridad e investigación privada",0,"Variación de existencias (PC)","2024 p/"]
["P129","Servicios de limpieza",0,"Variación de existencias (PC)","2024 p/"]
["P130","Servicios telefónicos de centros de llamadas",0,"Variación de existencias (PC)","2024 p/"]
["P131","Servicios administrativos, de apoyo de oficina y otros servicios de apoyo a las empresas",0,"Variación de existencias (PC)","2024 p/"]
["P132","Servicios de mantenimiento, reparación e instalación de productos metálicos elaborados, maquinaria y equipo",0,"Variación de existencias (PC)","2024 p/"]
["P133","Servicios de reparación de otros bienes",0,"Variación de existencias (PC)","2024 p/"]
["P134","Servicios de apoyo a la agricultura, caza, silvicultura y pesca",0,"Variación de existencias (PC)","2024 p/"]
["P135","Servicios de apoyo a la explotación de minas y canteras y los relacionados con la distribución de electricidad, gas y agua",0,"Variación de existencias (PC)","2024 p/"]
["P136","Servicios de manufactura",0,"Variación de existencias (PC)","2024 p/"]
["P137","Servicios públicos del gobierno general",0,"Variación de existencias (PC)","2024 p/"]
["P138","Servicios públicos administrativos relacionados con la provisión de servicios educativos, de salud, servicios sociales, culturales y otros, sin contar los servicios de seguridad social",0,"Variación de existencias (PC)","2024 p/"]
["P139","Otros servicios administrativos",0,"Variación de existencias (PC)","2024 p/"]
["P140","Servicios públicos administrativos prestados a la comunidad en su conjunto",0,"Variación de existencias (PC)","2024 p/"]
["P141","Servicios administrativos relacionados con los sistemas de seguridad social de afiliación obligatoria",0,"Variación de existencias (PC)","2024 p/"]
["P142","Servicios de enseñanza",0,"Variación de existencias (PC)","2024 p/"]
["P143","Servicios de hospitalización",0,"Variación de existencias (PC)","2024 p/"]
["P144","Servicios médicos y dentales",0,"Variación de existencias (PC)","2024 p/"]
["P145","Otros servicios de atención de la salud humana",0,"Variación de existencias (PC)","2024 p/"]
["P146","Servicios audiovisuales, recreativos, culturales y deportivos",0,"Variación de existencias (PC)","2024 p/"]
["P147","Servicios de asociaciones que sirven a las empresas",0,"Variación de existencias (PC)","2024 p/"]
["P148","Servicios de asociaciones que sirven a los hogares",0,"Variación de existencias (PC)","2024 p/"]
["P149","Otros servicios",0,"Variación de existencias (PC)","2024 p/"]
["P150","Servicios domésticos",0,"Variación de existencias (PC)","2024 p/"]
["P151","Compras directas en el exterior por residentes",0,"Variación de existencias (PC)","2024 p/"]
["P152","Compras directas en el territorio nacional por no residentes",0,"Variación de existencias (PC)","2024 p/"]
["P001","Maíz",0,"Ajuste CIF/FOB","2024 p/"]
["P002","Frijoles",0,"Ajuste CIF/FOB","2024 p/"]
["P003","Leguminosas (legumbres secas) y semillas oleaginosas",0,"Ajuste CIF/FOB","2024 p/"]
["P004","Arroz",0,"Ajuste CIF/FOB","2024 p/"]
["P005","Otros cereales",0,"Ajuste CIF/FOB","2024 p/"]
["P006","Hortalizas",0,"Ajuste CIF/FOB","2024 p/"]
["P007","Sandías y melones",0,"Ajuste CIF/FOB","2024 p/"]
["P008","Ejotes y arvejas",0,"Ajuste CIF/FOB","2024 p/"]
["P009","Raíces y tubérculos",0,"Ajuste CIF/FOB","2024 p/"]
["P010","Caña de azúcar y otras plantas azucareras",0,"Ajuste CIF/FOB","2024 p/"]
["P011","Tabaco y otras plantas no perennes",0,"Ajuste CIF/FOB","2024 p/"]
["P012","Bananos, plátanos y otros",0,"Ajuste CIF/FOB","2024 p/"]
["P013","Frutas tropicales y subtropicales",0,"Ajuste CIF/FOB","2024 p/"]
["P014","Berries, otras frutas y semillas de frutas",0,"Ajuste CIF/FOB","2024 p/"]
["P015","Palma africana",0,"Ajuste CIF/FOB","2024 p/"]
["P016","Café en grano",0,"Ajuste CIF/FOB","2024 p/"]
["P017","Cardamomo",0,"Ajuste CIF/FOB","2024 p/"]
["P018","Caucho natural",0,"Ajuste CIF/FOB","2024 p/"]
["P019","Propagación de plantas",0,"Ajuste CIF/FOB","2024 p/"]
["P020","Otros frutos oleaginosos, otras plantas bebestibles y especias aromáticas",0,"Ajuste CIF/FOB","2024 p/"]
["P021","Ganado bovino",0,"Ajuste CIF/FOB","2024 p/"]
["P022","Ganado porcino y otro tipo de animales vivos n.c.p.",0,"Ajuste CIF/FOB","2024 p/"]
["P023","Aves de corral",0,"Ajuste CIF/FOB","2024 p/"]
["P024","Leche cruda",0,"Ajuste CIF/FOB","2024 p/"]
["P025","Huevos",0,"Ajuste CIF/FOB","2024 p/"]
["P026","Otros productos de animales vivos",0,"Ajuste CIF/FOB","2024 p/"]
["P027","Troncos de madera y leña",0,"Ajuste CIF/FOB","2024 p/"]
["P028","Productos forestales no madereros",0,"Ajuste CIF/FOB","2024 p/"]
["P029","Peces vivos, frescos o refrigerados",0,"Ajuste CIF/FOB","2024 p/"]
["P030","Crustáceos sin congelar y otros productos de la pesca",0,"Ajuste CIF/FOB","2024 p/"]
["P031","Petróleo crudo y gas natural",0,"Ajuste CIF/FOB","2024 p/"]
["P032","Minerales metálicos",0,"Ajuste CIF/FOB","2024 p/"]
["P033","Minerales no metálicos",0,"Ajuste CIF/FOB","2024 p/"]
["P034","Carne y despojos comestibles de ganado bovino; cueros y pieles de bovino y de otros animales",0,"Ajuste CIF/FOB","2024 p/"]
["P035","Carne y despojos comestibles de ganado porcino",0,"Ajuste CIF/FOB","2024 p/"]
["P036","Carne y despojos comestibles de aves",0,"Ajuste CIF/FOB","2024 p/"]
["P037","Carne y despojos de otros animales y conservas y preparados de carne",0,"Ajuste CIF/FOB","2024 p/"]
["P038","Pescado congelado, preparado o en conserva y sus productos",0,"Ajuste CIF/FOB","2024 p/"]
["P039","Crustáceos, moluscos y demás invertebrados acuáticos congelados, preparados o en conserva y sus productos",0,"Ajuste CIF/FOB","2024 p/"]
["P040","Vegetales preparados o en conserva, legumbres y papas",0,"Ajuste CIF/FOB","2024 p/"]
["P041","Preparaciones y conservas de frutas y nueces",0,"Ajuste CIF/FOB","2024 p/"]
["P042","Jugos de frutas",0,"Ajuste CIF/FOB","2024 p/"]
["P043","Aceites de origen vegetal",0,"Ajuste CIF/FOB","2024 p/"]
["P044","Margarina, grasas y otros aceites de origen animal y vegetal",0,"Ajuste CIF/FOB","2024 p/"]
["P045","Leche líquida y crema procesada",0,"Ajuste CIF/FOB","2024 p/"]
["P046","Otros productos lácteos n.c.p.",0,"Ajuste CIF/FOB","2024 p/"]
["P047","Harina de trigo",0,"Ajuste CIF/FOB","2024 p/"]
["P048","Arroz sin cáscara",0,"Ajuste CIF/FOB","2024 p/"]
["P049","Otros productos de molinería, almidones y productos de almidón",0,"Ajuste CIF/FOB","2024 p/"]
["P050","Pan y otros productos de panadería y repostería n.c.p.",0,"Ajuste CIF/FOB","2024 p/"]
["P051","Tortillas de maíz, incluso tostadas, horneadas o fritas",0,"Ajuste CIF/FOB","2024 p/"]
["P052","Azúcar de caña sin refinar y refinada, melaza y los demás azúcares n.c.p.",0,"Ajuste CIF/FOB","2024 p/"]
["P053","Productos alimenticios n.c.p.",0,"Ajuste CIF/FOB","2024 p/"]
["P054","Preparados para alimentación animal",0,"Ajuste CIF/FOB","2024 p/"]
["P055","Aguardientes, licores, vinos, demás bebidas espirituosas y productos del tabaco",0,"Ajuste CIF/FOB","2024 p/"]
["P056","Malta y cerveza de malta",0,"Ajuste CIF/FOB","2024 p/"]
["P057","Bebidas no alcohólicas",0,"Ajuste CIF/FOB","2024 p/"]
["P058","Aguas minerales y otras aguas embotelladas",0,"Ajuste CIF/FOB","2024 p/"]
["P059","Hilados, tejidos, telas y otros productos textiles excepto prendas de vestir",0,"Ajuste CIF/FOB","2024 p/"]
["P060","Prendas de vestir, adobo y teñido de pieles",0,"Ajuste CIF/FOB","2024 p/"]
["P061","Cuero de piel curtida o adobada y cuero artificial o regenerado y artículos de cuero",0,"Ajuste CIF/FOB","2024 p/"]
["P062","Calzado y sus partes, de cualquier material y de cualquier uso",0,"Ajuste CIF/FOB","2024 p/"]
["P063","Madera aserrada y acepillada, productos de madera, corcho, paja y materiales trenzables",0,"Ajuste CIF/FOB","2024 p/"]
["P064","Pasta de papel y papel",0,"Ajuste CIF/FOB","2024 p/"]
["P065","Envases de papel y cartón",0,"Ajuste CIF/FOB","2024 p/"]
["P066","Productos de la edición",0,"Ajuste CIF/FOB","2024 p/"]
["P067","Productos de la impresión",0,"Ajuste CIF/FOB","2024 p/"]
["P068","Gasolinas, diésel oil y fuel oils",0,"Ajuste CIF/FOB","2024 p/"]
["P069","Aceites, grasas lubricantes y otros aceites preparados",0,"Ajuste CIF/FOB","2024 p/"]
["P070","Gases de petróleo, otros productos de la refinación de petróleo n.c.p.",0,"Ajuste CIF/FOB","2024 p/"]
["P071","Abonos, fertilizantes y pesticidas",0,"Ajuste CIF/FOB","2024 p/"]
["P072","Pinturas, barnices, tintas y productos relacionados",0,"Ajuste CIF/FOB","2024 p/"]
["P073","Jabón, preparados de limpieza, perfumes y preparados de toilet",0,"Ajuste CIF/FOB","2024 p/"]
["P074","Otros productos químicos",0,"Ajuste CIF/FOB","2024 p/"]
["P075","Productos farmacéuticos",0,"Ajuste CIF/FOB","2024 p/"]
["P076","Productos de caucho y plástico",0,"Ajuste CIF/FOB","2024 p/"]
["P077","Vidrio y productos de vidrio",0,"Ajuste CIF/FOB","2024 p/"]
["P078","Productos de cerámica y arcilla",0,"Ajuste CIF/FOB","2024 p/"]
["P079","Cemento, cal y yeso",0,"Ajuste CIF/FOB","2024 p/"]
["P080","Artículos de hormigón, cemento y yeso",0,"Ajuste CIF/FOB","2024 p/"]
["P081","Piedras talladas para construcción y otros productos minerales no metálicos n.c.p.",0,"Ajuste CIF/FOB","2024 p/"]
["P082","Métales básicos de hierro y acero, productos primarios de metales preciosos y otros metales no ferrosos",0,"Ajuste CIF/FOB","2024 p/"]
["P083","Productos metálicos estructurales y sus partes de hierro o de acero",0,"Ajuste CIF/FOB","2024 p/"]
["P084","Otros productos elaborados de metal",0,"Ajuste CIF/FOB","2024 p/"]
["P085","Maquinaria para usos generales y especiales, sus partes y piezas, excepto electrodomésticos",0,"Ajuste CIF/FOB","2024 p/"]
["P086","Electrodomésticos y sus partes",0,"Ajuste CIF/FOB","2024 p/"]
["P087","Maquinaria de oficina, contabilidad e informática, sus partes y piezas",0,"Ajuste CIF/FOB","2024 p/"]
["P088","Maquinaria y aparatos eléctricos, sus partes y piezas",0,"Ajuste CIF/FOB","2024 p/"]
["P089","Equipo y aparatos de radio, televisión y comunicaciones",0,"Ajuste CIF/FOB","2024 p/"]
["P090","Aparatos médicos, instrumentos ópticos y de precisión, relojes",0,"Ajuste CIF/FOB","2024 p/"]
["P091","Equipo de transporte",0,"Ajuste CIF/FOB","2024 p/"]
["P092","Muebles",0,"Ajuste CIF/FOB","2024 p/"]
["P093","Otros artículos n.c.p.",0,"Ajuste CIF/FOB","2024 p/"]
["P094","Residuos y desechos",0,"Ajuste CIF/FOB","2024 p/"]
["P095","Generación y distribución de energía eléctrica, gas, vapor y aire acondicionado",0,"Ajuste CIF/FOB","2024 p/"]
["P096","Agua natural y distribución de agua natural",0,"Ajuste CIF/FOB","2024 p/"]
["P097","Evacuación de aguas residuales, recogida, tratamiento y eliminación de desechos",0,"Ajuste CIF/FOB","2024 p/"]
["P098","Edificaciones residenciales",0,"Ajuste CIF/FOB","2024 p/"]
["P099","Edificaciones no residenciales",0,"Ajuste CIF/FOB","2024 p/"]
["P100","Obras de ingeniería civil",0,"Ajuste CIF/FOB","2024 p/"]
["P101","Servicios generales y especializados de construcción",0,"Ajuste CIF/FOB","2024 p/"]
["P102","Servicios de comercio",0,"Ajuste CIF/FOB","2024 p/"]
["P103","Mantenimiento y reparación de vehículos automotores y motocicletas",0,"Ajuste CIF/FOB","2024 p/"]
["P104","Servicio de transporte de pasajeros por vía terrestre",0,"Ajuste CIF/FOB","2024 p/"]
["P105","Servicio de transporte de carga por vía terrestre",-3293.1848230000001,"Ajuste CIF/FOB","2024 p/"]
["P106","Otros tipos de transporte",-15236.414846,"Ajuste CIF/FOB","2024 p/"]
["P107","Servicios de almacenamiento y depósito",0,"Ajuste CIF/FOB","2024 p/"]
["P108","Otros servicios de apoyo al transporte",0,"Ajuste CIF/FOB","2024 p/"]
["P109","Servicios postales y de mensajería",0,"Ajuste CIF/FOB","2024 p/"]
["P110","Servicio de alojamiento",0,"Ajuste CIF/FOB","2024 p/"]
["P111","Servicio de suministro de comidas y bebidas",0,"Ajuste CIF/FOB","2024 p/"]
["P112","Servicios de información, telecomunicaciones y radiodifusión",0,"Ajuste CIF/FOB","2024 p/"]
["P113","Servicios de banco central",0,"Ajuste CIF/FOB","2024 p/"]
["P114","Otros servicios financieros y servicios de banca de inversión",0,"Ajuste CIF/FOB","2024 p/"]
["P115","Servicios de Intermediación Financiera Medidos Indirectamente (SIFMI)",0,"Ajuste CIF/FOB","2024 p/"]
["P116","Servicios de seguro, reaseguro y fondos de pensiones",-1010.178071,"Ajuste CIF/FOB","2024 p/"]
["P117","Servicios auxiliares de la intermediación financiera",0,"Ajuste CIF/FOB","2024 p/"]
["P118","Servicios de alquiler de vivienda",0,"Ajuste CIF/FOB","2024 p/"]
["P119","Otros servicios inmobiliarios, excepto alquiler de vivienda",0,"Ajuste CIF/FOB","2024 p/"]
["P120","Servicios jurídicos, de contabilidad, auditoría, teneduría de libros y consultoría fiscal",0,"Ajuste CIF/FOB","2024 p/"]
["P121","Servicios de tecnología de la información",0,"Ajuste CIF/FOB","2024 p/"]
["P122","Servicios de arquitectura e ingeniería, ensayos y análisis técnicos",0,"Ajuste CIF/FOB","2024 p/"]
["P123","Otros servicios profesionales, científicos y técnicos",0,"Ajuste CIF/FOB","2024 p/"]
["P124","Servicios de publicidad y estudios de mercado",0,"Ajuste CIF/FOB","2024 p/"]
["P125","Servicios de arrendamiento o alquiler sin operador",0,"Ajuste CIF/FOB","2024 p/"]
["P126","Servicios  de agencias de empleo y de dotación de recursos humanos",0,"Ajuste CIF/FOB","2024 p/"]
["P127","Servicios de agencias de viajes, operadores turísticos y actividades conexas",0,"Ajuste CIF/FOB","2024 p/"]
["P128","Servicios de seguridad, sistemas de seguridad e investigación privada",0,"Ajuste CIF/FOB","2024 p/"]
["P129","Servicios de limpieza",0,"Ajuste CIF/FOB","2024 p/"]
["P130","Servicios telefónicos de centros de llamadas",0,"Ajuste CIF/FOB","2024 p/"]
["P131","Servicios administrativos, de apoyo de oficina y otros servicios de apoyo a las empresas",0,"Ajuste CIF/FOB","2024 p/"]
["P132","Servicios de mantenimiento, reparación e instalación de productos metálicos elaborados, maquinaria y equipo",0,"Ajuste CIF/FOB","2024 p/"]
["P133","Servicios de reparación de otros bienes",0,"Ajuste CIF/FOB","2024 p/"]
["P134","Servicios de apoyo a la agricultura, caza, silvicultura y pesca",0,"Ajuste CIF/FOB","2024 p/"]
["P135","Servicios de apoyo a la explotación de minas y canteras y los relacionados con la distribución de electricidad, gas y agua",0,"Ajuste CIF/FOB","2024 p/"]
["P136","Servicios de manufactura",0,"Ajuste CIF/FOB","2024 p/"]
["P137","Servicios públicos del gobierno general",0,"Ajuste CIF/FOB","2024 p/"]
["P138","Servicios públicos administrativos relacionados con la provisión de servicios educativos, de salud, servicios sociales, culturales y otros, sin contar los servicios de seguridad social",0,"Ajuste CIF/FOB","2024 p/"]
["P139","Otros servicios administrativos",0,"Ajuste CIF/FOB","2024 p/"]
["P140","Servicios públicos administrativos prestados a la comunidad en su conjunto",0,"Ajuste CIF/FOB","2024 p/"]
["P141","Servicios administrativos relacionados con los sistemas de seguridad social de afiliación obligatoria",0,"Ajuste CIF/FOB","2024 p/"]
["P142","Servicios de enseñanza",0,"Ajuste CIF/FOB","2024 p/"]
["P143","Servicios de hospitalización",0,"Ajuste CIF/FOB","2024 p/"]
["P144","Servicios médicos y dentales",0,"Ajuste CIF/FOB","2024 p/"]
["P145","Otros servicios de atención de la salud humana",0,"Ajuste CIF/FOB","2024 p/"]
["P146","Servicios audiovisuales, recreativos, culturales y deportivos",0,"Ajuste CIF/FOB","2024 p/"]
["P147","Servicios de asociaciones que sirven a las empresas",0,"Ajuste CIF/FOB","2024 p/"]
["P148","Servicios de asociaciones que sirven a los hogares",0,"Ajuste CIF/FOB","2024 p/"]
["P149","Otros servicios",0,"Ajuste CIF/FOB","2024 p/"]
["P150","Servicios domésticos",0,"Ajuste CIF/FOB","2024 p/"]
["P151","Compras directas en el exterior por residentes",0,"Ajuste CIF/FOB","2024 p/"]
["P152","Compras directas en el territorio nacional por no residentes",0,"Ajuste CIF/FOB","2024 p/"]